Workbook

Sheet input➡

Sheet 施設コード
A1: 参照する期間 | B1: ID | C1: 回答エリア | D1: 都道府県 | E1: 6分類 | F1: 市町村
A2: 6月 | B2: 300001 | C2: =IFERROR(VLOOKUP(B2,【M】エリア!A:B,2,0),"ID(施設コード)を入力してください。") -> 一乗谷朝倉氏遺跡 エリア | D2: 福井県 | E2: =IFERROR(VLOOKUP(B2,【M】エリア!A:D,4,0),"ID(施設コード)を入力してください。") -> 福井市・永平寺町 | F2: =IFERROR(VLOOKUP(B2,【M】エリア!A:C,3,0),"ID(施設コード)を入力してください。") -> 福井市
B16: エリア一覧
B17: ID | C17: QRコード名 | D17: 市町 | E17: 6分類 | F17: DMO
B18: 300001 | C18: 一乗谷朝倉氏遺跡 エリア | D18: 福井市 | E18: 福井市・永平寺町
B19: 300002 | C19: 越前海岸 エリア | D19: 福井市 | E19: 福井市・永平寺町
B20: 300003 | C20: ガラガラ山キャンプ場 エリア | D20: 福井市 | E20: 福井市・永平寺町
B21: 300004 | C21: 福井駅前 エリア | D21: 福井市 | E21: 福井市・永平寺町
B22: 300005 | C22: 名勝 養浩館庭園 エリア | D22: 福井市 | E22: 福井市・永平寺町
B23: 300006 | C23: 東尋坊 エリア | D23: 坂井市 | E23: あわら市・坂井市 | F23: (一社)DMOさかい観光局
B24: 300007 | C24: 芝政ワールド エリア | D24: 坂井市 | E24: あわら市・坂井市 | F24: (一社)DMOさかい観光局
B25: 300008 | C25: 丸岡城 エリア | D25: 坂井市 | E25: あわら市・坂井市 | F25: (一社)DMOさかい観光局
B26: 300009 | C26: 花の駅 ゆりの里公園 エリア | D26: 坂井市 | E26: あわら市・坂井市 | F26: (一社)DMOさかい観光局
B27: 300010 | C27: 道の駅みくに ふれあいパーク三里浜 エリア | D27: 坂井市 | E27: あわら市・坂井市 | F27: (一社)DMOさかい観光局
B28: 300011 | C28: あわら温泉 エリア | D28: あわら市 | E28: あわら市・坂井市
B29: 300012 | C29: 金津創作の森 エリア | D29: あわら市 | E29: あわら市・坂井市
B30: 300013 | C30: JA福井県ファーマーズマーケットきららの丘 エリア | D30: あわら市 | E30: あわら市・坂井市
B31: 300014 | C31: 北潟湖 エリア | D31: あわら市 | E31: あわら市・坂井市
B32: 300015 | C32: 越前大野城・城下町 エリア | D32: 大野市 | E32: 勝山市・大野市
B33: 300016 | C33: 道の駅「越前おおの荒島の郷」 エリア | D33: 大野市 | E33: 勝山市・大野市
B34: 300017 | C34: 道の駅「九頭竜」 エリア | D34: 大野市 | E34: 勝山市・大野市
B35: 300018 | C35: 六呂師高原 エリア | D35: 大野市 | E35: 勝山市・大野市
B36: 300019 | C36: スーベニアショップ ラプトル エリア | D36: 勝山市 | E36: 勝山市・大野市 | F36: 勝山市観光まちづくり(株)
B37: 300020 | C37: 道の駅「恐竜渓谷かつやま」 エリア | D37: 勝山市 | E37: 勝山市・大野市 | F37: 勝山市観光まちづくり(株)
B38: 300021 | C38: スキージャム勝山 エリア | D38: 勝山市 | E38: 勝山市・大野市 | F38: 勝山市観光まちづくり(株)
B39: 300022 | C39: 越前大仏 エリア | D39: 勝山市 | E39: 勝山市・大野市 | F39: 勝山市観光まちづくり(株)
B40: 300023 | C40: 平泉寺白山神社 エリア | D40: 勝山市 | E40: 勝山市・大野市 | F40: 勝山市観光まちづくり(株)
B41: 300024 | C41: はたや記念館 ゆめおーれ勝山 エリア | D41: 勝山市 | E41: 勝山市・大野市 | F41: 勝山市観光まちづくり(株)
B42: 300025 | C42: 永平寺門前 エリア | D42: 永平寺町 | E42: 福井市・永平寺町
B43: 300026 | C43: 道の駅「禅の里」 エリア | D43: 永平寺町 | E43: 福井市・永平寺町
B44: 300027 | C44: 永平寺町 エリア | D44: 永平寺町 | E44: 福井市・永平寺町
B45: 300028 | C45: 越前和紙の里 エリア | D45: 越前市 | E45: 丹南
B46: 300029 | C46: 越前そばの里 エリア | D46: 越前市 | E46: 丹南
B47: 300030 | C47: タケフナイフビレッジ エリア | D47: 越前市 | E47: 丹南
B48: 300031 | C48: ちひろの生まれた家記念館 エリア | D48: 越前市 | E48: 丹南
B49: 300032 | C49: 道の駅「西山公園」 エリア | D49: 鯖江市 | E49: 丹南
B50: 300033 | C50: めがねミュージアム エリア | D50: 鯖江市 | E50: 丹南
B51: 300034 | C51: うるしの里 エリア | D51: 鯖江市 | E51: 丹南
B52: 300035 | C52: まちの市場 こってコテいけだ エリア | D52: 池田町 | E52: 丹南
B53: 300036 | C53: ツリーピクニックアドベンチャーいけだ エリア | D53: 池田町 | E53: 丹南
B54: 300037 | C54: かずら橋 エリア | D54: 池田町 | E54: 丹南
B55: 300038 | C55: 道の駅「越前」 エリア | D55: 越前町 | E55: 丹南
B56: 300039 | C56: 道の駅「パークイン丹生ヶ丘」 エリア | D56: 越前町 | E56: 丹南
B57: 300040 | C57: 劔神社 エリア | D57: 越前町 | E57: 丹南
B58: 300041 | C58: 越前陶芸村 エリア | D58: 越前町 | E58: 丹南
B59: 300042 | C59: 越前岬 エリア | D59: 越前町 | E59: 丹南
B60: 300043 | C60: 道の駅「南えちぜん山海里」 エリア | D60: 南越前町 | E60: 丹南
B61: 300044 | C61: 北前船主の館 右近家 エリア | D61: 南越前町 | E61: 丹南
B62: 300045 | C62: 今庄宿 エリア | D62: 南越前町 | E62: 丹南
B63: 300046 | C63: 日本海さかな街 エリア | D63: 敦賀市 | E63: 嶺南東部
B64: 300047 | C64: 氣比神宮 エリア | D64: 敦賀市 | E64: 嶺南東部
B65: 300048 | C65: JR敦賀駅前 エリア | D65: 敦賀市 | E65: 嶺南東部
B66: 300049 | C66: 金ヶ崎 エリア | D66: 敦賀市 | E66: 嶺南東部
B67: 300050 | C67: 敦賀市立博物館 エリア | D67: 敦賀市 | E67: 嶺南東部
B68: 300051 | C68: 道の駅「若狭おばま」 エリア | D68: 小浜市 | E68: 嶺南西部 | F68: (株)まちづくり小浜
B69: 300052 | C69: 小浜町家ステイ エリア | D69: 小浜市 | E69: 嶺南西部 | F69: (株)まちづくり小浜
B70: 300053 | C70: 若狭フィッシャーマンズワーフ エリア | D70: 小浜市 | E70: 嶺南西部 | F70: (株)まちづくり小浜
B71: 300054 | C71: 御食国若狭おばま食文化館 エリア | D71: 小浜市 | E71: 嶺南西部 | F71: (株)まちづくり小浜
B72: 300055 | C72: 福井県立若狭歴史博物館 エリア | D72: 小浜市 | E72: 嶺南西部 | F72: (株)まちづくり小浜
B73: 300056 | C73: 小浜市まちの駅 エリア | D73: 小浜市 | E73: 嶺南西部 | F73: (株)まちづくり小浜
B74: 300057 | C74: 明通寺 エリア | D74: 小浜市 | E74: 嶺南西部 | F74: (株)まちづくり小浜
B75: 300058 | C75: 箸のふるさと館WAKASA エリア | D75: 小浜市 | E75: 嶺南西部 | F75: (株)まちづくり小浜
B76: 300059 | C76: レインボーライン エリア | D76: 美浜町 | E76: 嶺南東部 | F76: 三方五湖DMO(株)
B77: 300060 | C77: 若狭海遊バザール 千鳥苑 エリア | D77: 美浜町 | E77: 嶺南東部 | F77: 三方五湖DMO(株)
B78: 300061 | C78: 道の駅「五湖の駅」 エリア | D78: 美浜町 | E78: 嶺南東部 | F78: 三方五湖DMO(株)
B79: 300062 | C79: 熊川宿 エリア | D79: 若狭町 | E79: 嶺南東部
B80: 300063 | C80: 三方五湖 エリア | D80: 若狭町 | E80: 嶺南東部 | F80: 三方五湖DMO(株)
B81: 300064 | C81: うみんぴあ大飯 エリア | D81: おおい町 | E81: 嶺南西部
B82: 300065 | C82: きのこの森 エリア | D82: おおい町 | E82: 嶺南西部
B83: 300066 | C83: 道の駅「名田庄」 エリア | D83: おおい町 | E83: 嶺南西部
B84: 300067 | C84: 赤礁崎オートキャンプ場 エリア | D84: おおい町 | E84: 嶺南西部
B85: 300068 | C85: 道の駅「シーサイド高浜」 エリア | D85: 高浜町 | E85: 嶺南西部
B86: 300069 | C86: 青葉山ハーバルビレッジ エリア | D86: 高浜町 | E86: 嶺南西部
B87: 300070 | C87: UMIKARA エリア | D87: 高浜町 | E87: 嶺南西部

Sheet output➡

Sheet 回答数
A1: 集計区分 | C1: 回答数 | D1: 回答月 | R1: 回答数 | T1: 回答月
D2: 4月 | E2: 5月 | F2: 6月 | G2: 7月 | H2: 8月 | I2: 9月 | J2: 10月 | K2: 11月 | L2: 12月 | M2: 1月 | N2: 2月 | O2: 3月 | P2: 合計 | T2: 4月 | U2: 5月 | V2: 6月 | W2: 7月 | X2: 8月 | Y2: 9月 | Z2: 10月 | AA2: 11月 | AB2: 12月 | AC2: 1月 | AD2: 2月 | AE2: 3月
A3: 全体 | B3: =施設コード!$D$2 -> 福井県 | D3: =COUNTIFS(OFFSET(raw!$A$1,2,MATCH($D$1,raw!$2:$2,0)-1,COUNTA(raw!$A:$A)-1,1),D$2) -> 234 | E3: =COUNTIFS(OFFSET(raw!$A$1,2,MATCH($D$1,raw!$2:$2,0)-1,COUNTA(raw!$A:$A)-1,1),E$2) -> 2259 | F3: =COUNTIFS(OFFSET(raw!$A$1,2,MATCH($D$1,raw!$2:$2,0)-1,COUNTA(raw!$A:$A)-1,1),F$2) -> 1380 | G3: =COUNTIFS(OFFSET(raw!$A$1,2,MATCH($D$1,raw!$2:$2,0)-1,COUNTA(raw!$A:$A)-1,1),G$2) -> 0 | H3: =COUNTIFS(OFFSET(raw!$A$1,2,MATCH($D$1,raw!$2:$2,0)-1,COUNTA(raw!$A:$A)-1,1),H$2) -> 0 | I3: =COUNTIFS(OFFSET(raw!$A$1,2,MATCH($D$1,raw!$2:$2,0)-1,COUNTA(raw!$A:$A)-1,1),I$2) -> 0 | J3: =COUNTIFS(OFFSET(raw!$A$1,2,MATCH($D$1,raw!$2:$2,0)-1,COUNTA(raw!$A:$A)-1,1),J$2) -> 0 | K3: =COUNTIFS(OFFSET(raw!$A$1,2,MATCH($D$1,raw!$2:$2,0)-1,COUNTA(raw!$A:$A)-1,1),K$2) -> 0 | L3: =COUNTIFS(OFFSET(raw!$A$1,2,MATCH($D$1,raw!$2:$2,0)-1,COUNTA(raw!$A:$A)-1,1),L$2) -> 0 | M3: =COUNTIFS(OFFSET(raw!$A$1,2,MATCH($D$1,raw!$2:$2,0)-1,COUNTA(raw!$A:$A)-1,1),M$2) -> 0 | N3: =COUNTIFS(OFFSET(raw!$A$1,2,MATCH($D$1,raw!$2:$2,0)-1,COUNTA(raw!$A:$A)-1,1),N$2) -> 0 | O3: =COUNTIFS(OFFSET(raw!$A$1,2,MATCH($D$1,raw!$2:$2,0)-1,COUNTA(raw!$A:$A)-1,1),O$2) -> 0 | P3: =D3+E3+F3+G3+H3+I3+J3+K3+L3+M3+N3+O3 -> 3873 | R3: 福井県 | S3: 単月 | T3: =D3 -> 234 | U3: =E3 -> 2259 | V3: 1380 | W3: 0 | X3: 0 | Y3: 0 | Z3: 0 | AA3: 0 | AB3: 0 | AC3: 0 | AD3: 0 | AE3: 0
A4: 6分類 | B4: =施設コード!$E$2 -> 福井市・永平寺町 | D4: =COUNTIFS( OFFSET(raw!$A$1,2,MATCH(回答数!$A4,raw!$2:$2,0)-1,COUNTA(raw!$A:$A)-1,1),回答数!$B4, OFFSET(raw!$A$1,2,MATCH($D$1,raw!$2:$2,0)-1,COUNTA(raw!$A:$A)-1,1),D$2) -> 22 | E4: =COUNTIFS( OFFSET(raw!$A$1,2,MATCH(回答数!$A4,raw!$2:$2,0)-1,COUNTA(raw!$A:$A)-1,1),回答数!$B4, OFFSET(raw!$A$1,2,MATCH($D$1,raw!$2:$2,0)-1,COUNTA(raw!$A:$A)-1,1),E$2) -> 280 | F4: =COUNTIFS( OFFSET(raw!$A$1,2,MATCH(回答数!$A4,raw!$2:$2,0)-1,COUNTA(raw!$A:$A)-1,1),回答数!$B4, OFFSET(raw!$A$1,2,MATCH($D$1,raw!$2:$2,0)-1,COUNTA(raw!$A:$A)-1,1),F$2) -> 158 | G4: =COUNTIFS( OFFSET(raw!$A$1,2,MATCH(回答数!$A4,raw!$2:$2,0)-1,COUNTA(raw!$A:$A)-1,1),回答数!$B4, OFFSET(raw!$A$1,2,MATCH($D$1,raw!$2:$2,0)-1,COUNTA(raw!$A:$A)-1,1),G$2) -> 0 | H4: =COUNTIFS( OFFSET(raw!$A$1,2,MATCH(回答数!$A4,raw!$2:$2,0)-1,COUNTA(raw!$A:$A)-1,1),回答数!$B4, OFFSET(raw!$A$1,2,MATCH($D$1,raw!$2:$2,0)-1,COUNTA(raw!$A:$A)-1,1),H$2) -> 0 | I4: =COUNTIFS( OFFSET(raw!$A$1,2,MATCH(回答数!$A4,raw!$2:$2,0)-1,COUNTA(raw!$A:$A)-1,1),回答数!$B4, OFFSET(raw!$A$1,2,MATCH($D$1,raw!$2:$2,0)-1,COUNTA(raw!$A:$A)-1,1),I$2) -> 0 | J4: =COUNTIFS( OFFSET(raw!$A$1,2,MATCH(回答数!$A4,raw!$2:$2,0)-1,COUNTA(raw!$A:$A)-1,1),回答数!$B4, OFFSET(raw!$A$1,2,MATCH($D$1,raw!$2:$2,0)-1,COUNTA(raw!$A:$A)-1,1),J$2) -> 0 | K4: =COUNTIFS( OFFSET(raw!$A$1,2,MATCH(回答数!$A4,raw!$2:$2,0)-1,COUNTA(raw!$A:$A)-1,1),回答数!$B4, OFFSET(raw!$A$1,2,MATCH($D$1,raw!$2:$2,0)-1,COUNTA(raw!$A:$A)-1,1),K$2) -> 0 | L4: =COUNTIFS( OFFSET(raw!$A$1,2,MATCH(回答数!$A4,raw!$2:$2,0)-1,COUNTA(raw!$A:$A)-1,1),回答数!$B4, OFFSET(raw!$A$1,2,MATCH($D$1,raw!$2:$2,0)-1,COUNTA(raw!$A:$A)-1,1),L$2) -> 0 | M4: =COUNTIFS( OFFSET(raw!$A$1,2,MATCH(回答数!$A4,raw!$2:$2,0)-1,COUNTA(raw!$A:$A)-1,1),回答数!$B4, OFFSET(raw!$A$1,2,MATCH($D$1,raw!$2:$2,0)-1,COUNTA(raw!$A:$A)-1,1),M$2) -> 0 | N4: =COUNTIFS( OFFSET(raw!$A$1,2,MATCH(回答数!$A4,raw!$2:$2,0)-1,COUNTA(raw!$A:$A)-1,1),回答数!$B4, OFFSET(raw!$A$1,2,MATCH($D$1,raw!$2:$2,0)-1,COUNTA(raw!$A:$A)-1,1),N$2) -> 0 | O4: =COUNTIFS( OFFSET(raw!$A$1,2,MATCH(回答数!$A4,raw!$2:$2,0)-1,COUNTA(raw!$A:$A)-1,1),回答数!$B4, OFFSET(raw!$A$1,2,MATCH($D$1,raw!$2:$2,0)-1,COUNTA(raw!$A:$A)-1,1),O$2) -> 0 | P4: =D4+E4+F4+G4+H4+I4+J4+K4+L4+M4+N4+O4 -> 460 | S4: 累計 | T4: =T3 -> 234 | U4: =T4+U3 -> 2493 | V4: =U4+V3 -> 3873 | W4: 3873 | X4: 3873 | Y4: 3873 | Z4: 3873 | AA4: 3873 | AB4: 3873 | AC4: 3873 | AD4: 3873 | AE4: 3873
A5: 市町村 | B5: =施設コード!F$2 -> 福井市 | D5: =COUNTIFS( OFFSET(raw!$A$1,2,MATCH(回答数!$A5,raw!$2:$2,0)-1,COUNTA(raw!$A:$A)-1,1),回答数!$B5, OFFSET(raw!$A$1,2,MATCH($D$1,raw!$2:$2,0)-1,COUNTA(raw!$A:$A)-1,1),D$2) -> 14 | E5: =COUNTIFS( OFFSET(raw!$A$1,2,MATCH(回答数!$A5,raw!$2:$2,0)-1,COUNTA(raw!$A:$A)-1,1),回答数!$B5, OFFSET(raw!$A$1,2,MATCH($D$1,raw!$2:$2,0)-1,COUNTA(raw!$A:$A)-1,1),E$2) -> 176 | F5: =COUNTIFS( OFFSET(raw!$A$1,2,MATCH(回答数!$A5,raw!$2:$2,0)-1,COUNTA(raw!$A:$A)-1,1),回答数!$B5, OFFSET(raw!$A$1,2,MATCH($D$1,raw!$2:$2,0)-1,COUNTA(raw!$A:$A)-1,1),F$2) -> 101 | G5: =COUNTIFS( OFFSET(raw!$A$1,2,MATCH(回答数!$A5,raw!$2:$2,0)-1,COUNTA(raw!$A:$A)-1,1),回答数!$B5, OFFSET(raw!$A$1,2,MATCH($D$1,raw!$2:$2,0)-1,COUNTA(raw!$A:$A)-1,1),G$2) -> 0 | H5: =COUNTIFS( OFFSET(raw!$A$1,2,MATCH(回答数!$A5,raw!$2:$2,0)-1,COUNTA(raw!$A:$A)-1,1),回答数!$B5, OFFSET(raw!$A$1,2,MATCH($D$1,raw!$2:$2,0)-1,COUNTA(raw!$A:$A)-1,1),H$2) -> 0 | I5: =COUNTIFS( OFFSET(raw!$A$1,2,MATCH(回答数!$A5,raw!$2:$2,0)-1,COUNTA(raw!$A:$A)-1,1),回答数!$B5, OFFSET(raw!$A$1,2,MATCH($D$1,raw!$2:$2,0)-1,COUNTA(raw!$A:$A)-1,1),I$2) -> 0 | J5: =COUNTIFS( OFFSET(raw!$A$1,2,MATCH(回答数!$A5,raw!$2:$2,0)-1,COUNTA(raw!$A:$A)-1,1),回答数!$B5, OFFSET(raw!$A$1,2,MATCH($D$1,raw!$2:$2,0)-1,COUNTA(raw!$A:$A)-1,1),J$2) -> 0 | K5: =COUNTIFS( OFFSET(raw!$A$1,2,MATCH(回答数!$A5,raw!$2:$2,0)-1,COUNTA(raw!$A:$A)-1,1),回答数!$B5, OFFSET(raw!$A$1,2,MATCH($D$1,raw!$2:$2,0)-1,COUNTA(raw!$A:$A)-1,1),K$2) -> 0 | L5: =COUNTIFS( OFFSET(raw!$A$1,2,MATCH(回答数!$A5,raw!$2:$2,0)-1,COUNTA(raw!$A:$A)-1,1),回答数!$B5, OFFSET(raw!$A$1,2,MATCH($D$1,raw!$2:$2,0)-1,COUNTA(raw!$A:$A)-1,1),L$2) -> 0 | M5: =COUNTIFS( OFFSET(raw!$A$1,2,MATCH(回答数!$A5,raw!$2:$2,0)-1,COUNTA(raw!$A:$A)-1,1),回答数!$B5, OFFSET(raw!$A$1,2,MATCH($D$1,raw!$2:$2,0)-1,COUNTA(raw!$A:$A)-1,1),M$2) -> 0 | N5: =COUNTIFS( OFFSET(raw!$A$1,2,MATCH(回答数!$A5,raw!$2:$2,0)-1,COUNTA(raw!$A:$A)-1,1),回答数!$B5, OFFSET(raw!$A$1,2,MATCH($D$1,raw!$2:$2,0)-1,COUNTA(raw!$A:$A)-1,1),N$2) -> 0 | O5: =COUNTIFS( OFFSET(raw!$A$1,2,MATCH(回答数!$A5,raw!$2:$2,0)-1,COUNTA(raw!$A:$A)-1,1),回答数!$B5, OFFSET(raw!$A$1,2,MATCH($D$1,raw!$2:$2,0)-1,COUNTA(raw!$A:$A)-1,1),O$2) -> 0 | P5: =D5+E5+F5+G5+H5+I5+J5+K5+L5+M5+N5+O5 -> 291 | R5: =施設コード!$E$2 -> 福井市・永平寺町 | S5: 単月 | T5: =D4 -> 22 | U5: =E4 -> 280 | V5: 158 | W5: 0 | X5: 0 | Y5: 0 | Z5: 0 | AA5: 0 | AB5: 0 | AC5: 0 | AD5: 0 | AE5: 0
A6: 回答エリア | B6: 一乗谷朝倉氏遺跡 エリア | D6: =COUNTIFS( OFFSET(raw!$A$1,2,MATCH(回答数!$A6,raw!$2:$2,0)-1,COUNTA(raw!$A:$A)-1,1),回答数!$B6, OFFSET(raw!$A$1,2,MATCH($D$1,raw!$2:$2,0)-1,COUNTA(raw!$A:$A)-1,1),D$2) -> 7 | E6: =COUNTIFS( OFFSET(raw!$A$1,2,MATCH(回答数!$A6,raw!$2:$2,0)-1,COUNTA(raw!$A:$A)-1,1),回答数!$B6, OFFSET(raw!$A$1,2,MATCH($D$1,raw!$2:$2,0)-1,COUNTA(raw!$A:$A)-1,1),E$2) -> 86 | F6: =COUNTIFS( OFFSET(raw!$A$1,2,MATCH(回答数!$A6,raw!$2:$2,0)-1,COUNTA(raw!$A:$A)-1,1),回答数!$B6, OFFSET(raw!$A$1,2,MATCH($D$1,raw!$2:$2,0)-1,COUNTA(raw!$A:$A)-1,1),F$2) -> 48 | G6: =COUNTIFS( OFFSET(raw!$A$1,2,MATCH(回答数!$A6,raw!$2:$2,0)-1,COUNTA(raw!$A:$A)-1,1),回答数!$B6, OFFSET(raw!$A$1,2,MATCH($D$1,raw!$2:$2,0)-1,COUNTA(raw!$A:$A)-1,1),G$2) -> 0 | H6: =COUNTIFS( OFFSET(raw!$A$1,2,MATCH(回答数!$A6,raw!$2:$2,0)-1,COUNTA(raw!$A:$A)-1,1),回答数!$B6, OFFSET(raw!$A$1,2,MATCH($D$1,raw!$2:$2,0)-1,COUNTA(raw!$A:$A)-1,1),H$2) -> 0 | I6: =COUNTIFS( OFFSET(raw!$A$1,2,MATCH(回答数!$A6,raw!$2:$2,0)-1,COUNTA(raw!$A:$A)-1,1),回答数!$B6, OFFSET(raw!$A$1,2,MATCH($D$1,raw!$2:$2,0)-1,COUNTA(raw!$A:$A)-1,1),I$2) -> 0 | J6: =COUNTIFS( OFFSET(raw!$A$1,2,MATCH(回答数!$A6,raw!$2:$2,0)-1,COUNTA(raw!$A:$A)-1,1),回答数!$B6, OFFSET(raw!$A$1,2,MATCH($D$1,raw!$2:$2,0)-1,COUNTA(raw!$A:$A)-1,1),J$2) -> 0 | K6: =COUNTIFS( OFFSET(raw!$A$1,2,MATCH(回答数!$A6,raw!$2:$2,0)-1,COUNTA(raw!$A:$A)-1,1),回答数!$B6, OFFSET(raw!$A$1,2,MATCH($D$1,raw!$2:$2,0)-1,COUNTA(raw!$A:$A)-1,1),K$2) -> 0 | L6: =COUNTIFS( OFFSET(raw!$A$1,2,MATCH(回答数!$A6,raw!$2:$2,0)-1,COUNTA(raw!$A:$A)-1,1),回答数!$B6, OFFSET(raw!$A$1,2,MATCH($D$1,raw!$2:$2,0)-1,COUNTA(raw!$A:$A)-1,1),L$2) -> 0 | M6: =COUNTIFS( OFFSET(raw!$A$1,2,MATCH(回答数!$A6,raw!$2:$2,0)-1,COUNTA(raw!$A:$A)-1,1),回答数!$B6, OFFSET(raw!$A$1,2,MATCH($D$1,raw!$2:$2,0)-1,COUNTA(raw!$A:$A)-1,1),M$2) -> 0 | N6: =COUNTIFS( OFFSET(raw!$A$1,2,MATCH(回答数!$A6,raw!$2:$2,0)-1,COUNTA(raw!$A:$A)-1,1),回答数!$B6, OFFSET(raw!$A$1,2,MATCH($D$1,raw!$2:$2,0)-1,COUNTA(raw!$A:$A)-1,1),N$2) -> 0 | O6: =COUNTIFS( OFFSET(raw!$A$1,2,MATCH(回答数!$A6,raw!$2:$2,0)-1,COUNTA(raw!$A:$A)-1,1),回答数!$B6, OFFSET(raw!$A$1,2,MATCH($D$1,raw!$2:$2,0)-1,COUNTA(raw!$A:$A)-1,1),O$2) -> 0 | P6: 141 | S6: 累計 | T6: =T5 -> 22 | U6: =T6+U5 -> 302 | V6: =U6+V5 -> 460 | W6: =V6+W5 -> 460 | X6: =W6+X5 -> 460 | Y6: =X6+Y5 -> 460 | Z6: =Y6+Z5 -> 460 | AA6: =Z6+AA5 -> 460 | AB6: =AA6+AB5 -> 460 | AC6: =AB6+AC5 -> 460 | AD6: =AC6+AD5 -> 460 | AE6: =AD6+AE5 -> 460
A7: 回答エリア | B7: 越前海岸 エリア | D7: =COUNTIFS( OFFSET(raw!$A$1,2,MATCH(回答数!$A7,raw!$2:$2,0)-1,COUNTA(raw!$A:$A)-1,1),回答数!$B7, OFFSET(raw!$A$1,2,MATCH($D$1,raw!$2:$2,0)-1,COUNTA(raw!$A:$A)-1,1),D$2) -> 0 | E7: =COUNTIFS( OFFSET(raw!$A$1,2,MATCH(回答数!$A7,raw!$2:$2,0)-1,COUNTA(raw!$A:$A)-1,1),回答数!$B7, OFFSET(raw!$A$1,2,MATCH($D$1,raw!$2:$2,0)-1,COUNTA(raw!$A:$A)-1,1),E$2) -> 6 | F7: =COUNTIFS( OFFSET(raw!$A$1,2,MATCH(回答数!$A7,raw!$2:$2,0)-1,COUNTA(raw!$A:$A)-1,1),回答数!$B7, OFFSET(raw!$A$1,2,MATCH($D$1,raw!$2:$2,0)-1,COUNTA(raw!$A:$A)-1,1),F$2) -> 4 | G7: =COUNTIFS( OFFSET(raw!$A$1,2,MATCH(回答数!$A7,raw!$2:$2,0)-1,COUNTA(raw!$A:$A)-1,1),回答数!$B7, OFFSET(raw!$A$1,2,MATCH($D$1,raw!$2:$2,0)-1,COUNTA(raw!$A:$A)-1,1),G$2) -> 0 | H7: =COUNTIFS( OFFSET(raw!$A$1,2,MATCH(回答数!$A7,raw!$2:$2,0)-1,COUNTA(raw!$A:$A)-1,1),回答数!$B7, OFFSET(raw!$A$1,2,MATCH($D$1,raw!$2:$2,0)-1,COUNTA(raw!$A:$A)-1,1),H$2) -> 0 | I7: =COUNTIFS( OFFSET(raw!$A$1,2,MATCH(回答数!$A7,raw!$2:$2,0)-1,COUNTA(raw!$A:$A)-1,1),回答数!$B7, OFFSET(raw!$A$1,2,MATCH($D$1,raw!$2:$2,0)-1,COUNTA(raw!$A:$A)-1,1),I$2) -> 0 | J7: =COUNTIFS( OFFSET(raw!$A$1,2,MATCH(回答数!$A7,raw!$2:$2,0)-1,COUNTA(raw!$A:$A)-1,1),回答数!$B7, OFFSET(raw!$A$1,2,MATCH($D$1,raw!$2:$2,0)-1,COUNTA(raw!$A:$A)-1,1),J$2) -> 0 | K7: =COUNTIFS( OFFSET(raw!$A$1,2,MATCH(回答数!$A7,raw!$2:$2,0)-1,COUNTA(raw!$A:$A)-1,1),回答数!$B7, OFFSET(raw!$A$1,2,MATCH($D$1,raw!$2:$2,0)-1,COUNTA(raw!$A:$A)-1,1),K$2) -> 0 | L7: =COUNTIFS( OFFSET(raw!$A$1,2,MATCH(回答数!$A7,raw!$2:$2,0)-1,COUNTA(raw!$A:$A)-1,1),回答数!$B7, OFFSET(raw!$A$1,2,MATCH($D$1,raw!$2:$2,0)-1,COUNTA(raw!$A:$A)-1,1),L$2) -> 0 | M7: =COUNTIFS( OFFSET(raw!$A$1,2,MATCH(回答数!$A7,raw!$2:$2,0)-1,COUNTA(raw!$A:$A)-1,1),回答数!$B7, OFFSET(raw!$A$1,2,MATCH($D$1,raw!$2:$2,0)-1,COUNTA(raw!$A:$A)-1,1),M$2) -> 0 | N7: =COUNTIFS( OFFSET(raw!$A$1,2,MATCH(回答数!$A7,raw!$2:$2,0)-1,COUNTA(raw!$A:$A)-1,1),回答数!$B7, OFFSET(raw!$A$1,2,MATCH($D$1,raw!$2:$2,0)-1,COUNTA(raw!$A:$A)-1,1),N$2) -> 0 | O7: =COUNTIFS( OFFSET(raw!$A$1,2,MATCH(回答数!$A7,raw!$2:$2,0)-1,COUNTA(raw!$A:$A)-1,1),回答数!$B7, OFFSET(raw!$A$1,2,MATCH($D$1,raw!$2:$2,0)-1,COUNTA(raw!$A:$A)-1,1),O$2) -> 0 | P7: =D7+E7+F7+G7+H7+I7+J7+K7+L7+M7+N7+O7 -> 10 | R7: =施設コード!$F$2 -> 福井市 | S7: 単月 | T7: =D5 -> 14 | U7: =E5 -> 176 | V7: 101 | W7: 0 | X7: 0 | Y7: 0 | Z7: 0 | AA7: 0 | AB7: 0 | AC7: 0 | AD7: 0 | AE7: 0
A8: 回答エリア | B8: ガラガラ山キャンプ場 エリア | D8: =COUNTIFS( OFFSET(raw!$A$1,2,MATCH(回答数!$A8,raw!$2:$2,0)-1,COUNTA(raw!$A:$A)-1,1),回答数!$B8, OFFSET(raw!$A$1,2,MATCH($D$1,raw!$2:$2,0)-1,COUNTA(raw!$A:$A)-1,1),D$2) -> 0 | E8: =COUNTIFS( OFFSET(raw!$A$1,2,MATCH(回答数!$A8,raw!$2:$2,0)-1,COUNTA(raw!$A:$A)-1,1),回答数!$B8, OFFSET(raw!$A$1,2,MATCH($D$1,raw!$2:$2,0)-1,COUNTA(raw!$A:$A)-1,1),E$2) -> 3 | F8: =COUNTIFS( OFFSET(raw!$A$1,2,MATCH(回答数!$A8,raw!$2:$2,0)-1,COUNTA(raw!$A:$A)-1,1),回答数!$B8, OFFSET(raw!$A$1,2,MATCH($D$1,raw!$2:$2,0)-1,COUNTA(raw!$A:$A)-1,1),F$2) -> 5 | G8: =COUNTIFS( OFFSET(raw!$A$1,2,MATCH(回答数!$A8,raw!$2:$2,0)-1,COUNTA(raw!$A:$A)-1,1),回答数!$B8, OFFSET(raw!$A$1,2,MATCH($D$1,raw!$2:$2,0)-1,COUNTA(raw!$A:$A)-1,1),G$2) -> 0 | H8: =COUNTIFS( OFFSET(raw!$A$1,2,MATCH(回答数!$A8,raw!$2:$2,0)-1,COUNTA(raw!$A:$A)-1,1),回答数!$B8, OFFSET(raw!$A$1,2,MATCH($D$1,raw!$2:$2,0)-1,COUNTA(raw!$A:$A)-1,1),H$2) -> 0 | I8: =COUNTIFS( OFFSET(raw!$A$1,2,MATCH(回答数!$A8,raw!$2:$2,0)-1,COUNTA(raw!$A:$A)-1,1),回答数!$B8, OFFSET(raw!$A$1,2,MATCH($D$1,raw!$2:$2,0)-1,COUNTA(raw!$A:$A)-1,1),I$2) -> 0 | J8: =COUNTIFS( OFFSET(raw!$A$1,2,MATCH(回答数!$A8,raw!$2:$2,0)-1,COUNTA(raw!$A:$A)-1,1),回答数!$B8, OFFSET(raw!$A$1,2,MATCH($D$1,raw!$2:$2,0)-1,COUNTA(raw!$A:$A)-1,1),J$2) -> 0 | K8: =COUNTIFS( OFFSET(raw!$A$1,2,MATCH(回答数!$A8,raw!$2:$2,0)-1,COUNTA(raw!$A:$A)-1,1),回答数!$B8, OFFSET(raw!$A$1,2,MATCH($D$1,raw!$2:$2,0)-1,COUNTA(raw!$A:$A)-1,1),K$2) -> 0 | L8: =COUNTIFS( OFFSET(raw!$A$1,2,MATCH(回答数!$A8,raw!$2:$2,0)-1,COUNTA(raw!$A:$A)-1,1),回答数!$B8, OFFSET(raw!$A$1,2,MATCH($D$1,raw!$2:$2,0)-1,COUNTA(raw!$A:$A)-1,1),L$2) -> 0 | M8: =COUNTIFS( OFFSET(raw!$A$1,2,MATCH(回答数!$A8,raw!$2:$2,0)-1,COUNTA(raw!$A:$A)-1,1),回答数!$B8, OFFSET(raw!$A$1,2,MATCH($D$1,raw!$2:$2,0)-1,COUNTA(raw!$A:$A)-1,1),M$2) -> 0 | N8: =COUNTIFS( OFFSET(raw!$A$1,2,MATCH(回答数!$A8,raw!$2:$2,0)-1,COUNTA(raw!$A:$A)-1,1),回答数!$B8, OFFSET(raw!$A$1,2,MATCH($D$1,raw!$2:$2,0)-1,COUNTA(raw!$A:$A)-1,1),N$2) -> 0 | O8: =COUNTIFS( OFFSET(raw!$A$1,2,MATCH(回答数!$A8,raw!$2:$2,0)-1,COUNTA(raw!$A:$A)-1,1),回答数!$B8, OFFSET(raw!$A$1,2,MATCH($D$1,raw!$2:$2,0)-1,COUNTA(raw!$A:$A)-1,1),O$2) -> 0 | P8: 8 | S8: 累計 | T8: =T7 -> 14 | U8: =T8+U7 -> 190 | V8: =U8+V7 -> 291 | W8: =V8+W7 -> 291 | X8: =W8+X7 -> 291 | Y8: =X8+Y7 -> 291 | Z8: =Y8+Z7 -> 291 | AA8: =Z8+AA7 -> 291 | AB8: =AA8+AB7 -> 291 | AC8: =AB8+AC7 -> 291 | AD8: =AC8+AD7 -> 291 | AE8: =AD8+AE7 -> 291
A9: 回答エリア | B9: 福井駅前 エリア | D9: =COUNTIFS( OFFSET(raw!$A$1,2,MATCH(回答数!$A9,raw!$2:$2,0)-1,COUNTA(raw!$A:$A)-1,1),回答数!$B9, OFFSET(raw!$A$1,2,MATCH($D$1,raw!$2:$2,0)-1,COUNTA(raw!$A:$A)-1,1),D$2) -> 6 | E9: =COUNTIFS( OFFSET(raw!$A$1,2,MATCH(回答数!$A9,raw!$2:$2,0)-1,COUNTA(raw!$A:$A)-1,1),回答数!$B9, OFFSET(raw!$A$1,2,MATCH($D$1,raw!$2:$2,0)-1,COUNTA(raw!$A:$A)-1,1),E$2) -> 58 | F9: =COUNTIFS( OFFSET(raw!$A$1,2,MATCH(回答数!$A9,raw!$2:$2,0)-1,COUNTA(raw!$A:$A)-1,1),回答数!$B9, OFFSET(raw!$A$1,2,MATCH($D$1,raw!$2:$2,0)-1,COUNTA(raw!$A:$A)-1,1),F$2) -> 42 | G9: =COUNTIFS( OFFSET(raw!$A$1,2,MATCH(回答数!$A9,raw!$2:$2,0)-1,COUNTA(raw!$A:$A)-1,1),回答数!$B9, OFFSET(raw!$A$1,2,MATCH($D$1,raw!$2:$2,0)-1,COUNTA(raw!$A:$A)-1,1),G$2) -> 0 | H9: =COUNTIFS( OFFSET(raw!$A$1,2,MATCH(回答数!$A9,raw!$2:$2,0)-1,COUNTA(raw!$A:$A)-1,1),回答数!$B9, OFFSET(raw!$A$1,2,MATCH($D$1,raw!$2:$2,0)-1,COUNTA(raw!$A:$A)-1,1),H$2) -> 0 | I9: =COUNTIFS( OFFSET(raw!$A$1,2,MATCH(回答数!$A9,raw!$2:$2,0)-1,COUNTA(raw!$A:$A)-1,1),回答数!$B9, OFFSET(raw!$A$1,2,MATCH($D$1,raw!$2:$2,0)-1,COUNTA(raw!$A:$A)-1,1),I$2) -> 0 | J9: =COUNTIFS( OFFSET(raw!$A$1,2,MATCH(回答数!$A9,raw!$2:$2,0)-1,COUNTA(raw!$A:$A)-1,1),回答数!$B9, OFFSET(raw!$A$1,2,MATCH($D$1,raw!$2:$2,0)-1,COUNTA(raw!$A:$A)-1,1),J$2) -> 0 | K9: =COUNTIFS( OFFSET(raw!$A$1,2,MATCH(回答数!$A9,raw!$2:$2,0)-1,COUNTA(raw!$A:$A)-1,1),回答数!$B9, OFFSET(raw!$A$1,2,MATCH($D$1,raw!$2:$2,0)-1,COUNTA(raw!$A:$A)-1,1),K$2) -> 0 | L9: =COUNTIFS( OFFSET(raw!$A$1,2,MATCH(回答数!$A9,raw!$2:$2,0)-1,COUNTA(raw!$A:$A)-1,1),回答数!$B9, OFFSET(raw!$A$1,2,MATCH($D$1,raw!$2:$2,0)-1,COUNTA(raw!$A:$A)-1,1),L$2) -> 0 | M9: =COUNTIFS( OFFSET(raw!$A$1,2,MATCH(回答数!$A9,raw!$2:$2,0)-1,COUNTA(raw!$A:$A)-1,1),回答数!$B9, OFFSET(raw!$A$1,2,MATCH($D$1,raw!$2:$2,0)-1,COUNTA(raw!$A:$A)-1,1),M$2) -> 0 | N9: =COUNTIFS( OFFSET(raw!$A$1,2,MATCH(回答数!$A9,raw!$2:$2,0)-1,COUNTA(raw!$A:$A)-1,1),回答数!$B9, OFFSET(raw!$A$1,2,MATCH($D$1,raw!$2:$2,0)-1,COUNTA(raw!$A:$A)-1,1),N$2) -> 0 | O9: =COUNTIFS( OFFSET(raw!$A$1,2,MATCH(回答数!$A9,raw!$2:$2,0)-1,COUNTA(raw!$A:$A)-1,1),回答数!$B9, OFFSET(raw!$A$1,2,MATCH($D$1,raw!$2:$2,0)-1,COUNTA(raw!$A:$A)-1,1),O$2) -> 0 | P9: 106 | R9: =施設コード!$C$2 -> 一乗谷朝倉氏遺跡 エリア | S9: 単月 | T9: =INDEX(D$6:D$75,MATCH($R$9,$B$6:$B$75,0),1) -> 7 | U9: =INDEX(E$6:E$75,MATCH($R$9,$B$6:$B$75,0),1) -> 86 | V9: 48 | W9: 0 | X9: 0 | Y9: 0 | Z9: 0 | AA9: 0 | AB9: 0 | AC9: 0 | AD9: 0 | AE9: 0
A10: 回答エリア | B10: 名勝 養浩館庭園 エリア | D10: =COUNTIFS( OFFSET(raw!$A$1,2,MATCH(回答数!$A10,raw!$2:$2,0)-1,COUNTA(raw!$A:$A)-1,1),回答数!$B10, OFFSET(raw!$A$1,2,MATCH($D$1,raw!$2:$2,0)-1,COUNTA(raw!$A:$A)-1,1),D$2) -> 1 | E10: =COUNTIFS( OFFSET(raw!$A$1,2,MATCH(回答数!$A10,raw!$2:$2,0)-1,COUNTA(raw!$A:$A)-1,1),回答数!$B10, OFFSET(raw!$A$1,2,MATCH($D$1,raw!$2:$2,0)-1,COUNTA(raw!$A:$A)-1,1),E$2) -> 23 | F10: =COUNTIFS( OFFSET(raw!$A$1,2,MATCH(回答数!$A10,raw!$2:$2,0)-1,COUNTA(raw!$A:$A)-1,1),回答数!$B10, OFFSET(raw!$A$1,2,MATCH($D$1,raw!$2:$2,0)-1,COUNTA(raw!$A:$A)-1,1),F$2) -> 2 | G10: =COUNTIFS( OFFSET(raw!$A$1,2,MATCH(回答数!$A10,raw!$2:$2,0)-1,COUNTA(raw!$A:$A)-1,1),回答数!$B10, OFFSET(raw!$A$1,2,MATCH($D$1,raw!$2:$2,0)-1,COUNTA(raw!$A:$A)-1,1),G$2) -> 0 | H10: =COUNTIFS( OFFSET(raw!$A$1,2,MATCH(回答数!$A10,raw!$2:$2,0)-1,COUNTA(raw!$A:$A)-1,1),回答数!$B10, OFFSET(raw!$A$1,2,MATCH($D$1,raw!$2:$2,0)-1,COUNTA(raw!$A:$A)-1,1),H$2) -> 0 | I10: =COUNTIFS( OFFSET(raw!$A$1,2,MATCH(回答数!$A10,raw!$2:$2,0)-1,COUNTA(raw!$A:$A)-1,1),回答数!$B10, OFFSET(raw!$A$1,2,MATCH($D$1,raw!$2:$2,0)-1,COUNTA(raw!$A:$A)-1,1),I$2) -> 0 | J10: =COUNTIFS( OFFSET(raw!$A$1,2,MATCH(回答数!$A10,raw!$2:$2,0)-1,COUNTA(raw!$A:$A)-1,1),回答数!$B10, OFFSET(raw!$A$1,2,MATCH($D$1,raw!$2:$2,0)-1,COUNTA(raw!$A:$A)-1,1),J$2) -> 0 | K10: =COUNTIFS( OFFSET(raw!$A$1,2,MATCH(回答数!$A10,raw!$2:$2,0)-1,COUNTA(raw!$A:$A)-1,1),回答数!$B10, OFFSET(raw!$A$1,2,MATCH($D$1,raw!$2:$2,0)-1,COUNTA(raw!$A:$A)-1,1),K$2) -> 0 | L10: =COUNTIFS( OFFSET(raw!$A$1,2,MATCH(回答数!$A10,raw!$2:$2,0)-1,COUNTA(raw!$A:$A)-1,1),回答数!$B10, OFFSET(raw!$A$1,2,MATCH($D$1,raw!$2:$2,0)-1,COUNTA(raw!$A:$A)-1,1),L$2) -> 0 | M10: =COUNTIFS( OFFSET(raw!$A$1,2,MATCH(回答数!$A10,raw!$2:$2,0)-1,COUNTA(raw!$A:$A)-1,1),回答数!$B10, OFFSET(raw!$A$1,2,MATCH($D$1,raw!$2:$2,0)-1,COUNTA(raw!$A:$A)-1,1),M$2) -> 0 | N10: =COUNTIFS( OFFSET(raw!$A$1,2,MATCH(回答数!$A10,raw!$2:$2,0)-1,COUNTA(raw!$A:$A)-1,1),回答数!$B10, OFFSET(raw!$A$1,2,MATCH($D$1,raw!$2:$2,0)-1,COUNTA(raw!$A:$A)-1,1),N$2) -> 0 | O10: =COUNTIFS( OFFSET(raw!$A$1,2,MATCH(回答数!$A10,raw!$2:$2,0)-1,COUNTA(raw!$A:$A)-1,1),回答数!$B10, OFFSET(raw!$A$1,2,MATCH($D$1,raw!$2:$2,0)-1,COUNTA(raw!$A:$A)-1,1),O$2) -> 0 | P10: 26 | S10: 累計 | T10: =T9 -> 7 | U10: =T10+U9 -> 93 | V10: =U10+V9 -> 141 | W10: =V10+W9 -> 141 | X10: =W10+X9 -> 141 | Y10: =X10+Y9 -> 141 | Z10: =Y10+Z9 -> 141 | AA10: =Z10+AA9 -> 141 | AB10: =AA10+AB9 -> 141 | AC10: =AB10+AC9 -> 141 | AD10: =AC10+AD9 -> 141 | AE10: =AD10+AE9 -> 141
A11: 回答エリア | B11: 東尋坊 エリア | D11: =COUNTIFS( OFFSET(raw!$A$1,2,MATCH(回答数!$A11,raw!$2:$2,0)-1,COUNTA(raw!$A:$A)-1,1),回答数!$B11, OFFSET(raw!$A$1,2,MATCH($D$1,raw!$2:$2,0)-1,COUNTA(raw!$A:$A)-1,1),D$2) -> 17 | E11: =COUNTIFS( OFFSET(raw!$A$1,2,MATCH(回答数!$A11,raw!$2:$2,0)-1,COUNTA(raw!$A:$A)-1,1),回答数!$B11, OFFSET(raw!$A$1,2,MATCH($D$1,raw!$2:$2,0)-1,COUNTA(raw!$A:$A)-1,1),E$2) -> 61 | F11: =COUNTIFS( OFFSET(raw!$A$1,2,MATCH(回答数!$A11,raw!$2:$2,0)-1,COUNTA(raw!$A:$A)-1,1),回答数!$B11, OFFSET(raw!$A$1,2,MATCH($D$1,raw!$2:$2,0)-1,COUNTA(raw!$A:$A)-1,1),F$2) -> 22 | G11: =COUNTIFS( OFFSET(raw!$A$1,2,MATCH(回答数!$A11,raw!$2:$2,0)-1,COUNTA(raw!$A:$A)-1,1),回答数!$B11, OFFSET(raw!$A$1,2,MATCH($D$1,raw!$2:$2,0)-1,COUNTA(raw!$A:$A)-1,1),G$2) -> 0 | H11: =COUNTIFS( OFFSET(raw!$A$1,2,MATCH(回答数!$A11,raw!$2:$2,0)-1,COUNTA(raw!$A:$A)-1,1),回答数!$B11, OFFSET(raw!$A$1,2,MATCH($D$1,raw!$2:$2,0)-1,COUNTA(raw!$A:$A)-1,1),H$2) -> 0 | I11: =COUNTIFS( OFFSET(raw!$A$1,2,MATCH(回答数!$A11,raw!$2:$2,0)-1,COUNTA(raw!$A:$A)-1,1),回答数!$B11, OFFSET(raw!$A$1,2,MATCH($D$1,raw!$2:$2,0)-1,COUNTA(raw!$A:$A)-1,1),I$2) -> 0 | J11: =COUNTIFS( OFFSET(raw!$A$1,2,MATCH(回答数!$A11,raw!$2:$2,0)-1,COUNTA(raw!$A:$A)-1,1),回答数!$B11, OFFSET(raw!$A$1,2,MATCH($D$1,raw!$2:$2,0)-1,COUNTA(raw!$A:$A)-1,1),J$2) -> 0 | K11: =COUNTIFS( OFFSET(raw!$A$1,2,MATCH(回答数!$A11,raw!$2:$2,0)-1,COUNTA(raw!$A:$A)-1,1),回答数!$B11, OFFSET(raw!$A$1,2,MATCH($D$1,raw!$2:$2,0)-1,COUNTA(raw!$A:$A)-1,1),K$2) -> 0 | L11: =COUNTIFS( OFFSET(raw!$A$1,2,MATCH(回答数!$A11,raw!$2:$2,0)-1,COUNTA(raw!$A:$A)-1,1),回答数!$B11, OFFSET(raw!$A$1,2,MATCH($D$1,raw!$2:$2,0)-1,COUNTA(raw!$A:$A)-1,1),L$2) -> 0 | M11: =COUNTIFS( OFFSET(raw!$A$1,2,MATCH(回答数!$A11,raw!$2:$2,0)-1,COUNTA(raw!$A:$A)-1,1),回答数!$B11, OFFSET(raw!$A$1,2,MATCH($D$1,raw!$2:$2,0)-1,COUNTA(raw!$A:$A)-1,1),M$2) -> 0 | N11: =COUNTIFS( OFFSET(raw!$A$1,2,MATCH(回答数!$A11,raw!$2:$2,0)-1,COUNTA(raw!$A:$A)-1,1),回答数!$B11, OFFSET(raw!$A$1,2,MATCH($D$1,raw!$2:$2,0)-1,COUNTA(raw!$A:$A)-1,1),N$2) -> 0 | O11: =COUNTIFS( OFFSET(raw!$A$1,2,MATCH(回答数!$A11,raw!$2:$2,0)-1,COUNTA(raw!$A:$A)-1,1),回答数!$B11, OFFSET(raw!$A$1,2,MATCH($D$1,raw!$2:$2,0)-1,COUNTA(raw!$A:$A)-1,1),O$2) -> 0 | P11: 100
A12: 回答エリア | B12: 芝政ワールド エリア | D12: =COUNTIFS( OFFSET(raw!$A$1,2,MATCH(回答数!$A12,raw!$2:$2,0)-1,COUNTA(raw!$A:$A)-1,1),回答数!$B12, OFFSET(raw!$A$1,2,MATCH($D$1,raw!$2:$2,0)-1,COUNTA(raw!$A:$A)-1,1),D$2) -> 1 | E12: =COUNTIFS( OFFSET(raw!$A$1,2,MATCH(回答数!$A12,raw!$2:$2,0)-1,COUNTA(raw!$A:$A)-1,1),回答数!$B12, OFFSET(raw!$A$1,2,MATCH($D$1,raw!$2:$2,0)-1,COUNTA(raw!$A:$A)-1,1),E$2) -> 5 | F12: =COUNTIFS( OFFSET(raw!$A$1,2,MATCH(回答数!$A12,raw!$2:$2,0)-1,COUNTA(raw!$A:$A)-1,1),回答数!$B12, OFFSET(raw!$A$1,2,MATCH($D$1,raw!$2:$2,0)-1,COUNTA(raw!$A:$A)-1,1),F$2) -> 1 | G12: =COUNTIFS( OFFSET(raw!$A$1,2,MATCH(回答数!$A12,raw!$2:$2,0)-1,COUNTA(raw!$A:$A)-1,1),回答数!$B12, OFFSET(raw!$A$1,2,MATCH($D$1,raw!$2:$2,0)-1,COUNTA(raw!$A:$A)-1,1),G$2) -> 0 | H12: =COUNTIFS( OFFSET(raw!$A$1,2,MATCH(回答数!$A12,raw!$2:$2,0)-1,COUNTA(raw!$A:$A)-1,1),回答数!$B12, OFFSET(raw!$A$1,2,MATCH($D$1,raw!$2:$2,0)-1,COUNTA(raw!$A:$A)-1,1),H$2) -> 0 | I12: =COUNTIFS( OFFSET(raw!$A$1,2,MATCH(回答数!$A12,raw!$2:$2,0)-1,COUNTA(raw!$A:$A)-1,1),回答数!$B12, OFFSET(raw!$A$1,2,MATCH($D$1,raw!$2:$2,0)-1,COUNTA(raw!$A:$A)-1,1),I$2) -> 0 | J12: =COUNTIFS( OFFSET(raw!$A$1,2,MATCH(回答数!$A12,raw!$2:$2,0)-1,COUNTA(raw!$A:$A)-1,1),回答数!$B12, OFFSET(raw!$A$1,2,MATCH($D$1,raw!$2:$2,0)-1,COUNTA(raw!$A:$A)-1,1),J$2) -> 0 | K12: =COUNTIFS( OFFSET(raw!$A$1,2,MATCH(回答数!$A12,raw!$2:$2,0)-1,COUNTA(raw!$A:$A)-1,1),回答数!$B12, OFFSET(raw!$A$1,2,MATCH($D$1,raw!$2:$2,0)-1,COUNTA(raw!$A:$A)-1,1),K$2) -> 0 | L12: =COUNTIFS( OFFSET(raw!$A$1,2,MATCH(回答数!$A12,raw!$2:$2,0)-1,COUNTA(raw!$A:$A)-1,1),回答数!$B12, OFFSET(raw!$A$1,2,MATCH($D$1,raw!$2:$2,0)-1,COUNTA(raw!$A:$A)-1,1),L$2) -> 0 | M12: =COUNTIFS( OFFSET(raw!$A$1,2,MATCH(回答数!$A12,raw!$2:$2,0)-1,COUNTA(raw!$A:$A)-1,1),回答数!$B12, OFFSET(raw!$A$1,2,MATCH($D$1,raw!$2:$2,0)-1,COUNTA(raw!$A:$A)-1,1),M$2) -> 0 | N12: =COUNTIFS( OFFSET(raw!$A$1,2,MATCH(回答数!$A12,raw!$2:$2,0)-1,COUNTA(raw!$A:$A)-1,1),回答数!$B12, OFFSET(raw!$A$1,2,MATCH($D$1,raw!$2:$2,0)-1,COUNTA(raw!$A:$A)-1,1),N$2) -> 0 | O12: =COUNTIFS( OFFSET(raw!$A$1,2,MATCH(回答数!$A12,raw!$2:$2,0)-1,COUNTA(raw!$A:$A)-1,1),回答数!$B12, OFFSET(raw!$A$1,2,MATCH($D$1,raw!$2:$2,0)-1,COUNTA(raw!$A:$A)-1,1),O$2) -> 0 | P12: 7
A13: 回答エリア | B13: 丸岡城 エリア | D13: =COUNTIFS( OFFSET(raw!$A$1,2,MATCH(回答数!$A13,raw!$2:$2,0)-1,COUNTA(raw!$A:$A)-1,1),回答数!$B13, OFFSET(raw!$A$1,2,MATCH($D$1,raw!$2:$2,0)-1,COUNTA(raw!$A:$A)-1,1),D$2) -> 0 | E13: =COUNTIFS( OFFSET(raw!$A$1,2,MATCH(回答数!$A13,raw!$2:$2,0)-1,COUNTA(raw!$A:$A)-1,1),回答数!$B13, OFFSET(raw!$A$1,2,MATCH($D$1,raw!$2:$2,0)-1,COUNTA(raw!$A:$A)-1,1),E$2) -> 12 | F13: =COUNTIFS( OFFSET(raw!$A$1,2,MATCH(回答数!$A13,raw!$2:$2,0)-1,COUNTA(raw!$A:$A)-1,1),回答数!$B13, OFFSET(raw!$A$1,2,MATCH($D$1,raw!$2:$2,0)-1,COUNTA(raw!$A:$A)-1,1),F$2) -> 12 | G13: =COUNTIFS( OFFSET(raw!$A$1,2,MATCH(回答数!$A13,raw!$2:$2,0)-1,COUNTA(raw!$A:$A)-1,1),回答数!$B13, OFFSET(raw!$A$1,2,MATCH($D$1,raw!$2:$2,0)-1,COUNTA(raw!$A:$A)-1,1),G$2) -> 0 | H13: =COUNTIFS( OFFSET(raw!$A$1,2,MATCH(回答数!$A13,raw!$2:$2,0)-1,COUNTA(raw!$A:$A)-1,1),回答数!$B13, OFFSET(raw!$A$1,2,MATCH($D$1,raw!$2:$2,0)-1,COUNTA(raw!$A:$A)-1,1),H$2) -> 0 | I13: =COUNTIFS( OFFSET(raw!$A$1,2,MATCH(回答数!$A13,raw!$2:$2,0)-1,COUNTA(raw!$A:$A)-1,1),回答数!$B13, OFFSET(raw!$A$1,2,MATCH($D$1,raw!$2:$2,0)-1,COUNTA(raw!$A:$A)-1,1),I$2) -> 0 | J13: =COUNTIFS( OFFSET(raw!$A$1,2,MATCH(回答数!$A13,raw!$2:$2,0)-1,COUNTA(raw!$A:$A)-1,1),回答数!$B13, OFFSET(raw!$A$1,2,MATCH($D$1,raw!$2:$2,0)-1,COUNTA(raw!$A:$A)-1,1),J$2) -> 0 | K13: =COUNTIFS( OFFSET(raw!$A$1,2,MATCH(回答数!$A13,raw!$2:$2,0)-1,COUNTA(raw!$A:$A)-1,1),回答数!$B13, OFFSET(raw!$A$1,2,MATCH($D$1,raw!$2:$2,0)-1,COUNTA(raw!$A:$A)-1,1),K$2) -> 0 | L13: =COUNTIFS( OFFSET(raw!$A$1,2,MATCH(回答数!$A13,raw!$2:$2,0)-1,COUNTA(raw!$A:$A)-1,1),回答数!$B13, OFFSET(raw!$A$1,2,MATCH($D$1,raw!$2:$2,0)-1,COUNTA(raw!$A:$A)-1,1),L$2) -> 0 | M13: =COUNTIFS( OFFSET(raw!$A$1,2,MATCH(回答数!$A13,raw!$2:$2,0)-1,COUNTA(raw!$A:$A)-1,1),回答数!$B13, OFFSET(raw!$A$1,2,MATCH($D$1,raw!$2:$2,0)-1,COUNTA(raw!$A:$A)-1,1),M$2) -> 0 | N13: =COUNTIFS( OFFSET(raw!$A$1,2,MATCH(回答数!$A13,raw!$2:$2,0)-1,COUNTA(raw!$A:$A)-1,1),回答数!$B13, OFFSET(raw!$A$1,2,MATCH($D$1,raw!$2:$2,0)-1,COUNTA(raw!$A:$A)-1,1),N$2) -> 0 | O13: =COUNTIFS( OFFSET(raw!$A$1,2,MATCH(回答数!$A13,raw!$2:$2,0)-1,COUNTA(raw!$A:$A)-1,1),回答数!$B13, OFFSET(raw!$A$1,2,MATCH($D$1,raw!$2:$2,0)-1,COUNTA(raw!$A:$A)-1,1),O$2) -> 0 | P13: 24
A14: 回答エリア | B14: 花の駅 ゆりの里公園 エリア | D14: =COUNTIFS( OFFSET(raw!$A$1,2,MATCH(回答数!$A14,raw!$2:$2,0)-1,COUNTA(raw!$A:$A)-1,1),回答数!$B14, OFFSET(raw!$A$1,2,MATCH($D$1,raw!$2:$2,0)-1,COUNTA(raw!$A:$A)-1,1),D$2) -> 3 | E14: =COUNTIFS( OFFSET(raw!$A$1,2,MATCH(回答数!$A14,raw!$2:$2,0)-1,COUNTA(raw!$A:$A)-1,1),回答数!$B14, OFFSET(raw!$A$1,2,MATCH($D$1,raw!$2:$2,0)-1,COUNTA(raw!$A:$A)-1,1),E$2) -> 52 | F14: =COUNTIFS( OFFSET(raw!$A$1,2,MATCH(回答数!$A14,raw!$2:$2,0)-1,COUNTA(raw!$A:$A)-1,1),回答数!$B14, OFFSET(raw!$A$1,2,MATCH($D$1,raw!$2:$2,0)-1,COUNTA(raw!$A:$A)-1,1),F$2) -> 60 | G14: =COUNTIFS( OFFSET(raw!$A$1,2,MATCH(回答数!$A14,raw!$2:$2,0)-1,COUNTA(raw!$A:$A)-1,1),回答数!$B14, OFFSET(raw!$A$1,2,MATCH($D$1,raw!$2:$2,0)-1,COUNTA(raw!$A:$A)-1,1),G$2) -> 0 | H14: =COUNTIFS( OFFSET(raw!$A$1,2,MATCH(回答数!$A14,raw!$2:$2,0)-1,COUNTA(raw!$A:$A)-1,1),回答数!$B14, OFFSET(raw!$A$1,2,MATCH($D$1,raw!$2:$2,0)-1,COUNTA(raw!$A:$A)-1,1),H$2) -> 0 | I14: =COUNTIFS( OFFSET(raw!$A$1,2,MATCH(回答数!$A14,raw!$2:$2,0)-1,COUNTA(raw!$A:$A)-1,1),回答数!$B14, OFFSET(raw!$A$1,2,MATCH($D$1,raw!$2:$2,0)-1,COUNTA(raw!$A:$A)-1,1),I$2) -> 0 | J14: =COUNTIFS( OFFSET(raw!$A$1,2,MATCH(回答数!$A14,raw!$2:$2,0)-1,COUNTA(raw!$A:$A)-1,1),回答数!$B14, OFFSET(raw!$A$1,2,MATCH($D$1,raw!$2:$2,0)-1,COUNTA(raw!$A:$A)-1,1),J$2) -> 0 | K14: =COUNTIFS( OFFSET(raw!$A$1,2,MATCH(回答数!$A14,raw!$2:$2,0)-1,COUNTA(raw!$A:$A)-1,1),回答数!$B14, OFFSET(raw!$A$1,2,MATCH($D$1,raw!$2:$2,0)-1,COUNTA(raw!$A:$A)-1,1),K$2) -> 0 | L14: =COUNTIFS( OFFSET(raw!$A$1,2,MATCH(回答数!$A14,raw!$2:$2,0)-1,COUNTA(raw!$A:$A)-1,1),回答数!$B14, OFFSET(raw!$A$1,2,MATCH($D$1,raw!$2:$2,0)-1,COUNTA(raw!$A:$A)-1,1),L$2) -> 0 | M14: =COUNTIFS( OFFSET(raw!$A$1,2,MATCH(回答数!$A14,raw!$2:$2,0)-1,COUNTA(raw!$A:$A)-1,1),回答数!$B14, OFFSET(raw!$A$1,2,MATCH($D$1,raw!$2:$2,0)-1,COUNTA(raw!$A:$A)-1,1),M$2) -> 0 | N14: =COUNTIFS( OFFSET(raw!$A$1,2,MATCH(回答数!$A14,raw!$2:$2,0)-1,COUNTA(raw!$A:$A)-1,1),回答数!$B14, OFFSET(raw!$A$1,2,MATCH($D$1,raw!$2:$2,0)-1,COUNTA(raw!$A:$A)-1,1),N$2) -> 0 | O14: =COUNTIFS( OFFSET(raw!$A$1,2,MATCH(回答数!$A14,raw!$2:$2,0)-1,COUNTA(raw!$A:$A)-1,1),回答数!$B14, OFFSET(raw!$A$1,2,MATCH($D$1,raw!$2:$2,0)-1,COUNTA(raw!$A:$A)-1,1),O$2) -> 0 | P14: 115
A15: 回答エリア | B15: 道の駅みくに ふれあいパーク三里浜 エリア | D15: =COUNTIFS( OFFSET(raw!$A$1,2,MATCH(回答数!$A15,raw!$2:$2,0)-1,COUNTA(raw!$A:$A)-1,1),回答数!$B15, OFFSET(raw!$A$1,2,MATCH($D$1,raw!$2:$2,0)-1,COUNTA(raw!$A:$A)-1,1),D$2) -> 6 | E15: =COUNTIFS( OFFSET(raw!$A$1,2,MATCH(回答数!$A15,raw!$2:$2,0)-1,COUNTA(raw!$A:$A)-1,1),回答数!$B15, OFFSET(raw!$A$1,2,MATCH($D$1,raw!$2:$2,0)-1,COUNTA(raw!$A:$A)-1,1),E$2) -> 27 | F15: =COUNTIFS( OFFSET(raw!$A$1,2,MATCH(回答数!$A15,raw!$2:$2,0)-1,COUNTA(raw!$A:$A)-1,1),回答数!$B15, OFFSET(raw!$A$1,2,MATCH($D$1,raw!$2:$2,0)-1,COUNTA(raw!$A:$A)-1,1),F$2) -> 29 | G15: =COUNTIFS( OFFSET(raw!$A$1,2,MATCH(回答数!$A15,raw!$2:$2,0)-1,COUNTA(raw!$A:$A)-1,1),回答数!$B15, OFFSET(raw!$A$1,2,MATCH($D$1,raw!$2:$2,0)-1,COUNTA(raw!$A:$A)-1,1),G$2) -> 0 | H15: =COUNTIFS( OFFSET(raw!$A$1,2,MATCH(回答数!$A15,raw!$2:$2,0)-1,COUNTA(raw!$A:$A)-1,1),回答数!$B15, OFFSET(raw!$A$1,2,MATCH($D$1,raw!$2:$2,0)-1,COUNTA(raw!$A:$A)-1,1),H$2) -> 0 | I15: =COUNTIFS( OFFSET(raw!$A$1,2,MATCH(回答数!$A15,raw!$2:$2,0)-1,COUNTA(raw!$A:$A)-1,1),回答数!$B15, OFFSET(raw!$A$1,2,MATCH($D$1,raw!$2:$2,0)-1,COUNTA(raw!$A:$A)-1,1),I$2) -> 0 | J15: =COUNTIFS( OFFSET(raw!$A$1,2,MATCH(回答数!$A15,raw!$2:$2,0)-1,COUNTA(raw!$A:$A)-1,1),回答数!$B15, OFFSET(raw!$A$1,2,MATCH($D$1,raw!$2:$2,0)-1,COUNTA(raw!$A:$A)-1,1),J$2) -> 0 | K15: =COUNTIFS( OFFSET(raw!$A$1,2,MATCH(回答数!$A15,raw!$2:$2,0)-1,COUNTA(raw!$A:$A)-1,1),回答数!$B15, OFFSET(raw!$A$1,2,MATCH($D$1,raw!$2:$2,0)-1,COUNTA(raw!$A:$A)-1,1),K$2) -> 0 | L15: =COUNTIFS( OFFSET(raw!$A$1,2,MATCH(回答数!$A15,raw!$2:$2,0)-1,COUNTA(raw!$A:$A)-1,1),回答数!$B15, OFFSET(raw!$A$1,2,MATCH($D$1,raw!$2:$2,0)-1,COUNTA(raw!$A:$A)-1,1),L$2) -> 0 | M15: =COUNTIFS( OFFSET(raw!$A$1,2,MATCH(回答数!$A15,raw!$2:$2,0)-1,COUNTA(raw!$A:$A)-1,1),回答数!$B15, OFFSET(raw!$A$1,2,MATCH($D$1,raw!$2:$2,0)-1,COUNTA(raw!$A:$A)-1,1),M$2) -> 0 | N15: =COUNTIFS( OFFSET(raw!$A$1,2,MATCH(回答数!$A15,raw!$2:$2,0)-1,COUNTA(raw!$A:$A)-1,1),回答数!$B15, OFFSET(raw!$A$1,2,MATCH($D$1,raw!$2:$2,0)-1,COUNTA(raw!$A:$A)-1,1),N$2) -> 0 | O15: =COUNTIFS( OFFSET(raw!$A$1,2,MATCH(回答数!$A15,raw!$2:$2,0)-1,COUNTA(raw!$A:$A)-1,1),回答数!$B15, OFFSET(raw!$A$1,2,MATCH($D$1,raw!$2:$2,0)-1,COUNTA(raw!$A:$A)-1,1),O$2) -> 0 | P15: 62
A16: 回答エリア | B16: あわら温泉 エリア | D16: =COUNTIFS( OFFSET(raw!$A$1,2,MATCH(回答数!$A16,raw!$2:$2,0)-1,COUNTA(raw!$A:$A)-1,1),回答数!$B16, OFFSET(raw!$A$1,2,MATCH($D$1,raw!$2:$2,0)-1,COUNTA(raw!$A:$A)-1,1),D$2) -> 12 | E16: =COUNTIFS( OFFSET(raw!$A$1,2,MATCH(回答数!$A16,raw!$2:$2,0)-1,COUNTA(raw!$A:$A)-1,1),回答数!$B16, OFFSET(raw!$A$1,2,MATCH($D$1,raw!$2:$2,0)-1,COUNTA(raw!$A:$A)-1,1),E$2) -> 102 | F16: =COUNTIFS( OFFSET(raw!$A$1,2,MATCH(回答数!$A16,raw!$2:$2,0)-1,COUNTA(raw!$A:$A)-1,1),回答数!$B16, OFFSET(raw!$A$1,2,MATCH($D$1,raw!$2:$2,0)-1,COUNTA(raw!$A:$A)-1,1),F$2) -> 57 | G16: =COUNTIFS( OFFSET(raw!$A$1,2,MATCH(回答数!$A16,raw!$2:$2,0)-1,COUNTA(raw!$A:$A)-1,1),回答数!$B16, OFFSET(raw!$A$1,2,MATCH($D$1,raw!$2:$2,0)-1,COUNTA(raw!$A:$A)-1,1),G$2) -> 0 | H16: =COUNTIFS( OFFSET(raw!$A$1,2,MATCH(回答数!$A16,raw!$2:$2,0)-1,COUNTA(raw!$A:$A)-1,1),回答数!$B16, OFFSET(raw!$A$1,2,MATCH($D$1,raw!$2:$2,0)-1,COUNTA(raw!$A:$A)-1,1),H$2) -> 0 | I16: =COUNTIFS( OFFSET(raw!$A$1,2,MATCH(回答数!$A16,raw!$2:$2,0)-1,COUNTA(raw!$A:$A)-1,1),回答数!$B16, OFFSET(raw!$A$1,2,MATCH($D$1,raw!$2:$2,0)-1,COUNTA(raw!$A:$A)-1,1),I$2) -> 0 | J16: =COUNTIFS( OFFSET(raw!$A$1,2,MATCH(回答数!$A16,raw!$2:$2,0)-1,COUNTA(raw!$A:$A)-1,1),回答数!$B16, OFFSET(raw!$A$1,2,MATCH($D$1,raw!$2:$2,0)-1,COUNTA(raw!$A:$A)-1,1),J$2) -> 0 | K16: =COUNTIFS( OFFSET(raw!$A$1,2,MATCH(回答数!$A16,raw!$2:$2,0)-1,COUNTA(raw!$A:$A)-1,1),回答数!$B16, OFFSET(raw!$A$1,2,MATCH($D$1,raw!$2:$2,0)-1,COUNTA(raw!$A:$A)-1,1),K$2) -> 0 | L16: =COUNTIFS( OFFSET(raw!$A$1,2,MATCH(回答数!$A16,raw!$2:$2,0)-1,COUNTA(raw!$A:$A)-1,1),回答数!$B16, OFFSET(raw!$A$1,2,MATCH($D$1,raw!$2:$2,0)-1,COUNTA(raw!$A:$A)-1,1),L$2) -> 0 | M16: =COUNTIFS( OFFSET(raw!$A$1,2,MATCH(回答数!$A16,raw!$2:$2,0)-1,COUNTA(raw!$A:$A)-1,1),回答数!$B16, OFFSET(raw!$A$1,2,MATCH($D$1,raw!$2:$2,0)-1,COUNTA(raw!$A:$A)-1,1),M$2) -> 0 | N16: =COUNTIFS( OFFSET(raw!$A$1,2,MATCH(回答数!$A16,raw!$2:$2,0)-1,COUNTA(raw!$A:$A)-1,1),回答数!$B16, OFFSET(raw!$A$1,2,MATCH($D$1,raw!$2:$2,0)-1,COUNTA(raw!$A:$A)-1,1),N$2) -> 0 | O16: =COUNTIFS( OFFSET(raw!$A$1,2,MATCH(回答数!$A16,raw!$2:$2,0)-1,COUNTA(raw!$A:$A)-1,1),回答数!$B16, OFFSET(raw!$A$1,2,MATCH($D$1,raw!$2:$2,0)-1,COUNTA(raw!$A:$A)-1,1),O$2) -> 0 | P16: 171
A17: 回答エリア | B17: 金津創作の森 エリア | D17: =COUNTIFS( OFFSET(raw!$A$1,2,MATCH(回答数!$A17,raw!$2:$2,0)-1,COUNTA(raw!$A:$A)-1,1),回答数!$B17, OFFSET(raw!$A$1,2,MATCH($D$1,raw!$2:$2,0)-1,COUNTA(raw!$A:$A)-1,1),D$2) -> 0 | E17: =COUNTIFS( OFFSET(raw!$A$1,2,MATCH(回答数!$A17,raw!$2:$2,0)-1,COUNTA(raw!$A:$A)-1,1),回答数!$B17, OFFSET(raw!$A$1,2,MATCH($D$1,raw!$2:$2,0)-1,COUNTA(raw!$A:$A)-1,1),E$2) -> 0 | F17: =COUNTIFS( OFFSET(raw!$A$1,2,MATCH(回答数!$A17,raw!$2:$2,0)-1,COUNTA(raw!$A:$A)-1,1),回答数!$B17, OFFSET(raw!$A$1,2,MATCH($D$1,raw!$2:$2,0)-1,COUNTA(raw!$A:$A)-1,1),F$2) -> 0 | G17: =COUNTIFS( OFFSET(raw!$A$1,2,MATCH(回答数!$A17,raw!$2:$2,0)-1,COUNTA(raw!$A:$A)-1,1),回答数!$B17, OFFSET(raw!$A$1,2,MATCH($D$1,raw!$2:$2,0)-1,COUNTA(raw!$A:$A)-1,1),G$2) -> 0 | H17: =COUNTIFS( OFFSET(raw!$A$1,2,MATCH(回答数!$A17,raw!$2:$2,0)-1,COUNTA(raw!$A:$A)-1,1),回答数!$B17, OFFSET(raw!$A$1,2,MATCH($D$1,raw!$2:$2,0)-1,COUNTA(raw!$A:$A)-1,1),H$2) -> 0 | I17: =COUNTIFS( OFFSET(raw!$A$1,2,MATCH(回答数!$A17,raw!$2:$2,0)-1,COUNTA(raw!$A:$A)-1,1),回答数!$B17, OFFSET(raw!$A$1,2,MATCH($D$1,raw!$2:$2,0)-1,COUNTA(raw!$A:$A)-1,1),I$2) -> 0 | J17: =COUNTIFS( OFFSET(raw!$A$1,2,MATCH(回答数!$A17,raw!$2:$2,0)-1,COUNTA(raw!$A:$A)-1,1),回答数!$B17, OFFSET(raw!$A$1,2,MATCH($D$1,raw!$2:$2,0)-1,COUNTA(raw!$A:$A)-1,1),J$2) -> 0 | K17: =COUNTIFS( OFFSET(raw!$A$1,2,MATCH(回答数!$A17,raw!$2:$2,0)-1,COUNTA(raw!$A:$A)-1,1),回答数!$B17, OFFSET(raw!$A$1,2,MATCH($D$1,raw!$2:$2,0)-1,COUNTA(raw!$A:$A)-1,1),K$2) -> 0 | L17: =COUNTIFS( OFFSET(raw!$A$1,2,MATCH(回答数!$A17,raw!$2:$2,0)-1,COUNTA(raw!$A:$A)-1,1),回答数!$B17, OFFSET(raw!$A$1,2,MATCH($D$1,raw!$2:$2,0)-1,COUNTA(raw!$A:$A)-1,1),L$2) -> 0 | M17: =COUNTIFS( OFFSET(raw!$A$1,2,MATCH(回答数!$A17,raw!$2:$2,0)-1,COUNTA(raw!$A:$A)-1,1),回答数!$B17, OFFSET(raw!$A$1,2,MATCH($D$1,raw!$2:$2,0)-1,COUNTA(raw!$A:$A)-1,1),M$2) -> 0 | N17: =COUNTIFS( OFFSET(raw!$A$1,2,MATCH(回答数!$A17,raw!$2:$2,0)-1,COUNTA(raw!$A:$A)-1,1),回答数!$B17, OFFSET(raw!$A$1,2,MATCH($D$1,raw!$2:$2,0)-1,COUNTA(raw!$A:$A)-1,1),N$2) -> 0 | O17: =COUNTIFS( OFFSET(raw!$A$1,2,MATCH(回答数!$A17,raw!$2:$2,0)-1,COUNTA(raw!$A:$A)-1,1),回答数!$B17, OFFSET(raw!$A$1,2,MATCH($D$1,raw!$2:$2,0)-1,COUNTA(raw!$A:$A)-1,1),O$2) -> 0 | P17: 0
A18: 回答エリア | B18: JA福井県ファーマーズマーケットきららの丘 エリア | D18: =COUNTIFS( OFFSET(raw!$A$1,2,MATCH(回答数!$A18,raw!$2:$2,0)-1,COUNTA(raw!$A:$A)-1,1),回答数!$B18, OFFSET(raw!$A$1,2,MATCH($D$1,raw!$2:$2,0)-1,COUNTA(raw!$A:$A)-1,1),D$2) -> 0 | E18: =COUNTIFS( OFFSET(raw!$A$1,2,MATCH(回答数!$A18,raw!$2:$2,0)-1,COUNTA(raw!$A:$A)-1,1),回答数!$B18, OFFSET(raw!$A$1,2,MATCH($D$1,raw!$2:$2,0)-1,COUNTA(raw!$A:$A)-1,1),E$2) -> 26 | F18: =COUNTIFS( OFFSET(raw!$A$1,2,MATCH(回答数!$A18,raw!$2:$2,0)-1,COUNTA(raw!$A:$A)-1,1),回答数!$B18, OFFSET(raw!$A$1,2,MATCH($D$1,raw!$2:$2,0)-1,COUNTA(raw!$A:$A)-1,1),F$2) -> 29 | G18: =COUNTIFS( OFFSET(raw!$A$1,2,MATCH(回答数!$A18,raw!$2:$2,0)-1,COUNTA(raw!$A:$A)-1,1),回答数!$B18, OFFSET(raw!$A$1,2,MATCH($D$1,raw!$2:$2,0)-1,COUNTA(raw!$A:$A)-1,1),G$2) -> 0 | H18: =COUNTIFS( OFFSET(raw!$A$1,2,MATCH(回答数!$A18,raw!$2:$2,0)-1,COUNTA(raw!$A:$A)-1,1),回答数!$B18, OFFSET(raw!$A$1,2,MATCH($D$1,raw!$2:$2,0)-1,COUNTA(raw!$A:$A)-1,1),H$2) -> 0 | I18: =COUNTIFS( OFFSET(raw!$A$1,2,MATCH(回答数!$A18,raw!$2:$2,0)-1,COUNTA(raw!$A:$A)-1,1),回答数!$B18, OFFSET(raw!$A$1,2,MATCH($D$1,raw!$2:$2,0)-1,COUNTA(raw!$A:$A)-1,1),I$2) -> 0 | J18: =COUNTIFS( OFFSET(raw!$A$1,2,MATCH(回答数!$A18,raw!$2:$2,0)-1,COUNTA(raw!$A:$A)-1,1),回答数!$B18, OFFSET(raw!$A$1,2,MATCH($D$1,raw!$2:$2,0)-1,COUNTA(raw!$A:$A)-1,1),J$2) -> 0 | K18: =COUNTIFS( OFFSET(raw!$A$1,2,MATCH(回答数!$A18,raw!$2:$2,0)-1,COUNTA(raw!$A:$A)-1,1),回答数!$B18, OFFSET(raw!$A$1,2,MATCH($D$1,raw!$2:$2,0)-1,COUNTA(raw!$A:$A)-1,1),K$2) -> 0 | L18: =COUNTIFS( OFFSET(raw!$A$1,2,MATCH(回答数!$A18,raw!$2:$2,0)-1,COUNTA(raw!$A:$A)-1,1),回答数!$B18, OFFSET(raw!$A$1,2,MATCH($D$1,raw!$2:$2,0)-1,COUNTA(raw!$A:$A)-1,1),L$2) -> 0 | M18: =COUNTIFS( OFFSET(raw!$A$1,2,MATCH(回答数!$A18,raw!$2:$2,0)-1,COUNTA(raw!$A:$A)-1,1),回答数!$B18, OFFSET(raw!$A$1,2,MATCH($D$1,raw!$2:$2,0)-1,COUNTA(raw!$A:$A)-1,1),M$2) -> 0 | N18: =COUNTIFS( OFFSET(raw!$A$1,2,MATCH(回答数!$A18,raw!$2:$2,0)-1,COUNTA(raw!$A:$A)-1,1),回答数!$B18, OFFSET(raw!$A$1,2,MATCH($D$1,raw!$2:$2,0)-1,COUNTA(raw!$A:$A)-1,1),N$2) -> 0 | O18: =COUNTIFS( OFFSET(raw!$A$1,2,MATCH(回答数!$A18,raw!$2:$2,0)-1,COUNTA(raw!$A:$A)-1,1),回答数!$B18, OFFSET(raw!$A$1,2,MATCH($D$1,raw!$2:$2,0)-1,COUNTA(raw!$A:$A)-1,1),O$2) -> 0 | P18: 55
A19: 回答エリア | B19: 北潟湖 エリア | D19: =COUNTIFS( OFFSET(raw!$A$1,2,MATCH(回答数!$A19,raw!$2:$2,0)-1,COUNTA(raw!$A:$A)-1,1),回答数!$B19, OFFSET(raw!$A$1,2,MATCH($D$1,raw!$2:$2,0)-1,COUNTA(raw!$A:$A)-1,1),D$2) -> 1 | E19: =COUNTIFS( OFFSET(raw!$A$1,2,MATCH(回答数!$A19,raw!$2:$2,0)-1,COUNTA(raw!$A:$A)-1,1),回答数!$B19, OFFSET(raw!$A$1,2,MATCH($D$1,raw!$2:$2,0)-1,COUNTA(raw!$A:$A)-1,1),E$2) -> 8 | F19: =COUNTIFS( OFFSET(raw!$A$1,2,MATCH(回答数!$A19,raw!$2:$2,0)-1,COUNTA(raw!$A:$A)-1,1),回答数!$B19, OFFSET(raw!$A$1,2,MATCH($D$1,raw!$2:$2,0)-1,COUNTA(raw!$A:$A)-1,1),F$2) -> 12 | G19: =COUNTIFS( OFFSET(raw!$A$1,2,MATCH(回答数!$A19,raw!$2:$2,0)-1,COUNTA(raw!$A:$A)-1,1),回答数!$B19, OFFSET(raw!$A$1,2,MATCH($D$1,raw!$2:$2,0)-1,COUNTA(raw!$A:$A)-1,1),G$2) -> 0 | H19: =COUNTIFS( OFFSET(raw!$A$1,2,MATCH(回答数!$A19,raw!$2:$2,0)-1,COUNTA(raw!$A:$A)-1,1),回答数!$B19, OFFSET(raw!$A$1,2,MATCH($D$1,raw!$2:$2,0)-1,COUNTA(raw!$A:$A)-1,1),H$2) -> 0 | I19: =COUNTIFS( OFFSET(raw!$A$1,2,MATCH(回答数!$A19,raw!$2:$2,0)-1,COUNTA(raw!$A:$A)-1,1),回答数!$B19, OFFSET(raw!$A$1,2,MATCH($D$1,raw!$2:$2,0)-1,COUNTA(raw!$A:$A)-1,1),I$2) -> 0 | J19: =COUNTIFS( OFFSET(raw!$A$1,2,MATCH(回答数!$A19,raw!$2:$2,0)-1,COUNTA(raw!$A:$A)-1,1),回答数!$B19, OFFSET(raw!$A$1,2,MATCH($D$1,raw!$2:$2,0)-1,COUNTA(raw!$A:$A)-1,1),J$2) -> 0 | K19: =COUNTIFS( OFFSET(raw!$A$1,2,MATCH(回答数!$A19,raw!$2:$2,0)-1,COUNTA(raw!$A:$A)-1,1),回答数!$B19, OFFSET(raw!$A$1,2,MATCH($D$1,raw!$2:$2,0)-1,COUNTA(raw!$A:$A)-1,1),K$2) -> 0 | L19: =COUNTIFS( OFFSET(raw!$A$1,2,MATCH(回答数!$A19,raw!$2:$2,0)-1,COUNTA(raw!$A:$A)-1,1),回答数!$B19, OFFSET(raw!$A$1,2,MATCH($D$1,raw!$2:$2,0)-1,COUNTA(raw!$A:$A)-1,1),L$2) -> 0 | M19: =COUNTIFS( OFFSET(raw!$A$1,2,MATCH(回答数!$A19,raw!$2:$2,0)-1,COUNTA(raw!$A:$A)-1,1),回答数!$B19, OFFSET(raw!$A$1,2,MATCH($D$1,raw!$2:$2,0)-1,COUNTA(raw!$A:$A)-1,1),M$2) -> 0 | N19: =COUNTIFS( OFFSET(raw!$A$1,2,MATCH(回答数!$A19,raw!$2:$2,0)-1,COUNTA(raw!$A:$A)-1,1),回答数!$B19, OFFSET(raw!$A$1,2,MATCH($D$1,raw!$2:$2,0)-1,COUNTA(raw!$A:$A)-1,1),N$2) -> 0 | O19: =COUNTIFS( OFFSET(raw!$A$1,2,MATCH(回答数!$A19,raw!$2:$2,0)-1,COUNTA(raw!$A:$A)-1,1),回答数!$B19, OFFSET(raw!$A$1,2,MATCH($D$1,raw!$2:$2,0)-1,COUNTA(raw!$A:$A)-1,1),O$2) -> 0 | P19: 21
A20: 回答エリア | B20: 越前大野城・城下町 エリア | D20: =COUNTIFS( OFFSET(raw!$A$1,2,MATCH(回答数!$A20,raw!$2:$2,0)-1,COUNTA(raw!$A:$A)-1,1),回答数!$B20, OFFSET(raw!$A$1,2,MATCH($D$1,raw!$2:$2,0)-1,COUNTA(raw!$A:$A)-1,1),D$2) -> 7 | E20: =COUNTIFS( OFFSET(raw!$A$1,2,MATCH(回答数!$A20,raw!$2:$2,0)-1,COUNTA(raw!$A:$A)-1,1),回答数!$B20, OFFSET(raw!$A$1,2,MATCH($D$1,raw!$2:$2,0)-1,COUNTA(raw!$A:$A)-1,1),E$2) -> 52 | F20: =COUNTIFS( OFFSET(raw!$A$1,2,MATCH(回答数!$A20,raw!$2:$2,0)-1,COUNTA(raw!$A:$A)-1,1),回答数!$B20, OFFSET(raw!$A$1,2,MATCH($D$1,raw!$2:$2,0)-1,COUNTA(raw!$A:$A)-1,1),F$2) -> 30 | G20: =COUNTIFS( OFFSET(raw!$A$1,2,MATCH(回答数!$A20,raw!$2:$2,0)-1,COUNTA(raw!$A:$A)-1,1),回答数!$B20, OFFSET(raw!$A$1,2,MATCH($D$1,raw!$2:$2,0)-1,COUNTA(raw!$A:$A)-1,1),G$2) -> 0 | H20: =COUNTIFS( OFFSET(raw!$A$1,2,MATCH(回答数!$A20,raw!$2:$2,0)-1,COUNTA(raw!$A:$A)-1,1),回答数!$B20, OFFSET(raw!$A$1,2,MATCH($D$1,raw!$2:$2,0)-1,COUNTA(raw!$A:$A)-1,1),H$2) -> 0 | I20: =COUNTIFS( OFFSET(raw!$A$1,2,MATCH(回答数!$A20,raw!$2:$2,0)-1,COUNTA(raw!$A:$A)-1,1),回答数!$B20, OFFSET(raw!$A$1,2,MATCH($D$1,raw!$2:$2,0)-1,COUNTA(raw!$A:$A)-1,1),I$2) -> 0 | J20: =COUNTIFS( OFFSET(raw!$A$1,2,MATCH(回答数!$A20,raw!$2:$2,0)-1,COUNTA(raw!$A:$A)-1,1),回答数!$B20, OFFSET(raw!$A$1,2,MATCH($D$1,raw!$2:$2,0)-1,COUNTA(raw!$A:$A)-1,1),J$2) -> 0 | K20: =COUNTIFS( OFFSET(raw!$A$1,2,MATCH(回答数!$A20,raw!$2:$2,0)-1,COUNTA(raw!$A:$A)-1,1),回答数!$B20, OFFSET(raw!$A$1,2,MATCH($D$1,raw!$2:$2,0)-1,COUNTA(raw!$A:$A)-1,1),K$2) -> 0 | L20: =COUNTIFS( OFFSET(raw!$A$1,2,MATCH(回答数!$A20,raw!$2:$2,0)-1,COUNTA(raw!$A:$A)-1,1),回答数!$B20, OFFSET(raw!$A$1,2,MATCH($D$1,raw!$2:$2,0)-1,COUNTA(raw!$A:$A)-1,1),L$2) -> 0 | M20: =COUNTIFS( OFFSET(raw!$A$1,2,MATCH(回答数!$A20,raw!$2:$2,0)-1,COUNTA(raw!$A:$A)-1,1),回答数!$B20, OFFSET(raw!$A$1,2,MATCH($D$1,raw!$2:$2,0)-1,COUNTA(raw!$A:$A)-1,1),M$2) -> 0 | N20: =COUNTIFS( OFFSET(raw!$A$1,2,MATCH(回答数!$A20,raw!$2:$2,0)-1,COUNTA(raw!$A:$A)-1,1),回答数!$B20, OFFSET(raw!$A$1,2,MATCH($D$1,raw!$2:$2,0)-1,COUNTA(raw!$A:$A)-1,1),N$2) -> 0 | O20: =COUNTIFS( OFFSET(raw!$A$1,2,MATCH(回答数!$A20,raw!$2:$2,0)-1,COUNTA(raw!$A:$A)-1,1),回答数!$B20, OFFSET(raw!$A$1,2,MATCH($D$1,raw!$2:$2,0)-1,COUNTA(raw!$A:$A)-1,1),O$2) -> 0 | P20: 89
A21: 回答エリア | B21: 道の駅「越前おおの荒島の郷」 エリア | D21: =COUNTIFS( OFFSET(raw!$A$1,2,MATCH(回答数!$A21,raw!$2:$2,0)-1,COUNTA(raw!$A:$A)-1,1),回答数!$B21, OFFSET(raw!$A$1,2,MATCH($D$1,raw!$2:$2,0)-1,COUNTA(raw!$A:$A)-1,1),D$2) -> 7 | E21: =COUNTIFS( OFFSET(raw!$A$1,2,MATCH(回答数!$A21,raw!$2:$2,0)-1,COUNTA(raw!$A:$A)-1,1),回答数!$B21, OFFSET(raw!$A$1,2,MATCH($D$1,raw!$2:$2,0)-1,COUNTA(raw!$A:$A)-1,1),E$2) -> 121 | F21: =COUNTIFS( OFFSET(raw!$A$1,2,MATCH(回答数!$A21,raw!$2:$2,0)-1,COUNTA(raw!$A:$A)-1,1),回答数!$B21, OFFSET(raw!$A$1,2,MATCH($D$1,raw!$2:$2,0)-1,COUNTA(raw!$A:$A)-1,1),F$2) -> 65 | G21: =COUNTIFS( OFFSET(raw!$A$1,2,MATCH(回答数!$A21,raw!$2:$2,0)-1,COUNTA(raw!$A:$A)-1,1),回答数!$B21, OFFSET(raw!$A$1,2,MATCH($D$1,raw!$2:$2,0)-1,COUNTA(raw!$A:$A)-1,1),G$2) -> 0 | H21: =COUNTIFS( OFFSET(raw!$A$1,2,MATCH(回答数!$A21,raw!$2:$2,0)-1,COUNTA(raw!$A:$A)-1,1),回答数!$B21, OFFSET(raw!$A$1,2,MATCH($D$1,raw!$2:$2,0)-1,COUNTA(raw!$A:$A)-1,1),H$2) -> 0 | I21: =COUNTIFS( OFFSET(raw!$A$1,2,MATCH(回答数!$A21,raw!$2:$2,0)-1,COUNTA(raw!$A:$A)-1,1),回答数!$B21, OFFSET(raw!$A$1,2,MATCH($D$1,raw!$2:$2,0)-1,COUNTA(raw!$A:$A)-1,1),I$2) -> 0 | J21: =COUNTIFS( OFFSET(raw!$A$1,2,MATCH(回答数!$A21,raw!$2:$2,0)-1,COUNTA(raw!$A:$A)-1,1),回答数!$B21, OFFSET(raw!$A$1,2,MATCH($D$1,raw!$2:$2,0)-1,COUNTA(raw!$A:$A)-1,1),J$2) -> 0 | K21: =COUNTIFS( OFFSET(raw!$A$1,2,MATCH(回答数!$A21,raw!$2:$2,0)-1,COUNTA(raw!$A:$A)-1,1),回答数!$B21, OFFSET(raw!$A$1,2,MATCH($D$1,raw!$2:$2,0)-1,COUNTA(raw!$A:$A)-1,1),K$2) -> 0 | L21: =COUNTIFS( OFFSET(raw!$A$1,2,MATCH(回答数!$A21,raw!$2:$2,0)-1,COUNTA(raw!$A:$A)-1,1),回答数!$B21, OFFSET(raw!$A$1,2,MATCH($D$1,raw!$2:$2,0)-1,COUNTA(raw!$A:$A)-1,1),L$2) -> 0 | M21: =COUNTIFS( OFFSET(raw!$A$1,2,MATCH(回答数!$A21,raw!$2:$2,0)-1,COUNTA(raw!$A:$A)-1,1),回答数!$B21, OFFSET(raw!$A$1,2,MATCH($D$1,raw!$2:$2,0)-1,COUNTA(raw!$A:$A)-1,1),M$2) -> 0 | N21: =COUNTIFS( OFFSET(raw!$A$1,2,MATCH(回答数!$A21,raw!$2:$2,0)-1,COUNTA(raw!$A:$A)-1,1),回答数!$B21, OFFSET(raw!$A$1,2,MATCH($D$1,raw!$2:$2,0)-1,COUNTA(raw!$A:$A)-1,1),N$2) -> 0 | O21: =COUNTIFS( OFFSET(raw!$A$1,2,MATCH(回答数!$A21,raw!$2:$2,0)-1,COUNTA(raw!$A:$A)-1,1),回答数!$B21, OFFSET(raw!$A$1,2,MATCH($D$1,raw!$2:$2,0)-1,COUNTA(raw!$A:$A)-1,1),O$2) -> 0 | P21: 193
A22: 回答エリア | B22: 道の駅「九頭竜」 エリア | D22: =COUNTIFS( OFFSET(raw!$A$1,2,MATCH(回答数!$A22,raw!$2:$2,0)-1,COUNTA(raw!$A:$A)-1,1),回答数!$B22, OFFSET(raw!$A$1,2,MATCH($D$1,raw!$2:$2,0)-1,COUNTA(raw!$A:$A)-1,1),D$2) -> 1 | E22: =COUNTIFS( OFFSET(raw!$A$1,2,MATCH(回答数!$A22,raw!$2:$2,0)-1,COUNTA(raw!$A:$A)-1,1),回答数!$B22, OFFSET(raw!$A$1,2,MATCH($D$1,raw!$2:$2,0)-1,COUNTA(raw!$A:$A)-1,1),E$2) -> 30 | F22: =COUNTIFS( OFFSET(raw!$A$1,2,MATCH(回答数!$A22,raw!$2:$2,0)-1,COUNTA(raw!$A:$A)-1,1),回答数!$B22, OFFSET(raw!$A$1,2,MATCH($D$1,raw!$2:$2,0)-1,COUNTA(raw!$A:$A)-1,1),F$2) -> 12 | G22: =COUNTIFS( OFFSET(raw!$A$1,2,MATCH(回答数!$A22,raw!$2:$2,0)-1,COUNTA(raw!$A:$A)-1,1),回答数!$B22, OFFSET(raw!$A$1,2,MATCH($D$1,raw!$2:$2,0)-1,COUNTA(raw!$A:$A)-1,1),G$2) -> 0 | H22: =COUNTIFS( OFFSET(raw!$A$1,2,MATCH(回答数!$A22,raw!$2:$2,0)-1,COUNTA(raw!$A:$A)-1,1),回答数!$B22, OFFSET(raw!$A$1,2,MATCH($D$1,raw!$2:$2,0)-1,COUNTA(raw!$A:$A)-1,1),H$2) -> 0 | I22: =COUNTIFS( OFFSET(raw!$A$1,2,MATCH(回答数!$A22,raw!$2:$2,0)-1,COUNTA(raw!$A:$A)-1,1),回答数!$B22, OFFSET(raw!$A$1,2,MATCH($D$1,raw!$2:$2,0)-1,COUNTA(raw!$A:$A)-1,1),I$2) -> 0 | J22: =COUNTIFS( OFFSET(raw!$A$1,2,MATCH(回答数!$A22,raw!$2:$2,0)-1,COUNTA(raw!$A:$A)-1,1),回答数!$B22, OFFSET(raw!$A$1,2,MATCH($D$1,raw!$2:$2,0)-1,COUNTA(raw!$A:$A)-1,1),J$2) -> 0 | K22: =COUNTIFS( OFFSET(raw!$A$1,2,MATCH(回答数!$A22,raw!$2:$2,0)-1,COUNTA(raw!$A:$A)-1,1),回答数!$B22, OFFSET(raw!$A$1,2,MATCH($D$1,raw!$2:$2,0)-1,COUNTA(raw!$A:$A)-1,1),K$2) -> 0 | L22: =COUNTIFS( OFFSET(raw!$A$1,2,MATCH(回答数!$A22,raw!$2:$2,0)-1,COUNTA(raw!$A:$A)-1,1),回答数!$B22, OFFSET(raw!$A$1,2,MATCH($D$1,raw!$2:$2,0)-1,COUNTA(raw!$A:$A)-1,1),L$2) -> 0 | M22: =COUNTIFS( OFFSET(raw!$A$1,2,MATCH(回答数!$A22,raw!$2:$2,0)-1,COUNTA(raw!$A:$A)-1,1),回答数!$B22, OFFSET(raw!$A$1,2,MATCH($D$1,raw!$2:$2,0)-1,COUNTA(raw!$A:$A)-1,1),M$2) -> 0 | N22: =COUNTIFS( OFFSET(raw!$A$1,2,MATCH(回答数!$A22,raw!$2:$2,0)-1,COUNTA(raw!$A:$A)-1,1),回答数!$B22, OFFSET(raw!$A$1,2,MATCH($D$1,raw!$2:$2,0)-1,COUNTA(raw!$A:$A)-1,1),N$2) -> 0 | O22: =COUNTIFS( OFFSET(raw!$A$1,2,MATCH(回答数!$A22,raw!$2:$2,0)-1,COUNTA(raw!$A:$A)-1,1),回答数!$B22, OFFSET(raw!$A$1,2,MATCH($D$1,raw!$2:$2,0)-1,COUNTA(raw!$A:$A)-1,1),O$2) -> 0 | P22: 43
A23: 回答エリア | B23: 六呂師高原 エリア | D23: =COUNTIFS( OFFSET(raw!$A$1,2,MATCH(回答数!$A23,raw!$2:$2,0)-1,COUNTA(raw!$A:$A)-1,1),回答数!$B23, OFFSET(raw!$A$1,2,MATCH($D$1,raw!$2:$2,0)-1,COUNTA(raw!$A:$A)-1,1),D$2) -> 1 | E23: =COUNTIFS( OFFSET(raw!$A$1,2,MATCH(回答数!$A23,raw!$2:$2,0)-1,COUNTA(raw!$A:$A)-1,1),回答数!$B23, OFFSET(raw!$A$1,2,MATCH($D$1,raw!$2:$2,0)-1,COUNTA(raw!$A:$A)-1,1),E$2) -> 17 | F23: =COUNTIFS( OFFSET(raw!$A$1,2,MATCH(回答数!$A23,raw!$2:$2,0)-1,COUNTA(raw!$A:$A)-1,1),回答数!$B23, OFFSET(raw!$A$1,2,MATCH($D$1,raw!$2:$2,0)-1,COUNTA(raw!$A:$A)-1,1),F$2) -> 8 | G23: =COUNTIFS( OFFSET(raw!$A$1,2,MATCH(回答数!$A23,raw!$2:$2,0)-1,COUNTA(raw!$A:$A)-1,1),回答数!$B23, OFFSET(raw!$A$1,2,MATCH($D$1,raw!$2:$2,0)-1,COUNTA(raw!$A:$A)-1,1),G$2) -> 0 | H23: =COUNTIFS( OFFSET(raw!$A$1,2,MATCH(回答数!$A23,raw!$2:$2,0)-1,COUNTA(raw!$A:$A)-1,1),回答数!$B23, OFFSET(raw!$A$1,2,MATCH($D$1,raw!$2:$2,0)-1,COUNTA(raw!$A:$A)-1,1),H$2) -> 0 | I23: =COUNTIFS( OFFSET(raw!$A$1,2,MATCH(回答数!$A23,raw!$2:$2,0)-1,COUNTA(raw!$A:$A)-1,1),回答数!$B23, OFFSET(raw!$A$1,2,MATCH($D$1,raw!$2:$2,0)-1,COUNTA(raw!$A:$A)-1,1),I$2) -> 0 | J23: =COUNTIFS( OFFSET(raw!$A$1,2,MATCH(回答数!$A23,raw!$2:$2,0)-1,COUNTA(raw!$A:$A)-1,1),回答数!$B23, OFFSET(raw!$A$1,2,MATCH($D$1,raw!$2:$2,0)-1,COUNTA(raw!$A:$A)-1,1),J$2) -> 0 | K23: =COUNTIFS( OFFSET(raw!$A$1,2,MATCH(回答数!$A23,raw!$2:$2,0)-1,COUNTA(raw!$A:$A)-1,1),回答数!$B23, OFFSET(raw!$A$1,2,MATCH($D$1,raw!$2:$2,0)-1,COUNTA(raw!$A:$A)-1,1),K$2) -> 0 | L23: =COUNTIFS( OFFSET(raw!$A$1,2,MATCH(回答数!$A23,raw!$2:$2,0)-1,COUNTA(raw!$A:$A)-1,1),回答数!$B23, OFFSET(raw!$A$1,2,MATCH($D$1,raw!$2:$2,0)-1,COUNTA(raw!$A:$A)-1,1),L$2) -> 0 | M23: =COUNTIFS( OFFSET(raw!$A$1,2,MATCH(回答数!$A23,raw!$2:$2,0)-1,COUNTA(raw!$A:$A)-1,1),回答数!$B23, OFFSET(raw!$A$1,2,MATCH($D$1,raw!$2:$2,0)-1,COUNTA(raw!$A:$A)-1,1),M$2) -> 0 | N23: =COUNTIFS( OFFSET(raw!$A$1,2,MATCH(回答数!$A23,raw!$2:$2,0)-1,COUNTA(raw!$A:$A)-1,1),回答数!$B23, OFFSET(raw!$A$1,2,MATCH($D$1,raw!$2:$2,0)-1,COUNTA(raw!$A:$A)-1,1),N$2) -> 0 | O23: =COUNTIFS( OFFSET(raw!$A$1,2,MATCH(回答数!$A23,raw!$2:$2,0)-1,COUNTA(raw!$A:$A)-1,1),回答数!$B23, OFFSET(raw!$A$1,2,MATCH($D$1,raw!$2:$2,0)-1,COUNTA(raw!$A:$A)-1,1),O$2) -> 0 | P23: 26
A24: 回答エリア | B24: スーベニアショップ ラプトル エリア | D24: =COUNTIFS( OFFSET(raw!$A$1,2,MATCH(回答数!$A24,raw!$2:$2,0)-1,COUNTA(raw!$A:$A)-1,1),回答数!$B24, OFFSET(raw!$A$1,2,MATCH($D$1,raw!$2:$2,0)-1,COUNTA(raw!$A:$A)-1,1),D$2) -> 18 | E24: =COUNTIFS( OFFSET(raw!$A$1,2,MATCH(回答数!$A24,raw!$2:$2,0)-1,COUNTA(raw!$A:$A)-1,1),回答数!$B24, OFFSET(raw!$A$1,2,MATCH($D$1,raw!$2:$2,0)-1,COUNTA(raw!$A:$A)-1,1),E$2) -> 50 | F24: =COUNTIFS( OFFSET(raw!$A$1,2,MATCH(回答数!$A24,raw!$2:$2,0)-1,COUNTA(raw!$A:$A)-1,1),回答数!$B24, OFFSET(raw!$A$1,2,MATCH($D$1,raw!$2:$2,0)-1,COUNTA(raw!$A:$A)-1,1),F$2) -> 28 | G24: =COUNTIFS( OFFSET(raw!$A$1,2,MATCH(回答数!$A24,raw!$2:$2,0)-1,COUNTA(raw!$A:$A)-1,1),回答数!$B24, OFFSET(raw!$A$1,2,MATCH($D$1,raw!$2:$2,0)-1,COUNTA(raw!$A:$A)-1,1),G$2) -> 0 | H24: =COUNTIFS( OFFSET(raw!$A$1,2,MATCH(回答数!$A24,raw!$2:$2,0)-1,COUNTA(raw!$A:$A)-1,1),回答数!$B24, OFFSET(raw!$A$1,2,MATCH($D$1,raw!$2:$2,0)-1,COUNTA(raw!$A:$A)-1,1),H$2) -> 0 | I24: =COUNTIFS( OFFSET(raw!$A$1,2,MATCH(回答数!$A24,raw!$2:$2,0)-1,COUNTA(raw!$A:$A)-1,1),回答数!$B24, OFFSET(raw!$A$1,2,MATCH($D$1,raw!$2:$2,0)-1,COUNTA(raw!$A:$A)-1,1),I$2) -> 0 | J24: =COUNTIFS( OFFSET(raw!$A$1,2,MATCH(回答数!$A24,raw!$2:$2,0)-1,COUNTA(raw!$A:$A)-1,1),回答数!$B24, OFFSET(raw!$A$1,2,MATCH($D$1,raw!$2:$2,0)-1,COUNTA(raw!$A:$A)-1,1),J$2) -> 0 | K24: =COUNTIFS( OFFSET(raw!$A$1,2,MATCH(回答数!$A24,raw!$2:$2,0)-1,COUNTA(raw!$A:$A)-1,1),回答数!$B24, OFFSET(raw!$A$1,2,MATCH($D$1,raw!$2:$2,0)-1,COUNTA(raw!$A:$A)-1,1),K$2) -> 0 | L24: =COUNTIFS( OFFSET(raw!$A$1,2,MATCH(回答数!$A24,raw!$2:$2,0)-1,COUNTA(raw!$A:$A)-1,1),回答数!$B24, OFFSET(raw!$A$1,2,MATCH($D$1,raw!$2:$2,0)-1,COUNTA(raw!$A:$A)-1,1),L$2) -> 0 | M24: =COUNTIFS( OFFSET(raw!$A$1,2,MATCH(回答数!$A24,raw!$2:$2,0)-1,COUNTA(raw!$A:$A)-1,1),回答数!$B24, OFFSET(raw!$A$1,2,MATCH($D$1,raw!$2:$2,0)-1,COUNTA(raw!$A:$A)-1,1),M$2) -> 0 | N24: =COUNTIFS( OFFSET(raw!$A$1,2,MATCH(回答数!$A24,raw!$2:$2,0)-1,COUNTA(raw!$A:$A)-1,1),回答数!$B24, OFFSET(raw!$A$1,2,MATCH($D$1,raw!$2:$2,0)-1,COUNTA(raw!$A:$A)-1,1),N$2) -> 0 | O24: =COUNTIFS( OFFSET(raw!$A$1,2,MATCH(回答数!$A24,raw!$2:$2,0)-1,COUNTA(raw!$A:$A)-1,1),回答数!$B24, OFFSET(raw!$A$1,2,MATCH($D$1,raw!$2:$2,0)-1,COUNTA(raw!$A:$A)-1,1),O$2) -> 0 | P24: 96
A25: 回答エリア | B25: 道の駅「恐竜渓谷かつやま」 エリア | D25: =COUNTIFS( OFFSET(raw!$A$1,2,MATCH(回答数!$A25,raw!$2:$2,0)-1,COUNTA(raw!$A:$A)-1,1),回答数!$B25, OFFSET(raw!$A$1,2,MATCH($D$1,raw!$2:$2,0)-1,COUNTA(raw!$A:$A)-1,1),D$2) -> 13 | E25: =COUNTIFS( OFFSET(raw!$A$1,2,MATCH(回答数!$A25,raw!$2:$2,0)-1,COUNTA(raw!$A:$A)-1,1),回答数!$B25, OFFSET(raw!$A$1,2,MATCH($D$1,raw!$2:$2,0)-1,COUNTA(raw!$A:$A)-1,1),E$2) -> 83 | F25: =COUNTIFS( OFFSET(raw!$A$1,2,MATCH(回答数!$A25,raw!$2:$2,0)-1,COUNTA(raw!$A:$A)-1,1),回答数!$B25, OFFSET(raw!$A$1,2,MATCH($D$1,raw!$2:$2,0)-1,COUNTA(raw!$A:$A)-1,1),F$2) -> 26 | G25: =COUNTIFS( OFFSET(raw!$A$1,2,MATCH(回答数!$A25,raw!$2:$2,0)-1,COUNTA(raw!$A:$A)-1,1),回答数!$B25, OFFSET(raw!$A$1,2,MATCH($D$1,raw!$2:$2,0)-1,COUNTA(raw!$A:$A)-1,1),G$2) -> 0 | H25: =COUNTIFS( OFFSET(raw!$A$1,2,MATCH(回答数!$A25,raw!$2:$2,0)-1,COUNTA(raw!$A:$A)-1,1),回答数!$B25, OFFSET(raw!$A$1,2,MATCH($D$1,raw!$2:$2,0)-1,COUNTA(raw!$A:$A)-1,1),H$2) -> 0 | I25: =COUNTIFS( OFFSET(raw!$A$1,2,MATCH(回答数!$A25,raw!$2:$2,0)-1,COUNTA(raw!$A:$A)-1,1),回答数!$B25, OFFSET(raw!$A$1,2,MATCH($D$1,raw!$2:$2,0)-1,COUNTA(raw!$A:$A)-1,1),I$2) -> 0 | J25: =COUNTIFS( OFFSET(raw!$A$1,2,MATCH(回答数!$A25,raw!$2:$2,0)-1,COUNTA(raw!$A:$A)-1,1),回答数!$B25, OFFSET(raw!$A$1,2,MATCH($D$1,raw!$2:$2,0)-1,COUNTA(raw!$A:$A)-1,1),J$2) -> 0 | K25: =COUNTIFS( OFFSET(raw!$A$1,2,MATCH(回答数!$A25,raw!$2:$2,0)-1,COUNTA(raw!$A:$A)-1,1),回答数!$B25, OFFSET(raw!$A$1,2,MATCH($D$1,raw!$2:$2,0)-1,COUNTA(raw!$A:$A)-1,1),K$2) -> 0 | L25: =COUNTIFS( OFFSET(raw!$A$1,2,MATCH(回答数!$A25,raw!$2:$2,0)-1,COUNTA(raw!$A:$A)-1,1),回答数!$B25, OFFSET(raw!$A$1,2,MATCH($D$1,raw!$2:$2,0)-1,COUNTA(raw!$A:$A)-1,1),L$2) -> 0 | M25: =COUNTIFS( OFFSET(raw!$A$1,2,MATCH(回答数!$A25,raw!$2:$2,0)-1,COUNTA(raw!$A:$A)-1,1),回答数!$B25, OFFSET(raw!$A$1,2,MATCH($D$1,raw!$2:$2,0)-1,COUNTA(raw!$A:$A)-1,1),M$2) -> 0 | N25: =COUNTIFS( OFFSET(raw!$A$1,2,MATCH(回答数!$A25,raw!$2:$2,0)-1,COUNTA(raw!$A:$A)-1,1),回答数!$B25, OFFSET(raw!$A$1,2,MATCH($D$1,raw!$2:$2,0)-1,COUNTA(raw!$A:$A)-1,1),N$2) -> 0 | O25: =COUNTIFS( OFFSET(raw!$A$1,2,MATCH(回答数!$A25,raw!$2:$2,0)-1,COUNTA(raw!$A:$A)-1,1),回答数!$B25, OFFSET(raw!$A$1,2,MATCH($D$1,raw!$2:$2,0)-1,COUNTA(raw!$A:$A)-1,1),O$2) -> 0 | P25: 122
A26: 回答エリア | B26: スキージャム勝山 エリア | D26: =COUNTIFS( OFFSET(raw!$A$1,2,MATCH(回答数!$A26,raw!$2:$2,0)-1,COUNTA(raw!$A:$A)-1,1),回答数!$B26, OFFSET(raw!$A$1,2,MATCH($D$1,raw!$2:$2,0)-1,COUNTA(raw!$A:$A)-1,1),D$2) -> 0 | E26: =COUNTIFS( OFFSET(raw!$A$1,2,MATCH(回答数!$A26,raw!$2:$2,0)-1,COUNTA(raw!$A:$A)-1,1),回答数!$B26, OFFSET(raw!$A$1,2,MATCH($D$1,raw!$2:$2,0)-1,COUNTA(raw!$A:$A)-1,1),E$2) -> 4 | F26: =COUNTIFS( OFFSET(raw!$A$1,2,MATCH(回答数!$A26,raw!$2:$2,0)-1,COUNTA(raw!$A:$A)-1,1),回答数!$B26, OFFSET(raw!$A$1,2,MATCH($D$1,raw!$2:$2,0)-1,COUNTA(raw!$A:$A)-1,1),F$2) -> 2 | G26: =COUNTIFS( OFFSET(raw!$A$1,2,MATCH(回答数!$A26,raw!$2:$2,0)-1,COUNTA(raw!$A:$A)-1,1),回答数!$B26, OFFSET(raw!$A$1,2,MATCH($D$1,raw!$2:$2,0)-1,COUNTA(raw!$A:$A)-1,1),G$2) -> 0 | H26: =COUNTIFS( OFFSET(raw!$A$1,2,MATCH(回答数!$A26,raw!$2:$2,0)-1,COUNTA(raw!$A:$A)-1,1),回答数!$B26, OFFSET(raw!$A$1,2,MATCH($D$1,raw!$2:$2,0)-1,COUNTA(raw!$A:$A)-1,1),H$2) -> 0 | I26: =COUNTIFS( OFFSET(raw!$A$1,2,MATCH(回答数!$A26,raw!$2:$2,0)-1,COUNTA(raw!$A:$A)-1,1),回答数!$B26, OFFSET(raw!$A$1,2,MATCH($D$1,raw!$2:$2,0)-1,COUNTA(raw!$A:$A)-1,1),I$2) -> 0 | J26: =COUNTIFS( OFFSET(raw!$A$1,2,MATCH(回答数!$A26,raw!$2:$2,0)-1,COUNTA(raw!$A:$A)-1,1),回答数!$B26, OFFSET(raw!$A$1,2,MATCH($D$1,raw!$2:$2,0)-1,COUNTA(raw!$A:$A)-1,1),J$2) -> 0 | K26: =COUNTIFS( OFFSET(raw!$A$1,2,MATCH(回答数!$A26,raw!$2:$2,0)-1,COUNTA(raw!$A:$A)-1,1),回答数!$B26, OFFSET(raw!$A$1,2,MATCH($D$1,raw!$2:$2,0)-1,COUNTA(raw!$A:$A)-1,1),K$2) -> 0 | L26: =COUNTIFS( OFFSET(raw!$A$1,2,MATCH(回答数!$A26,raw!$2:$2,0)-1,COUNTA(raw!$A:$A)-1,1),回答数!$B26, OFFSET(raw!$A$1,2,MATCH($D$1,raw!$2:$2,0)-1,COUNTA(raw!$A:$A)-1,1),L$2) -> 0 | M26: =COUNTIFS( OFFSET(raw!$A$1,2,MATCH(回答数!$A26,raw!$2:$2,0)-1,COUNTA(raw!$A:$A)-1,1),回答数!$B26, OFFSET(raw!$A$1,2,MATCH($D$1,raw!$2:$2,0)-1,COUNTA(raw!$A:$A)-1,1),M$2) -> 0 | N26: =COUNTIFS( OFFSET(raw!$A$1,2,MATCH(回答数!$A26,raw!$2:$2,0)-1,COUNTA(raw!$A:$A)-1,1),回答数!$B26, OFFSET(raw!$A$1,2,MATCH($D$1,raw!$2:$2,0)-1,COUNTA(raw!$A:$A)-1,1),N$2) -> 0 | O26: =COUNTIFS( OFFSET(raw!$A$1,2,MATCH(回答数!$A26,raw!$2:$2,0)-1,COUNTA(raw!$A:$A)-1,1),回答数!$B26, OFFSET(raw!$A$1,2,MATCH($D$1,raw!$2:$2,0)-1,COUNTA(raw!$A:$A)-1,1),O$2) -> 0 | P26: 6
A27: 回答エリア | B27: 越前大仏 エリア | D27: =COUNTIFS( OFFSET(raw!$A$1,2,MATCH(回答数!$A27,raw!$2:$2,0)-1,COUNTA(raw!$A:$A)-1,1),回答数!$B27, OFFSET(raw!$A$1,2,MATCH($D$1,raw!$2:$2,0)-1,COUNTA(raw!$A:$A)-1,1),D$2) -> 0 | E27: =COUNTIFS( OFFSET(raw!$A$1,2,MATCH(回答数!$A27,raw!$2:$2,0)-1,COUNTA(raw!$A:$A)-1,1),回答数!$B27, OFFSET(raw!$A$1,2,MATCH($D$1,raw!$2:$2,0)-1,COUNTA(raw!$A:$A)-1,1),E$2) -> 17 | F27: =COUNTIFS( OFFSET(raw!$A$1,2,MATCH(回答数!$A27,raw!$2:$2,0)-1,COUNTA(raw!$A:$A)-1,1),回答数!$B27, OFFSET(raw!$A$1,2,MATCH($D$1,raw!$2:$2,0)-1,COUNTA(raw!$A:$A)-1,1),F$2) -> 7 | G27: =COUNTIFS( OFFSET(raw!$A$1,2,MATCH(回答数!$A27,raw!$2:$2,0)-1,COUNTA(raw!$A:$A)-1,1),回答数!$B27, OFFSET(raw!$A$1,2,MATCH($D$1,raw!$2:$2,0)-1,COUNTA(raw!$A:$A)-1,1),G$2) -> 0 | H27: =COUNTIFS( OFFSET(raw!$A$1,2,MATCH(回答数!$A27,raw!$2:$2,0)-1,COUNTA(raw!$A:$A)-1,1),回答数!$B27, OFFSET(raw!$A$1,2,MATCH($D$1,raw!$2:$2,0)-1,COUNTA(raw!$A:$A)-1,1),H$2) -> 0 | I27: =COUNTIFS( OFFSET(raw!$A$1,2,MATCH(回答数!$A27,raw!$2:$2,0)-1,COUNTA(raw!$A:$A)-1,1),回答数!$B27, OFFSET(raw!$A$1,2,MATCH($D$1,raw!$2:$2,0)-1,COUNTA(raw!$A:$A)-1,1),I$2) -> 0 | J27: =COUNTIFS( OFFSET(raw!$A$1,2,MATCH(回答数!$A27,raw!$2:$2,0)-1,COUNTA(raw!$A:$A)-1,1),回答数!$B27, OFFSET(raw!$A$1,2,MATCH($D$1,raw!$2:$2,0)-1,COUNTA(raw!$A:$A)-1,1),J$2) -> 0 | K27: =COUNTIFS( OFFSET(raw!$A$1,2,MATCH(回答数!$A27,raw!$2:$2,0)-1,COUNTA(raw!$A:$A)-1,1),回答数!$B27, OFFSET(raw!$A$1,2,MATCH($D$1,raw!$2:$2,0)-1,COUNTA(raw!$A:$A)-1,1),K$2) -> 0 | L27: =COUNTIFS( OFFSET(raw!$A$1,2,MATCH(回答数!$A27,raw!$2:$2,0)-1,COUNTA(raw!$A:$A)-1,1),回答数!$B27, OFFSET(raw!$A$1,2,MATCH($D$1,raw!$2:$2,0)-1,COUNTA(raw!$A:$A)-1,1),L$2) -> 0 | M27: =COUNTIFS( OFFSET(raw!$A$1,2,MATCH(回答数!$A27,raw!$2:$2,0)-1,COUNTA(raw!$A:$A)-1,1),回答数!$B27, OFFSET(raw!$A$1,2,MATCH($D$1,raw!$2:$2,0)-1,COUNTA(raw!$A:$A)-1,1),M$2) -> 0 | N27: =COUNTIFS( OFFSET(raw!$A$1,2,MATCH(回答数!$A27,raw!$2:$2,0)-1,COUNTA(raw!$A:$A)-1,1),回答数!$B27, OFFSET(raw!$A$1,2,MATCH($D$1,raw!$2:$2,0)-1,COUNTA(raw!$A:$A)-1,1),N$2) -> 0 | O27: =COUNTIFS( OFFSET(raw!$A$1,2,MATCH(回答数!$A27,raw!$2:$2,0)-1,COUNTA(raw!$A:$A)-1,1),回答数!$B27, OFFSET(raw!$A$1,2,MATCH($D$1,raw!$2:$2,0)-1,COUNTA(raw!$A:$A)-1,1),O$2) -> 0 | P27: 24
A28: 回答エリア | B28: 平泉寺白山神社 エリア | D28: =COUNTIFS( OFFSET(raw!$A$1,2,MATCH(回答数!$A28,raw!$2:$2,0)-1,COUNTA(raw!$A:$A)-1,1),回答数!$B28, OFFSET(raw!$A$1,2,MATCH($D$1,raw!$2:$2,0)-1,COUNTA(raw!$A:$A)-1,1),D$2) -> 1 | E28: =COUNTIFS( OFFSET(raw!$A$1,2,MATCH(回答数!$A28,raw!$2:$2,0)-1,COUNTA(raw!$A:$A)-1,1),回答数!$B28, OFFSET(raw!$A$1,2,MATCH($D$1,raw!$2:$2,0)-1,COUNTA(raw!$A:$A)-1,1),E$2) -> 35 | F28: =COUNTIFS( OFFSET(raw!$A$1,2,MATCH(回答数!$A28,raw!$2:$2,0)-1,COUNTA(raw!$A:$A)-1,1),回答数!$B28, OFFSET(raw!$A$1,2,MATCH($D$1,raw!$2:$2,0)-1,COUNTA(raw!$A:$A)-1,1),F$2) -> 3 | G28: =COUNTIFS( OFFSET(raw!$A$1,2,MATCH(回答数!$A28,raw!$2:$2,0)-1,COUNTA(raw!$A:$A)-1,1),回答数!$B28, OFFSET(raw!$A$1,2,MATCH($D$1,raw!$2:$2,0)-1,COUNTA(raw!$A:$A)-1,1),G$2) -> 0 | H28: =COUNTIFS( OFFSET(raw!$A$1,2,MATCH(回答数!$A28,raw!$2:$2,0)-1,COUNTA(raw!$A:$A)-1,1),回答数!$B28, OFFSET(raw!$A$1,2,MATCH($D$1,raw!$2:$2,0)-1,COUNTA(raw!$A:$A)-1,1),H$2) -> 0 | I28: =COUNTIFS( OFFSET(raw!$A$1,2,MATCH(回答数!$A28,raw!$2:$2,0)-1,COUNTA(raw!$A:$A)-1,1),回答数!$B28, OFFSET(raw!$A$1,2,MATCH($D$1,raw!$2:$2,0)-1,COUNTA(raw!$A:$A)-1,1),I$2) -> 0 | J28: =COUNTIFS( OFFSET(raw!$A$1,2,MATCH(回答数!$A28,raw!$2:$2,0)-1,COUNTA(raw!$A:$A)-1,1),回答数!$B28, OFFSET(raw!$A$1,2,MATCH($D$1,raw!$2:$2,0)-1,COUNTA(raw!$A:$A)-1,1),J$2) -> 0 | K28: =COUNTIFS( OFFSET(raw!$A$1,2,MATCH(回答数!$A28,raw!$2:$2,0)-1,COUNTA(raw!$A:$A)-1,1),回答数!$B28, OFFSET(raw!$A$1,2,MATCH($D$1,raw!$2:$2,0)-1,COUNTA(raw!$A:$A)-1,1),K$2) -> 0 | L28: =COUNTIFS( OFFSET(raw!$A$1,2,MATCH(回答数!$A28,raw!$2:$2,0)-1,COUNTA(raw!$A:$A)-1,1),回答数!$B28, OFFSET(raw!$A$1,2,MATCH($D$1,raw!$2:$2,0)-1,COUNTA(raw!$A:$A)-1,1),L$2) -> 0 | M28: =COUNTIFS( OFFSET(raw!$A$1,2,MATCH(回答数!$A28,raw!$2:$2,0)-1,COUNTA(raw!$A:$A)-1,1),回答数!$B28, OFFSET(raw!$A$1,2,MATCH($D$1,raw!$2:$2,0)-1,COUNTA(raw!$A:$A)-1,1),M$2) -> 0 | N28: =COUNTIFS( OFFSET(raw!$A$1,2,MATCH(回答数!$A28,raw!$2:$2,0)-1,COUNTA(raw!$A:$A)-1,1),回答数!$B28, OFFSET(raw!$A$1,2,MATCH($D$1,raw!$2:$2,0)-1,COUNTA(raw!$A:$A)-1,1),N$2) -> 0 | O28: =COUNTIFS( OFFSET(raw!$A$1,2,MATCH(回答数!$A28,raw!$2:$2,0)-1,COUNTA(raw!$A:$A)-1,1),回答数!$B28, OFFSET(raw!$A$1,2,MATCH($D$1,raw!$2:$2,0)-1,COUNTA(raw!$A:$A)-1,1),O$2) -> 0 | P28: 39
A29: 回答エリア | B29: はたや記念館 ゆめおーれ勝山 エリア | D29: =COUNTIFS( OFFSET(raw!$A$1,2,MATCH(回答数!$A29,raw!$2:$2,0)-1,COUNTA(raw!$A:$A)-1,1),回答数!$B29, OFFSET(raw!$A$1,2,MATCH($D$1,raw!$2:$2,0)-1,COUNTA(raw!$A:$A)-1,1),D$2) -> 0 | E29: =COUNTIFS( OFFSET(raw!$A$1,2,MATCH(回答数!$A29,raw!$2:$2,0)-1,COUNTA(raw!$A:$A)-1,1),回答数!$B29, OFFSET(raw!$A$1,2,MATCH($D$1,raw!$2:$2,0)-1,COUNTA(raw!$A:$A)-1,1),E$2) -> 21 | F29: =COUNTIFS( OFFSET(raw!$A$1,2,MATCH(回答数!$A29,raw!$2:$2,0)-1,COUNTA(raw!$A:$A)-1,1),回答数!$B29, OFFSET(raw!$A$1,2,MATCH($D$1,raw!$2:$2,0)-1,COUNTA(raw!$A:$A)-1,1),F$2) -> 11 | G29: =COUNTIFS( OFFSET(raw!$A$1,2,MATCH(回答数!$A29,raw!$2:$2,0)-1,COUNTA(raw!$A:$A)-1,1),回答数!$B29, OFFSET(raw!$A$1,2,MATCH($D$1,raw!$2:$2,0)-1,COUNTA(raw!$A:$A)-1,1),G$2) -> 0 | H29: =COUNTIFS( OFFSET(raw!$A$1,2,MATCH(回答数!$A29,raw!$2:$2,0)-1,COUNTA(raw!$A:$A)-1,1),回答数!$B29, OFFSET(raw!$A$1,2,MATCH($D$1,raw!$2:$2,0)-1,COUNTA(raw!$A:$A)-1,1),H$2) -> 0 | I29: =COUNTIFS( OFFSET(raw!$A$1,2,MATCH(回答数!$A29,raw!$2:$2,0)-1,COUNTA(raw!$A:$A)-1,1),回答数!$B29, OFFSET(raw!$A$1,2,MATCH($D$1,raw!$2:$2,0)-1,COUNTA(raw!$A:$A)-1,1),I$2) -> 0 | J29: =COUNTIFS( OFFSET(raw!$A$1,2,MATCH(回答数!$A29,raw!$2:$2,0)-1,COUNTA(raw!$A:$A)-1,1),回答数!$B29, OFFSET(raw!$A$1,2,MATCH($D$1,raw!$2:$2,0)-1,COUNTA(raw!$A:$A)-1,1),J$2) -> 0 | K29: =COUNTIFS( OFFSET(raw!$A$1,2,MATCH(回答数!$A29,raw!$2:$2,0)-1,COUNTA(raw!$A:$A)-1,1),回答数!$B29, OFFSET(raw!$A$1,2,MATCH($D$1,raw!$2:$2,0)-1,COUNTA(raw!$A:$A)-1,1),K$2) -> 0 | L29: =COUNTIFS( OFFSET(raw!$A$1,2,MATCH(回答数!$A29,raw!$2:$2,0)-1,COUNTA(raw!$A:$A)-1,1),回答数!$B29, OFFSET(raw!$A$1,2,MATCH($D$1,raw!$2:$2,0)-1,COUNTA(raw!$A:$A)-1,1),L$2) -> 0 | M29: =COUNTIFS( OFFSET(raw!$A$1,2,MATCH(回答数!$A29,raw!$2:$2,0)-1,COUNTA(raw!$A:$A)-1,1),回答数!$B29, OFFSET(raw!$A$1,2,MATCH($D$1,raw!$2:$2,0)-1,COUNTA(raw!$A:$A)-1,1),M$2) -> 0 | N29: =COUNTIFS( OFFSET(raw!$A$1,2,MATCH(回答数!$A29,raw!$2:$2,0)-1,COUNTA(raw!$A:$A)-1,1),回答数!$B29, OFFSET(raw!$A$1,2,MATCH($D$1,raw!$2:$2,0)-1,COUNTA(raw!$A:$A)-1,1),N$2) -> 0 | O29: =COUNTIFS( OFFSET(raw!$A$1,2,MATCH(回答数!$A29,raw!$2:$2,0)-1,COUNTA(raw!$A:$A)-1,1),回答数!$B29, OFFSET(raw!$A$1,2,MATCH($D$1,raw!$2:$2,0)-1,COUNTA(raw!$A:$A)-1,1),O$2) -> 0 | P29: 32
A30: 回答エリア | B30: 永平寺門前 エリア | D30: =COUNTIFS( OFFSET(raw!$A$1,2,MATCH(回答数!$A30,raw!$2:$2,0)-1,COUNTA(raw!$A:$A)-1,1),回答数!$B30, OFFSET(raw!$A$1,2,MATCH($D$1,raw!$2:$2,0)-1,COUNTA(raw!$A:$A)-1,1),D$2) -> 4 | E30: =COUNTIFS( OFFSET(raw!$A$1,2,MATCH(回答数!$A30,raw!$2:$2,0)-1,COUNTA(raw!$A:$A)-1,1),回答数!$B30, OFFSET(raw!$A$1,2,MATCH($D$1,raw!$2:$2,0)-1,COUNTA(raw!$A:$A)-1,1),E$2) -> 62 | F30: =COUNTIFS( OFFSET(raw!$A$1,2,MATCH(回答数!$A30,raw!$2:$2,0)-1,COUNTA(raw!$A:$A)-1,1),回答数!$B30, OFFSET(raw!$A$1,2,MATCH($D$1,raw!$2:$2,0)-1,COUNTA(raw!$A:$A)-1,1),F$2) -> 21 | G30: =COUNTIFS( OFFSET(raw!$A$1,2,MATCH(回答数!$A30,raw!$2:$2,0)-1,COUNTA(raw!$A:$A)-1,1),回答数!$B30, OFFSET(raw!$A$1,2,MATCH($D$1,raw!$2:$2,0)-1,COUNTA(raw!$A:$A)-1,1),G$2) -> 0 | H30: =COUNTIFS( OFFSET(raw!$A$1,2,MATCH(回答数!$A30,raw!$2:$2,0)-1,COUNTA(raw!$A:$A)-1,1),回答数!$B30, OFFSET(raw!$A$1,2,MATCH($D$1,raw!$2:$2,0)-1,COUNTA(raw!$A:$A)-1,1),H$2) -> 0 | I30: =COUNTIFS( OFFSET(raw!$A$1,2,MATCH(回答数!$A30,raw!$2:$2,0)-1,COUNTA(raw!$A:$A)-1,1),回答数!$B30, OFFSET(raw!$A$1,2,MATCH($D$1,raw!$2:$2,0)-1,COUNTA(raw!$A:$A)-1,1),I$2) -> 0 | J30: =COUNTIFS( OFFSET(raw!$A$1,2,MATCH(回答数!$A30,raw!$2:$2,0)-1,COUNTA(raw!$A:$A)-1,1),回答数!$B30, OFFSET(raw!$A$1,2,MATCH($D$1,raw!$2:$2,0)-1,COUNTA(raw!$A:$A)-1,1),J$2) -> 0 | K30: =COUNTIFS( OFFSET(raw!$A$1,2,MATCH(回答数!$A30,raw!$2:$2,0)-1,COUNTA(raw!$A:$A)-1,1),回答数!$B30, OFFSET(raw!$A$1,2,MATCH($D$1,raw!$2:$2,0)-1,COUNTA(raw!$A:$A)-1,1),K$2) -> 0 | L30: =COUNTIFS( OFFSET(raw!$A$1,2,MATCH(回答数!$A30,raw!$2:$2,0)-1,COUNTA(raw!$A:$A)-1,1),回答数!$B30, OFFSET(raw!$A$1,2,MATCH($D$1,raw!$2:$2,0)-1,COUNTA(raw!$A:$A)-1,1),L$2) -> 0 | M30: =COUNTIFS( OFFSET(raw!$A$1,2,MATCH(回答数!$A30,raw!$2:$2,0)-1,COUNTA(raw!$A:$A)-1,1),回答数!$B30, OFFSET(raw!$A$1,2,MATCH($D$1,raw!$2:$2,0)-1,COUNTA(raw!$A:$A)-1,1),M$2) -> 0 | N30: =COUNTIFS( OFFSET(raw!$A$1,2,MATCH(回答数!$A30,raw!$2:$2,0)-1,COUNTA(raw!$A:$A)-1,1),回答数!$B30, OFFSET(raw!$A$1,2,MATCH($D$1,raw!$2:$2,0)-1,COUNTA(raw!$A:$A)-1,1),N$2) -> 0 | O30: =COUNTIFS( OFFSET(raw!$A$1,2,MATCH(回答数!$A30,raw!$2:$2,0)-1,COUNTA(raw!$A:$A)-1,1),回答数!$B30, OFFSET(raw!$A$1,2,MATCH($D$1,raw!$2:$2,0)-1,COUNTA(raw!$A:$A)-1,1),O$2) -> 0 | P30: 87
A31: 回答エリア | B31: 道の駅「禅の里」 エリア | D31: =COUNTIFS( OFFSET(raw!$A$1,2,MATCH(回答数!$A31,raw!$2:$2,0)-1,COUNTA(raw!$A:$A)-1,1),回答数!$B31, OFFSET(raw!$A$1,2,MATCH($D$1,raw!$2:$2,0)-1,COUNTA(raw!$A:$A)-1,1),D$2) -> 2 | E31: =COUNTIFS( OFFSET(raw!$A$1,2,MATCH(回答数!$A31,raw!$2:$2,0)-1,COUNTA(raw!$A:$A)-1,1),回答数!$B31, OFFSET(raw!$A$1,2,MATCH($D$1,raw!$2:$2,0)-1,COUNTA(raw!$A:$A)-1,1),E$2) -> 11 | F31: =COUNTIFS( OFFSET(raw!$A$1,2,MATCH(回答数!$A31,raw!$2:$2,0)-1,COUNTA(raw!$A:$A)-1,1),回答数!$B31, OFFSET(raw!$A$1,2,MATCH($D$1,raw!$2:$2,0)-1,COUNTA(raw!$A:$A)-1,1),F$2) -> 14 | G31: =COUNTIFS( OFFSET(raw!$A$1,2,MATCH(回答数!$A31,raw!$2:$2,0)-1,COUNTA(raw!$A:$A)-1,1),回答数!$B31, OFFSET(raw!$A$1,2,MATCH($D$1,raw!$2:$2,0)-1,COUNTA(raw!$A:$A)-1,1),G$2) -> 0 | H31: =COUNTIFS( OFFSET(raw!$A$1,2,MATCH(回答数!$A31,raw!$2:$2,0)-1,COUNTA(raw!$A:$A)-1,1),回答数!$B31, OFFSET(raw!$A$1,2,MATCH($D$1,raw!$2:$2,0)-1,COUNTA(raw!$A:$A)-1,1),H$2) -> 0 | I31: =COUNTIFS( OFFSET(raw!$A$1,2,MATCH(回答数!$A31,raw!$2:$2,0)-1,COUNTA(raw!$A:$A)-1,1),回答数!$B31, OFFSET(raw!$A$1,2,MATCH($D$1,raw!$2:$2,0)-1,COUNTA(raw!$A:$A)-1,1),I$2) -> 0 | J31: =COUNTIFS( OFFSET(raw!$A$1,2,MATCH(回答数!$A31,raw!$2:$2,0)-1,COUNTA(raw!$A:$A)-1,1),回答数!$B31, OFFSET(raw!$A$1,2,MATCH($D$1,raw!$2:$2,0)-1,COUNTA(raw!$A:$A)-1,1),J$2) -> 0 | K31: =COUNTIFS( OFFSET(raw!$A$1,2,MATCH(回答数!$A31,raw!$2:$2,0)-1,COUNTA(raw!$A:$A)-1,1),回答数!$B31, OFFSET(raw!$A$1,2,MATCH($D$1,raw!$2:$2,0)-1,COUNTA(raw!$A:$A)-1,1),K$2) -> 0 | L31: =COUNTIFS( OFFSET(raw!$A$1,2,MATCH(回答数!$A31,raw!$2:$2,0)-1,COUNTA(raw!$A:$A)-1,1),回答数!$B31, OFFSET(raw!$A$1,2,MATCH($D$1,raw!$2:$2,0)-1,COUNTA(raw!$A:$A)-1,1),L$2) -> 0 | M31: =COUNTIFS( OFFSET(raw!$A$1,2,MATCH(回答数!$A31,raw!$2:$2,0)-1,COUNTA(raw!$A:$A)-1,1),回答数!$B31, OFFSET(raw!$A$1,2,MATCH($D$1,raw!$2:$2,0)-1,COUNTA(raw!$A:$A)-1,1),M$2) -> 0 | N31: =COUNTIFS( OFFSET(raw!$A$1,2,MATCH(回答数!$A31,raw!$2:$2,0)-1,COUNTA(raw!$A:$A)-1,1),回答数!$B31, OFFSET(raw!$A$1,2,MATCH($D$1,raw!$2:$2,0)-1,COUNTA(raw!$A:$A)-1,1),N$2) -> 0 | O31: =COUNTIFS( OFFSET(raw!$A$1,2,MATCH(回答数!$A31,raw!$2:$2,0)-1,COUNTA(raw!$A:$A)-1,1),回答数!$B31, OFFSET(raw!$A$1,2,MATCH($D$1,raw!$2:$2,0)-1,COUNTA(raw!$A:$A)-1,1),O$2) -> 0 | P31: 27
A32: 回答エリア | B32: 永平寺町 エリア | D32: =COUNTIFS( OFFSET(raw!$A$1,2,MATCH(回答数!$A32,raw!$2:$2,0)-1,COUNTA(raw!$A:$A)-1,1),回答数!$B32, OFFSET(raw!$A$1,2,MATCH($D$1,raw!$2:$2,0)-1,COUNTA(raw!$A:$A)-1,1),D$2) -> 2 | E32: =COUNTIFS( OFFSET(raw!$A$1,2,MATCH(回答数!$A32,raw!$2:$2,0)-1,COUNTA(raw!$A:$A)-1,1),回答数!$B32, OFFSET(raw!$A$1,2,MATCH($D$1,raw!$2:$2,0)-1,COUNTA(raw!$A:$A)-1,1),E$2) -> 31 | F32: =COUNTIFS( OFFSET(raw!$A$1,2,MATCH(回答数!$A32,raw!$2:$2,0)-1,COUNTA(raw!$A:$A)-1,1),回答数!$B32, OFFSET(raw!$A$1,2,MATCH($D$1,raw!$2:$2,0)-1,COUNTA(raw!$A:$A)-1,1),F$2) -> 22 | G32: =COUNTIFS( OFFSET(raw!$A$1,2,MATCH(回答数!$A32,raw!$2:$2,0)-1,COUNTA(raw!$A:$A)-1,1),回答数!$B32, OFFSET(raw!$A$1,2,MATCH($D$1,raw!$2:$2,0)-1,COUNTA(raw!$A:$A)-1,1),G$2) -> 0 | H32: =COUNTIFS( OFFSET(raw!$A$1,2,MATCH(回答数!$A32,raw!$2:$2,0)-1,COUNTA(raw!$A:$A)-1,1),回答数!$B32, OFFSET(raw!$A$1,2,MATCH($D$1,raw!$2:$2,0)-1,COUNTA(raw!$A:$A)-1,1),H$2) -> 0 | I32: =COUNTIFS( OFFSET(raw!$A$1,2,MATCH(回答数!$A32,raw!$2:$2,0)-1,COUNTA(raw!$A:$A)-1,1),回答数!$B32, OFFSET(raw!$A$1,2,MATCH($D$1,raw!$2:$2,0)-1,COUNTA(raw!$A:$A)-1,1),I$2) -> 0 | J32: =COUNTIFS( OFFSET(raw!$A$1,2,MATCH(回答数!$A32,raw!$2:$2,0)-1,COUNTA(raw!$A:$A)-1,1),回答数!$B32, OFFSET(raw!$A$1,2,MATCH($D$1,raw!$2:$2,0)-1,COUNTA(raw!$A:$A)-1,1),J$2) -> 0 | K32: =COUNTIFS( OFFSET(raw!$A$1,2,MATCH(回答数!$A32,raw!$2:$2,0)-1,COUNTA(raw!$A:$A)-1,1),回答数!$B32, OFFSET(raw!$A$1,2,MATCH($D$1,raw!$2:$2,0)-1,COUNTA(raw!$A:$A)-1,1),K$2) -> 0 | L32: =COUNTIFS( OFFSET(raw!$A$1,2,MATCH(回答数!$A32,raw!$2:$2,0)-1,COUNTA(raw!$A:$A)-1,1),回答数!$B32, OFFSET(raw!$A$1,2,MATCH($D$1,raw!$2:$2,0)-1,COUNTA(raw!$A:$A)-1,1),L$2) -> 0 | M32: =COUNTIFS( OFFSET(raw!$A$1,2,MATCH(回答数!$A32,raw!$2:$2,0)-1,COUNTA(raw!$A:$A)-1,1),回答数!$B32, OFFSET(raw!$A$1,2,MATCH($D$1,raw!$2:$2,0)-1,COUNTA(raw!$A:$A)-1,1),M$2) -> 0 | N32: =COUNTIFS( OFFSET(raw!$A$1,2,MATCH(回答数!$A32,raw!$2:$2,0)-1,COUNTA(raw!$A:$A)-1,1),回答数!$B32, OFFSET(raw!$A$1,2,MATCH($D$1,raw!$2:$2,0)-1,COUNTA(raw!$A:$A)-1,1),N$2) -> 0 | O32: =COUNTIFS( OFFSET(raw!$A$1,2,MATCH(回答数!$A32,raw!$2:$2,0)-1,COUNTA(raw!$A:$A)-1,1),回答数!$B32, OFFSET(raw!$A$1,2,MATCH($D$1,raw!$2:$2,0)-1,COUNTA(raw!$A:$A)-1,1),O$2) -> 0 | P32: 55
A33: 回答エリア | B33: 越前和紙の里 エリア | D33: =COUNTIFS( OFFSET(raw!$A$1,2,MATCH(回答数!$A33,raw!$2:$2,0)-1,COUNTA(raw!$A:$A)-1,1),回答数!$B33, OFFSET(raw!$A$1,2,MATCH($D$1,raw!$2:$2,0)-1,COUNTA(raw!$A:$A)-1,1),D$2) -> 4 | E33: =COUNTIFS( OFFSET(raw!$A$1,2,MATCH(回答数!$A33,raw!$2:$2,0)-1,COUNTA(raw!$A:$A)-1,1),回答数!$B33, OFFSET(raw!$A$1,2,MATCH($D$1,raw!$2:$2,0)-1,COUNTA(raw!$A:$A)-1,1),E$2) -> 46 | F33: =COUNTIFS( OFFSET(raw!$A$1,2,MATCH(回答数!$A33,raw!$2:$2,0)-1,COUNTA(raw!$A:$A)-1,1),回答数!$B33, OFFSET(raw!$A$1,2,MATCH($D$1,raw!$2:$2,0)-1,COUNTA(raw!$A:$A)-1,1),F$2) -> 29 | G33: =COUNTIFS( OFFSET(raw!$A$1,2,MATCH(回答数!$A33,raw!$2:$2,0)-1,COUNTA(raw!$A:$A)-1,1),回答数!$B33, OFFSET(raw!$A$1,2,MATCH($D$1,raw!$2:$2,0)-1,COUNTA(raw!$A:$A)-1,1),G$2) -> 0 | H33: =COUNTIFS( OFFSET(raw!$A$1,2,MATCH(回答数!$A33,raw!$2:$2,0)-1,COUNTA(raw!$A:$A)-1,1),回答数!$B33, OFFSET(raw!$A$1,2,MATCH($D$1,raw!$2:$2,0)-1,COUNTA(raw!$A:$A)-1,1),H$2) -> 0 | I33: =COUNTIFS( OFFSET(raw!$A$1,2,MATCH(回答数!$A33,raw!$2:$2,0)-1,COUNTA(raw!$A:$A)-1,1),回答数!$B33, OFFSET(raw!$A$1,2,MATCH($D$1,raw!$2:$2,0)-1,COUNTA(raw!$A:$A)-1,1),I$2) -> 0 | J33: =COUNTIFS( OFFSET(raw!$A$1,2,MATCH(回答数!$A33,raw!$2:$2,0)-1,COUNTA(raw!$A:$A)-1,1),回答数!$B33, OFFSET(raw!$A$1,2,MATCH($D$1,raw!$2:$2,0)-1,COUNTA(raw!$A:$A)-1,1),J$2) -> 0 | K33: =COUNTIFS( OFFSET(raw!$A$1,2,MATCH(回答数!$A33,raw!$2:$2,0)-1,COUNTA(raw!$A:$A)-1,1),回答数!$B33, OFFSET(raw!$A$1,2,MATCH($D$1,raw!$2:$2,0)-1,COUNTA(raw!$A:$A)-1,1),K$2) -> 0 | L33: =COUNTIFS( OFFSET(raw!$A$1,2,MATCH(回答数!$A33,raw!$2:$2,0)-1,COUNTA(raw!$A:$A)-1,1),回答数!$B33, OFFSET(raw!$A$1,2,MATCH($D$1,raw!$2:$2,0)-1,COUNTA(raw!$A:$A)-1,1),L$2) -> 0 | M33: =COUNTIFS( OFFSET(raw!$A$1,2,MATCH(回答数!$A33,raw!$2:$2,0)-1,COUNTA(raw!$A:$A)-1,1),回答数!$B33, OFFSET(raw!$A$1,2,MATCH($D$1,raw!$2:$2,0)-1,COUNTA(raw!$A:$A)-1,1),M$2) -> 0 | N33: =COUNTIFS( OFFSET(raw!$A$1,2,MATCH(回答数!$A33,raw!$2:$2,0)-1,COUNTA(raw!$A:$A)-1,1),回答数!$B33, OFFSET(raw!$A$1,2,MATCH($D$1,raw!$2:$2,0)-1,COUNTA(raw!$A:$A)-1,1),N$2) -> 0 | O33: =COUNTIFS( OFFSET(raw!$A$1,2,MATCH(回答数!$A33,raw!$2:$2,0)-1,COUNTA(raw!$A:$A)-1,1),回答数!$B33, OFFSET(raw!$A$1,2,MATCH($D$1,raw!$2:$2,0)-1,COUNTA(raw!$A:$A)-1,1),O$2) -> 0 | P33: 79
A34: 回答エリア | B34: 越前そばの里 エリア | D34: =COUNTIFS( OFFSET(raw!$A$1,2,MATCH(回答数!$A34,raw!$2:$2,0)-1,COUNTA(raw!$A:$A)-1,1),回答数!$B34, OFFSET(raw!$A$1,2,MATCH($D$1,raw!$2:$2,0)-1,COUNTA(raw!$A:$A)-1,1),D$2) -> 4 | E34: =COUNTIFS( OFFSET(raw!$A$1,2,MATCH(回答数!$A34,raw!$2:$2,0)-1,COUNTA(raw!$A:$A)-1,1),回答数!$B34, OFFSET(raw!$A$1,2,MATCH($D$1,raw!$2:$2,0)-1,COUNTA(raw!$A:$A)-1,1),E$2) -> 39 | F34: =COUNTIFS( OFFSET(raw!$A$1,2,MATCH(回答数!$A34,raw!$2:$2,0)-1,COUNTA(raw!$A:$A)-1,1),回答数!$B34, OFFSET(raw!$A$1,2,MATCH($D$1,raw!$2:$2,0)-1,COUNTA(raw!$A:$A)-1,1),F$2) -> 136 | G34: =COUNTIFS( OFFSET(raw!$A$1,2,MATCH(回答数!$A34,raw!$2:$2,0)-1,COUNTA(raw!$A:$A)-1,1),回答数!$B34, OFFSET(raw!$A$1,2,MATCH($D$1,raw!$2:$2,0)-1,COUNTA(raw!$A:$A)-1,1),G$2) -> 0 | H34: =COUNTIFS( OFFSET(raw!$A$1,2,MATCH(回答数!$A34,raw!$2:$2,0)-1,COUNTA(raw!$A:$A)-1,1),回答数!$B34, OFFSET(raw!$A$1,2,MATCH($D$1,raw!$2:$2,0)-1,COUNTA(raw!$A:$A)-1,1),H$2) -> 0 | I34: =COUNTIFS( OFFSET(raw!$A$1,2,MATCH(回答数!$A34,raw!$2:$2,0)-1,COUNTA(raw!$A:$A)-1,1),回答数!$B34, OFFSET(raw!$A$1,2,MATCH($D$1,raw!$2:$2,0)-1,COUNTA(raw!$A:$A)-1,1),I$2) -> 0 | J34: =COUNTIFS( OFFSET(raw!$A$1,2,MATCH(回答数!$A34,raw!$2:$2,0)-1,COUNTA(raw!$A:$A)-1,1),回答数!$B34, OFFSET(raw!$A$1,2,MATCH($D$1,raw!$2:$2,0)-1,COUNTA(raw!$A:$A)-1,1),J$2) -> 0 | K34: =COUNTIFS( OFFSET(raw!$A$1,2,MATCH(回答数!$A34,raw!$2:$2,0)-1,COUNTA(raw!$A:$A)-1,1),回答数!$B34, OFFSET(raw!$A$1,2,MATCH($D$1,raw!$2:$2,0)-1,COUNTA(raw!$A:$A)-1,1),K$2) -> 0 | L34: =COUNTIFS( OFFSET(raw!$A$1,2,MATCH(回答数!$A34,raw!$2:$2,0)-1,COUNTA(raw!$A:$A)-1,1),回答数!$B34, OFFSET(raw!$A$1,2,MATCH($D$1,raw!$2:$2,0)-1,COUNTA(raw!$A:$A)-1,1),L$2) -> 0 | M34: =COUNTIFS( OFFSET(raw!$A$1,2,MATCH(回答数!$A34,raw!$2:$2,0)-1,COUNTA(raw!$A:$A)-1,1),回答数!$B34, OFFSET(raw!$A$1,2,MATCH($D$1,raw!$2:$2,0)-1,COUNTA(raw!$A:$A)-1,1),M$2) -> 0 | N34: =COUNTIFS( OFFSET(raw!$A$1,2,MATCH(回答数!$A34,raw!$2:$2,0)-1,COUNTA(raw!$A:$A)-1,1),回答数!$B34, OFFSET(raw!$A$1,2,MATCH($D$1,raw!$2:$2,0)-1,COUNTA(raw!$A:$A)-1,1),N$2) -> 0 | O34: =COUNTIFS( OFFSET(raw!$A$1,2,MATCH(回答数!$A34,raw!$2:$2,0)-1,COUNTA(raw!$A:$A)-1,1),回答数!$B34, OFFSET(raw!$A$1,2,MATCH($D$1,raw!$2:$2,0)-1,COUNTA(raw!$A:$A)-1,1),O$2) -> 0 | P34: 179
A35: 回答エリア | B35: タケフナイフビレッジ エリア | D35: =COUNTIFS( OFFSET(raw!$A$1,2,MATCH(回答数!$A35,raw!$2:$2,0)-1,COUNTA(raw!$A:$A)-1,1),回答数!$B35, OFFSET(raw!$A$1,2,MATCH($D$1,raw!$2:$2,0)-1,COUNTA(raw!$A:$A)-1,1),D$2) -> 0 | E35: =COUNTIFS( OFFSET(raw!$A$1,2,MATCH(回答数!$A35,raw!$2:$2,0)-1,COUNTA(raw!$A:$A)-1,1),回答数!$B35, OFFSET(raw!$A$1,2,MATCH($D$1,raw!$2:$2,0)-1,COUNTA(raw!$A:$A)-1,1),E$2) -> 9 | F35: =COUNTIFS( OFFSET(raw!$A$1,2,MATCH(回答数!$A35,raw!$2:$2,0)-1,COUNTA(raw!$A:$A)-1,1),回答数!$B35, OFFSET(raw!$A$1,2,MATCH($D$1,raw!$2:$2,0)-1,COUNTA(raw!$A:$A)-1,1),F$2) -> 2 | G35: =COUNTIFS( OFFSET(raw!$A$1,2,MATCH(回答数!$A35,raw!$2:$2,0)-1,COUNTA(raw!$A:$A)-1,1),回答数!$B35, OFFSET(raw!$A$1,2,MATCH($D$1,raw!$2:$2,0)-1,COUNTA(raw!$A:$A)-1,1),G$2) -> 0 | H35: =COUNTIFS( OFFSET(raw!$A$1,2,MATCH(回答数!$A35,raw!$2:$2,0)-1,COUNTA(raw!$A:$A)-1,1),回答数!$B35, OFFSET(raw!$A$1,2,MATCH($D$1,raw!$2:$2,0)-1,COUNTA(raw!$A:$A)-1,1),H$2) -> 0 | I35: =COUNTIFS( OFFSET(raw!$A$1,2,MATCH(回答数!$A35,raw!$2:$2,0)-1,COUNTA(raw!$A:$A)-1,1),回答数!$B35, OFFSET(raw!$A$1,2,MATCH($D$1,raw!$2:$2,0)-1,COUNTA(raw!$A:$A)-1,1),I$2) -> 0 | J35: =COUNTIFS( OFFSET(raw!$A$1,2,MATCH(回答数!$A35,raw!$2:$2,0)-1,COUNTA(raw!$A:$A)-1,1),回答数!$B35, OFFSET(raw!$A$1,2,MATCH($D$1,raw!$2:$2,0)-1,COUNTA(raw!$A:$A)-1,1),J$2) -> 0 | K35: =COUNTIFS( OFFSET(raw!$A$1,2,MATCH(回答数!$A35,raw!$2:$2,0)-1,COUNTA(raw!$A:$A)-1,1),回答数!$B35, OFFSET(raw!$A$1,2,MATCH($D$1,raw!$2:$2,0)-1,COUNTA(raw!$A:$A)-1,1),K$2) -> 0 | L35: =COUNTIFS( OFFSET(raw!$A$1,2,MATCH(回答数!$A35,raw!$2:$2,0)-1,COUNTA(raw!$A:$A)-1,1),回答数!$B35, OFFSET(raw!$A$1,2,MATCH($D$1,raw!$2:$2,0)-1,COUNTA(raw!$A:$A)-1,1),L$2) -> 0 | M35: =COUNTIFS( OFFSET(raw!$A$1,2,MATCH(回答数!$A35,raw!$2:$2,0)-1,COUNTA(raw!$A:$A)-1,1),回答数!$B35, OFFSET(raw!$A$1,2,MATCH($D$1,raw!$2:$2,0)-1,COUNTA(raw!$A:$A)-1,1),M$2) -> 0 | N35: =COUNTIFS( OFFSET(raw!$A$1,2,MATCH(回答数!$A35,raw!$2:$2,0)-1,COUNTA(raw!$A:$A)-1,1),回答数!$B35, OFFSET(raw!$A$1,2,MATCH($D$1,raw!$2:$2,0)-1,COUNTA(raw!$A:$A)-1,1),N$2) -> 0 | O35: =COUNTIFS( OFFSET(raw!$A$1,2,MATCH(回答数!$A35,raw!$2:$2,0)-1,COUNTA(raw!$A:$A)-1,1),回答数!$B35, OFFSET(raw!$A$1,2,MATCH($D$1,raw!$2:$2,0)-1,COUNTA(raw!$A:$A)-1,1),O$2) -> 0 | P35: 11
A36: 回答エリア | B36: ちひろの生まれた家記念館 エリア | D36: =COUNTIFS( OFFSET(raw!$A$1,2,MATCH(回答数!$A36,raw!$2:$2,0)-1,COUNTA(raw!$A:$A)-1,1),回答数!$B36, OFFSET(raw!$A$1,2,MATCH($D$1,raw!$2:$2,0)-1,COUNTA(raw!$A:$A)-1,1),D$2) -> 0 | E36: =COUNTIFS( OFFSET(raw!$A$1,2,MATCH(回答数!$A36,raw!$2:$2,0)-1,COUNTA(raw!$A:$A)-1,1),回答数!$B36, OFFSET(raw!$A$1,2,MATCH($D$1,raw!$2:$2,0)-1,COUNTA(raw!$A:$A)-1,1),E$2) -> 10 | F36: =COUNTIFS( OFFSET(raw!$A$1,2,MATCH(回答数!$A36,raw!$2:$2,0)-1,COUNTA(raw!$A:$A)-1,1),回答数!$B36, OFFSET(raw!$A$1,2,MATCH($D$1,raw!$2:$2,0)-1,COUNTA(raw!$A:$A)-1,1),F$2) -> 19 | G36: =COUNTIFS( OFFSET(raw!$A$1,2,MATCH(回答数!$A36,raw!$2:$2,0)-1,COUNTA(raw!$A:$A)-1,1),回答数!$B36, OFFSET(raw!$A$1,2,MATCH($D$1,raw!$2:$2,0)-1,COUNTA(raw!$A:$A)-1,1),G$2) -> 0 | H36: =COUNTIFS( OFFSET(raw!$A$1,2,MATCH(回答数!$A36,raw!$2:$2,0)-1,COUNTA(raw!$A:$A)-1,1),回答数!$B36, OFFSET(raw!$A$1,2,MATCH($D$1,raw!$2:$2,0)-1,COUNTA(raw!$A:$A)-1,1),H$2) -> 0 | I36: =COUNTIFS( OFFSET(raw!$A$1,2,MATCH(回答数!$A36,raw!$2:$2,0)-1,COUNTA(raw!$A:$A)-1,1),回答数!$B36, OFFSET(raw!$A$1,2,MATCH($D$1,raw!$2:$2,0)-1,COUNTA(raw!$A:$A)-1,1),I$2) -> 0 | J36: =COUNTIFS( OFFSET(raw!$A$1,2,MATCH(回答数!$A36,raw!$2:$2,0)-1,COUNTA(raw!$A:$A)-1,1),回答数!$B36, OFFSET(raw!$A$1,2,MATCH($D$1,raw!$2:$2,0)-1,COUNTA(raw!$A:$A)-1,1),J$2) -> 0 | K36: =COUNTIFS( OFFSET(raw!$A$1,2,MATCH(回答数!$A36,raw!$2:$2,0)-1,COUNTA(raw!$A:$A)-1,1),回答数!$B36, OFFSET(raw!$A$1,2,MATCH($D$1,raw!$2:$2,0)-1,COUNTA(raw!$A:$A)-1,1),K$2) -> 0 | L36: =COUNTIFS( OFFSET(raw!$A$1,2,MATCH(回答数!$A36,raw!$2:$2,0)-1,COUNTA(raw!$A:$A)-1,1),回答数!$B36, OFFSET(raw!$A$1,2,MATCH($D$1,raw!$2:$2,0)-1,COUNTA(raw!$A:$A)-1,1),L$2) -> 0 | M36: =COUNTIFS( OFFSET(raw!$A$1,2,MATCH(回答数!$A36,raw!$2:$2,0)-1,COUNTA(raw!$A:$A)-1,1),回答数!$B36, OFFSET(raw!$A$1,2,MATCH($D$1,raw!$2:$2,0)-1,COUNTA(raw!$A:$A)-1,1),M$2) -> 0 | N36: =COUNTIFS( OFFSET(raw!$A$1,2,MATCH(回答数!$A36,raw!$2:$2,0)-1,COUNTA(raw!$A:$A)-1,1),回答数!$B36, OFFSET(raw!$A$1,2,MATCH($D$1,raw!$2:$2,0)-1,COUNTA(raw!$A:$A)-1,1),N$2) -> 0 | O36: =COUNTIFS( OFFSET(raw!$A$1,2,MATCH(回答数!$A36,raw!$2:$2,0)-1,COUNTA(raw!$A:$A)-1,1),回答数!$B36, OFFSET(raw!$A$1,2,MATCH($D$1,raw!$2:$2,0)-1,COUNTA(raw!$A:$A)-1,1),O$2) -> 0 | P36: 29
A37: 回答エリア | B37: 道の駅「西山公園」 エリア | D37: =COUNTIFS( OFFSET(raw!$A$1,2,MATCH(回答数!$A37,raw!$2:$2,0)-1,COUNTA(raw!$A:$A)-1,1),回答数!$B37, OFFSET(raw!$A$1,2,MATCH($D$1,raw!$2:$2,0)-1,COUNTA(raw!$A:$A)-1,1),D$2) -> 5 | E37: =COUNTIFS( OFFSET(raw!$A$1,2,MATCH(回答数!$A37,raw!$2:$2,0)-1,COUNTA(raw!$A:$A)-1,1),回答数!$B37, OFFSET(raw!$A$1,2,MATCH($D$1,raw!$2:$2,0)-1,COUNTA(raw!$A:$A)-1,1),E$2) -> 23 | F37: =COUNTIFS( OFFSET(raw!$A$1,2,MATCH(回答数!$A37,raw!$2:$2,0)-1,COUNTA(raw!$A:$A)-1,1),回答数!$B37, OFFSET(raw!$A$1,2,MATCH($D$1,raw!$2:$2,0)-1,COUNTA(raw!$A:$A)-1,1),F$2) -> 29 | G37: =COUNTIFS( OFFSET(raw!$A$1,2,MATCH(回答数!$A37,raw!$2:$2,0)-1,COUNTA(raw!$A:$A)-1,1),回答数!$B37, OFFSET(raw!$A$1,2,MATCH($D$1,raw!$2:$2,0)-1,COUNTA(raw!$A:$A)-1,1),G$2) -> 0 | H37: =COUNTIFS( OFFSET(raw!$A$1,2,MATCH(回答数!$A37,raw!$2:$2,0)-1,COUNTA(raw!$A:$A)-1,1),回答数!$B37, OFFSET(raw!$A$1,2,MATCH($D$1,raw!$2:$2,0)-1,COUNTA(raw!$A:$A)-1,1),H$2) -> 0 | I37: =COUNTIFS( OFFSET(raw!$A$1,2,MATCH(回答数!$A37,raw!$2:$2,0)-1,COUNTA(raw!$A:$A)-1,1),回答数!$B37, OFFSET(raw!$A$1,2,MATCH($D$1,raw!$2:$2,0)-1,COUNTA(raw!$A:$A)-1,1),I$2) -> 0 | J37: =COUNTIFS( OFFSET(raw!$A$1,2,MATCH(回答数!$A37,raw!$2:$2,0)-1,COUNTA(raw!$A:$A)-1,1),回答数!$B37, OFFSET(raw!$A$1,2,MATCH($D$1,raw!$2:$2,0)-1,COUNTA(raw!$A:$A)-1,1),J$2) -> 0 | K37: =COUNTIFS( OFFSET(raw!$A$1,2,MATCH(回答数!$A37,raw!$2:$2,0)-1,COUNTA(raw!$A:$A)-1,1),回答数!$B37, OFFSET(raw!$A$1,2,MATCH($D$1,raw!$2:$2,0)-1,COUNTA(raw!$A:$A)-1,1),K$2) -> 0 | L37: =COUNTIFS( OFFSET(raw!$A$1,2,MATCH(回答数!$A37,raw!$2:$2,0)-1,COUNTA(raw!$A:$A)-1,1),回答数!$B37, OFFSET(raw!$A$1,2,MATCH($D$1,raw!$2:$2,0)-1,COUNTA(raw!$A:$A)-1,1),L$2) -> 0 | M37: =COUNTIFS( OFFSET(raw!$A$1,2,MATCH(回答数!$A37,raw!$2:$2,0)-1,COUNTA(raw!$A:$A)-1,1),回答数!$B37, OFFSET(raw!$A$1,2,MATCH($D$1,raw!$2:$2,0)-1,COUNTA(raw!$A:$A)-1,1),M$2) -> 0 | N37: =COUNTIFS( OFFSET(raw!$A$1,2,MATCH(回答数!$A37,raw!$2:$2,0)-1,COUNTA(raw!$A:$A)-1,1),回答数!$B37, OFFSET(raw!$A$1,2,MATCH($D$1,raw!$2:$2,0)-1,COUNTA(raw!$A:$A)-1,1),N$2) -> 0 | O37: =COUNTIFS( OFFSET(raw!$A$1,2,MATCH(回答数!$A37,raw!$2:$2,0)-1,COUNTA(raw!$A:$A)-1,1),回答数!$B37, OFFSET(raw!$A$1,2,MATCH($D$1,raw!$2:$2,0)-1,COUNTA(raw!$A:$A)-1,1),O$2) -> 0 | P37: 57
A38: 回答エリア | B38: めがねミュージアム エリア | D38: =COUNTIFS( OFFSET(raw!$A$1,2,MATCH(回答数!$A38,raw!$2:$2,0)-1,COUNTA(raw!$A:$A)-1,1),回答数!$B38, OFFSET(raw!$A$1,2,MATCH($D$1,raw!$2:$2,0)-1,COUNTA(raw!$A:$A)-1,1),D$2) -> 1 | E38: =COUNTIFS( OFFSET(raw!$A$1,2,MATCH(回答数!$A38,raw!$2:$2,0)-1,COUNTA(raw!$A:$A)-1,1),回答数!$B38, OFFSET(raw!$A$1,2,MATCH($D$1,raw!$2:$2,0)-1,COUNTA(raw!$A:$A)-1,1),E$2) -> 11 | F38: =COUNTIFS( OFFSET(raw!$A$1,2,MATCH(回答数!$A38,raw!$2:$2,0)-1,COUNTA(raw!$A:$A)-1,1),回答数!$B38, OFFSET(raw!$A$1,2,MATCH($D$1,raw!$2:$2,0)-1,COUNTA(raw!$A:$A)-1,1),F$2) -> 9 | G38: =COUNTIFS( OFFSET(raw!$A$1,2,MATCH(回答数!$A38,raw!$2:$2,0)-1,COUNTA(raw!$A:$A)-1,1),回答数!$B38, OFFSET(raw!$A$1,2,MATCH($D$1,raw!$2:$2,0)-1,COUNTA(raw!$A:$A)-1,1),G$2) -> 0 | H38: =COUNTIFS( OFFSET(raw!$A$1,2,MATCH(回答数!$A38,raw!$2:$2,0)-1,COUNTA(raw!$A:$A)-1,1),回答数!$B38, OFFSET(raw!$A$1,2,MATCH($D$1,raw!$2:$2,0)-1,COUNTA(raw!$A:$A)-1,1),H$2) -> 0 | I38: =COUNTIFS( OFFSET(raw!$A$1,2,MATCH(回答数!$A38,raw!$2:$2,0)-1,COUNTA(raw!$A:$A)-1,1),回答数!$B38, OFFSET(raw!$A$1,2,MATCH($D$1,raw!$2:$2,0)-1,COUNTA(raw!$A:$A)-1,1),I$2) -> 0 | J38: =COUNTIFS( OFFSET(raw!$A$1,2,MATCH(回答数!$A38,raw!$2:$2,0)-1,COUNTA(raw!$A:$A)-1,1),回答数!$B38, OFFSET(raw!$A$1,2,MATCH($D$1,raw!$2:$2,0)-1,COUNTA(raw!$A:$A)-1,1),J$2) -> 0 | K38: =COUNTIFS( OFFSET(raw!$A$1,2,MATCH(回答数!$A38,raw!$2:$2,0)-1,COUNTA(raw!$A:$A)-1,1),回答数!$B38, OFFSET(raw!$A$1,2,MATCH($D$1,raw!$2:$2,0)-1,COUNTA(raw!$A:$A)-1,1),K$2) -> 0 | L38: =COUNTIFS( OFFSET(raw!$A$1,2,MATCH(回答数!$A38,raw!$2:$2,0)-1,COUNTA(raw!$A:$A)-1,1),回答数!$B38, OFFSET(raw!$A$1,2,MATCH($D$1,raw!$2:$2,0)-1,COUNTA(raw!$A:$A)-1,1),L$2) -> 0 | M38: =COUNTIFS( OFFSET(raw!$A$1,2,MATCH(回答数!$A38,raw!$2:$2,0)-1,COUNTA(raw!$A:$A)-1,1),回答数!$B38, OFFSET(raw!$A$1,2,MATCH($D$1,raw!$2:$2,0)-1,COUNTA(raw!$A:$A)-1,1),M$2) -> 0 | N38: =COUNTIFS( OFFSET(raw!$A$1,2,MATCH(回答数!$A38,raw!$2:$2,0)-1,COUNTA(raw!$A:$A)-1,1),回答数!$B38, OFFSET(raw!$A$1,2,MATCH($D$1,raw!$2:$2,0)-1,COUNTA(raw!$A:$A)-1,1),N$2) -> 0 | O38: =COUNTIFS( OFFSET(raw!$A$1,2,MATCH(回答数!$A38,raw!$2:$2,0)-1,COUNTA(raw!$A:$A)-1,1),回答数!$B38, OFFSET(raw!$A$1,2,MATCH($D$1,raw!$2:$2,0)-1,COUNTA(raw!$A:$A)-1,1),O$2) -> 0 | P38: 21
A39: 回答エリア | B39: うるしの里 エリア | D39: =COUNTIFS( OFFSET(raw!$A$1,2,MATCH(回答数!$A39,raw!$2:$2,0)-1,COUNTA(raw!$A:$A)-1,1),回答数!$B39, OFFSET(raw!$A$1,2,MATCH($D$1,raw!$2:$2,0)-1,COUNTA(raw!$A:$A)-1,1),D$2) -> 7 | E39: =COUNTIFS( OFFSET(raw!$A$1,2,MATCH(回答数!$A39,raw!$2:$2,0)-1,COUNTA(raw!$A:$A)-1,1),回答数!$B39, OFFSET(raw!$A$1,2,MATCH($D$1,raw!$2:$2,0)-1,COUNTA(raw!$A:$A)-1,1),E$2) -> 35 | F39: =COUNTIFS( OFFSET(raw!$A$1,2,MATCH(回答数!$A39,raw!$2:$2,0)-1,COUNTA(raw!$A:$A)-1,1),回答数!$B39, OFFSET(raw!$A$1,2,MATCH($D$1,raw!$2:$2,0)-1,COUNTA(raw!$A:$A)-1,1),F$2) -> 9 | G39: =COUNTIFS( OFFSET(raw!$A$1,2,MATCH(回答数!$A39,raw!$2:$2,0)-1,COUNTA(raw!$A:$A)-1,1),回答数!$B39, OFFSET(raw!$A$1,2,MATCH($D$1,raw!$2:$2,0)-1,COUNTA(raw!$A:$A)-1,1),G$2) -> 0 | H39: =COUNTIFS( OFFSET(raw!$A$1,2,MATCH(回答数!$A39,raw!$2:$2,0)-1,COUNTA(raw!$A:$A)-1,1),回答数!$B39, OFFSET(raw!$A$1,2,MATCH($D$1,raw!$2:$2,0)-1,COUNTA(raw!$A:$A)-1,1),H$2) -> 0 | I39: =COUNTIFS( OFFSET(raw!$A$1,2,MATCH(回答数!$A39,raw!$2:$2,0)-1,COUNTA(raw!$A:$A)-1,1),回答数!$B39, OFFSET(raw!$A$1,2,MATCH($D$1,raw!$2:$2,0)-1,COUNTA(raw!$A:$A)-1,1),I$2) -> 0 | J39: =COUNTIFS( OFFSET(raw!$A$1,2,MATCH(回答数!$A39,raw!$2:$2,0)-1,COUNTA(raw!$A:$A)-1,1),回答数!$B39, OFFSET(raw!$A$1,2,MATCH($D$1,raw!$2:$2,0)-1,COUNTA(raw!$A:$A)-1,1),J$2) -> 0 | K39: =COUNTIFS( OFFSET(raw!$A$1,2,MATCH(回答数!$A39,raw!$2:$2,0)-1,COUNTA(raw!$A:$A)-1,1),回答数!$B39, OFFSET(raw!$A$1,2,MATCH($D$1,raw!$2:$2,0)-1,COUNTA(raw!$A:$A)-1,1),K$2) -> 0 | L39: =COUNTIFS( OFFSET(raw!$A$1,2,MATCH(回答数!$A39,raw!$2:$2,0)-1,COUNTA(raw!$A:$A)-1,1),回答数!$B39, OFFSET(raw!$A$1,2,MATCH($D$1,raw!$2:$2,0)-1,COUNTA(raw!$A:$A)-1,1),L$2) -> 0 | M39: =COUNTIFS( OFFSET(raw!$A$1,2,MATCH(回答数!$A39,raw!$2:$2,0)-1,COUNTA(raw!$A:$A)-1,1),回答数!$B39, OFFSET(raw!$A$1,2,MATCH($D$1,raw!$2:$2,0)-1,COUNTA(raw!$A:$A)-1,1),M$2) -> 0 | N39: =COUNTIFS( OFFSET(raw!$A$1,2,MATCH(回答数!$A39,raw!$2:$2,0)-1,COUNTA(raw!$A:$A)-1,1),回答数!$B39, OFFSET(raw!$A$1,2,MATCH($D$1,raw!$2:$2,0)-1,COUNTA(raw!$A:$A)-1,1),N$2) -> 0 | O39: =COUNTIFS( OFFSET(raw!$A$1,2,MATCH(回答数!$A39,raw!$2:$2,0)-1,COUNTA(raw!$A:$A)-1,1),回答数!$B39, OFFSET(raw!$A$1,2,MATCH($D$1,raw!$2:$2,0)-1,COUNTA(raw!$A:$A)-1,1),O$2) -> 0 | P39: 51
A40: 回答エリア | B40: まちの市場 こってコテいけだ エリア | D40: =COUNTIFS( OFFSET(raw!$A$1,2,MATCH(回答数!$A40,raw!$2:$2,0)-1,COUNTA(raw!$A:$A)-1,1),回答数!$B40, OFFSET(raw!$A$1,2,MATCH($D$1,raw!$2:$2,0)-1,COUNTA(raw!$A:$A)-1,1),D$2) -> 3 | E40: =COUNTIFS( OFFSET(raw!$A$1,2,MATCH(回答数!$A40,raw!$2:$2,0)-1,COUNTA(raw!$A:$A)-1,1),回答数!$B40, OFFSET(raw!$A$1,2,MATCH($D$1,raw!$2:$2,0)-1,COUNTA(raw!$A:$A)-1,1),E$2) -> 19 | F40: =COUNTIFS( OFFSET(raw!$A$1,2,MATCH(回答数!$A40,raw!$2:$2,0)-1,COUNTA(raw!$A:$A)-1,1),回答数!$B40, OFFSET(raw!$A$1,2,MATCH($D$1,raw!$2:$2,0)-1,COUNTA(raw!$A:$A)-1,1),F$2) -> 20 | G40: =COUNTIFS( OFFSET(raw!$A$1,2,MATCH(回答数!$A40,raw!$2:$2,0)-1,COUNTA(raw!$A:$A)-1,1),回答数!$B40, OFFSET(raw!$A$1,2,MATCH($D$1,raw!$2:$2,0)-1,COUNTA(raw!$A:$A)-1,1),G$2) -> 0 | H40: =COUNTIFS( OFFSET(raw!$A$1,2,MATCH(回答数!$A40,raw!$2:$2,0)-1,COUNTA(raw!$A:$A)-1,1),回答数!$B40, OFFSET(raw!$A$1,2,MATCH($D$1,raw!$2:$2,0)-1,COUNTA(raw!$A:$A)-1,1),H$2) -> 0 | I40: =COUNTIFS( OFFSET(raw!$A$1,2,MATCH(回答数!$A40,raw!$2:$2,0)-1,COUNTA(raw!$A:$A)-1,1),回答数!$B40, OFFSET(raw!$A$1,2,MATCH($D$1,raw!$2:$2,0)-1,COUNTA(raw!$A:$A)-1,1),I$2) -> 0 | J40: =COUNTIFS( OFFSET(raw!$A$1,2,MATCH(回答数!$A40,raw!$2:$2,0)-1,COUNTA(raw!$A:$A)-1,1),回答数!$B40, OFFSET(raw!$A$1,2,MATCH($D$1,raw!$2:$2,0)-1,COUNTA(raw!$A:$A)-1,1),J$2) -> 0 | K40: =COUNTIFS( OFFSET(raw!$A$1,2,MATCH(回答数!$A40,raw!$2:$2,0)-1,COUNTA(raw!$A:$A)-1,1),回答数!$B40, OFFSET(raw!$A$1,2,MATCH($D$1,raw!$2:$2,0)-1,COUNTA(raw!$A:$A)-1,1),K$2) -> 0 | L40: =COUNTIFS( OFFSET(raw!$A$1,2,MATCH(回答数!$A40,raw!$2:$2,0)-1,COUNTA(raw!$A:$A)-1,1),回答数!$B40, OFFSET(raw!$A$1,2,MATCH($D$1,raw!$2:$2,0)-1,COUNTA(raw!$A:$A)-1,1),L$2) -> 0 | M40: =COUNTIFS( OFFSET(raw!$A$1,2,MATCH(回答数!$A40,raw!$2:$2,0)-1,COUNTA(raw!$A:$A)-1,1),回答数!$B40, OFFSET(raw!$A$1,2,MATCH($D$1,raw!$2:$2,0)-1,COUNTA(raw!$A:$A)-1,1),M$2) -> 0 | N40: =COUNTIFS( OFFSET(raw!$A$1,2,MATCH(回答数!$A40,raw!$2:$2,0)-1,COUNTA(raw!$A:$A)-1,1),回答数!$B40, OFFSET(raw!$A$1,2,MATCH($D$1,raw!$2:$2,0)-1,COUNTA(raw!$A:$A)-1,1),N$2) -> 0 | O40: =COUNTIFS( OFFSET(raw!$A$1,2,MATCH(回答数!$A40,raw!$2:$2,0)-1,COUNTA(raw!$A:$A)-1,1),回答数!$B40, OFFSET(raw!$A$1,2,MATCH($D$1,raw!$2:$2,0)-1,COUNTA(raw!$A:$A)-1,1),O$2) -> 0 | P40: 42
A41: 回答エリア | B41: ツリーピクニックアドベンチャーいけだ エリア | D41: =COUNTIFS( OFFSET(raw!$A$1,2,MATCH(回答数!$A41,raw!$2:$2,0)-1,COUNTA(raw!$A:$A)-1,1),回答数!$B41, OFFSET(raw!$A$1,2,MATCH($D$1,raw!$2:$2,0)-1,COUNTA(raw!$A:$A)-1,1),D$2) -> 1 | E41: =COUNTIFS( OFFSET(raw!$A$1,2,MATCH(回答数!$A41,raw!$2:$2,0)-1,COUNTA(raw!$A:$A)-1,1),回答数!$B41, OFFSET(raw!$A$1,2,MATCH($D$1,raw!$2:$2,0)-1,COUNTA(raw!$A:$A)-1,1),E$2) -> 4 | F41: =COUNTIFS( OFFSET(raw!$A$1,2,MATCH(回答数!$A41,raw!$2:$2,0)-1,COUNTA(raw!$A:$A)-1,1),回答数!$B41, OFFSET(raw!$A$1,2,MATCH($D$1,raw!$2:$2,0)-1,COUNTA(raw!$A:$A)-1,1),F$2) -> 2 | G41: =COUNTIFS( OFFSET(raw!$A$1,2,MATCH(回答数!$A41,raw!$2:$2,0)-1,COUNTA(raw!$A:$A)-1,1),回答数!$B41, OFFSET(raw!$A$1,2,MATCH($D$1,raw!$2:$2,0)-1,COUNTA(raw!$A:$A)-1,1),G$2) -> 0 | H41: =COUNTIFS( OFFSET(raw!$A$1,2,MATCH(回答数!$A41,raw!$2:$2,0)-1,COUNTA(raw!$A:$A)-1,1),回答数!$B41, OFFSET(raw!$A$1,2,MATCH($D$1,raw!$2:$2,0)-1,COUNTA(raw!$A:$A)-1,1),H$2) -> 0 | I41: =COUNTIFS( OFFSET(raw!$A$1,2,MATCH(回答数!$A41,raw!$2:$2,0)-1,COUNTA(raw!$A:$A)-1,1),回答数!$B41, OFFSET(raw!$A$1,2,MATCH($D$1,raw!$2:$2,0)-1,COUNTA(raw!$A:$A)-1,1),I$2) -> 0 | J41: =COUNTIFS( OFFSET(raw!$A$1,2,MATCH(回答数!$A41,raw!$2:$2,0)-1,COUNTA(raw!$A:$A)-1,1),回答数!$B41, OFFSET(raw!$A$1,2,MATCH($D$1,raw!$2:$2,0)-1,COUNTA(raw!$A:$A)-1,1),J$2) -> 0 | K41: =COUNTIFS( OFFSET(raw!$A$1,2,MATCH(回答数!$A41,raw!$2:$2,0)-1,COUNTA(raw!$A:$A)-1,1),回答数!$B41, OFFSET(raw!$A$1,2,MATCH($D$1,raw!$2:$2,0)-1,COUNTA(raw!$A:$A)-1,1),K$2) -> 0 | L41: =COUNTIFS( OFFSET(raw!$A$1,2,MATCH(回答数!$A41,raw!$2:$2,0)-1,COUNTA(raw!$A:$A)-1,1),回答数!$B41, OFFSET(raw!$A$1,2,MATCH($D$1,raw!$2:$2,0)-1,COUNTA(raw!$A:$A)-1,1),L$2) -> 0 | M41: =COUNTIFS( OFFSET(raw!$A$1,2,MATCH(回答数!$A41,raw!$2:$2,0)-1,COUNTA(raw!$A:$A)-1,1),回答数!$B41, OFFSET(raw!$A$1,2,MATCH($D$1,raw!$2:$2,0)-1,COUNTA(raw!$A:$A)-1,1),M$2) -> 0 | N41: =COUNTIFS( OFFSET(raw!$A$1,2,MATCH(回答数!$A41,raw!$2:$2,0)-1,COUNTA(raw!$A:$A)-1,1),回答数!$B41, OFFSET(raw!$A$1,2,MATCH($D$1,raw!$2:$2,0)-1,COUNTA(raw!$A:$A)-1,1),N$2) -> 0 | O41: =COUNTIFS( OFFSET(raw!$A$1,2,MATCH(回答数!$A41,raw!$2:$2,0)-1,COUNTA(raw!$A:$A)-1,1),回答数!$B41, OFFSET(raw!$A$1,2,MATCH($D$1,raw!$2:$2,0)-1,COUNTA(raw!$A:$A)-1,1),O$2) -> 0 | P41: 7
A42: 回答エリア | B42: かずら橋 エリア | D42: =COUNTIFS( OFFSET(raw!$A$1,2,MATCH(回答数!$A42,raw!$2:$2,0)-1,COUNTA(raw!$A:$A)-1,1),回答数!$B42, OFFSET(raw!$A$1,2,MATCH($D$1,raw!$2:$2,0)-1,COUNTA(raw!$A:$A)-1,1),D$2) -> 4 | E42: =COUNTIFS( OFFSET(raw!$A$1,2,MATCH(回答数!$A42,raw!$2:$2,0)-1,COUNTA(raw!$A:$A)-1,1),回答数!$B42, OFFSET(raw!$A$1,2,MATCH($D$1,raw!$2:$2,0)-1,COUNTA(raw!$A:$A)-1,1),E$2) -> 47 | F42: =COUNTIFS( OFFSET(raw!$A$1,2,MATCH(回答数!$A42,raw!$2:$2,0)-1,COUNTA(raw!$A:$A)-1,1),回答数!$B42, OFFSET(raw!$A$1,2,MATCH($D$1,raw!$2:$2,0)-1,COUNTA(raw!$A:$A)-1,1),F$2) -> 21 | G42: =COUNTIFS( OFFSET(raw!$A$1,2,MATCH(回答数!$A42,raw!$2:$2,0)-1,COUNTA(raw!$A:$A)-1,1),回答数!$B42, OFFSET(raw!$A$1,2,MATCH($D$1,raw!$2:$2,0)-1,COUNTA(raw!$A:$A)-1,1),G$2) -> 0 | H42: =COUNTIFS( OFFSET(raw!$A$1,2,MATCH(回答数!$A42,raw!$2:$2,0)-1,COUNTA(raw!$A:$A)-1,1),回答数!$B42, OFFSET(raw!$A$1,2,MATCH($D$1,raw!$2:$2,0)-1,COUNTA(raw!$A:$A)-1,1),H$2) -> 0 | I42: =COUNTIFS( OFFSET(raw!$A$1,2,MATCH(回答数!$A42,raw!$2:$2,0)-1,COUNTA(raw!$A:$A)-1,1),回答数!$B42, OFFSET(raw!$A$1,2,MATCH($D$1,raw!$2:$2,0)-1,COUNTA(raw!$A:$A)-1,1),I$2) -> 0 | J42: =COUNTIFS( OFFSET(raw!$A$1,2,MATCH(回答数!$A42,raw!$2:$2,0)-1,COUNTA(raw!$A:$A)-1,1),回答数!$B42, OFFSET(raw!$A$1,2,MATCH($D$1,raw!$2:$2,0)-1,COUNTA(raw!$A:$A)-1,1),J$2) -> 0 | K42: =COUNTIFS( OFFSET(raw!$A$1,2,MATCH(回答数!$A42,raw!$2:$2,0)-1,COUNTA(raw!$A:$A)-1,1),回答数!$B42, OFFSET(raw!$A$1,2,MATCH($D$1,raw!$2:$2,0)-1,COUNTA(raw!$A:$A)-1,1),K$2) -> 0 | L42: =COUNTIFS( OFFSET(raw!$A$1,2,MATCH(回答数!$A42,raw!$2:$2,0)-1,COUNTA(raw!$A:$A)-1,1),回答数!$B42, OFFSET(raw!$A$1,2,MATCH($D$1,raw!$2:$2,0)-1,COUNTA(raw!$A:$A)-1,1),L$2) -> 0 | M42: =COUNTIFS( OFFSET(raw!$A$1,2,MATCH(回答数!$A42,raw!$2:$2,0)-1,COUNTA(raw!$A:$A)-1,1),回答数!$B42, OFFSET(raw!$A$1,2,MATCH($D$1,raw!$2:$2,0)-1,COUNTA(raw!$A:$A)-1,1),M$2) -> 0 | N42: =COUNTIFS( OFFSET(raw!$A$1,2,MATCH(回答数!$A42,raw!$2:$2,0)-1,COUNTA(raw!$A:$A)-1,1),回答数!$B42, OFFSET(raw!$A$1,2,MATCH($D$1,raw!$2:$2,0)-1,COUNTA(raw!$A:$A)-1,1),N$2) -> 0 | O42: =COUNTIFS( OFFSET(raw!$A$1,2,MATCH(回答数!$A42,raw!$2:$2,0)-1,COUNTA(raw!$A:$A)-1,1),回答数!$B42, OFFSET(raw!$A$1,2,MATCH($D$1,raw!$2:$2,0)-1,COUNTA(raw!$A:$A)-1,1),O$2) -> 0 | P42: 72
A43: 回答エリア | B43: 道の駅「越前」 エリア | D43: =COUNTIFS( OFFSET(raw!$A$1,2,MATCH(回答数!$A43,raw!$2:$2,0)-1,COUNTA(raw!$A:$A)-1,1),回答数!$B43, OFFSET(raw!$A$1,2,MATCH($D$1,raw!$2:$2,0)-1,COUNTA(raw!$A:$A)-1,1),D$2) -> 13 | E43: =COUNTIFS( OFFSET(raw!$A$1,2,MATCH(回答数!$A43,raw!$2:$2,0)-1,COUNTA(raw!$A:$A)-1,1),回答数!$B43, OFFSET(raw!$A$1,2,MATCH($D$1,raw!$2:$2,0)-1,COUNTA(raw!$A:$A)-1,1),E$2) -> 93 | F43: =COUNTIFS( OFFSET(raw!$A$1,2,MATCH(回答数!$A43,raw!$2:$2,0)-1,COUNTA(raw!$A:$A)-1,1),回答数!$B43, OFFSET(raw!$A$1,2,MATCH($D$1,raw!$2:$2,0)-1,COUNTA(raw!$A:$A)-1,1),F$2) -> 42 | G43: =COUNTIFS( OFFSET(raw!$A$1,2,MATCH(回答数!$A43,raw!$2:$2,0)-1,COUNTA(raw!$A:$A)-1,1),回答数!$B43, OFFSET(raw!$A$1,2,MATCH($D$1,raw!$2:$2,0)-1,COUNTA(raw!$A:$A)-1,1),G$2) -> 0 | H43: =COUNTIFS( OFFSET(raw!$A$1,2,MATCH(回答数!$A43,raw!$2:$2,0)-1,COUNTA(raw!$A:$A)-1,1),回答数!$B43, OFFSET(raw!$A$1,2,MATCH($D$1,raw!$2:$2,0)-1,COUNTA(raw!$A:$A)-1,1),H$2) -> 0 | I43: =COUNTIFS( OFFSET(raw!$A$1,2,MATCH(回答数!$A43,raw!$2:$2,0)-1,COUNTA(raw!$A:$A)-1,1),回答数!$B43, OFFSET(raw!$A$1,2,MATCH($D$1,raw!$2:$2,0)-1,COUNTA(raw!$A:$A)-1,1),I$2) -> 0 | J43: =COUNTIFS( OFFSET(raw!$A$1,2,MATCH(回答数!$A43,raw!$2:$2,0)-1,COUNTA(raw!$A:$A)-1,1),回答数!$B43, OFFSET(raw!$A$1,2,MATCH($D$1,raw!$2:$2,0)-1,COUNTA(raw!$A:$A)-1,1),J$2) -> 0 | K43: =COUNTIFS( OFFSET(raw!$A$1,2,MATCH(回答数!$A43,raw!$2:$2,0)-1,COUNTA(raw!$A:$A)-1,1),回答数!$B43, OFFSET(raw!$A$1,2,MATCH($D$1,raw!$2:$2,0)-1,COUNTA(raw!$A:$A)-1,1),K$2) -> 0 | L43: =COUNTIFS( OFFSET(raw!$A$1,2,MATCH(回答数!$A43,raw!$2:$2,0)-1,COUNTA(raw!$A:$A)-1,1),回答数!$B43, OFFSET(raw!$A$1,2,MATCH($D$1,raw!$2:$2,0)-1,COUNTA(raw!$A:$A)-1,1),L$2) -> 0 | M43: =COUNTIFS( OFFSET(raw!$A$1,2,MATCH(回答数!$A43,raw!$2:$2,0)-1,COUNTA(raw!$A:$A)-1,1),回答数!$B43, OFFSET(raw!$A$1,2,MATCH($D$1,raw!$2:$2,0)-1,COUNTA(raw!$A:$A)-1,1),M$2) -> 0 | N43: =COUNTIFS( OFFSET(raw!$A$1,2,MATCH(回答数!$A43,raw!$2:$2,0)-1,COUNTA(raw!$A:$A)-1,1),回答数!$B43, OFFSET(raw!$A$1,2,MATCH($D$1,raw!$2:$2,0)-1,COUNTA(raw!$A:$A)-1,1),N$2) -> 0 | O43: =COUNTIFS( OFFSET(raw!$A$1,2,MATCH(回答数!$A43,raw!$2:$2,0)-1,COUNTA(raw!$A:$A)-1,1),回答数!$B43, OFFSET(raw!$A$1,2,MATCH($D$1,raw!$2:$2,0)-1,COUNTA(raw!$A:$A)-1,1),O$2) -> 0 | P43: 148
A44: 回答エリア | B44: 道の駅「パークイン丹生ヶ丘」 エリア | D44: =COUNTIFS( OFFSET(raw!$A$1,2,MATCH(回答数!$A44,raw!$2:$2,0)-1,COUNTA(raw!$A:$A)-1,1),回答数!$B44, OFFSET(raw!$A$1,2,MATCH($D$1,raw!$2:$2,0)-1,COUNTA(raw!$A:$A)-1,1),D$2) -> 5 | E44: =COUNTIFS( OFFSET(raw!$A$1,2,MATCH(回答数!$A44,raw!$2:$2,0)-1,COUNTA(raw!$A:$A)-1,1),回答数!$B44, OFFSET(raw!$A$1,2,MATCH($D$1,raw!$2:$2,0)-1,COUNTA(raw!$A:$A)-1,1),E$2) -> 51 | F44: =COUNTIFS( OFFSET(raw!$A$1,2,MATCH(回答数!$A44,raw!$2:$2,0)-1,COUNTA(raw!$A:$A)-1,1),回答数!$B44, OFFSET(raw!$A$1,2,MATCH($D$1,raw!$2:$2,0)-1,COUNTA(raw!$A:$A)-1,1),F$2) -> 39 | G44: =COUNTIFS( OFFSET(raw!$A$1,2,MATCH(回答数!$A44,raw!$2:$2,0)-1,COUNTA(raw!$A:$A)-1,1),回答数!$B44, OFFSET(raw!$A$1,2,MATCH($D$1,raw!$2:$2,0)-1,COUNTA(raw!$A:$A)-1,1),G$2) -> 0 | H44: =COUNTIFS( OFFSET(raw!$A$1,2,MATCH(回答数!$A44,raw!$2:$2,0)-1,COUNTA(raw!$A:$A)-1,1),回答数!$B44, OFFSET(raw!$A$1,2,MATCH($D$1,raw!$2:$2,0)-1,COUNTA(raw!$A:$A)-1,1),H$2) -> 0 | I44: =COUNTIFS( OFFSET(raw!$A$1,2,MATCH(回答数!$A44,raw!$2:$2,0)-1,COUNTA(raw!$A:$A)-1,1),回答数!$B44, OFFSET(raw!$A$1,2,MATCH($D$1,raw!$2:$2,0)-1,COUNTA(raw!$A:$A)-1,1),I$2) -> 0 | J44: =COUNTIFS( OFFSET(raw!$A$1,2,MATCH(回答数!$A44,raw!$2:$2,0)-1,COUNTA(raw!$A:$A)-1,1),回答数!$B44, OFFSET(raw!$A$1,2,MATCH($D$1,raw!$2:$2,0)-1,COUNTA(raw!$A:$A)-1,1),J$2) -> 0 | K44: =COUNTIFS( OFFSET(raw!$A$1,2,MATCH(回答数!$A44,raw!$2:$2,0)-1,COUNTA(raw!$A:$A)-1,1),回答数!$B44, OFFSET(raw!$A$1,2,MATCH($D$1,raw!$2:$2,0)-1,COUNTA(raw!$A:$A)-1,1),K$2) -> 0 | L44: =COUNTIFS( OFFSET(raw!$A$1,2,MATCH(回答数!$A44,raw!$2:$2,0)-1,COUNTA(raw!$A:$A)-1,1),回答数!$B44, OFFSET(raw!$A$1,2,MATCH($D$1,raw!$2:$2,0)-1,COUNTA(raw!$A:$A)-1,1),L$2) -> 0 | M44: =COUNTIFS( OFFSET(raw!$A$1,2,MATCH(回答数!$A44,raw!$2:$2,0)-1,COUNTA(raw!$A:$A)-1,1),回答数!$B44, OFFSET(raw!$A$1,2,MATCH($D$1,raw!$2:$2,0)-1,COUNTA(raw!$A:$A)-1,1),M$2) -> 0 | N44: =COUNTIFS( OFFSET(raw!$A$1,2,MATCH(回答数!$A44,raw!$2:$2,0)-1,COUNTA(raw!$A:$A)-1,1),回答数!$B44, OFFSET(raw!$A$1,2,MATCH($D$1,raw!$2:$2,0)-1,COUNTA(raw!$A:$A)-1,1),N$2) -> 0 | O44: =COUNTIFS( OFFSET(raw!$A$1,2,MATCH(回答数!$A44,raw!$2:$2,0)-1,COUNTA(raw!$A:$A)-1,1),回答数!$B44, OFFSET(raw!$A$1,2,MATCH($D$1,raw!$2:$2,0)-1,COUNTA(raw!$A:$A)-1,1),O$2) -> 0 | P44: 95
A45: 回答エリア | B45: 劔神社 エリア | D45: =COUNTIFS( OFFSET(raw!$A$1,2,MATCH(回答数!$A45,raw!$2:$2,0)-1,COUNTA(raw!$A:$A)-1,1),回答数!$B45, OFFSET(raw!$A$1,2,MATCH($D$1,raw!$2:$2,0)-1,COUNTA(raw!$A:$A)-1,1),D$2) -> 1 | E45: =COUNTIFS( OFFSET(raw!$A$1,2,MATCH(回答数!$A45,raw!$2:$2,0)-1,COUNTA(raw!$A:$A)-1,1),回答数!$B45, OFFSET(raw!$A$1,2,MATCH($D$1,raw!$2:$2,0)-1,COUNTA(raw!$A:$A)-1,1),E$2) -> 14 | F45: =COUNTIFS( OFFSET(raw!$A$1,2,MATCH(回答数!$A45,raw!$2:$2,0)-1,COUNTA(raw!$A:$A)-1,1),回答数!$B45, OFFSET(raw!$A$1,2,MATCH($D$1,raw!$2:$2,0)-1,COUNTA(raw!$A:$A)-1,1),F$2) -> 33 | G45: =COUNTIFS( OFFSET(raw!$A$1,2,MATCH(回答数!$A45,raw!$2:$2,0)-1,COUNTA(raw!$A:$A)-1,1),回答数!$B45, OFFSET(raw!$A$1,2,MATCH($D$1,raw!$2:$2,0)-1,COUNTA(raw!$A:$A)-1,1),G$2) -> 0 | H45: =COUNTIFS( OFFSET(raw!$A$1,2,MATCH(回答数!$A45,raw!$2:$2,0)-1,COUNTA(raw!$A:$A)-1,1),回答数!$B45, OFFSET(raw!$A$1,2,MATCH($D$1,raw!$2:$2,0)-1,COUNTA(raw!$A:$A)-1,1),H$2) -> 0 | I45: =COUNTIFS( OFFSET(raw!$A$1,2,MATCH(回答数!$A45,raw!$2:$2,0)-1,COUNTA(raw!$A:$A)-1,1),回答数!$B45, OFFSET(raw!$A$1,2,MATCH($D$1,raw!$2:$2,0)-1,COUNTA(raw!$A:$A)-1,1),I$2) -> 0 | J45: =COUNTIFS( OFFSET(raw!$A$1,2,MATCH(回答数!$A45,raw!$2:$2,0)-1,COUNTA(raw!$A:$A)-1,1),回答数!$B45, OFFSET(raw!$A$1,2,MATCH($D$1,raw!$2:$2,0)-1,COUNTA(raw!$A:$A)-1,1),J$2) -> 0 | K45: =COUNTIFS( OFFSET(raw!$A$1,2,MATCH(回答数!$A45,raw!$2:$2,0)-1,COUNTA(raw!$A:$A)-1,1),回答数!$B45, OFFSET(raw!$A$1,2,MATCH($D$1,raw!$2:$2,0)-1,COUNTA(raw!$A:$A)-1,1),K$2) -> 0 | L45: =COUNTIFS( OFFSET(raw!$A$1,2,MATCH(回答数!$A45,raw!$2:$2,0)-1,COUNTA(raw!$A:$A)-1,1),回答数!$B45, OFFSET(raw!$A$1,2,MATCH($D$1,raw!$2:$2,0)-1,COUNTA(raw!$A:$A)-1,1),L$2) -> 0 | M45: =COUNTIFS( OFFSET(raw!$A$1,2,MATCH(回答数!$A45,raw!$2:$2,0)-1,COUNTA(raw!$A:$A)-1,1),回答数!$B45, OFFSET(raw!$A$1,2,MATCH($D$1,raw!$2:$2,0)-1,COUNTA(raw!$A:$A)-1,1),M$2) -> 0 | N45: =COUNTIFS( OFFSET(raw!$A$1,2,MATCH(回答数!$A45,raw!$2:$2,0)-1,COUNTA(raw!$A:$A)-1,1),回答数!$B45, OFFSET(raw!$A$1,2,MATCH($D$1,raw!$2:$2,0)-1,COUNTA(raw!$A:$A)-1,1),N$2) -> 0 | O45: =COUNTIFS( OFFSET(raw!$A$1,2,MATCH(回答数!$A45,raw!$2:$2,0)-1,COUNTA(raw!$A:$A)-1,1),回答数!$B45, OFFSET(raw!$A$1,2,MATCH($D$1,raw!$2:$2,0)-1,COUNTA(raw!$A:$A)-1,1),O$2) -> 0 | P45: 48
A46: 回答エリア | B46: 越前陶芸村 エリア | D46: =COUNTIFS( OFFSET(raw!$A$1,2,MATCH(回答数!$A46,raw!$2:$2,0)-1,COUNTA(raw!$A:$A)-1,1),回答数!$B46, OFFSET(raw!$A$1,2,MATCH($D$1,raw!$2:$2,0)-1,COUNTA(raw!$A:$A)-1,1),D$2) -> 0 | E46: =COUNTIFS( OFFSET(raw!$A$1,2,MATCH(回答数!$A46,raw!$2:$2,0)-1,COUNTA(raw!$A:$A)-1,1),回答数!$B46, OFFSET(raw!$A$1,2,MATCH($D$1,raw!$2:$2,0)-1,COUNTA(raw!$A:$A)-1,1),E$2) -> 17 | F46: =COUNTIFS( OFFSET(raw!$A$1,2,MATCH(回答数!$A46,raw!$2:$2,0)-1,COUNTA(raw!$A:$A)-1,1),回答数!$B46, OFFSET(raw!$A$1,2,MATCH($D$1,raw!$2:$2,0)-1,COUNTA(raw!$A:$A)-1,1),F$2) -> 21 | G46: =COUNTIFS( OFFSET(raw!$A$1,2,MATCH(回答数!$A46,raw!$2:$2,0)-1,COUNTA(raw!$A:$A)-1,1),回答数!$B46, OFFSET(raw!$A$1,2,MATCH($D$1,raw!$2:$2,0)-1,COUNTA(raw!$A:$A)-1,1),G$2) -> 0 | H46: =COUNTIFS( OFFSET(raw!$A$1,2,MATCH(回答数!$A46,raw!$2:$2,0)-1,COUNTA(raw!$A:$A)-1,1),回答数!$B46, OFFSET(raw!$A$1,2,MATCH($D$1,raw!$2:$2,0)-1,COUNTA(raw!$A:$A)-1,1),H$2) -> 0 | I46: =COUNTIFS( OFFSET(raw!$A$1,2,MATCH(回答数!$A46,raw!$2:$2,0)-1,COUNTA(raw!$A:$A)-1,1),回答数!$B46, OFFSET(raw!$A$1,2,MATCH($D$1,raw!$2:$2,0)-1,COUNTA(raw!$A:$A)-1,1),I$2) -> 0 | J46: =COUNTIFS( OFFSET(raw!$A$1,2,MATCH(回答数!$A46,raw!$2:$2,0)-1,COUNTA(raw!$A:$A)-1,1),回答数!$B46, OFFSET(raw!$A$1,2,MATCH($D$1,raw!$2:$2,0)-1,COUNTA(raw!$A:$A)-1,1),J$2) -> 0 | K46: =COUNTIFS( OFFSET(raw!$A$1,2,MATCH(回答数!$A46,raw!$2:$2,0)-1,COUNTA(raw!$A:$A)-1,1),回答数!$B46, OFFSET(raw!$A$1,2,MATCH($D$1,raw!$2:$2,0)-1,COUNTA(raw!$A:$A)-1,1),K$2) -> 0 | L46: =COUNTIFS( OFFSET(raw!$A$1,2,MATCH(回答数!$A46,raw!$2:$2,0)-1,COUNTA(raw!$A:$A)-1,1),回答数!$B46, OFFSET(raw!$A$1,2,MATCH($D$1,raw!$2:$2,0)-1,COUNTA(raw!$A:$A)-1,1),L$2) -> 0 | M46: =COUNTIFS( OFFSET(raw!$A$1,2,MATCH(回答数!$A46,raw!$2:$2,0)-1,COUNTA(raw!$A:$A)-1,1),回答数!$B46, OFFSET(raw!$A$1,2,MATCH($D$1,raw!$2:$2,0)-1,COUNTA(raw!$A:$A)-1,1),M$2) -> 0 | N46: =COUNTIFS( OFFSET(raw!$A$1,2,MATCH(回答数!$A46,raw!$2:$2,0)-1,COUNTA(raw!$A:$A)-1,1),回答数!$B46, OFFSET(raw!$A$1,2,MATCH($D$1,raw!$2:$2,0)-1,COUNTA(raw!$A:$A)-1,1),N$2) -> 0 | O46: =COUNTIFS( OFFSET(raw!$A$1,2,MATCH(回答数!$A46,raw!$2:$2,0)-1,COUNTA(raw!$A:$A)-1,1),回答数!$B46, OFFSET(raw!$A$1,2,MATCH($D$1,raw!$2:$2,0)-1,COUNTA(raw!$A:$A)-1,1),O$2) -> 0 | P46: 38
A47: 回答エリア | B47: 越前岬 エリア | D47: =COUNTIFS( OFFSET(raw!$A$1,2,MATCH(回答数!$A47,raw!$2:$2,0)-1,COUNTA(raw!$A:$A)-1,1),回答数!$B47, OFFSET(raw!$A$1,2,MATCH($D$1,raw!$2:$2,0)-1,COUNTA(raw!$A:$A)-1,1),D$2) -> 0 | E47: =COUNTIFS( OFFSET(raw!$A$1,2,MATCH(回答数!$A47,raw!$2:$2,0)-1,COUNTA(raw!$A:$A)-1,1),回答数!$B47, OFFSET(raw!$A$1,2,MATCH($D$1,raw!$2:$2,0)-1,COUNTA(raw!$A:$A)-1,1),E$2) -> 4 | F47: =COUNTIFS( OFFSET(raw!$A$1,2,MATCH(回答数!$A47,raw!$2:$2,0)-1,COUNTA(raw!$A:$A)-1,1),回答数!$B47, OFFSET(raw!$A$1,2,MATCH($D$1,raw!$2:$2,0)-1,COUNTA(raw!$A:$A)-1,1),F$2) -> 2 | G47: =COUNTIFS( OFFSET(raw!$A$1,2,MATCH(回答数!$A47,raw!$2:$2,0)-1,COUNTA(raw!$A:$A)-1,1),回答数!$B47, OFFSET(raw!$A$1,2,MATCH($D$1,raw!$2:$2,0)-1,COUNTA(raw!$A:$A)-1,1),G$2) -> 0 | H47: =COUNTIFS( OFFSET(raw!$A$1,2,MATCH(回答数!$A47,raw!$2:$2,0)-1,COUNTA(raw!$A:$A)-1,1),回答数!$B47, OFFSET(raw!$A$1,2,MATCH($D$1,raw!$2:$2,0)-1,COUNTA(raw!$A:$A)-1,1),H$2) -> 0 | I47: =COUNTIFS( OFFSET(raw!$A$1,2,MATCH(回答数!$A47,raw!$2:$2,0)-1,COUNTA(raw!$A:$A)-1,1),回答数!$B47, OFFSET(raw!$A$1,2,MATCH($D$1,raw!$2:$2,0)-1,COUNTA(raw!$A:$A)-1,1),I$2) -> 0 | J47: =COUNTIFS( OFFSET(raw!$A$1,2,MATCH(回答数!$A47,raw!$2:$2,0)-1,COUNTA(raw!$A:$A)-1,1),回答数!$B47, OFFSET(raw!$A$1,2,MATCH($D$1,raw!$2:$2,0)-1,COUNTA(raw!$A:$A)-1,1),J$2) -> 0 | K47: =COUNTIFS( OFFSET(raw!$A$1,2,MATCH(回答数!$A47,raw!$2:$2,0)-1,COUNTA(raw!$A:$A)-1,1),回答数!$B47, OFFSET(raw!$A$1,2,MATCH($D$1,raw!$2:$2,0)-1,COUNTA(raw!$A:$A)-1,1),K$2) -> 0 | L47: =COUNTIFS( OFFSET(raw!$A$1,2,MATCH(回答数!$A47,raw!$2:$2,0)-1,COUNTA(raw!$A:$A)-1,1),回答数!$B47, OFFSET(raw!$A$1,2,MATCH($D$1,raw!$2:$2,0)-1,COUNTA(raw!$A:$A)-1,1),L$2) -> 0 | M47: =COUNTIFS( OFFSET(raw!$A$1,2,MATCH(回答数!$A47,raw!$2:$2,0)-1,COUNTA(raw!$A:$A)-1,1),回答数!$B47, OFFSET(raw!$A$1,2,MATCH($D$1,raw!$2:$2,0)-1,COUNTA(raw!$A:$A)-1,1),M$2) -> 0 | N47: =COUNTIFS( OFFSET(raw!$A$1,2,MATCH(回答数!$A47,raw!$2:$2,0)-1,COUNTA(raw!$A:$A)-1,1),回答数!$B47, OFFSET(raw!$A$1,2,MATCH($D$1,raw!$2:$2,0)-1,COUNTA(raw!$A:$A)-1,1),N$2) -> 0 | O47: =COUNTIFS( OFFSET(raw!$A$1,2,MATCH(回答数!$A47,raw!$2:$2,0)-1,COUNTA(raw!$A:$A)-1,1),回答数!$B47, OFFSET(raw!$A$1,2,MATCH($D$1,raw!$2:$2,0)-1,COUNTA(raw!$A:$A)-1,1),O$2) -> 0 | P47: 6
A48: 回答エリア | B48: 道の駅「南えちぜん山海里」 エリア | D48: =COUNTIFS( OFFSET(raw!$A$1,2,MATCH(回答数!$A48,raw!$2:$2,0)-1,COUNTA(raw!$A:$A)-1,1),回答数!$B48, OFFSET(raw!$A$1,2,MATCH($D$1,raw!$2:$2,0)-1,COUNTA(raw!$A:$A)-1,1),D$2) -> 5 | E48: =COUNTIFS( OFFSET(raw!$A$1,2,MATCH(回答数!$A48,raw!$2:$2,0)-1,COUNTA(raw!$A:$A)-1,1),回答数!$B48, OFFSET(raw!$A$1,2,MATCH($D$1,raw!$2:$2,0)-1,COUNTA(raw!$A:$A)-1,1),E$2) -> 77 | F48: =COUNTIFS( OFFSET(raw!$A$1,2,MATCH(回答数!$A48,raw!$2:$2,0)-1,COUNTA(raw!$A:$A)-1,1),回答数!$B48, OFFSET(raw!$A$1,2,MATCH($D$1,raw!$2:$2,0)-1,COUNTA(raw!$A:$A)-1,1),F$2) -> 43 | G48: =COUNTIFS( OFFSET(raw!$A$1,2,MATCH(回答数!$A48,raw!$2:$2,0)-1,COUNTA(raw!$A:$A)-1,1),回答数!$B48, OFFSET(raw!$A$1,2,MATCH($D$1,raw!$2:$2,0)-1,COUNTA(raw!$A:$A)-1,1),G$2) -> 0 | H48: =COUNTIFS( OFFSET(raw!$A$1,2,MATCH(回答数!$A48,raw!$2:$2,0)-1,COUNTA(raw!$A:$A)-1,1),回答数!$B48, OFFSET(raw!$A$1,2,MATCH($D$1,raw!$2:$2,0)-1,COUNTA(raw!$A:$A)-1,1),H$2) -> 0 | I48: =COUNTIFS( OFFSET(raw!$A$1,2,MATCH(回答数!$A48,raw!$2:$2,0)-1,COUNTA(raw!$A:$A)-1,1),回答数!$B48, OFFSET(raw!$A$1,2,MATCH($D$1,raw!$2:$2,0)-1,COUNTA(raw!$A:$A)-1,1),I$2) -> 0 | J48: =COUNTIFS( OFFSET(raw!$A$1,2,MATCH(回答数!$A48,raw!$2:$2,0)-1,COUNTA(raw!$A:$A)-1,1),回答数!$B48, OFFSET(raw!$A$1,2,MATCH($D$1,raw!$2:$2,0)-1,COUNTA(raw!$A:$A)-1,1),J$2) -> 0 | K48: =COUNTIFS( OFFSET(raw!$A$1,2,MATCH(回答数!$A48,raw!$2:$2,0)-1,COUNTA(raw!$A:$A)-1,1),回答数!$B48, OFFSET(raw!$A$1,2,MATCH($D$1,raw!$2:$2,0)-1,COUNTA(raw!$A:$A)-1,1),K$2) -> 0 | L48: =COUNTIFS( OFFSET(raw!$A$1,2,MATCH(回答数!$A48,raw!$2:$2,0)-1,COUNTA(raw!$A:$A)-1,1),回答数!$B48, OFFSET(raw!$A$1,2,MATCH($D$1,raw!$2:$2,0)-1,COUNTA(raw!$A:$A)-1,1),L$2) -> 0 | M48: =COUNTIFS( OFFSET(raw!$A$1,2,MATCH(回答数!$A48,raw!$2:$2,0)-1,COUNTA(raw!$A:$A)-1,1),回答数!$B48, OFFSET(raw!$A$1,2,MATCH($D$1,raw!$2:$2,0)-1,COUNTA(raw!$A:$A)-1,1),M$2) -> 0 | N48: =COUNTIFS( OFFSET(raw!$A$1,2,MATCH(回答数!$A48,raw!$2:$2,0)-1,COUNTA(raw!$A:$A)-1,1),回答数!$B48, OFFSET(raw!$A$1,2,MATCH($D$1,raw!$2:$2,0)-1,COUNTA(raw!$A:$A)-1,1),N$2) -> 0 | O48: =COUNTIFS( OFFSET(raw!$A$1,2,MATCH(回答数!$A48,raw!$2:$2,0)-1,COUNTA(raw!$A:$A)-1,1),回答数!$B48, OFFSET(raw!$A$1,2,MATCH($D$1,raw!$2:$2,0)-1,COUNTA(raw!$A:$A)-1,1),O$2) -> 0 | P48: 125
A49: 回答エリア | B49: 北前船主の館 右近家 エリア | D49: =COUNTIFS( OFFSET(raw!$A$1,2,MATCH(回答数!$A49,raw!$2:$2,0)-1,COUNTA(raw!$A:$A)-1,1),回答数!$B49, OFFSET(raw!$A$1,2,MATCH($D$1,raw!$2:$2,0)-1,COUNTA(raw!$A:$A)-1,1),D$2) -> 2 | E49: =COUNTIFS( OFFSET(raw!$A$1,2,MATCH(回答数!$A49,raw!$2:$2,0)-1,COUNTA(raw!$A:$A)-1,1),回答数!$B49, OFFSET(raw!$A$1,2,MATCH($D$1,raw!$2:$2,0)-1,COUNTA(raw!$A:$A)-1,1),E$2) -> 5 | F49: =COUNTIFS( OFFSET(raw!$A$1,2,MATCH(回答数!$A49,raw!$2:$2,0)-1,COUNTA(raw!$A:$A)-1,1),回答数!$B49, OFFSET(raw!$A$1,2,MATCH($D$1,raw!$2:$2,0)-1,COUNTA(raw!$A:$A)-1,1),F$2) -> 10 | G49: =COUNTIFS( OFFSET(raw!$A$1,2,MATCH(回答数!$A49,raw!$2:$2,0)-1,COUNTA(raw!$A:$A)-1,1),回答数!$B49, OFFSET(raw!$A$1,2,MATCH($D$1,raw!$2:$2,0)-1,COUNTA(raw!$A:$A)-1,1),G$2) -> 0 | H49: =COUNTIFS( OFFSET(raw!$A$1,2,MATCH(回答数!$A49,raw!$2:$2,0)-1,COUNTA(raw!$A:$A)-1,1),回答数!$B49, OFFSET(raw!$A$1,2,MATCH($D$1,raw!$2:$2,0)-1,COUNTA(raw!$A:$A)-1,1),H$2) -> 0 | I49: =COUNTIFS( OFFSET(raw!$A$1,2,MATCH(回答数!$A49,raw!$2:$2,0)-1,COUNTA(raw!$A:$A)-1,1),回答数!$B49, OFFSET(raw!$A$1,2,MATCH($D$1,raw!$2:$2,0)-1,COUNTA(raw!$A:$A)-1,1),I$2) -> 0 | J49: =COUNTIFS( OFFSET(raw!$A$1,2,MATCH(回答数!$A49,raw!$2:$2,0)-1,COUNTA(raw!$A:$A)-1,1),回答数!$B49, OFFSET(raw!$A$1,2,MATCH($D$1,raw!$2:$2,0)-1,COUNTA(raw!$A:$A)-1,1),J$2) -> 0 | K49: =COUNTIFS( OFFSET(raw!$A$1,2,MATCH(回答数!$A49,raw!$2:$2,0)-1,COUNTA(raw!$A:$A)-1,1),回答数!$B49, OFFSET(raw!$A$1,2,MATCH($D$1,raw!$2:$2,0)-1,COUNTA(raw!$A:$A)-1,1),K$2) -> 0 | L49: =COUNTIFS( OFFSET(raw!$A$1,2,MATCH(回答数!$A49,raw!$2:$2,0)-1,COUNTA(raw!$A:$A)-1,1),回答数!$B49, OFFSET(raw!$A$1,2,MATCH($D$1,raw!$2:$2,0)-1,COUNTA(raw!$A:$A)-1,1),L$2) -> 0 | M49: =COUNTIFS( OFFSET(raw!$A$1,2,MATCH(回答数!$A49,raw!$2:$2,0)-1,COUNTA(raw!$A:$A)-1,1),回答数!$B49, OFFSET(raw!$A$1,2,MATCH($D$1,raw!$2:$2,0)-1,COUNTA(raw!$A:$A)-1,1),M$2) -> 0 | N49: =COUNTIFS( OFFSET(raw!$A$1,2,MATCH(回答数!$A49,raw!$2:$2,0)-1,COUNTA(raw!$A:$A)-1,1),回答数!$B49, OFFSET(raw!$A$1,2,MATCH($D$1,raw!$2:$2,0)-1,COUNTA(raw!$A:$A)-1,1),N$2) -> 0 | O49: =COUNTIFS( OFFSET(raw!$A$1,2,MATCH(回答数!$A49,raw!$2:$2,0)-1,COUNTA(raw!$A:$A)-1,1),回答数!$B49, OFFSET(raw!$A$1,2,MATCH($D$1,raw!$2:$2,0)-1,COUNTA(raw!$A:$A)-1,1),O$2) -> 0 | P49: 17
A50: 回答エリア | B50: 今庄宿 エリア | D50: =COUNTIFS( OFFSET(raw!$A$1,2,MATCH(回答数!$A50,raw!$2:$2,0)-1,COUNTA(raw!$A:$A)-1,1),回答数!$B50, OFFSET(raw!$A$1,2,MATCH($D$1,raw!$2:$2,0)-1,COUNTA(raw!$A:$A)-1,1),D$2) -> 0 | E50: =COUNTIFS( OFFSET(raw!$A$1,2,MATCH(回答数!$A50,raw!$2:$2,0)-1,COUNTA(raw!$A:$A)-1,1),回答数!$B50, OFFSET(raw!$A$1,2,MATCH($D$1,raw!$2:$2,0)-1,COUNTA(raw!$A:$A)-1,1),E$2) -> 14 | F50: =COUNTIFS( OFFSET(raw!$A$1,2,MATCH(回答数!$A50,raw!$2:$2,0)-1,COUNTA(raw!$A:$A)-1,1),回答数!$B50, OFFSET(raw!$A$1,2,MATCH($D$1,raw!$2:$2,0)-1,COUNTA(raw!$A:$A)-1,1),F$2) -> 8 | G50: =COUNTIFS( OFFSET(raw!$A$1,2,MATCH(回答数!$A50,raw!$2:$2,0)-1,COUNTA(raw!$A:$A)-1,1),回答数!$B50, OFFSET(raw!$A$1,2,MATCH($D$1,raw!$2:$2,0)-1,COUNTA(raw!$A:$A)-1,1),G$2) -> 0 | H50: =COUNTIFS( OFFSET(raw!$A$1,2,MATCH(回答数!$A50,raw!$2:$2,0)-1,COUNTA(raw!$A:$A)-1,1),回答数!$B50, OFFSET(raw!$A$1,2,MATCH($D$1,raw!$2:$2,0)-1,COUNTA(raw!$A:$A)-1,1),H$2) -> 0 | I50: =COUNTIFS( OFFSET(raw!$A$1,2,MATCH(回答数!$A50,raw!$2:$2,0)-1,COUNTA(raw!$A:$A)-1,1),回答数!$B50, OFFSET(raw!$A$1,2,MATCH($D$1,raw!$2:$2,0)-1,COUNTA(raw!$A:$A)-1,1),I$2) -> 0 | J50: =COUNTIFS( OFFSET(raw!$A$1,2,MATCH(回答数!$A50,raw!$2:$2,0)-1,COUNTA(raw!$A:$A)-1,1),回答数!$B50, OFFSET(raw!$A$1,2,MATCH($D$1,raw!$2:$2,0)-1,COUNTA(raw!$A:$A)-1,1),J$2) -> 0 | K50: =COUNTIFS( OFFSET(raw!$A$1,2,MATCH(回答数!$A50,raw!$2:$2,0)-1,COUNTA(raw!$A:$A)-1,1),回答数!$B50, OFFSET(raw!$A$1,2,MATCH($D$1,raw!$2:$2,0)-1,COUNTA(raw!$A:$A)-1,1),K$2) -> 0 | L50: =COUNTIFS( OFFSET(raw!$A$1,2,MATCH(回答数!$A50,raw!$2:$2,0)-1,COUNTA(raw!$A:$A)-1,1),回答数!$B50, OFFSET(raw!$A$1,2,MATCH($D$1,raw!$2:$2,0)-1,COUNTA(raw!$A:$A)-1,1),L$2) -> 0 | M50: =COUNTIFS( OFFSET(raw!$A$1,2,MATCH(回答数!$A50,raw!$2:$2,0)-1,COUNTA(raw!$A:$A)-1,1),回答数!$B50, OFFSET(raw!$A$1,2,MATCH($D$1,raw!$2:$2,0)-1,COUNTA(raw!$A:$A)-1,1),M$2) -> 0 | N50: =COUNTIFS( OFFSET(raw!$A$1,2,MATCH(回答数!$A50,raw!$2:$2,0)-1,COUNTA(raw!$A:$A)-1,1),回答数!$B50, OFFSET(raw!$A$1,2,MATCH($D$1,raw!$2:$2,0)-1,COUNTA(raw!$A:$A)-1,1),N$2) -> 0 | O50: =COUNTIFS( OFFSET(raw!$A$1,2,MATCH(回答数!$A50,raw!$2:$2,0)-1,COUNTA(raw!$A:$A)-1,1),回答数!$B50, OFFSET(raw!$A$1,2,MATCH($D$1,raw!$2:$2,0)-1,COUNTA(raw!$A:$A)-1,1),O$2) -> 0 | P50: 22
A51: 回答エリア | B51: 日本海さかな街 エリア | D51: =COUNTIFS( OFFSET(raw!$A$1,2,MATCH(回答数!$A51,raw!$2:$2,0)-1,COUNTA(raw!$A:$A)-1,1),回答数!$B51, OFFSET(raw!$A$1,2,MATCH($D$1,raw!$2:$2,0)-1,COUNTA(raw!$A:$A)-1,1),D$2) -> 2 | E51: =COUNTIFS( OFFSET(raw!$A$1,2,MATCH(回答数!$A51,raw!$2:$2,0)-1,COUNTA(raw!$A:$A)-1,1),回答数!$B51, OFFSET(raw!$A$1,2,MATCH($D$1,raw!$2:$2,0)-1,COUNTA(raw!$A:$A)-1,1),E$2) -> 38 | F51: =COUNTIFS( OFFSET(raw!$A$1,2,MATCH(回答数!$A51,raw!$2:$2,0)-1,COUNTA(raw!$A:$A)-1,1),回答数!$B51, OFFSET(raw!$A$1,2,MATCH($D$1,raw!$2:$2,0)-1,COUNTA(raw!$A:$A)-1,1),F$2) -> 18 | G51: =COUNTIFS( OFFSET(raw!$A$1,2,MATCH(回答数!$A51,raw!$2:$2,0)-1,COUNTA(raw!$A:$A)-1,1),回答数!$B51, OFFSET(raw!$A$1,2,MATCH($D$1,raw!$2:$2,0)-1,COUNTA(raw!$A:$A)-1,1),G$2) -> 0 | H51: =COUNTIFS( OFFSET(raw!$A$1,2,MATCH(回答数!$A51,raw!$2:$2,0)-1,COUNTA(raw!$A:$A)-1,1),回答数!$B51, OFFSET(raw!$A$1,2,MATCH($D$1,raw!$2:$2,0)-1,COUNTA(raw!$A:$A)-1,1),H$2) -> 0 | I51: =COUNTIFS( OFFSET(raw!$A$1,2,MATCH(回答数!$A51,raw!$2:$2,0)-1,COUNTA(raw!$A:$A)-1,1),回答数!$B51, OFFSET(raw!$A$1,2,MATCH($D$1,raw!$2:$2,0)-1,COUNTA(raw!$A:$A)-1,1),I$2) -> 0 | J51: =COUNTIFS( OFFSET(raw!$A$1,2,MATCH(回答数!$A51,raw!$2:$2,0)-1,COUNTA(raw!$A:$A)-1,1),回答数!$B51, OFFSET(raw!$A$1,2,MATCH($D$1,raw!$2:$2,0)-1,COUNTA(raw!$A:$A)-1,1),J$2) -> 0 | K51: =COUNTIFS( OFFSET(raw!$A$1,2,MATCH(回答数!$A51,raw!$2:$2,0)-1,COUNTA(raw!$A:$A)-1,1),回答数!$B51, OFFSET(raw!$A$1,2,MATCH($D$1,raw!$2:$2,0)-1,COUNTA(raw!$A:$A)-1,1),K$2) -> 0 | L51: =COUNTIFS( OFFSET(raw!$A$1,2,MATCH(回答数!$A51,raw!$2:$2,0)-1,COUNTA(raw!$A:$A)-1,1),回答数!$B51, OFFSET(raw!$A$1,2,MATCH($D$1,raw!$2:$2,0)-1,COUNTA(raw!$A:$A)-1,1),L$2) -> 0 | M51: =COUNTIFS( OFFSET(raw!$A$1,2,MATCH(回答数!$A51,raw!$2:$2,0)-1,COUNTA(raw!$A:$A)-1,1),回答数!$B51, OFFSET(raw!$A$1,2,MATCH($D$1,raw!$2:$2,0)-1,COUNTA(raw!$A:$A)-1,1),M$2) -> 0 | N51: =COUNTIFS( OFFSET(raw!$A$1,2,MATCH(回答数!$A51,raw!$2:$2,0)-1,COUNTA(raw!$A:$A)-1,1),回答数!$B51, OFFSET(raw!$A$1,2,MATCH($D$1,raw!$2:$2,0)-1,COUNTA(raw!$A:$A)-1,1),N$2) -> 0 | O51: =COUNTIFS( OFFSET(raw!$A$1,2,MATCH(回答数!$A51,raw!$2:$2,0)-1,COUNTA(raw!$A:$A)-1,1),回答数!$B51, OFFSET(raw!$A$1,2,MATCH($D$1,raw!$2:$2,0)-1,COUNTA(raw!$A:$A)-1,1),O$2) -> 0 | P51: 58
A52: 回答エリア | B52: 氣比神宮 エリア | D52: =COUNTIFS( OFFSET(raw!$A$1,2,MATCH(回答数!$A52,raw!$2:$2,0)-1,COUNTA(raw!$A:$A)-1,1),回答数!$B52, OFFSET(raw!$A$1,2,MATCH($D$1,raw!$2:$2,0)-1,COUNTA(raw!$A:$A)-1,1),D$2) -> 1 | E52: =COUNTIFS( OFFSET(raw!$A$1,2,MATCH(回答数!$A52,raw!$2:$2,0)-1,COUNTA(raw!$A:$A)-1,1),回答数!$B52, OFFSET(raw!$A$1,2,MATCH($D$1,raw!$2:$2,0)-1,COUNTA(raw!$A:$A)-1,1),E$2) -> 17 | F52: =COUNTIFS( OFFSET(raw!$A$1,2,MATCH(回答数!$A52,raw!$2:$2,0)-1,COUNTA(raw!$A:$A)-1,1),回答数!$B52, OFFSET(raw!$A$1,2,MATCH($D$1,raw!$2:$2,0)-1,COUNTA(raw!$A:$A)-1,1),F$2) -> 4 | G52: =COUNTIFS( OFFSET(raw!$A$1,2,MATCH(回答数!$A52,raw!$2:$2,0)-1,COUNTA(raw!$A:$A)-1,1),回答数!$B52, OFFSET(raw!$A$1,2,MATCH($D$1,raw!$2:$2,0)-1,COUNTA(raw!$A:$A)-1,1),G$2) -> 0 | H52: =COUNTIFS( OFFSET(raw!$A$1,2,MATCH(回答数!$A52,raw!$2:$2,0)-1,COUNTA(raw!$A:$A)-1,1),回答数!$B52, OFFSET(raw!$A$1,2,MATCH($D$1,raw!$2:$2,0)-1,COUNTA(raw!$A:$A)-1,1),H$2) -> 0 | I52: =COUNTIFS( OFFSET(raw!$A$1,2,MATCH(回答数!$A52,raw!$2:$2,0)-1,COUNTA(raw!$A:$A)-1,1),回答数!$B52, OFFSET(raw!$A$1,2,MATCH($D$1,raw!$2:$2,0)-1,COUNTA(raw!$A:$A)-1,1),I$2) -> 0 | J52: =COUNTIFS( OFFSET(raw!$A$1,2,MATCH(回答数!$A52,raw!$2:$2,0)-1,COUNTA(raw!$A:$A)-1,1),回答数!$B52, OFFSET(raw!$A$1,2,MATCH($D$1,raw!$2:$2,0)-1,COUNTA(raw!$A:$A)-1,1),J$2) -> 0 | K52: =COUNTIFS( OFFSET(raw!$A$1,2,MATCH(回答数!$A52,raw!$2:$2,0)-1,COUNTA(raw!$A:$A)-1,1),回答数!$B52, OFFSET(raw!$A$1,2,MATCH($D$1,raw!$2:$2,0)-1,COUNTA(raw!$A:$A)-1,1),K$2) -> 0 | L52: =COUNTIFS( OFFSET(raw!$A$1,2,MATCH(回答数!$A52,raw!$2:$2,0)-1,COUNTA(raw!$A:$A)-1,1),回答数!$B52, OFFSET(raw!$A$1,2,MATCH($D$1,raw!$2:$2,0)-1,COUNTA(raw!$A:$A)-1,1),L$2) -> 0 | M52: =COUNTIFS( OFFSET(raw!$A$1,2,MATCH(回答数!$A52,raw!$2:$2,0)-1,COUNTA(raw!$A:$A)-1,1),回答数!$B52, OFFSET(raw!$A$1,2,MATCH($D$1,raw!$2:$2,0)-1,COUNTA(raw!$A:$A)-1,1),M$2) -> 0 | N52: =COUNTIFS( OFFSET(raw!$A$1,2,MATCH(回答数!$A52,raw!$2:$2,0)-1,COUNTA(raw!$A:$A)-1,1),回答数!$B52, OFFSET(raw!$A$1,2,MATCH($D$1,raw!$2:$2,0)-1,COUNTA(raw!$A:$A)-1,1),N$2) -> 0 | O52: =COUNTIFS( OFFSET(raw!$A$1,2,MATCH(回答数!$A52,raw!$2:$2,0)-1,COUNTA(raw!$A:$A)-1,1),回答数!$B52, OFFSET(raw!$A$1,2,MATCH($D$1,raw!$2:$2,0)-1,COUNTA(raw!$A:$A)-1,1),O$2) -> 0 | P52: 22
A53: 回答エリア | B53: JR敦賀駅前 エリア | D53: =COUNTIFS( OFFSET(raw!$A$1,2,MATCH(回答数!$A53,raw!$2:$2,0)-1,COUNTA(raw!$A:$A)-1,1),回答数!$B53, OFFSET(raw!$A$1,2,MATCH($D$1,raw!$2:$2,0)-1,COUNTA(raw!$A:$A)-1,1),D$2) -> 0 | E53: =COUNTIFS( OFFSET(raw!$A$1,2,MATCH(回答数!$A53,raw!$2:$2,0)-1,COUNTA(raw!$A:$A)-1,1),回答数!$B53, OFFSET(raw!$A$1,2,MATCH($D$1,raw!$2:$2,0)-1,COUNTA(raw!$A:$A)-1,1),E$2) -> 17 | F53: =COUNTIFS( OFFSET(raw!$A$1,2,MATCH(回答数!$A53,raw!$2:$2,0)-1,COUNTA(raw!$A:$A)-1,1),回答数!$B53, OFFSET(raw!$A$1,2,MATCH($D$1,raw!$2:$2,0)-1,COUNTA(raw!$A:$A)-1,1),F$2) -> 12 | G53: =COUNTIFS( OFFSET(raw!$A$1,2,MATCH(回答数!$A53,raw!$2:$2,0)-1,COUNTA(raw!$A:$A)-1,1),回答数!$B53, OFFSET(raw!$A$1,2,MATCH($D$1,raw!$2:$2,0)-1,COUNTA(raw!$A:$A)-1,1),G$2) -> 0 | H53: =COUNTIFS( OFFSET(raw!$A$1,2,MATCH(回答数!$A53,raw!$2:$2,0)-1,COUNTA(raw!$A:$A)-1,1),回答数!$B53, OFFSET(raw!$A$1,2,MATCH($D$1,raw!$2:$2,0)-1,COUNTA(raw!$A:$A)-1,1),H$2) -> 0 | I53: =COUNTIFS( OFFSET(raw!$A$1,2,MATCH(回答数!$A53,raw!$2:$2,0)-1,COUNTA(raw!$A:$A)-1,1),回答数!$B53, OFFSET(raw!$A$1,2,MATCH($D$1,raw!$2:$2,0)-1,COUNTA(raw!$A:$A)-1,1),I$2) -> 0 | J53: =COUNTIFS( OFFSET(raw!$A$1,2,MATCH(回答数!$A53,raw!$2:$2,0)-1,COUNTA(raw!$A:$A)-1,1),回答数!$B53, OFFSET(raw!$A$1,2,MATCH($D$1,raw!$2:$2,0)-1,COUNTA(raw!$A:$A)-1,1),J$2) -> 0 | K53: =COUNTIFS( OFFSET(raw!$A$1,2,MATCH(回答数!$A53,raw!$2:$2,0)-1,COUNTA(raw!$A:$A)-1,1),回答数!$B53, OFFSET(raw!$A$1,2,MATCH($D$1,raw!$2:$2,0)-1,COUNTA(raw!$A:$A)-1,1),K$2) -> 0 | L53: =COUNTIFS( OFFSET(raw!$A$1,2,MATCH(回答数!$A53,raw!$2:$2,0)-1,COUNTA(raw!$A:$A)-1,1),回答数!$B53, OFFSET(raw!$A$1,2,MATCH($D$1,raw!$2:$2,0)-1,COUNTA(raw!$A:$A)-1,1),L$2) -> 0 | M53: =COUNTIFS( OFFSET(raw!$A$1,2,MATCH(回答数!$A53,raw!$2:$2,0)-1,COUNTA(raw!$A:$A)-1,1),回答数!$B53, OFFSET(raw!$A$1,2,MATCH($D$1,raw!$2:$2,0)-1,COUNTA(raw!$A:$A)-1,1),M$2) -> 0 | N53: =COUNTIFS( OFFSET(raw!$A$1,2,MATCH(回答数!$A53,raw!$2:$2,0)-1,COUNTA(raw!$A:$A)-1,1),回答数!$B53, OFFSET(raw!$A$1,2,MATCH($D$1,raw!$2:$2,0)-1,COUNTA(raw!$A:$A)-1,1),N$2) -> 0 | O53: =COUNTIFS( OFFSET(raw!$A$1,2,MATCH(回答数!$A53,raw!$2:$2,0)-1,COUNTA(raw!$A:$A)-1,1),回答数!$B53, OFFSET(raw!$A$1,2,MATCH($D$1,raw!$2:$2,0)-1,COUNTA(raw!$A:$A)-1,1),O$2) -> 0 | P53: 29
A54: 回答エリア | B54: 金ヶ崎 エリア | D54: =COUNTIFS( OFFSET(raw!$A$1,2,MATCH(回答数!$A54,raw!$2:$2,0)-1,COUNTA(raw!$A:$A)-1,1),回答数!$B54, OFFSET(raw!$A$1,2,MATCH($D$1,raw!$2:$2,0)-1,COUNTA(raw!$A:$A)-1,1),D$2) -> 8 | E54: =COUNTIFS( OFFSET(raw!$A$1,2,MATCH(回答数!$A54,raw!$2:$2,0)-1,COUNTA(raw!$A:$A)-1,1),回答数!$B54, OFFSET(raw!$A$1,2,MATCH($D$1,raw!$2:$2,0)-1,COUNTA(raw!$A:$A)-1,1),E$2) -> 43 | F54: =COUNTIFS( OFFSET(raw!$A$1,2,MATCH(回答数!$A54,raw!$2:$2,0)-1,COUNTA(raw!$A:$A)-1,1),回答数!$B54, OFFSET(raw!$A$1,2,MATCH($D$1,raw!$2:$2,0)-1,COUNTA(raw!$A:$A)-1,1),F$2) -> 14 | G54: =COUNTIFS( OFFSET(raw!$A$1,2,MATCH(回答数!$A54,raw!$2:$2,0)-1,COUNTA(raw!$A:$A)-1,1),回答数!$B54, OFFSET(raw!$A$1,2,MATCH($D$1,raw!$2:$2,0)-1,COUNTA(raw!$A:$A)-1,1),G$2) -> 0 | H54: =COUNTIFS( OFFSET(raw!$A$1,2,MATCH(回答数!$A54,raw!$2:$2,0)-1,COUNTA(raw!$A:$A)-1,1),回答数!$B54, OFFSET(raw!$A$1,2,MATCH($D$1,raw!$2:$2,0)-1,COUNTA(raw!$A:$A)-1,1),H$2) -> 0 | I54: =COUNTIFS( OFFSET(raw!$A$1,2,MATCH(回答数!$A54,raw!$2:$2,0)-1,COUNTA(raw!$A:$A)-1,1),回答数!$B54, OFFSET(raw!$A$1,2,MATCH($D$1,raw!$2:$2,0)-1,COUNTA(raw!$A:$A)-1,1),I$2) -> 0 | J54: =COUNTIFS( OFFSET(raw!$A$1,2,MATCH(回答数!$A54,raw!$2:$2,0)-1,COUNTA(raw!$A:$A)-1,1),回答数!$B54, OFFSET(raw!$A$1,2,MATCH($D$1,raw!$2:$2,0)-1,COUNTA(raw!$A:$A)-1,1),J$2) -> 0 | K54: =COUNTIFS( OFFSET(raw!$A$1,2,MATCH(回答数!$A54,raw!$2:$2,0)-1,COUNTA(raw!$A:$A)-1,1),回答数!$B54, OFFSET(raw!$A$1,2,MATCH($D$1,raw!$2:$2,0)-1,COUNTA(raw!$A:$A)-1,1),K$2) -> 0 | L54: =COUNTIFS( OFFSET(raw!$A$1,2,MATCH(回答数!$A54,raw!$2:$2,0)-1,COUNTA(raw!$A:$A)-1,1),回答数!$B54, OFFSET(raw!$A$1,2,MATCH($D$1,raw!$2:$2,0)-1,COUNTA(raw!$A:$A)-1,1),L$2) -> 0 | M54: =COUNTIFS( OFFSET(raw!$A$1,2,MATCH(回答数!$A54,raw!$2:$2,0)-1,COUNTA(raw!$A:$A)-1,1),回答数!$B54, OFFSET(raw!$A$1,2,MATCH($D$1,raw!$2:$2,0)-1,COUNTA(raw!$A:$A)-1,1),M$2) -> 0 | N54: =COUNTIFS( OFFSET(raw!$A$1,2,MATCH(回答数!$A54,raw!$2:$2,0)-1,COUNTA(raw!$A:$A)-1,1),回答数!$B54, OFFSET(raw!$A$1,2,MATCH($D$1,raw!$2:$2,0)-1,COUNTA(raw!$A:$A)-1,1),N$2) -> 0 | O54: =COUNTIFS( OFFSET(raw!$A$1,2,MATCH(回答数!$A54,raw!$2:$2,0)-1,COUNTA(raw!$A:$A)-1,1),回答数!$B54, OFFSET(raw!$A$1,2,MATCH($D$1,raw!$2:$2,0)-1,COUNTA(raw!$A:$A)-1,1),O$2) -> 0 | P54: 65
A55: 回答エリア | B55: 敦賀市立博物館 エリア | D55: =COUNTIFS( OFFSET(raw!$A$1,2,MATCH(回答数!$A55,raw!$2:$2,0)-1,COUNTA(raw!$A:$A)-1,1),回答数!$B55, OFFSET(raw!$A$1,2,MATCH($D$1,raw!$2:$2,0)-1,COUNTA(raw!$A:$A)-1,1),D$2) -> 1 | E55: =COUNTIFS( OFFSET(raw!$A$1,2,MATCH(回答数!$A55,raw!$2:$2,0)-1,COUNTA(raw!$A:$A)-1,1),回答数!$B55, OFFSET(raw!$A$1,2,MATCH($D$1,raw!$2:$2,0)-1,COUNTA(raw!$A:$A)-1,1),E$2) -> 0 | F55: =COUNTIFS( OFFSET(raw!$A$1,2,MATCH(回答数!$A55,raw!$2:$2,0)-1,COUNTA(raw!$A:$A)-1,1),回答数!$B55, OFFSET(raw!$A$1,2,MATCH($D$1,raw!$2:$2,0)-1,COUNTA(raw!$A:$A)-1,1),F$2) -> 2 | G55: =COUNTIFS( OFFSET(raw!$A$1,2,MATCH(回答数!$A55,raw!$2:$2,0)-1,COUNTA(raw!$A:$A)-1,1),回答数!$B55, OFFSET(raw!$A$1,2,MATCH($D$1,raw!$2:$2,0)-1,COUNTA(raw!$A:$A)-1,1),G$2) -> 0 | H55: =COUNTIFS( OFFSET(raw!$A$1,2,MATCH(回答数!$A55,raw!$2:$2,0)-1,COUNTA(raw!$A:$A)-1,1),回答数!$B55, OFFSET(raw!$A$1,2,MATCH($D$1,raw!$2:$2,0)-1,COUNTA(raw!$A:$A)-1,1),H$2) -> 0 | I55: =COUNTIFS( OFFSET(raw!$A$1,2,MATCH(回答数!$A55,raw!$2:$2,0)-1,COUNTA(raw!$A:$A)-1,1),回答数!$B55, OFFSET(raw!$A$1,2,MATCH($D$1,raw!$2:$2,0)-1,COUNTA(raw!$A:$A)-1,1),I$2) -> 0 | J55: =COUNTIFS( OFFSET(raw!$A$1,2,MATCH(回答数!$A55,raw!$2:$2,0)-1,COUNTA(raw!$A:$A)-1,1),回答数!$B55, OFFSET(raw!$A$1,2,MATCH($D$1,raw!$2:$2,0)-1,COUNTA(raw!$A:$A)-1,1),J$2) -> 0 | K55: =COUNTIFS( OFFSET(raw!$A$1,2,MATCH(回答数!$A55,raw!$2:$2,0)-1,COUNTA(raw!$A:$A)-1,1),回答数!$B55, OFFSET(raw!$A$1,2,MATCH($D$1,raw!$2:$2,0)-1,COUNTA(raw!$A:$A)-1,1),K$2) -> 0 | L55: =COUNTIFS( OFFSET(raw!$A$1,2,MATCH(回答数!$A55,raw!$2:$2,0)-1,COUNTA(raw!$A:$A)-1,1),回答数!$B55, OFFSET(raw!$A$1,2,MATCH($D$1,raw!$2:$2,0)-1,COUNTA(raw!$A:$A)-1,1),L$2) -> 0 | M55: =COUNTIFS( OFFSET(raw!$A$1,2,MATCH(回答数!$A55,raw!$2:$2,0)-1,COUNTA(raw!$A:$A)-1,1),回答数!$B55, OFFSET(raw!$A$1,2,MATCH($D$1,raw!$2:$2,0)-1,COUNTA(raw!$A:$A)-1,1),M$2) -> 0 | N55: =COUNTIFS( OFFSET(raw!$A$1,2,MATCH(回答数!$A55,raw!$2:$2,0)-1,COUNTA(raw!$A:$A)-1,1),回答数!$B55, OFFSET(raw!$A$1,2,MATCH($D$1,raw!$2:$2,0)-1,COUNTA(raw!$A:$A)-1,1),N$2) -> 0 | O55: =COUNTIFS( OFFSET(raw!$A$1,2,MATCH(回答数!$A55,raw!$2:$2,0)-1,COUNTA(raw!$A:$A)-1,1),回答数!$B55, OFFSET(raw!$A$1,2,MATCH($D$1,raw!$2:$2,0)-1,COUNTA(raw!$A:$A)-1,1),O$2) -> 0 | P55: 3
A56: 回答エリア | B56: 道の駅「若狭おばま」 エリア | D56: =COUNTIFS( OFFSET(raw!$A$1,2,MATCH(回答数!$A56,raw!$2:$2,0)-1,COUNTA(raw!$A:$A)-1,1),回答数!$B56, OFFSET(raw!$A$1,2,MATCH($D$1,raw!$2:$2,0)-1,COUNTA(raw!$A:$A)-1,1),D$2) -> 5 | E56: =COUNTIFS( OFFSET(raw!$A$1,2,MATCH(回答数!$A56,raw!$2:$2,0)-1,COUNTA(raw!$A:$A)-1,1),回答数!$B56, OFFSET(raw!$A$1,2,MATCH($D$1,raw!$2:$2,0)-1,COUNTA(raw!$A:$A)-1,1),E$2) -> 49 | F56: =COUNTIFS( OFFSET(raw!$A$1,2,MATCH(回答数!$A56,raw!$2:$2,0)-1,COUNTA(raw!$A:$A)-1,1),回答数!$B56, OFFSET(raw!$A$1,2,MATCH($D$1,raw!$2:$2,0)-1,COUNTA(raw!$A:$A)-1,1),F$2) -> 34 | G56: =COUNTIFS( OFFSET(raw!$A$1,2,MATCH(回答数!$A56,raw!$2:$2,0)-1,COUNTA(raw!$A:$A)-1,1),回答数!$B56, OFFSET(raw!$A$1,2,MATCH($D$1,raw!$2:$2,0)-1,COUNTA(raw!$A:$A)-1,1),G$2) -> 0 | H56: =COUNTIFS( OFFSET(raw!$A$1,2,MATCH(回答数!$A56,raw!$2:$2,0)-1,COUNTA(raw!$A:$A)-1,1),回答数!$B56, OFFSET(raw!$A$1,2,MATCH($D$1,raw!$2:$2,0)-1,COUNTA(raw!$A:$A)-1,1),H$2) -> 0 | I56: =COUNTIFS( OFFSET(raw!$A$1,2,MATCH(回答数!$A56,raw!$2:$2,0)-1,COUNTA(raw!$A:$A)-1,1),回答数!$B56, OFFSET(raw!$A$1,2,MATCH($D$1,raw!$2:$2,0)-1,COUNTA(raw!$A:$A)-1,1),I$2) -> 0 | J56: =COUNTIFS( OFFSET(raw!$A$1,2,MATCH(回答数!$A56,raw!$2:$2,0)-1,COUNTA(raw!$A:$A)-1,1),回答数!$B56, OFFSET(raw!$A$1,2,MATCH($D$1,raw!$2:$2,0)-1,COUNTA(raw!$A:$A)-1,1),J$2) -> 0 | K56: =COUNTIFS( OFFSET(raw!$A$1,2,MATCH(回答数!$A56,raw!$2:$2,0)-1,COUNTA(raw!$A:$A)-1,1),回答数!$B56, OFFSET(raw!$A$1,2,MATCH($D$1,raw!$2:$2,0)-1,COUNTA(raw!$A:$A)-1,1),K$2) -> 0 | L56: =COUNTIFS( OFFSET(raw!$A$1,2,MATCH(回答数!$A56,raw!$2:$2,0)-1,COUNTA(raw!$A:$A)-1,1),回答数!$B56, OFFSET(raw!$A$1,2,MATCH($D$1,raw!$2:$2,0)-1,COUNTA(raw!$A:$A)-1,1),L$2) -> 0 | M56: =COUNTIFS( OFFSET(raw!$A$1,2,MATCH(回答数!$A56,raw!$2:$2,0)-1,COUNTA(raw!$A:$A)-1,1),回答数!$B56, OFFSET(raw!$A$1,2,MATCH($D$1,raw!$2:$2,0)-1,COUNTA(raw!$A:$A)-1,1),M$2) -> 0 | N56: =COUNTIFS( OFFSET(raw!$A$1,2,MATCH(回答数!$A56,raw!$2:$2,0)-1,COUNTA(raw!$A:$A)-1,1),回答数!$B56, OFFSET(raw!$A$1,2,MATCH($D$1,raw!$2:$2,0)-1,COUNTA(raw!$A:$A)-1,1),N$2) -> 0 | O56: =COUNTIFS( OFFSET(raw!$A$1,2,MATCH(回答数!$A56,raw!$2:$2,0)-1,COUNTA(raw!$A:$A)-1,1),回答数!$B56, OFFSET(raw!$A$1,2,MATCH($D$1,raw!$2:$2,0)-1,COUNTA(raw!$A:$A)-1,1),O$2) -> 0 | P56: 88
A57: 回答エリア | B57: 小浜町家ステイ エリア | D57: =COUNTIFS( OFFSET(raw!$A$1,2,MATCH(回答数!$A57,raw!$2:$2,0)-1,COUNTA(raw!$A:$A)-1,1),回答数!$B57, OFFSET(raw!$A$1,2,MATCH($D$1,raw!$2:$2,0)-1,COUNTA(raw!$A:$A)-1,1),D$2) -> 0 | E57: =COUNTIFS( OFFSET(raw!$A$1,2,MATCH(回答数!$A57,raw!$2:$2,0)-1,COUNTA(raw!$A:$A)-1,1),回答数!$B57, OFFSET(raw!$A$1,2,MATCH($D$1,raw!$2:$2,0)-1,COUNTA(raw!$A:$A)-1,1),E$2) -> 1 | F57: =COUNTIFS( OFFSET(raw!$A$1,2,MATCH(回答数!$A57,raw!$2:$2,0)-1,COUNTA(raw!$A:$A)-1,1),回答数!$B57, OFFSET(raw!$A$1,2,MATCH($D$1,raw!$2:$2,0)-1,COUNTA(raw!$A:$A)-1,1),F$2) -> 0 | G57: =COUNTIFS( OFFSET(raw!$A$1,2,MATCH(回答数!$A57,raw!$2:$2,0)-1,COUNTA(raw!$A:$A)-1,1),回答数!$B57, OFFSET(raw!$A$1,2,MATCH($D$1,raw!$2:$2,0)-1,COUNTA(raw!$A:$A)-1,1),G$2) -> 0 | H57: =COUNTIFS( OFFSET(raw!$A$1,2,MATCH(回答数!$A57,raw!$2:$2,0)-1,COUNTA(raw!$A:$A)-1,1),回答数!$B57, OFFSET(raw!$A$1,2,MATCH($D$1,raw!$2:$2,0)-1,COUNTA(raw!$A:$A)-1,1),H$2) -> 0 | I57: =COUNTIFS( OFFSET(raw!$A$1,2,MATCH(回答数!$A57,raw!$2:$2,0)-1,COUNTA(raw!$A:$A)-1,1),回答数!$B57, OFFSET(raw!$A$1,2,MATCH($D$1,raw!$2:$2,0)-1,COUNTA(raw!$A:$A)-1,1),I$2) -> 0 | J57: =COUNTIFS( OFFSET(raw!$A$1,2,MATCH(回答数!$A57,raw!$2:$2,0)-1,COUNTA(raw!$A:$A)-1,1),回答数!$B57, OFFSET(raw!$A$1,2,MATCH($D$1,raw!$2:$2,0)-1,COUNTA(raw!$A:$A)-1,1),J$2) -> 0 | K57: =COUNTIFS( OFFSET(raw!$A$1,2,MATCH(回答数!$A57,raw!$2:$2,0)-1,COUNTA(raw!$A:$A)-1,1),回答数!$B57, OFFSET(raw!$A$1,2,MATCH($D$1,raw!$2:$2,0)-1,COUNTA(raw!$A:$A)-1,1),K$2) -> 0 | L57: =COUNTIFS( OFFSET(raw!$A$1,2,MATCH(回答数!$A57,raw!$2:$2,0)-1,COUNTA(raw!$A:$A)-1,1),回答数!$B57, OFFSET(raw!$A$1,2,MATCH($D$1,raw!$2:$2,0)-1,COUNTA(raw!$A:$A)-1,1),L$2) -> 0 | M57: =COUNTIFS( OFFSET(raw!$A$1,2,MATCH(回答数!$A57,raw!$2:$2,0)-1,COUNTA(raw!$A:$A)-1,1),回答数!$B57, OFFSET(raw!$A$1,2,MATCH($D$1,raw!$2:$2,0)-1,COUNTA(raw!$A:$A)-1,1),M$2) -> 0 | N57: =COUNTIFS( OFFSET(raw!$A$1,2,MATCH(回答数!$A57,raw!$2:$2,0)-1,COUNTA(raw!$A:$A)-1,1),回答数!$B57, OFFSET(raw!$A$1,2,MATCH($D$1,raw!$2:$2,0)-1,COUNTA(raw!$A:$A)-1,1),N$2) -> 0 | O57: =COUNTIFS( OFFSET(raw!$A$1,2,MATCH(回答数!$A57,raw!$2:$2,0)-1,COUNTA(raw!$A:$A)-1,1),回答数!$B57, OFFSET(raw!$A$1,2,MATCH($D$1,raw!$2:$2,0)-1,COUNTA(raw!$A:$A)-1,1),O$2) -> 0 | P57: 1
A58: 回答エリア | B58: 若狭フィッシャーマンズワーフ エリア | D58: =COUNTIFS( OFFSET(raw!$A$1,2,MATCH(回答数!$A58,raw!$2:$2,0)-1,COUNTA(raw!$A:$A)-1,1),回答数!$B58, OFFSET(raw!$A$1,2,MATCH($D$1,raw!$2:$2,0)-1,COUNTA(raw!$A:$A)-1,1),D$2) -> 3 | E58: =COUNTIFS( OFFSET(raw!$A$1,2,MATCH(回答数!$A58,raw!$2:$2,0)-1,COUNTA(raw!$A:$A)-1,1),回答数!$B58, OFFSET(raw!$A$1,2,MATCH($D$1,raw!$2:$2,0)-1,COUNTA(raw!$A:$A)-1,1),E$2) -> 31 | F58: =COUNTIFS( OFFSET(raw!$A$1,2,MATCH(回答数!$A58,raw!$2:$2,0)-1,COUNTA(raw!$A:$A)-1,1),回答数!$B58, OFFSET(raw!$A$1,2,MATCH($D$1,raw!$2:$2,0)-1,COUNTA(raw!$A:$A)-1,1),F$2) -> 19 | G58: =COUNTIFS( OFFSET(raw!$A$1,2,MATCH(回答数!$A58,raw!$2:$2,0)-1,COUNTA(raw!$A:$A)-1,1),回答数!$B58, OFFSET(raw!$A$1,2,MATCH($D$1,raw!$2:$2,0)-1,COUNTA(raw!$A:$A)-1,1),G$2) -> 0 | H58: =COUNTIFS( OFFSET(raw!$A$1,2,MATCH(回答数!$A58,raw!$2:$2,0)-1,COUNTA(raw!$A:$A)-1,1),回答数!$B58, OFFSET(raw!$A$1,2,MATCH($D$1,raw!$2:$2,0)-1,COUNTA(raw!$A:$A)-1,1),H$2) -> 0 | I58: =COUNTIFS( OFFSET(raw!$A$1,2,MATCH(回答数!$A58,raw!$2:$2,0)-1,COUNTA(raw!$A:$A)-1,1),回答数!$B58, OFFSET(raw!$A$1,2,MATCH($D$1,raw!$2:$2,0)-1,COUNTA(raw!$A:$A)-1,1),I$2) -> 0 | J58: =COUNTIFS( OFFSET(raw!$A$1,2,MATCH(回答数!$A58,raw!$2:$2,0)-1,COUNTA(raw!$A:$A)-1,1),回答数!$B58, OFFSET(raw!$A$1,2,MATCH($D$1,raw!$2:$2,0)-1,COUNTA(raw!$A:$A)-1,1),J$2) -> 0 | K58: =COUNTIFS( OFFSET(raw!$A$1,2,MATCH(回答数!$A58,raw!$2:$2,0)-1,COUNTA(raw!$A:$A)-1,1),回答数!$B58, OFFSET(raw!$A$1,2,MATCH($D$1,raw!$2:$2,0)-1,COUNTA(raw!$A:$A)-1,1),K$2) -> 0 | L58: =COUNTIFS( OFFSET(raw!$A$1,2,MATCH(回答数!$A58,raw!$2:$2,0)-1,COUNTA(raw!$A:$A)-1,1),回答数!$B58, OFFSET(raw!$A$1,2,MATCH($D$1,raw!$2:$2,0)-1,COUNTA(raw!$A:$A)-1,1),L$2) -> 0 | M58: =COUNTIFS( OFFSET(raw!$A$1,2,MATCH(回答数!$A58,raw!$2:$2,0)-1,COUNTA(raw!$A:$A)-1,1),回答数!$B58, OFFSET(raw!$A$1,2,MATCH($D$1,raw!$2:$2,0)-1,COUNTA(raw!$A:$A)-1,1),M$2) -> 0 | N58: =COUNTIFS( OFFSET(raw!$A$1,2,MATCH(回答数!$A58,raw!$2:$2,0)-1,COUNTA(raw!$A:$A)-1,1),回答数!$B58, OFFSET(raw!$A$1,2,MATCH($D$1,raw!$2:$2,0)-1,COUNTA(raw!$A:$A)-1,1),N$2) -> 0 | O58: =COUNTIFS( OFFSET(raw!$A$1,2,MATCH(回答数!$A58,raw!$2:$2,0)-1,COUNTA(raw!$A:$A)-1,1),回答数!$B58, OFFSET(raw!$A$1,2,MATCH($D$1,raw!$2:$2,0)-1,COUNTA(raw!$A:$A)-1,1),O$2) -> 0 | P58: 53
A59: 回答エリア | B59: 御食国若狭おばま食文化館 エリア | D59: =COUNTIFS( OFFSET(raw!$A$1,2,MATCH(回答数!$A59,raw!$2:$2,0)-1,COUNTA(raw!$A:$A)-1,1),回答数!$B59, OFFSET(raw!$A$1,2,MATCH($D$1,raw!$2:$2,0)-1,COUNTA(raw!$A:$A)-1,1),D$2) -> 1 | E59: =COUNTIFS( OFFSET(raw!$A$1,2,MATCH(回答数!$A59,raw!$2:$2,0)-1,COUNTA(raw!$A:$A)-1,1),回答数!$B59, OFFSET(raw!$A$1,2,MATCH($D$1,raw!$2:$2,0)-1,COUNTA(raw!$A:$A)-1,1),E$2) -> 23 | F59: =COUNTIFS( OFFSET(raw!$A$1,2,MATCH(回答数!$A59,raw!$2:$2,0)-1,COUNTA(raw!$A:$A)-1,1),回答数!$B59, OFFSET(raw!$A$1,2,MATCH($D$1,raw!$2:$2,0)-1,COUNTA(raw!$A:$A)-1,1),F$2) -> 13 | G59: =COUNTIFS( OFFSET(raw!$A$1,2,MATCH(回答数!$A59,raw!$2:$2,0)-1,COUNTA(raw!$A:$A)-1,1),回答数!$B59, OFFSET(raw!$A$1,2,MATCH($D$1,raw!$2:$2,0)-1,COUNTA(raw!$A:$A)-1,1),G$2) -> 0 | H59: =COUNTIFS( OFFSET(raw!$A$1,2,MATCH(回答数!$A59,raw!$2:$2,0)-1,COUNTA(raw!$A:$A)-1,1),回答数!$B59, OFFSET(raw!$A$1,2,MATCH($D$1,raw!$2:$2,0)-1,COUNTA(raw!$A:$A)-1,1),H$2) -> 0 | I59: =COUNTIFS( OFFSET(raw!$A$1,2,MATCH(回答数!$A59,raw!$2:$2,0)-1,COUNTA(raw!$A:$A)-1,1),回答数!$B59, OFFSET(raw!$A$1,2,MATCH($D$1,raw!$2:$2,0)-1,COUNTA(raw!$A:$A)-1,1),I$2) -> 0 | J59: =COUNTIFS( OFFSET(raw!$A$1,2,MATCH(回答数!$A59,raw!$2:$2,0)-1,COUNTA(raw!$A:$A)-1,1),回答数!$B59, OFFSET(raw!$A$1,2,MATCH($D$1,raw!$2:$2,0)-1,COUNTA(raw!$A:$A)-1,1),J$2) -> 0 | K59: =COUNTIFS( OFFSET(raw!$A$1,2,MATCH(回答数!$A59,raw!$2:$2,0)-1,COUNTA(raw!$A:$A)-1,1),回答数!$B59, OFFSET(raw!$A$1,2,MATCH($D$1,raw!$2:$2,0)-1,COUNTA(raw!$A:$A)-1,1),K$2) -> 0 | L59: =COUNTIFS( OFFSET(raw!$A$1,2,MATCH(回答数!$A59,raw!$2:$2,0)-1,COUNTA(raw!$A:$A)-1,1),回答数!$B59, OFFSET(raw!$A$1,2,MATCH($D$1,raw!$2:$2,0)-1,COUNTA(raw!$A:$A)-1,1),L$2) -> 0 | M59: =COUNTIFS( OFFSET(raw!$A$1,2,MATCH(回答数!$A59,raw!$2:$2,0)-1,COUNTA(raw!$A:$A)-1,1),回答数!$B59, OFFSET(raw!$A$1,2,MATCH($D$1,raw!$2:$2,0)-1,COUNTA(raw!$A:$A)-1,1),M$2) -> 0 | N59: =COUNTIFS( OFFSET(raw!$A$1,2,MATCH(回答数!$A59,raw!$2:$2,0)-1,COUNTA(raw!$A:$A)-1,1),回答数!$B59, OFFSET(raw!$A$1,2,MATCH($D$1,raw!$2:$2,0)-1,COUNTA(raw!$A:$A)-1,1),N$2) -> 0 | O59: =COUNTIFS( OFFSET(raw!$A$1,2,MATCH(回答数!$A59,raw!$2:$2,0)-1,COUNTA(raw!$A:$A)-1,1),回答数!$B59, OFFSET(raw!$A$1,2,MATCH($D$1,raw!$2:$2,0)-1,COUNTA(raw!$A:$A)-1,1),O$2) -> 0 | P59: 37
A60: 回答エリア | B60: 福井県立若狭歴史博物館 エリア | D60: =COUNTIFS( OFFSET(raw!$A$1,2,MATCH(回答数!$A60,raw!$2:$2,0)-1,COUNTA(raw!$A:$A)-1,1),回答数!$B60, OFFSET(raw!$A$1,2,MATCH($D$1,raw!$2:$2,0)-1,COUNTA(raw!$A:$A)-1,1),D$2) -> 1 | E60: =COUNTIFS( OFFSET(raw!$A$1,2,MATCH(回答数!$A60,raw!$2:$2,0)-1,COUNTA(raw!$A:$A)-1,1),回答数!$B60, OFFSET(raw!$A$1,2,MATCH($D$1,raw!$2:$2,0)-1,COUNTA(raw!$A:$A)-1,1),E$2) -> 7 | F60: =COUNTIFS( OFFSET(raw!$A$1,2,MATCH(回答数!$A60,raw!$2:$2,0)-1,COUNTA(raw!$A:$A)-1,1),回答数!$B60, OFFSET(raw!$A$1,2,MATCH($D$1,raw!$2:$2,0)-1,COUNTA(raw!$A:$A)-1,1),F$2) -> 1 | G60: =COUNTIFS( OFFSET(raw!$A$1,2,MATCH(回答数!$A60,raw!$2:$2,0)-1,COUNTA(raw!$A:$A)-1,1),回答数!$B60, OFFSET(raw!$A$1,2,MATCH($D$1,raw!$2:$2,0)-1,COUNTA(raw!$A:$A)-1,1),G$2) -> 0 | H60: =COUNTIFS( OFFSET(raw!$A$1,2,MATCH(回答数!$A60,raw!$2:$2,0)-1,COUNTA(raw!$A:$A)-1,1),回答数!$B60, OFFSET(raw!$A$1,2,MATCH($D$1,raw!$2:$2,0)-1,COUNTA(raw!$A:$A)-1,1),H$2) -> 0 | I60: =COUNTIFS( OFFSET(raw!$A$1,2,MATCH(回答数!$A60,raw!$2:$2,0)-1,COUNTA(raw!$A:$A)-1,1),回答数!$B60, OFFSET(raw!$A$1,2,MATCH($D$1,raw!$2:$2,0)-1,COUNTA(raw!$A:$A)-1,1),I$2) -> 0 | J60: =COUNTIFS( OFFSET(raw!$A$1,2,MATCH(回答数!$A60,raw!$2:$2,0)-1,COUNTA(raw!$A:$A)-1,1),回答数!$B60, OFFSET(raw!$A$1,2,MATCH($D$1,raw!$2:$2,0)-1,COUNTA(raw!$A:$A)-1,1),J$2) -> 0 | K60: =COUNTIFS( OFFSET(raw!$A$1,2,MATCH(回答数!$A60,raw!$2:$2,0)-1,COUNTA(raw!$A:$A)-1,1),回答数!$B60, OFFSET(raw!$A$1,2,MATCH($D$1,raw!$2:$2,0)-1,COUNTA(raw!$A:$A)-1,1),K$2) -> 0 | L60: =COUNTIFS( OFFSET(raw!$A$1,2,MATCH(回答数!$A60,raw!$2:$2,0)-1,COUNTA(raw!$A:$A)-1,1),回答数!$B60, OFFSET(raw!$A$1,2,MATCH($D$1,raw!$2:$2,0)-1,COUNTA(raw!$A:$A)-1,1),L$2) -> 0 | M60: =COUNTIFS( OFFSET(raw!$A$1,2,MATCH(回答数!$A60,raw!$2:$2,0)-1,COUNTA(raw!$A:$A)-1,1),回答数!$B60, OFFSET(raw!$A$1,2,MATCH($D$1,raw!$2:$2,0)-1,COUNTA(raw!$A:$A)-1,1),M$2) -> 0 | N60: =COUNTIFS( OFFSET(raw!$A$1,2,MATCH(回答数!$A60,raw!$2:$2,0)-1,COUNTA(raw!$A:$A)-1,1),回答数!$B60, OFFSET(raw!$A$1,2,MATCH($D$1,raw!$2:$2,0)-1,COUNTA(raw!$A:$A)-1,1),N$2) -> 0 | O60: =COUNTIFS( OFFSET(raw!$A$1,2,MATCH(回答数!$A60,raw!$2:$2,0)-1,COUNTA(raw!$A:$A)-1,1),回答数!$B60, OFFSET(raw!$A$1,2,MATCH($D$1,raw!$2:$2,0)-1,COUNTA(raw!$A:$A)-1,1),O$2) -> 0 | P60: 9
A61: 回答エリア | B61: 小浜市まちの駅 エリア | D61: =COUNTIFS( OFFSET(raw!$A$1,2,MATCH(回答数!$A61,raw!$2:$2,0)-1,COUNTA(raw!$A:$A)-1,1),回答数!$B61, OFFSET(raw!$A$1,2,MATCH($D$1,raw!$2:$2,0)-1,COUNTA(raw!$A:$A)-1,1),D$2) -> 0 | E61: =COUNTIFS( OFFSET(raw!$A$1,2,MATCH(回答数!$A61,raw!$2:$2,0)-1,COUNTA(raw!$A:$A)-1,1),回答数!$B61, OFFSET(raw!$A$1,2,MATCH($D$1,raw!$2:$2,0)-1,COUNTA(raw!$A:$A)-1,1),E$2) -> 14 | F61: =COUNTIFS( OFFSET(raw!$A$1,2,MATCH(回答数!$A61,raw!$2:$2,0)-1,COUNTA(raw!$A:$A)-1,1),回答数!$B61, OFFSET(raw!$A$1,2,MATCH($D$1,raw!$2:$2,0)-1,COUNTA(raw!$A:$A)-1,1),F$2) -> 6 | G61: =COUNTIFS( OFFSET(raw!$A$1,2,MATCH(回答数!$A61,raw!$2:$2,0)-1,COUNTA(raw!$A:$A)-1,1),回答数!$B61, OFFSET(raw!$A$1,2,MATCH($D$1,raw!$2:$2,0)-1,COUNTA(raw!$A:$A)-1,1),G$2) -> 0 | H61: =COUNTIFS( OFFSET(raw!$A$1,2,MATCH(回答数!$A61,raw!$2:$2,0)-1,COUNTA(raw!$A:$A)-1,1),回答数!$B61, OFFSET(raw!$A$1,2,MATCH($D$1,raw!$2:$2,0)-1,COUNTA(raw!$A:$A)-1,1),H$2) -> 0 | I61: =COUNTIFS( OFFSET(raw!$A$1,2,MATCH(回答数!$A61,raw!$2:$2,0)-1,COUNTA(raw!$A:$A)-1,1),回答数!$B61, OFFSET(raw!$A$1,2,MATCH($D$1,raw!$2:$2,0)-1,COUNTA(raw!$A:$A)-1,1),I$2) -> 0 | J61: =COUNTIFS( OFFSET(raw!$A$1,2,MATCH(回答数!$A61,raw!$2:$2,0)-1,COUNTA(raw!$A:$A)-1,1),回答数!$B61, OFFSET(raw!$A$1,2,MATCH($D$1,raw!$2:$2,0)-1,COUNTA(raw!$A:$A)-1,1),J$2) -> 0 | K61: =COUNTIFS( OFFSET(raw!$A$1,2,MATCH(回答数!$A61,raw!$2:$2,0)-1,COUNTA(raw!$A:$A)-1,1),回答数!$B61, OFFSET(raw!$A$1,2,MATCH($D$1,raw!$2:$2,0)-1,COUNTA(raw!$A:$A)-1,1),K$2) -> 0 | L61: =COUNTIFS( OFFSET(raw!$A$1,2,MATCH(回答数!$A61,raw!$2:$2,0)-1,COUNTA(raw!$A:$A)-1,1),回答数!$B61, OFFSET(raw!$A$1,2,MATCH($D$1,raw!$2:$2,0)-1,COUNTA(raw!$A:$A)-1,1),L$2) -> 0 | M61: =COUNTIFS( OFFSET(raw!$A$1,2,MATCH(回答数!$A61,raw!$2:$2,0)-1,COUNTA(raw!$A:$A)-1,1),回答数!$B61, OFFSET(raw!$A$1,2,MATCH($D$1,raw!$2:$2,0)-1,COUNTA(raw!$A:$A)-1,1),M$2) -> 0 | N61: =COUNTIFS( OFFSET(raw!$A$1,2,MATCH(回答数!$A61,raw!$2:$2,0)-1,COUNTA(raw!$A:$A)-1,1),回答数!$B61, OFFSET(raw!$A$1,2,MATCH($D$1,raw!$2:$2,0)-1,COUNTA(raw!$A:$A)-1,1),N$2) -> 0 | O61: =COUNTIFS( OFFSET(raw!$A$1,2,MATCH(回答数!$A61,raw!$2:$2,0)-1,COUNTA(raw!$A:$A)-1,1),回答数!$B61, OFFSET(raw!$A$1,2,MATCH($D$1,raw!$2:$2,0)-1,COUNTA(raw!$A:$A)-1,1),O$2) -> 0 | P61: 20
A62: 回答エリア | B62: 明通寺 エリア | D62: =COUNTIFS( OFFSET(raw!$A$1,2,MATCH(回答数!$A62,raw!$2:$2,0)-1,COUNTA(raw!$A:$A)-1,1),回答数!$B62, OFFSET(raw!$A$1,2,MATCH($D$1,raw!$2:$2,0)-1,COUNTA(raw!$A:$A)-1,1),D$2) -> 0 | E62: =COUNTIFS( OFFSET(raw!$A$1,2,MATCH(回答数!$A62,raw!$2:$2,0)-1,COUNTA(raw!$A:$A)-1,1),回答数!$B62, OFFSET(raw!$A$1,2,MATCH($D$1,raw!$2:$2,0)-1,COUNTA(raw!$A:$A)-1,1),E$2) -> 2 | F62: =COUNTIFS( OFFSET(raw!$A$1,2,MATCH(回答数!$A62,raw!$2:$2,0)-1,COUNTA(raw!$A:$A)-1,1),回答数!$B62, OFFSET(raw!$A$1,2,MATCH($D$1,raw!$2:$2,0)-1,COUNTA(raw!$A:$A)-1,1),F$2) -> 0 | G62: =COUNTIFS( OFFSET(raw!$A$1,2,MATCH(回答数!$A62,raw!$2:$2,0)-1,COUNTA(raw!$A:$A)-1,1),回答数!$B62, OFFSET(raw!$A$1,2,MATCH($D$1,raw!$2:$2,0)-1,COUNTA(raw!$A:$A)-1,1),G$2) -> 0 | H62: =COUNTIFS( OFFSET(raw!$A$1,2,MATCH(回答数!$A62,raw!$2:$2,0)-1,COUNTA(raw!$A:$A)-1,1),回答数!$B62, OFFSET(raw!$A$1,2,MATCH($D$1,raw!$2:$2,0)-1,COUNTA(raw!$A:$A)-1,1),H$2) -> 0 | I62: =COUNTIFS( OFFSET(raw!$A$1,2,MATCH(回答数!$A62,raw!$2:$2,0)-1,COUNTA(raw!$A:$A)-1,1),回答数!$B62, OFFSET(raw!$A$1,2,MATCH($D$1,raw!$2:$2,0)-1,COUNTA(raw!$A:$A)-1,1),I$2) -> 0 | J62: =COUNTIFS( OFFSET(raw!$A$1,2,MATCH(回答数!$A62,raw!$2:$2,0)-1,COUNTA(raw!$A:$A)-1,1),回答数!$B62, OFFSET(raw!$A$1,2,MATCH($D$1,raw!$2:$2,0)-1,COUNTA(raw!$A:$A)-1,1),J$2) -> 0 | K62: =COUNTIFS( OFFSET(raw!$A$1,2,MATCH(回答数!$A62,raw!$2:$2,0)-1,COUNTA(raw!$A:$A)-1,1),回答数!$B62, OFFSET(raw!$A$1,2,MATCH($D$1,raw!$2:$2,0)-1,COUNTA(raw!$A:$A)-1,1),K$2) -> 0 | L62: =COUNTIFS( OFFSET(raw!$A$1,2,MATCH(回答数!$A62,raw!$2:$2,0)-1,COUNTA(raw!$A:$A)-1,1),回答数!$B62, OFFSET(raw!$A$1,2,MATCH($D$1,raw!$2:$2,0)-1,COUNTA(raw!$A:$A)-1,1),L$2) -> 0 | M62: =COUNTIFS( OFFSET(raw!$A$1,2,MATCH(回答数!$A62,raw!$2:$2,0)-1,COUNTA(raw!$A:$A)-1,1),回答数!$B62, OFFSET(raw!$A$1,2,MATCH($D$1,raw!$2:$2,0)-1,COUNTA(raw!$A:$A)-1,1),M$2) -> 0 | N62: =COUNTIFS( OFFSET(raw!$A$1,2,MATCH(回答数!$A62,raw!$2:$2,0)-1,COUNTA(raw!$A:$A)-1,1),回答数!$B62, OFFSET(raw!$A$1,2,MATCH($D$1,raw!$2:$2,0)-1,COUNTA(raw!$A:$A)-1,1),N$2) -> 0 | O62: =COUNTIFS( OFFSET(raw!$A$1,2,MATCH(回答数!$A62,raw!$2:$2,0)-1,COUNTA(raw!$A:$A)-1,1),回答数!$B62, OFFSET(raw!$A$1,2,MATCH($D$1,raw!$2:$2,0)-1,COUNTA(raw!$A:$A)-1,1),O$2) -> 0 | P62: 2
A63: 回答エリア | B63: 箸のふるさと館WAKASA エリア | D63: =COUNTIFS( OFFSET(raw!$A$1,2,MATCH(回答数!$A63,raw!$2:$2,0)-1,COUNTA(raw!$A:$A)-1,1),回答数!$B63, OFFSET(raw!$A$1,2,MATCH($D$1,raw!$2:$2,0)-1,COUNTA(raw!$A:$A)-1,1),D$2) -> 1 | E63: =COUNTIFS( OFFSET(raw!$A$1,2,MATCH(回答数!$A63,raw!$2:$2,0)-1,COUNTA(raw!$A:$A)-1,1),回答数!$B63, OFFSET(raw!$A$1,2,MATCH($D$1,raw!$2:$2,0)-1,COUNTA(raw!$A:$A)-1,1),E$2) -> 4 | F63: =COUNTIFS( OFFSET(raw!$A$1,2,MATCH(回答数!$A63,raw!$2:$2,0)-1,COUNTA(raw!$A:$A)-1,1),回答数!$B63, OFFSET(raw!$A$1,2,MATCH($D$1,raw!$2:$2,0)-1,COUNTA(raw!$A:$A)-1,1),F$2) -> 1 | G63: =COUNTIFS( OFFSET(raw!$A$1,2,MATCH(回答数!$A63,raw!$2:$2,0)-1,COUNTA(raw!$A:$A)-1,1),回答数!$B63, OFFSET(raw!$A$1,2,MATCH($D$1,raw!$2:$2,0)-1,COUNTA(raw!$A:$A)-1,1),G$2) -> 0 | H63: =COUNTIFS( OFFSET(raw!$A$1,2,MATCH(回答数!$A63,raw!$2:$2,0)-1,COUNTA(raw!$A:$A)-1,1),回答数!$B63, OFFSET(raw!$A$1,2,MATCH($D$1,raw!$2:$2,0)-1,COUNTA(raw!$A:$A)-1,1),H$2) -> 0 | I63: =COUNTIFS( OFFSET(raw!$A$1,2,MATCH(回答数!$A63,raw!$2:$2,0)-1,COUNTA(raw!$A:$A)-1,1),回答数!$B63, OFFSET(raw!$A$1,2,MATCH($D$1,raw!$2:$2,0)-1,COUNTA(raw!$A:$A)-1,1),I$2) -> 0 | J63: =COUNTIFS( OFFSET(raw!$A$1,2,MATCH(回答数!$A63,raw!$2:$2,0)-1,COUNTA(raw!$A:$A)-1,1),回答数!$B63, OFFSET(raw!$A$1,2,MATCH($D$1,raw!$2:$2,0)-1,COUNTA(raw!$A:$A)-1,1),J$2) -> 0 | K63: =COUNTIFS( OFFSET(raw!$A$1,2,MATCH(回答数!$A63,raw!$2:$2,0)-1,COUNTA(raw!$A:$A)-1,1),回答数!$B63, OFFSET(raw!$A$1,2,MATCH($D$1,raw!$2:$2,0)-1,COUNTA(raw!$A:$A)-1,1),K$2) -> 0 | L63: =COUNTIFS( OFFSET(raw!$A$1,2,MATCH(回答数!$A63,raw!$2:$2,0)-1,COUNTA(raw!$A:$A)-1,1),回答数!$B63, OFFSET(raw!$A$1,2,MATCH($D$1,raw!$2:$2,0)-1,COUNTA(raw!$A:$A)-1,1),L$2) -> 0 | M63: =COUNTIFS( OFFSET(raw!$A$1,2,MATCH(回答数!$A63,raw!$2:$2,0)-1,COUNTA(raw!$A:$A)-1,1),回答数!$B63, OFFSET(raw!$A$1,2,MATCH($D$1,raw!$2:$2,0)-1,COUNTA(raw!$A:$A)-1,1),M$2) -> 0 | N63: =COUNTIFS( OFFSET(raw!$A$1,2,MATCH(回答数!$A63,raw!$2:$2,0)-1,COUNTA(raw!$A:$A)-1,1),回答数!$B63, OFFSET(raw!$A$1,2,MATCH($D$1,raw!$2:$2,0)-1,COUNTA(raw!$A:$A)-1,1),N$2) -> 0 | O63: =COUNTIFS( OFFSET(raw!$A$1,2,MATCH(回答数!$A63,raw!$2:$2,0)-1,COUNTA(raw!$A:$A)-1,1),回答数!$B63, OFFSET(raw!$A$1,2,MATCH($D$1,raw!$2:$2,0)-1,COUNTA(raw!$A:$A)-1,1),O$2) -> 0 | P63: 6
A64: 回答エリア | B64: レインボーライン エリア | D64: =COUNTIFS( OFFSET(raw!$A$1,2,MATCH(回答数!$A64,raw!$2:$2,0)-1,COUNTA(raw!$A:$A)-1,1),回答数!$B64, OFFSET(raw!$A$1,2,MATCH($D$1,raw!$2:$2,0)-1,COUNTA(raw!$A:$A)-1,1),D$2) -> 21 | E64: =COUNTIFS( OFFSET(raw!$A$1,2,MATCH(回答数!$A64,raw!$2:$2,0)-1,COUNTA(raw!$A:$A)-1,1),回答数!$B64, OFFSET(raw!$A$1,2,MATCH($D$1,raw!$2:$2,0)-1,COUNTA(raw!$A:$A)-1,1),E$2) -> 191 | F64: =COUNTIFS( OFFSET(raw!$A$1,2,MATCH(回答数!$A64,raw!$2:$2,0)-1,COUNTA(raw!$A:$A)-1,1),回答数!$B64, OFFSET(raw!$A$1,2,MATCH($D$1,raw!$2:$2,0)-1,COUNTA(raw!$A:$A)-1,1),F$2) -> 51 | G64: =COUNTIFS( OFFSET(raw!$A$1,2,MATCH(回答数!$A64,raw!$2:$2,0)-1,COUNTA(raw!$A:$A)-1,1),回答数!$B64, OFFSET(raw!$A$1,2,MATCH($D$1,raw!$2:$2,0)-1,COUNTA(raw!$A:$A)-1,1),G$2) -> 0 | H64: =COUNTIFS( OFFSET(raw!$A$1,2,MATCH(回答数!$A64,raw!$2:$2,0)-1,COUNTA(raw!$A:$A)-1,1),回答数!$B64, OFFSET(raw!$A$1,2,MATCH($D$1,raw!$2:$2,0)-1,COUNTA(raw!$A:$A)-1,1),H$2) -> 0 | I64: =COUNTIFS( OFFSET(raw!$A$1,2,MATCH(回答数!$A64,raw!$2:$2,0)-1,COUNTA(raw!$A:$A)-1,1),回答数!$B64, OFFSET(raw!$A$1,2,MATCH($D$1,raw!$2:$2,0)-1,COUNTA(raw!$A:$A)-1,1),I$2) -> 0 | J64: =COUNTIFS( OFFSET(raw!$A$1,2,MATCH(回答数!$A64,raw!$2:$2,0)-1,COUNTA(raw!$A:$A)-1,1),回答数!$B64, OFFSET(raw!$A$1,2,MATCH($D$1,raw!$2:$2,0)-1,COUNTA(raw!$A:$A)-1,1),J$2) -> 0 | K64: =COUNTIFS( OFFSET(raw!$A$1,2,MATCH(回答数!$A64,raw!$2:$2,0)-1,COUNTA(raw!$A:$A)-1,1),回答数!$B64, OFFSET(raw!$A$1,2,MATCH($D$1,raw!$2:$2,0)-1,COUNTA(raw!$A:$A)-1,1),K$2) -> 0 | L64: =COUNTIFS( OFFSET(raw!$A$1,2,MATCH(回答数!$A64,raw!$2:$2,0)-1,COUNTA(raw!$A:$A)-1,1),回答数!$B64, OFFSET(raw!$A$1,2,MATCH($D$1,raw!$2:$2,0)-1,COUNTA(raw!$A:$A)-1,1),L$2) -> 0 | M64: =COUNTIFS( OFFSET(raw!$A$1,2,MATCH(回答数!$A64,raw!$2:$2,0)-1,COUNTA(raw!$A:$A)-1,1),回答数!$B64, OFFSET(raw!$A$1,2,MATCH($D$1,raw!$2:$2,0)-1,COUNTA(raw!$A:$A)-1,1),M$2) -> 0 | N64: =COUNTIFS( OFFSET(raw!$A$1,2,MATCH(回答数!$A64,raw!$2:$2,0)-1,COUNTA(raw!$A:$A)-1,1),回答数!$B64, OFFSET(raw!$A$1,2,MATCH($D$1,raw!$2:$2,0)-1,COUNTA(raw!$A:$A)-1,1),N$2) -> 0 | O64: =COUNTIFS( OFFSET(raw!$A$1,2,MATCH(回答数!$A64,raw!$2:$2,0)-1,COUNTA(raw!$A:$A)-1,1),回答数!$B64, OFFSET(raw!$A$1,2,MATCH($D$1,raw!$2:$2,0)-1,COUNTA(raw!$A:$A)-1,1),O$2) -> 0 | P64: 263
A65: 回答エリア | B65: 若狭海遊バザール 千鳥苑 エリア | D65: =COUNTIFS( OFFSET(raw!$A$1,2,MATCH(回答数!$A65,raw!$2:$2,0)-1,COUNTA(raw!$A:$A)-1,1),回答数!$B65, OFFSET(raw!$A$1,2,MATCH($D$1,raw!$2:$2,0)-1,COUNTA(raw!$A:$A)-1,1),D$2) -> 2 | E65: =COUNTIFS( OFFSET(raw!$A$1,2,MATCH(回答数!$A65,raw!$2:$2,0)-1,COUNTA(raw!$A:$A)-1,1),回答数!$B65, OFFSET(raw!$A$1,2,MATCH($D$1,raw!$2:$2,0)-1,COUNTA(raw!$A:$A)-1,1),E$2) -> 14 | F65: =COUNTIFS( OFFSET(raw!$A$1,2,MATCH(回答数!$A65,raw!$2:$2,0)-1,COUNTA(raw!$A:$A)-1,1),回答数!$B65, OFFSET(raw!$A$1,2,MATCH($D$1,raw!$2:$2,0)-1,COUNTA(raw!$A:$A)-1,1),F$2) -> 4 | G65: =COUNTIFS( OFFSET(raw!$A$1,2,MATCH(回答数!$A65,raw!$2:$2,0)-1,COUNTA(raw!$A:$A)-1,1),回答数!$B65, OFFSET(raw!$A$1,2,MATCH($D$1,raw!$2:$2,0)-1,COUNTA(raw!$A:$A)-1,1),G$2) -> 0 | H65: =COUNTIFS( OFFSET(raw!$A$1,2,MATCH(回答数!$A65,raw!$2:$2,0)-1,COUNTA(raw!$A:$A)-1,1),回答数!$B65, OFFSET(raw!$A$1,2,MATCH($D$1,raw!$2:$2,0)-1,COUNTA(raw!$A:$A)-1,1),H$2) -> 0 | I65: =COUNTIFS( OFFSET(raw!$A$1,2,MATCH(回答数!$A65,raw!$2:$2,0)-1,COUNTA(raw!$A:$A)-1,1),回答数!$B65, OFFSET(raw!$A$1,2,MATCH($D$1,raw!$2:$2,0)-1,COUNTA(raw!$A:$A)-1,1),I$2) -> 0 | J65: =COUNTIFS( OFFSET(raw!$A$1,2,MATCH(回答数!$A65,raw!$2:$2,0)-1,COUNTA(raw!$A:$A)-1,1),回答数!$B65, OFFSET(raw!$A$1,2,MATCH($D$1,raw!$2:$2,0)-1,COUNTA(raw!$A:$A)-1,1),J$2) -> 0 | K65: =COUNTIFS( OFFSET(raw!$A$1,2,MATCH(回答数!$A65,raw!$2:$2,0)-1,COUNTA(raw!$A:$A)-1,1),回答数!$B65, OFFSET(raw!$A$1,2,MATCH($D$1,raw!$2:$2,0)-1,COUNTA(raw!$A:$A)-1,1),K$2) -> 0 | L65: =COUNTIFS( OFFSET(raw!$A$1,2,MATCH(回答数!$A65,raw!$2:$2,0)-1,COUNTA(raw!$A:$A)-1,1),回答数!$B65, OFFSET(raw!$A$1,2,MATCH($D$1,raw!$2:$2,0)-1,COUNTA(raw!$A:$A)-1,1),L$2) -> 0 | M65: =COUNTIFS( OFFSET(raw!$A$1,2,MATCH(回答数!$A65,raw!$2:$2,0)-1,COUNTA(raw!$A:$A)-1,1),回答数!$B65, OFFSET(raw!$A$1,2,MATCH($D$1,raw!$2:$2,0)-1,COUNTA(raw!$A:$A)-1,1),M$2) -> 0 | N65: =COUNTIFS( OFFSET(raw!$A$1,2,MATCH(回答数!$A65,raw!$2:$2,0)-1,COUNTA(raw!$A:$A)-1,1),回答数!$B65, OFFSET(raw!$A$1,2,MATCH($D$1,raw!$2:$2,0)-1,COUNTA(raw!$A:$A)-1,1),N$2) -> 0 | O65: =COUNTIFS( OFFSET(raw!$A$1,2,MATCH(回答数!$A65,raw!$2:$2,0)-1,COUNTA(raw!$A:$A)-1,1),回答数!$B65, OFFSET(raw!$A$1,2,MATCH($D$1,raw!$2:$2,0)-1,COUNTA(raw!$A:$A)-1,1),O$2) -> 0 | P65: 20
A66: 回答エリア | B66: 五湖の駅 エリア | D66: =COUNTIFS( OFFSET(raw!$A$1,2,MATCH(回答数!$A66,raw!$2:$2,0)-1,COUNTA(raw!$A:$A)-1,1),回答数!$B66, OFFSET(raw!$A$1,2,MATCH($D$1,raw!$2:$2,0)-1,COUNTA(raw!$A:$A)-1,1),D$2) -> 2 | E66: =COUNTIFS( OFFSET(raw!$A$1,2,MATCH(回答数!$A66,raw!$2:$2,0)-1,COUNTA(raw!$A:$A)-1,1),回答数!$B66, OFFSET(raw!$A$1,2,MATCH($D$1,raw!$2:$2,0)-1,COUNTA(raw!$A:$A)-1,1),E$2) -> 22 | F66: =COUNTIFS( OFFSET(raw!$A$1,2,MATCH(回答数!$A66,raw!$2:$2,0)-1,COUNTA(raw!$A:$A)-1,1),回答数!$B66, OFFSET(raw!$A$1,2,MATCH($D$1,raw!$2:$2,0)-1,COUNTA(raw!$A:$A)-1,1),F$2) -> 12 | G66: =COUNTIFS( OFFSET(raw!$A$1,2,MATCH(回答数!$A66,raw!$2:$2,0)-1,COUNTA(raw!$A:$A)-1,1),回答数!$B66, OFFSET(raw!$A$1,2,MATCH($D$1,raw!$2:$2,0)-1,COUNTA(raw!$A:$A)-1,1),G$2) -> 0 | H66: =COUNTIFS( OFFSET(raw!$A$1,2,MATCH(回答数!$A66,raw!$2:$2,0)-1,COUNTA(raw!$A:$A)-1,1),回答数!$B66, OFFSET(raw!$A$1,2,MATCH($D$1,raw!$2:$2,0)-1,COUNTA(raw!$A:$A)-1,1),H$2) -> 0 | I66: =COUNTIFS( OFFSET(raw!$A$1,2,MATCH(回答数!$A66,raw!$2:$2,0)-1,COUNTA(raw!$A:$A)-1,1),回答数!$B66, OFFSET(raw!$A$1,2,MATCH($D$1,raw!$2:$2,0)-1,COUNTA(raw!$A:$A)-1,1),I$2) -> 0 | J66: =COUNTIFS( OFFSET(raw!$A$1,2,MATCH(回答数!$A66,raw!$2:$2,0)-1,COUNTA(raw!$A:$A)-1,1),回答数!$B66, OFFSET(raw!$A$1,2,MATCH($D$1,raw!$2:$2,0)-1,COUNTA(raw!$A:$A)-1,1),J$2) -> 0 | K66: =COUNTIFS( OFFSET(raw!$A$1,2,MATCH(回答数!$A66,raw!$2:$2,0)-1,COUNTA(raw!$A:$A)-1,1),回答数!$B66, OFFSET(raw!$A$1,2,MATCH($D$1,raw!$2:$2,0)-1,COUNTA(raw!$A:$A)-1,1),K$2) -> 0 | L66: =COUNTIFS( OFFSET(raw!$A$1,2,MATCH(回答数!$A66,raw!$2:$2,0)-1,COUNTA(raw!$A:$A)-1,1),回答数!$B66, OFFSET(raw!$A$1,2,MATCH($D$1,raw!$2:$2,0)-1,COUNTA(raw!$A:$A)-1,1),L$2) -> 0 | M66: =COUNTIFS( OFFSET(raw!$A$1,2,MATCH(回答数!$A66,raw!$2:$2,0)-1,COUNTA(raw!$A:$A)-1,1),回答数!$B66, OFFSET(raw!$A$1,2,MATCH($D$1,raw!$2:$2,0)-1,COUNTA(raw!$A:$A)-1,1),M$2) -> 0 | N66: =COUNTIFS( OFFSET(raw!$A$1,2,MATCH(回答数!$A66,raw!$2:$2,0)-1,COUNTA(raw!$A:$A)-1,1),回答数!$B66, OFFSET(raw!$A$1,2,MATCH($D$1,raw!$2:$2,0)-1,COUNTA(raw!$A:$A)-1,1),N$2) -> 0 | O66: =COUNTIFS( OFFSET(raw!$A$1,2,MATCH(回答数!$A66,raw!$2:$2,0)-1,COUNTA(raw!$A:$A)-1,1),回答数!$B66, OFFSET(raw!$A$1,2,MATCH($D$1,raw!$2:$2,0)-1,COUNTA(raw!$A:$A)-1,1),O$2) -> 0 | P66: 36
A67: 回答エリア | B67: 熊川宿 エリア | D67: =COUNTIFS( OFFSET(raw!$A$1,2,MATCH(回答数!$A67,raw!$2:$2,0)-1,COUNTA(raw!$A:$A)-1,1),回答数!$B67, OFFSET(raw!$A$1,2,MATCH($D$1,raw!$2:$2,0)-1,COUNTA(raw!$A:$A)-1,1),D$2) -> 5 | E67: =COUNTIFS( OFFSET(raw!$A$1,2,MATCH(回答数!$A67,raw!$2:$2,0)-1,COUNTA(raw!$A:$A)-1,1),回答数!$B67, OFFSET(raw!$A$1,2,MATCH($D$1,raw!$2:$2,0)-1,COUNTA(raw!$A:$A)-1,1),E$2) -> 45 | F67: =COUNTIFS( OFFSET(raw!$A$1,2,MATCH(回答数!$A67,raw!$2:$2,0)-1,COUNTA(raw!$A:$A)-1,1),回答数!$B67, OFFSET(raw!$A$1,2,MATCH($D$1,raw!$2:$2,0)-1,COUNTA(raw!$A:$A)-1,1),F$2) -> 31 | G67: =COUNTIFS( OFFSET(raw!$A$1,2,MATCH(回答数!$A67,raw!$2:$2,0)-1,COUNTA(raw!$A:$A)-1,1),回答数!$B67, OFFSET(raw!$A$1,2,MATCH($D$1,raw!$2:$2,0)-1,COUNTA(raw!$A:$A)-1,1),G$2) -> 0 | H67: =COUNTIFS( OFFSET(raw!$A$1,2,MATCH(回答数!$A67,raw!$2:$2,0)-1,COUNTA(raw!$A:$A)-1,1),回答数!$B67, OFFSET(raw!$A$1,2,MATCH($D$1,raw!$2:$2,0)-1,COUNTA(raw!$A:$A)-1,1),H$2) -> 0 | I67: =COUNTIFS( OFFSET(raw!$A$1,2,MATCH(回答数!$A67,raw!$2:$2,0)-1,COUNTA(raw!$A:$A)-1,1),回答数!$B67, OFFSET(raw!$A$1,2,MATCH($D$1,raw!$2:$2,0)-1,COUNTA(raw!$A:$A)-1,1),I$2) -> 0 | J67: =COUNTIFS( OFFSET(raw!$A$1,2,MATCH(回答数!$A67,raw!$2:$2,0)-1,COUNTA(raw!$A:$A)-1,1),回答数!$B67, OFFSET(raw!$A$1,2,MATCH($D$1,raw!$2:$2,0)-1,COUNTA(raw!$A:$A)-1,1),J$2) -> 0 | K67: =COUNTIFS( OFFSET(raw!$A$1,2,MATCH(回答数!$A67,raw!$2:$2,0)-1,COUNTA(raw!$A:$A)-1,1),回答数!$B67, OFFSET(raw!$A$1,2,MATCH($D$1,raw!$2:$2,0)-1,COUNTA(raw!$A:$A)-1,1),K$2) -> 0 | L67: =COUNTIFS( OFFSET(raw!$A$1,2,MATCH(回答数!$A67,raw!$2:$2,0)-1,COUNTA(raw!$A:$A)-1,1),回答数!$B67, OFFSET(raw!$A$1,2,MATCH($D$1,raw!$2:$2,0)-1,COUNTA(raw!$A:$A)-1,1),L$2) -> 0 | M67: =COUNTIFS( OFFSET(raw!$A$1,2,MATCH(回答数!$A67,raw!$2:$2,0)-1,COUNTA(raw!$A:$A)-1,1),回答数!$B67, OFFSET(raw!$A$1,2,MATCH($D$1,raw!$2:$2,0)-1,COUNTA(raw!$A:$A)-1,1),M$2) -> 0 | N67: =COUNTIFS( OFFSET(raw!$A$1,2,MATCH(回答数!$A67,raw!$2:$2,0)-1,COUNTA(raw!$A:$A)-1,1),回答数!$B67, OFFSET(raw!$A$1,2,MATCH($D$1,raw!$2:$2,0)-1,COUNTA(raw!$A:$A)-1,1),N$2) -> 0 | O67: =COUNTIFS( OFFSET(raw!$A$1,2,MATCH(回答数!$A67,raw!$2:$2,0)-1,COUNTA(raw!$A:$A)-1,1),回答数!$B67, OFFSET(raw!$A$1,2,MATCH($D$1,raw!$2:$2,0)-1,COUNTA(raw!$A:$A)-1,1),O$2) -> 0 | P67: 81
A68: 回答エリア | B68: 三方五湖 エリア | D68: =COUNTIFS( OFFSET(raw!$A$1,2,MATCH(回答数!$A68,raw!$2:$2,0)-1,COUNTA(raw!$A:$A)-1,1),回答数!$B68, OFFSET(raw!$A$1,2,MATCH($D$1,raw!$2:$2,0)-1,COUNTA(raw!$A:$A)-1,1),D$2) -> 5 | E68: =COUNTIFS( OFFSET(raw!$A$1,2,MATCH(回答数!$A68,raw!$2:$2,0)-1,COUNTA(raw!$A:$A)-1,1),回答数!$B68, OFFSET(raw!$A$1,2,MATCH($D$1,raw!$2:$2,0)-1,COUNTA(raw!$A:$A)-1,1),E$2) -> 39 | F68: =COUNTIFS( OFFSET(raw!$A$1,2,MATCH(回答数!$A68,raw!$2:$2,0)-1,COUNTA(raw!$A:$A)-1,1),回答数!$B68, OFFSET(raw!$A$1,2,MATCH($D$1,raw!$2:$2,0)-1,COUNTA(raw!$A:$A)-1,1),F$2) -> 36 | G68: =COUNTIFS( OFFSET(raw!$A$1,2,MATCH(回答数!$A68,raw!$2:$2,0)-1,COUNTA(raw!$A:$A)-1,1),回答数!$B68, OFFSET(raw!$A$1,2,MATCH($D$1,raw!$2:$2,0)-1,COUNTA(raw!$A:$A)-1,1),G$2) -> 0 | H68: =COUNTIFS( OFFSET(raw!$A$1,2,MATCH(回答数!$A68,raw!$2:$2,0)-1,COUNTA(raw!$A:$A)-1,1),回答数!$B68, OFFSET(raw!$A$1,2,MATCH($D$1,raw!$2:$2,0)-1,COUNTA(raw!$A:$A)-1,1),H$2) -> 0 | I68: =COUNTIFS( OFFSET(raw!$A$1,2,MATCH(回答数!$A68,raw!$2:$2,0)-1,COUNTA(raw!$A:$A)-1,1),回答数!$B68, OFFSET(raw!$A$1,2,MATCH($D$1,raw!$2:$2,0)-1,COUNTA(raw!$A:$A)-1,1),I$2) -> 0 | J68: =COUNTIFS( OFFSET(raw!$A$1,2,MATCH(回答数!$A68,raw!$2:$2,0)-1,COUNTA(raw!$A:$A)-1,1),回答数!$B68, OFFSET(raw!$A$1,2,MATCH($D$1,raw!$2:$2,0)-1,COUNTA(raw!$A:$A)-1,1),J$2) -> 0 | K68: =COUNTIFS( OFFSET(raw!$A$1,2,MATCH(回答数!$A68,raw!$2:$2,0)-1,COUNTA(raw!$A:$A)-1,1),回答数!$B68, OFFSET(raw!$A$1,2,MATCH($D$1,raw!$2:$2,0)-1,COUNTA(raw!$A:$A)-1,1),K$2) -> 0 | L68: =COUNTIFS( OFFSET(raw!$A$1,2,MATCH(回答数!$A68,raw!$2:$2,0)-1,COUNTA(raw!$A:$A)-1,1),回答数!$B68, OFFSET(raw!$A$1,2,MATCH($D$1,raw!$2:$2,0)-1,COUNTA(raw!$A:$A)-1,1),L$2) -> 0 | M68: =COUNTIFS( OFFSET(raw!$A$1,2,MATCH(回答数!$A68,raw!$2:$2,0)-1,COUNTA(raw!$A:$A)-1,1),回答数!$B68, OFFSET(raw!$A$1,2,MATCH($D$1,raw!$2:$2,0)-1,COUNTA(raw!$A:$A)-1,1),M$2) -> 0 | N68: =COUNTIFS( OFFSET(raw!$A$1,2,MATCH(回答数!$A68,raw!$2:$2,0)-1,COUNTA(raw!$A:$A)-1,1),回答数!$B68, OFFSET(raw!$A$1,2,MATCH($D$1,raw!$2:$2,0)-1,COUNTA(raw!$A:$A)-1,1),N$2) -> 0 | O68: =COUNTIFS( OFFSET(raw!$A$1,2,MATCH(回答数!$A68,raw!$2:$2,0)-1,COUNTA(raw!$A:$A)-1,1),回答数!$B68, OFFSET(raw!$A$1,2,MATCH($D$1,raw!$2:$2,0)-1,COUNTA(raw!$A:$A)-1,1),O$2) -> 0 | P68: 80
A69: 回答エリア | B69: うみんぴあ大飯 エリア | D69: =COUNTIFS( OFFSET(raw!$A$1,2,MATCH(回答数!$A69,raw!$2:$2,0)-1,COUNTA(raw!$A:$A)-1,1),回答数!$B69, OFFSET(raw!$A$1,2,MATCH($D$1,raw!$2:$2,0)-1,COUNTA(raw!$A:$A)-1,1),D$2) -> 10 | E69: =COUNTIFS( OFFSET(raw!$A$1,2,MATCH(回答数!$A69,raw!$2:$2,0)-1,COUNTA(raw!$A:$A)-1,1),回答数!$B69, OFFSET(raw!$A$1,2,MATCH($D$1,raw!$2:$2,0)-1,COUNTA(raw!$A:$A)-1,1),E$2) -> 117 | F69: =COUNTIFS( OFFSET(raw!$A$1,2,MATCH(回答数!$A69,raw!$2:$2,0)-1,COUNTA(raw!$A:$A)-1,1),回答数!$B69, OFFSET(raw!$A$1,2,MATCH($D$1,raw!$2:$2,0)-1,COUNTA(raw!$A:$A)-1,1),F$2) -> 33 | G69: =COUNTIFS( OFFSET(raw!$A$1,2,MATCH(回答数!$A69,raw!$2:$2,0)-1,COUNTA(raw!$A:$A)-1,1),回答数!$B69, OFFSET(raw!$A$1,2,MATCH($D$1,raw!$2:$2,0)-1,COUNTA(raw!$A:$A)-1,1),G$2) -> 0 | H69: =COUNTIFS( OFFSET(raw!$A$1,2,MATCH(回答数!$A69,raw!$2:$2,0)-1,COUNTA(raw!$A:$A)-1,1),回答数!$B69, OFFSET(raw!$A$1,2,MATCH($D$1,raw!$2:$2,0)-1,COUNTA(raw!$A:$A)-1,1),H$2) -> 0 | I69: =COUNTIFS( OFFSET(raw!$A$1,2,MATCH(回答数!$A69,raw!$2:$2,0)-1,COUNTA(raw!$A:$A)-1,1),回答数!$B69, OFFSET(raw!$A$1,2,MATCH($D$1,raw!$2:$2,0)-1,COUNTA(raw!$A:$A)-1,1),I$2) -> 0 | J69: =COUNTIFS( OFFSET(raw!$A$1,2,MATCH(回答数!$A69,raw!$2:$2,0)-1,COUNTA(raw!$A:$A)-1,1),回答数!$B69, OFFSET(raw!$A$1,2,MATCH($D$1,raw!$2:$2,0)-1,COUNTA(raw!$A:$A)-1,1),J$2) -> 0 | K69: =COUNTIFS( OFFSET(raw!$A$1,2,MATCH(回答数!$A69,raw!$2:$2,0)-1,COUNTA(raw!$A:$A)-1,1),回答数!$B69, OFFSET(raw!$A$1,2,MATCH($D$1,raw!$2:$2,0)-1,COUNTA(raw!$A:$A)-1,1),K$2) -> 0 | L69: =COUNTIFS( OFFSET(raw!$A$1,2,MATCH(回答数!$A69,raw!$2:$2,0)-1,COUNTA(raw!$A:$A)-1,1),回答数!$B69, OFFSET(raw!$A$1,2,MATCH($D$1,raw!$2:$2,0)-1,COUNTA(raw!$A:$A)-1,1),L$2) -> 0 | M69: =COUNTIFS( OFFSET(raw!$A$1,2,MATCH(回答数!$A69,raw!$2:$2,0)-1,COUNTA(raw!$A:$A)-1,1),回答数!$B69, OFFSET(raw!$A$1,2,MATCH($D$1,raw!$2:$2,0)-1,COUNTA(raw!$A:$A)-1,1),M$2) -> 0 | N69: =COUNTIFS( OFFSET(raw!$A$1,2,MATCH(回答数!$A69,raw!$2:$2,0)-1,COUNTA(raw!$A:$A)-1,1),回答数!$B69, OFFSET(raw!$A$1,2,MATCH($D$1,raw!$2:$2,0)-1,COUNTA(raw!$A:$A)-1,1),N$2) -> 0 | O69: =COUNTIFS( OFFSET(raw!$A$1,2,MATCH(回答数!$A69,raw!$2:$2,0)-1,COUNTA(raw!$A:$A)-1,1),回答数!$B69, OFFSET(raw!$A$1,2,MATCH($D$1,raw!$2:$2,0)-1,COUNTA(raw!$A:$A)-1,1),O$2) -> 0 | P69: 160
A70: 回答エリア | B70: きのこの森 エリア | D70: =COUNTIFS( OFFSET(raw!$A$1,2,MATCH(回答数!$A70,raw!$2:$2,0)-1,COUNTA(raw!$A:$A)-1,1),回答数!$B70, OFFSET(raw!$A$1,2,MATCH($D$1,raw!$2:$2,0)-1,COUNTA(raw!$A:$A)-1,1),D$2) -> 0 | E70: =COUNTIFS( OFFSET(raw!$A$1,2,MATCH(回答数!$A70,raw!$2:$2,0)-1,COUNTA(raw!$A:$A)-1,1),回答数!$B70, OFFSET(raw!$A$1,2,MATCH($D$1,raw!$2:$2,0)-1,COUNTA(raw!$A:$A)-1,1),E$2) -> 5 | F70: =COUNTIFS( OFFSET(raw!$A$1,2,MATCH(回答数!$A70,raw!$2:$2,0)-1,COUNTA(raw!$A:$A)-1,1),回答数!$B70, OFFSET(raw!$A$1,2,MATCH($D$1,raw!$2:$2,0)-1,COUNTA(raw!$A:$A)-1,1),F$2) -> 1 | G70: =COUNTIFS( OFFSET(raw!$A$1,2,MATCH(回答数!$A70,raw!$2:$2,0)-1,COUNTA(raw!$A:$A)-1,1),回答数!$B70, OFFSET(raw!$A$1,2,MATCH($D$1,raw!$2:$2,0)-1,COUNTA(raw!$A:$A)-1,1),G$2) -> 0 | H70: =COUNTIFS( OFFSET(raw!$A$1,2,MATCH(回答数!$A70,raw!$2:$2,0)-1,COUNTA(raw!$A:$A)-1,1),回答数!$B70, OFFSET(raw!$A$1,2,MATCH($D$1,raw!$2:$2,0)-1,COUNTA(raw!$A:$A)-1,1),H$2) -> 0 | I70: =COUNTIFS( OFFSET(raw!$A$1,2,MATCH(回答数!$A70,raw!$2:$2,0)-1,COUNTA(raw!$A:$A)-1,1),回答数!$B70, OFFSET(raw!$A$1,2,MATCH($D$1,raw!$2:$2,0)-1,COUNTA(raw!$A:$A)-1,1),I$2) -> 0 | J70: =COUNTIFS( OFFSET(raw!$A$1,2,MATCH(回答数!$A70,raw!$2:$2,0)-1,COUNTA(raw!$A:$A)-1,1),回答数!$B70, OFFSET(raw!$A$1,2,MATCH($D$1,raw!$2:$2,0)-1,COUNTA(raw!$A:$A)-1,1),J$2) -> 0 | K70: =COUNTIFS( OFFSET(raw!$A$1,2,MATCH(回答数!$A70,raw!$2:$2,0)-1,COUNTA(raw!$A:$A)-1,1),回答数!$B70, OFFSET(raw!$A$1,2,MATCH($D$1,raw!$2:$2,0)-1,COUNTA(raw!$A:$A)-1,1),K$2) -> 0 | L70: =COUNTIFS( OFFSET(raw!$A$1,2,MATCH(回答数!$A70,raw!$2:$2,0)-1,COUNTA(raw!$A:$A)-1,1),回答数!$B70, OFFSET(raw!$A$1,2,MATCH($D$1,raw!$2:$2,0)-1,COUNTA(raw!$A:$A)-1,1),L$2) -> 0 | M70: =COUNTIFS( OFFSET(raw!$A$1,2,MATCH(回答数!$A70,raw!$2:$2,0)-1,COUNTA(raw!$A:$A)-1,1),回答数!$B70, OFFSET(raw!$A$1,2,MATCH($D$1,raw!$2:$2,0)-1,COUNTA(raw!$A:$A)-1,1),M$2) -> 0 | N70: =COUNTIFS( OFFSET(raw!$A$1,2,MATCH(回答数!$A70,raw!$2:$2,0)-1,COUNTA(raw!$A:$A)-1,1),回答数!$B70, OFFSET(raw!$A$1,2,MATCH($D$1,raw!$2:$2,0)-1,COUNTA(raw!$A:$A)-1,1),N$2) -> 0 | O70: =COUNTIFS( OFFSET(raw!$A$1,2,MATCH(回答数!$A70,raw!$2:$2,0)-1,COUNTA(raw!$A:$A)-1,1),回答数!$B70, OFFSET(raw!$A$1,2,MATCH($D$1,raw!$2:$2,0)-1,COUNTA(raw!$A:$A)-1,1),O$2) -> 0 | P70: 6
A71: 回答エリア | B71: 道の駅「名田庄」 エリア | D71: =COUNTIFS( OFFSET(raw!$A$1,2,MATCH(回答数!$A71,raw!$2:$2,0)-1,COUNTA(raw!$A:$A)-1,1),回答数!$B71, OFFSET(raw!$A$1,2,MATCH($D$1,raw!$2:$2,0)-1,COUNTA(raw!$A:$A)-1,1),D$2) -> 0 | E71: =COUNTIFS( OFFSET(raw!$A$1,2,MATCH(回答数!$A71,raw!$2:$2,0)-1,COUNTA(raw!$A:$A)-1,1),回答数!$B71, OFFSET(raw!$A$1,2,MATCH($D$1,raw!$2:$2,0)-1,COUNTA(raw!$A:$A)-1,1),E$2) -> 19 | F71: =COUNTIFS( OFFSET(raw!$A$1,2,MATCH(回答数!$A71,raw!$2:$2,0)-1,COUNTA(raw!$A:$A)-1,1),回答数!$B71, OFFSET(raw!$A$1,2,MATCH($D$1,raw!$2:$2,0)-1,COUNTA(raw!$A:$A)-1,1),F$2) -> 16 | G71: =COUNTIFS( OFFSET(raw!$A$1,2,MATCH(回答数!$A71,raw!$2:$2,0)-1,COUNTA(raw!$A:$A)-1,1),回答数!$B71, OFFSET(raw!$A$1,2,MATCH($D$1,raw!$2:$2,0)-1,COUNTA(raw!$A:$A)-1,1),G$2) -> 0 | H71: =COUNTIFS( OFFSET(raw!$A$1,2,MATCH(回答数!$A71,raw!$2:$2,0)-1,COUNTA(raw!$A:$A)-1,1),回答数!$B71, OFFSET(raw!$A$1,2,MATCH($D$1,raw!$2:$2,0)-1,COUNTA(raw!$A:$A)-1,1),H$2) -> 0 | I71: =COUNTIFS( OFFSET(raw!$A$1,2,MATCH(回答数!$A71,raw!$2:$2,0)-1,COUNTA(raw!$A:$A)-1,1),回答数!$B71, OFFSET(raw!$A$1,2,MATCH($D$1,raw!$2:$2,0)-1,COUNTA(raw!$A:$A)-1,1),I$2) -> 0 | J71: =COUNTIFS( OFFSET(raw!$A$1,2,MATCH(回答数!$A71,raw!$2:$2,0)-1,COUNTA(raw!$A:$A)-1,1),回答数!$B71, OFFSET(raw!$A$1,2,MATCH($D$1,raw!$2:$2,0)-1,COUNTA(raw!$A:$A)-1,1),J$2) -> 0 | K71: =COUNTIFS( OFFSET(raw!$A$1,2,MATCH(回答数!$A71,raw!$2:$2,0)-1,COUNTA(raw!$A:$A)-1,1),回答数!$B71, OFFSET(raw!$A$1,2,MATCH($D$1,raw!$2:$2,0)-1,COUNTA(raw!$A:$A)-1,1),K$2) -> 0 | L71: =COUNTIFS( OFFSET(raw!$A$1,2,MATCH(回答数!$A71,raw!$2:$2,0)-1,COUNTA(raw!$A:$A)-1,1),回答数!$B71, OFFSET(raw!$A$1,2,MATCH($D$1,raw!$2:$2,0)-1,COUNTA(raw!$A:$A)-1,1),L$2) -> 0 | M71: =COUNTIFS( OFFSET(raw!$A$1,2,MATCH(回答数!$A71,raw!$2:$2,0)-1,COUNTA(raw!$A:$A)-1,1),回答数!$B71, OFFSET(raw!$A$1,2,MATCH($D$1,raw!$2:$2,0)-1,COUNTA(raw!$A:$A)-1,1),M$2) -> 0 | N71: =COUNTIFS( OFFSET(raw!$A$1,2,MATCH(回答数!$A71,raw!$2:$2,0)-1,COUNTA(raw!$A:$A)-1,1),回答数!$B71, OFFSET(raw!$A$1,2,MATCH($D$1,raw!$2:$2,0)-1,COUNTA(raw!$A:$A)-1,1),N$2) -> 0 | O71: =COUNTIFS( OFFSET(raw!$A$1,2,MATCH(回答数!$A71,raw!$2:$2,0)-1,COUNTA(raw!$A:$A)-1,1),回答数!$B71, OFFSET(raw!$A$1,2,MATCH($D$1,raw!$2:$2,0)-1,COUNTA(raw!$A:$A)-1,1),O$2) -> 0 | P71: =D71+E71+F71+G71+H71+I71+J71+K71+L71+M71+N71+O71 -> 35
A72: 回答エリア | B72: 赤礁崎オートキャンプ場 エリア | D72: =COUNTIFS( OFFSET(raw!$A$1,2,MATCH(回答数!$A72,raw!$2:$2,0)-1,COUNTA(raw!$A:$A)-1,1),回答数!$B72, OFFSET(raw!$A$1,2,MATCH($D$1,raw!$2:$2,0)-1,COUNTA(raw!$A:$A)-1,1),D$2) -> 0 | E72: =COUNTIFS( OFFSET(raw!$A$1,2,MATCH(回答数!$A72,raw!$2:$2,0)-1,COUNTA(raw!$A:$A)-1,1),回答数!$B72, OFFSET(raw!$A$1,2,MATCH($D$1,raw!$2:$2,0)-1,COUNTA(raw!$A:$A)-1,1),E$2) -> 0 | F72: =COUNTIFS( OFFSET(raw!$A$1,2,MATCH(回答数!$A72,raw!$2:$2,0)-1,COUNTA(raw!$A:$A)-1,1),回答数!$B72, OFFSET(raw!$A$1,2,MATCH($D$1,raw!$2:$2,0)-1,COUNTA(raw!$A:$A)-1,1),F$2) -> 2 | G72: =COUNTIFS( OFFSET(raw!$A$1,2,MATCH(回答数!$A72,raw!$2:$2,0)-1,COUNTA(raw!$A:$A)-1,1),回答数!$B72, OFFSET(raw!$A$1,2,MATCH($D$1,raw!$2:$2,0)-1,COUNTA(raw!$A:$A)-1,1),G$2) -> 0 | H72: =COUNTIFS( OFFSET(raw!$A$1,2,MATCH(回答数!$A72,raw!$2:$2,0)-1,COUNTA(raw!$A:$A)-1,1),回答数!$B72, OFFSET(raw!$A$1,2,MATCH($D$1,raw!$2:$2,0)-1,COUNTA(raw!$A:$A)-1,1),H$2) -> 0 | I72: =COUNTIFS( OFFSET(raw!$A$1,2,MATCH(回答数!$A72,raw!$2:$2,0)-1,COUNTA(raw!$A:$A)-1,1),回答数!$B72, OFFSET(raw!$A$1,2,MATCH($D$1,raw!$2:$2,0)-1,COUNTA(raw!$A:$A)-1,1),I$2) -> 0 | J72: =COUNTIFS( OFFSET(raw!$A$1,2,MATCH(回答数!$A72,raw!$2:$2,0)-1,COUNTA(raw!$A:$A)-1,1),回答数!$B72, OFFSET(raw!$A$1,2,MATCH($D$1,raw!$2:$2,0)-1,COUNTA(raw!$A:$A)-1,1),J$2) -> 0 | K72: =COUNTIFS( OFFSET(raw!$A$1,2,MATCH(回答数!$A72,raw!$2:$2,0)-1,COUNTA(raw!$A:$A)-1,1),回答数!$B72, OFFSET(raw!$A$1,2,MATCH($D$1,raw!$2:$2,0)-1,COUNTA(raw!$A:$A)-1,1),K$2) -> 0 | L72: =COUNTIFS( OFFSET(raw!$A$1,2,MATCH(回答数!$A72,raw!$2:$2,0)-1,COUNTA(raw!$A:$A)-1,1),回答数!$B72, OFFSET(raw!$A$1,2,MATCH($D$1,raw!$2:$2,0)-1,COUNTA(raw!$A:$A)-1,1),L$2) -> 0 | M72: =COUNTIFS( OFFSET(raw!$A$1,2,MATCH(回答数!$A72,raw!$2:$2,0)-1,COUNTA(raw!$A:$A)-1,1),回答数!$B72, OFFSET(raw!$A$1,2,MATCH($D$1,raw!$2:$2,0)-1,COUNTA(raw!$A:$A)-1,1),M$2) -> 0 | N72: =COUNTIFS( OFFSET(raw!$A$1,2,MATCH(回答数!$A72,raw!$2:$2,0)-1,COUNTA(raw!$A:$A)-1,1),回答数!$B72, OFFSET(raw!$A$1,2,MATCH($D$1,raw!$2:$2,0)-1,COUNTA(raw!$A:$A)-1,1),N$2) -> 0 | O72: =COUNTIFS( OFFSET(raw!$A$1,2,MATCH(回答数!$A72,raw!$2:$2,0)-1,COUNTA(raw!$A:$A)-1,1),回答数!$B72, OFFSET(raw!$A$1,2,MATCH($D$1,raw!$2:$2,0)-1,COUNTA(raw!$A:$A)-1,1),O$2) -> 0 | P72: 2
A73: 回答エリア | B73: 道の駅「シーサイド高浜」 エリア | D73: =COUNTIFS( OFFSET(raw!$A$1,2,MATCH(回答数!$A73,raw!$2:$2,0)-1,COUNTA(raw!$A:$A)-1,1),回答数!$B73, OFFSET(raw!$A$1,2,MATCH($D$1,raw!$2:$2,0)-1,COUNTA(raw!$A:$A)-1,1),D$2) -> 0 | E73: =COUNTIFS( OFFSET(raw!$A$1,2,MATCH(回答数!$A73,raw!$2:$2,0)-1,COUNTA(raw!$A:$A)-1,1),回答数!$B73, OFFSET(raw!$A$1,2,MATCH($D$1,raw!$2:$2,0)-1,COUNTA(raw!$A:$A)-1,1),E$2) -> 17 | F73: =COUNTIFS( OFFSET(raw!$A$1,2,MATCH(回答数!$A73,raw!$2:$2,0)-1,COUNTA(raw!$A:$A)-1,1),回答数!$B73, OFFSET(raw!$A$1,2,MATCH($D$1,raw!$2:$2,0)-1,COUNTA(raw!$A:$A)-1,1),F$2) -> 6 | G73: =COUNTIFS( OFFSET(raw!$A$1,2,MATCH(回答数!$A73,raw!$2:$2,0)-1,COUNTA(raw!$A:$A)-1,1),回答数!$B73, OFFSET(raw!$A$1,2,MATCH($D$1,raw!$2:$2,0)-1,COUNTA(raw!$A:$A)-1,1),G$2) -> 0 | H73: =COUNTIFS( OFFSET(raw!$A$1,2,MATCH(回答数!$A73,raw!$2:$2,0)-1,COUNTA(raw!$A:$A)-1,1),回答数!$B73, OFFSET(raw!$A$1,2,MATCH($D$1,raw!$2:$2,0)-1,COUNTA(raw!$A:$A)-1,1),H$2) -> 0 | I73: =COUNTIFS( OFFSET(raw!$A$1,2,MATCH(回答数!$A73,raw!$2:$2,0)-1,COUNTA(raw!$A:$A)-1,1),回答数!$B73, OFFSET(raw!$A$1,2,MATCH($D$1,raw!$2:$2,0)-1,COUNTA(raw!$A:$A)-1,1),I$2) -> 0 | J73: =COUNTIFS( OFFSET(raw!$A$1,2,MATCH(回答数!$A73,raw!$2:$2,0)-1,COUNTA(raw!$A:$A)-1,1),回答数!$B73, OFFSET(raw!$A$1,2,MATCH($D$1,raw!$2:$2,0)-1,COUNTA(raw!$A:$A)-1,1),J$2) -> 0 | K73: =COUNTIFS( OFFSET(raw!$A$1,2,MATCH(回答数!$A73,raw!$2:$2,0)-1,COUNTA(raw!$A:$A)-1,1),回答数!$B73, OFFSET(raw!$A$1,2,MATCH($D$1,raw!$2:$2,0)-1,COUNTA(raw!$A:$A)-1,1),K$2) -> 0 | L73: =COUNTIFS( OFFSET(raw!$A$1,2,MATCH(回答数!$A73,raw!$2:$2,0)-1,COUNTA(raw!$A:$A)-1,1),回答数!$B73, OFFSET(raw!$A$1,2,MATCH($D$1,raw!$2:$2,0)-1,COUNTA(raw!$A:$A)-1,1),L$2) -> 0 | M73: =COUNTIFS( OFFSET(raw!$A$1,2,MATCH(回答数!$A73,raw!$2:$2,0)-1,COUNTA(raw!$A:$A)-1,1),回答数!$B73, OFFSET(raw!$A$1,2,MATCH($D$1,raw!$2:$2,0)-1,COUNTA(raw!$A:$A)-1,1),M$2) -> 0 | N73: =COUNTIFS( OFFSET(raw!$A$1,2,MATCH(回答数!$A73,raw!$2:$2,0)-1,COUNTA(raw!$A:$A)-1,1),回答数!$B73, OFFSET(raw!$A$1,2,MATCH($D$1,raw!$2:$2,0)-1,COUNTA(raw!$A:$A)-1,1),N$2) -> 0 | O73: =COUNTIFS( OFFSET(raw!$A$1,2,MATCH(回答数!$A73,raw!$2:$2,0)-1,COUNTA(raw!$A:$A)-1,1),回答数!$B73, OFFSET(raw!$A$1,2,MATCH($D$1,raw!$2:$2,0)-1,COUNTA(raw!$A:$A)-1,1),O$2) -> 0 | P73: 23
A74: 回答エリア | B74: 青葉山ハーバルビレッジ エリア | D74: =COUNTIFS( OFFSET(raw!$A$1,2,MATCH(回答数!$A74,raw!$2:$2,0)-1,COUNTA(raw!$A:$A)-1,1),回答数!$B74, OFFSET(raw!$A$1,2,MATCH($D$1,raw!$2:$2,0)-1,COUNTA(raw!$A:$A)-1,1),D$2) -> 1 | E74: =COUNTIFS( OFFSET(raw!$A$1,2,MATCH(回答数!$A74,raw!$2:$2,0)-1,COUNTA(raw!$A:$A)-1,1),回答数!$B74, OFFSET(raw!$A$1,2,MATCH($D$1,raw!$2:$2,0)-1,COUNTA(raw!$A:$A)-1,1),E$2) -> 4 | F74: =COUNTIFS( OFFSET(raw!$A$1,2,MATCH(回答数!$A74,raw!$2:$2,0)-1,COUNTA(raw!$A:$A)-1,1),回答数!$B74, OFFSET(raw!$A$1,2,MATCH($D$1,raw!$2:$2,0)-1,COUNTA(raw!$A:$A)-1,1),F$2) -> 11 | G74: =COUNTIFS( OFFSET(raw!$A$1,2,MATCH(回答数!$A74,raw!$2:$2,0)-1,COUNTA(raw!$A:$A)-1,1),回答数!$B74, OFFSET(raw!$A$1,2,MATCH($D$1,raw!$2:$2,0)-1,COUNTA(raw!$A:$A)-1,1),G$2) -> 0 | H74: =COUNTIFS( OFFSET(raw!$A$1,2,MATCH(回答数!$A74,raw!$2:$2,0)-1,COUNTA(raw!$A:$A)-1,1),回答数!$B74, OFFSET(raw!$A$1,2,MATCH($D$1,raw!$2:$2,0)-1,COUNTA(raw!$A:$A)-1,1),H$2) -> 0 | I74: =COUNTIFS( OFFSET(raw!$A$1,2,MATCH(回答数!$A74,raw!$2:$2,0)-1,COUNTA(raw!$A:$A)-1,1),回答数!$B74, OFFSET(raw!$A$1,2,MATCH($D$1,raw!$2:$2,0)-1,COUNTA(raw!$A:$A)-1,1),I$2) -> 0 | J74: =COUNTIFS( OFFSET(raw!$A$1,2,MATCH(回答数!$A74,raw!$2:$2,0)-1,COUNTA(raw!$A:$A)-1,1),回答数!$B74, OFFSET(raw!$A$1,2,MATCH($D$1,raw!$2:$2,0)-1,COUNTA(raw!$A:$A)-1,1),J$2) -> 0 | K74: =COUNTIFS( OFFSET(raw!$A$1,2,MATCH(回答数!$A74,raw!$2:$2,0)-1,COUNTA(raw!$A:$A)-1,1),回答数!$B74, OFFSET(raw!$A$1,2,MATCH($D$1,raw!$2:$2,0)-1,COUNTA(raw!$A:$A)-1,1),K$2) -> 0 | L74: =COUNTIFS( OFFSET(raw!$A$1,2,MATCH(回答数!$A74,raw!$2:$2,0)-1,COUNTA(raw!$A:$A)-1,1),回答数!$B74, OFFSET(raw!$A$1,2,MATCH($D$1,raw!$2:$2,0)-1,COUNTA(raw!$A:$A)-1,1),L$2) -> 0 | M74: =COUNTIFS( OFFSET(raw!$A$1,2,MATCH(回答数!$A74,raw!$2:$2,0)-1,COUNTA(raw!$A:$A)-1,1),回答数!$B74, OFFSET(raw!$A$1,2,MATCH($D$1,raw!$2:$2,0)-1,COUNTA(raw!$A:$A)-1,1),M$2) -> 0 | N74: =COUNTIFS( OFFSET(raw!$A$1,2,MATCH(回答数!$A74,raw!$2:$2,0)-1,COUNTA(raw!$A:$A)-1,1),回答数!$B74, OFFSET(raw!$A$1,2,MATCH($D$1,raw!$2:$2,0)-1,COUNTA(raw!$A:$A)-1,1),N$2) -> 0 | O74: =COUNTIFS( OFFSET(raw!$A$1,2,MATCH(回答数!$A74,raw!$2:$2,0)-1,COUNTA(raw!$A:$A)-1,1),回答数!$B74, OFFSET(raw!$A$1,2,MATCH($D$1,raw!$2:$2,0)-1,COUNTA(raw!$A:$A)-1,1),O$2) -> 0 | P74: 16
A75: 回答エリア | B75: UMIKARA エリア | D75: =COUNTIFS( OFFSET(raw!$A$1,2,MATCH(回答数!$A75,raw!$2:$2,0)-1,COUNTA(raw!$A:$A)-1,1),回答数!$B75, OFFSET(raw!$A$1,2,MATCH($D$1,raw!$2:$2,0)-1,COUNTA(raw!$A:$A)-1,1),D$2) -> 0 | E75: =COUNTIFS( OFFSET(raw!$A$1,2,MATCH(回答数!$A75,raw!$2:$2,0)-1,COUNTA(raw!$A:$A)-1,1),回答数!$B75, OFFSET(raw!$A$1,2,MATCH($D$1,raw!$2:$2,0)-1,COUNTA(raw!$A:$A)-1,1),E$2) -> 19 | F75: =COUNTIFS( OFFSET(raw!$A$1,2,MATCH(回答数!$A75,raw!$2:$2,0)-1,COUNTA(raw!$A:$A)-1,1),回答数!$B75, OFFSET(raw!$A$1,2,MATCH($D$1,raw!$2:$2,0)-1,COUNTA(raw!$A:$A)-1,1),F$2) -> 7 | G75: =COUNTIFS( OFFSET(raw!$A$1,2,MATCH(回答数!$A75,raw!$2:$2,0)-1,COUNTA(raw!$A:$A)-1,1),回答数!$B75, OFFSET(raw!$A$1,2,MATCH($D$1,raw!$2:$2,0)-1,COUNTA(raw!$A:$A)-1,1),G$2) -> 0 | H75: =COUNTIFS( OFFSET(raw!$A$1,2,MATCH(回答数!$A75,raw!$2:$2,0)-1,COUNTA(raw!$A:$A)-1,1),回答数!$B75, OFFSET(raw!$A$1,2,MATCH($D$1,raw!$2:$2,0)-1,COUNTA(raw!$A:$A)-1,1),H$2) -> 0 | I75: =COUNTIFS( OFFSET(raw!$A$1,2,MATCH(回答数!$A75,raw!$2:$2,0)-1,COUNTA(raw!$A:$A)-1,1),回答数!$B75, OFFSET(raw!$A$1,2,MATCH($D$1,raw!$2:$2,0)-1,COUNTA(raw!$A:$A)-1,1),I$2) -> 0 | J75: =COUNTIFS( OFFSET(raw!$A$1,2,MATCH(回答数!$A75,raw!$2:$2,0)-1,COUNTA(raw!$A:$A)-1,1),回答数!$B75, OFFSET(raw!$A$1,2,MATCH($D$1,raw!$2:$2,0)-1,COUNTA(raw!$A:$A)-1,1),J$2) -> 0 | K75: =COUNTIFS( OFFSET(raw!$A$1,2,MATCH(回答数!$A75,raw!$2:$2,0)-1,COUNTA(raw!$A:$A)-1,1),回答数!$B75, OFFSET(raw!$A$1,2,MATCH($D$1,raw!$2:$2,0)-1,COUNTA(raw!$A:$A)-1,1),K$2) -> 0 | L75: =COUNTIFS( OFFSET(raw!$A$1,2,MATCH(回答数!$A75,raw!$2:$2,0)-1,COUNTA(raw!$A:$A)-1,1),回答数!$B75, OFFSET(raw!$A$1,2,MATCH($D$1,raw!$2:$2,0)-1,COUNTA(raw!$A:$A)-1,1),L$2) -> 0 | M75: =COUNTIFS( OFFSET(raw!$A$1,2,MATCH(回答数!$A75,raw!$2:$2,0)-1,COUNTA(raw!$A:$A)-1,1),回答数!$B75, OFFSET(raw!$A$1,2,MATCH($D$1,raw!$2:$2,0)-1,COUNTA(raw!$A:$A)-1,1),M$2) -> 0 | N75: =COUNTIFS( OFFSET(raw!$A$1,2,MATCH(回答数!$A75,raw!$2:$2,0)-1,COUNTA(raw!$A:$A)-1,1),回答数!$B75, OFFSET(raw!$A$1,2,MATCH($D$1,raw!$2:$2,0)-1,COUNTA(raw!$A:$A)-1,1),N$2) -> 0 | O75: =COUNTIFS( OFFSET(raw!$A$1,2,MATCH(回答数!$A75,raw!$2:$2,0)-1,COUNTA(raw!$A:$A)-1,1),回答数!$B75, OFFSET(raw!$A$1,2,MATCH($D$1,raw!$2:$2,0)-1,COUNTA(raw!$A:$A)-1,1),O$2) -> 0 | P75: 26
D76: =SUM(D3:D75) -> 504 | E76: =SUM(E3:E75) -> 4974 | F76: =SUM(F3:F75) -> 3019 | G76: 0 | H76: 0 | I76: 0 | J76: 0 | K76: 0 | L76: 0 | M76: 0 | N76: 0 | O76: 0 | P76: 8497

Sheet NPS
A1: 集計区分 | C1: NPS | R1: Rank | S1: 回答月 | AG1: （処理用_順位） | AH1: 回答月 | AW1: =施設コード!$A$2 -> 6月 | BD1: 4月 | BE1: 5月 | BF1: 6月 | BG1: 7月 | BH1: 8月 | BI1: 9月 | BJ1: 10月 | BK1: 11月 | BL1: 12月 | BM1: 1月 | BN1: 2月 | BO1: 3月
D2: 4月 | E2: 5月 | F2: 6月 | G2: 7月 | H2: 8月 | I2: 9月 | J2: 10月 | K2: 11月 | L2: 12月 | M2: 1月 | N2: 2月 | O2: 3月 | P2: 通年 | S2: 4月 | T2: 5月 | U2: 6月 | V2: 7月 | W2: 8月 | X2: 9月 | Y2: 10月 | Z2: 11月 | AA2: 12月 | AB2: 1月 | AC2: 2月 | AD2: 3月 | AE2: 通年 | AH2: 4月 | AI2: 5月 | AJ2: 6月 | AK2: 7月 | AL2: 8月 | AM2: 9月 | AN2: 10月 | AO2: 11月 | AP2: 12月 | AQ2: 1月 | AR2: 2月 | AS2: 3月 | AT2: 通年 | AV2: （処理用_順位） | AW2: 順位 | AX2: 回答エリア | AY2: NPS | AZ2: 回答数 | BC2: 福井県 | BD2: =D3 -> 8.974358974 | BE2: =E3 -> 2.080566622 | BF2: 2.971014493 | BG2: None | BH2: None | BI2: None | BJ2: None | BK2: None | BL2: None | BM2: None | BN2: None | BO2: None
A3: 全体 | B3: =施設コード!$D$2 -> 福井県 | D3: =INDEX(【D】NPS!$C$4:$GO$76,MATCH(NPS!$B3,【D】NPS!$B$4:$B$76,0), MATCH(NPS!D$2&NPS!$C$1,【D】NPS!$C$2:$GO$2&【D】NPS!$C$3:$GO$3,0)) -> 8.974358974 | E3: =INDEX(【D】NPS!$C$4:$GO$76,MATCH(NPS!$B3,【D】NPS!$B$4:$B$76,0), MATCH(NPS!E$2&NPS!$C$1,【D】NPS!$C$2:$GO$2&【D】NPS!$C$3:$GO$3,0)) -> 2.080566622 | F3: =INDEX(【D】NPS!$C$4:$GO$76,MATCH(NPS!$B3,【D】NPS!$B$4:$B$76,0), MATCH(NPS!F$2&NPS!$C$1,【D】NPS!$C$2:$GO$2&【D】NPS!$C$3:$GO$3,0)) -> 2.971014493 | G3: =INDEX(【D】NPS!$C$4:$GO$76,MATCH(NPS!$B3,【D】NPS!$B$4:$B$76,0), MATCH(NPS!G$2&NPS!$C$1,【D】NPS!$C$2:$GO$2&【D】NPS!$C$3:$GO$3,0)) -> None | H3: =INDEX(【D】NPS!$C$4:$GO$76,MATCH(NPS!$B3,【D】NPS!$B$4:$B$76,0), MATCH(NPS!H$2&NPS!$C$1,【D】NPS!$C$2:$GO$2&【D】NPS!$C$3:$GO$3,0)) -> None | I3: =INDEX(【D】NPS!$C$4:$GO$76,MATCH(NPS!$B3,【D】NPS!$B$4:$B$76,0), MATCH(NPS!I$2&NPS!$C$1,【D】NPS!$C$2:$GO$2&【D】NPS!$C$3:$GO$3,0)) -> None | J3: =INDEX(【D】NPS!$C$4:$GO$76,MATCH(NPS!$B3,【D】NPS!$B$4:$B$76,0), MATCH(NPS!J$2&NPS!$C$1,【D】NPS!$C$2:$GO$2&【D】NPS!$C$3:$GO$3,0)) -> None | K3: =INDEX(【D】NPS!$C$4:$GO$76,MATCH(NPS!$B3,【D】NPS!$B$4:$B$76,0), MATCH(NPS!K$2&NPS!$C$1,【D】NPS!$C$2:$GO$2&【D】NPS!$C$3:$GO$3,0)) -> None | L3: =INDEX(【D】NPS!$C$4:$GO$76,MATCH(NPS!$B3,【D】NPS!$B$4:$B$76,0), MATCH(NPS!L$2&NPS!$C$1,【D】NPS!$C$2:$GO$2&【D】NPS!$C$3:$GO$3,0)) -> None | M3: =INDEX(【D】NPS!$C$4:$GO$76,MATCH(NPS!$B3,【D】NPS!$B$4:$B$76,0), MATCH(NPS!M$2&NPS!$C$1,【D】NPS!$C$2:$GO$2&【D】NPS!$C$3:$GO$3,0)) -> None | N3: =INDEX(【D】NPS!$C$4:$GO$76,MATCH(NPS!$B3,【D】NPS!$B$4:$B$76,0), MATCH(NPS!N$2&NPS!$C$1,【D】NPS!$C$2:$GO$2&【D】NPS!$C$3:$GO$3,0)) -> None | O3: =INDEX(【D】NPS!$C$4:$GO$76,MATCH(NPS!$B3,【D】NPS!$B$4:$B$76,0), MATCH(NPS!O$2&NPS!$C$1,【D】NPS!$C$2:$GO$2&【D】NPS!$C$3:$GO$3,0)) -> None | P3: =INDEX(【D】NPS!$C$4:$GO$76,MATCH(NPS!$B3,【D】NPS!$B$4:$B$76,0), MATCH(NPS!P$2&NPS!$C$1,【D】NPS!$C$2:$GO$2&【D】NPS!$C$3:$GO$3,0)) -> 2.814355797 | S3: =INDEX(【D】NPS!$C$4:$GO$76,MATCH(NPS!$B3,【D】NPS!$B$4:$B$76,0), MATCH(NPS!S$2&NPS!$R$1,【D】NPS!$C$2:$GO$2&【D】NPS!$C$3:$GO$3,0)) -> - | T3: =INDEX(【D】NPS!$C$4:$GO$76,MATCH(NPS!$B3,【D】NPS!$B$4:$B$76,0), MATCH(NPS!T$2&NPS!$R$1,【D】NPS!$C$2:$GO$2&【D】NPS!$C$3:$GO$3,0)) -> - | U3: =INDEX(【D】NPS!$C$4:$GO$76,MATCH(NPS!$B3,【D】NPS!$B$4:$B$76,0), MATCH(NPS!U$2&NPS!$R$1,【D】NPS!$C$2:$GO$2&【D】NPS!$C$3:$GO$3,0)) -> - | V3: =INDEX(【D】NPS!$C$4:$GO$76,MATCH(NPS!$B3,【D】NPS!$B$4:$B$76,0), MATCH(NPS!V$2&NPS!$R$1,【D】NPS!$C$2:$GO$2&【D】NPS!$C$3:$GO$3,0)) -> - | W3: =INDEX(【D】NPS!$C$4:$GO$76,MATCH(NPS!$B3,【D】NPS!$B$4:$B$76,0), MATCH(NPS!W$2&NPS!$R$1,【D】NPS!$C$2:$GO$2&【D】NPS!$C$3:$GO$3,0)) -> - | X3: =INDEX(【D】NPS!$C$4:$GO$76,MATCH(NPS!$B3,【D】NPS!$B$4:$B$76,0), MATCH(NPS!X$2&NPS!$R$1,【D】NPS!$C$2:$GO$2&【D】NPS!$C$3:$GO$3,0)) -> - | Y3: =INDEX(【D】NPS!$C$4:$GO$76,MATCH(NPS!$B3,【D】NPS!$B$4:$B$76,0), MATCH(NPS!Y$2&NPS!$R$1,【D】NPS!$C$2:$GO$2&【D】NPS!$C$3:$GO$3,0)) -> - | Z3: =INDEX(【D】NPS!$C$4:$GO$76,MATCH(NPS!$B3,【D】NPS!$B$4:$B$76,0), MATCH(NPS!Z$2&NPS!$R$1,【D】NPS!$C$2:$GO$2&【D】NPS!$C$3:$GO$3,0)) -> - | AA3: =INDEX(【D】NPS!$C$4:$GO$76,MATCH(NPS!$B3,【D】NPS!$B$4:$B$76,0), MATCH(NPS!AA$2&NPS!$R$1,【D】NPS!$C$2:$GO$2&【D】NPS!$C$3:$GO$3,0)) -> - | AB3: =INDEX(【D】NPS!$C$4:$GO$76,MATCH(NPS!$B3,【D】NPS!$B$4:$B$76,0), MATCH(NPS!AB$2&NPS!$R$1,【D】NPS!$C$2:$GO$2&【D】NPS!$C$3:$GO$3,0)) -> - | AC3: =INDEX(【D】NPS!$C$4:$GO$76,MATCH(NPS!$B3,【D】NPS!$B$4:$B$76,0), MATCH(NPS!AC$2&NPS!$R$1,【D】NPS!$C$2:$GO$2&【D】NPS!$C$3:$GO$3,0)) -> - | AD3: =INDEX(【D】NPS!$C$4:$GO$76,MATCH(NPS!$B3,【D】NPS!$B$4:$B$76,0), MATCH(NPS!AD$2&NPS!$R$1,【D】NPS!$C$2:$GO$2&【D】NPS!$C$3:$GO$3,0)) -> - | AE3: =INDEX(【D】NPS!$C$4:$GO$76,MATCH(NPS!$B3,【D】NPS!$B$4:$B$76,0), MATCH(NPS!AE$2&NPS!$R$1,【D】NPS!$C$2:$GO$2&【D】NPS!$C$3:$GO$3,0)) -> - | AH3: =INDEX(【D】NPS!$C$4:$GO$76,MATCH(NPS!$B3,【D】NPS!$B$4:$B$76,0), MATCH(NPS!AH$2&NPS!$AG$1,【D】NPS!$C$2:$GO$2&【D】NPS!$C$3:$GO$3,0)) -> - | AI3: =INDEX(【D】NPS!$C$4:$GO$76,MATCH(NPS!$B3,【D】NPS!$B$4:$B$76,0), MATCH(NPS!AI$2&NPS!$AG$1,【D】NPS!$C$2:$GO$2&【D】NPS!$C$3:$GO$3,0)) -> - | AJ3: =INDEX(【D】NPS!$C$4:$GO$76,MATCH(NPS!$B3,【D】NPS!$B$4:$B$76,0), MATCH(NPS!AJ$2&NPS!$AG$1,【D】NPS!$C$2:$GO$2&【D】NPS!$C$3:$GO$3,0)) -> - | AK3: =INDEX(【D】NPS!$C$4:$GO$76,MATCH(NPS!$B3,【D】NPS!$B$4:$B$76,0), MATCH(NPS!AK$2&NPS!$AG$1,【D】NPS!$C$2:$GO$2&【D】NPS!$C$3:$GO$3,0)) -> - | AL3: =INDEX(【D】NPS!$C$4:$GO$76,MATCH(NPS!$B3,【D】NPS!$B$4:$B$76,0), MATCH(NPS!AL$2&NPS!$AG$1,【D】NPS!$C$2:$GO$2&【D】NPS!$C$3:$GO$3,0)) -> - | AM3: =INDEX(【D】NPS!$C$4:$GO$76,MATCH(NPS!$B3,【D】NPS!$B$4:$B$76,0), MATCH(NPS!AM$2&NPS!$AG$1,【D】NPS!$C$2:$GO$2&【D】NPS!$C$3:$GO$3,0)) -> - | AN3: =INDEX(【D】NPS!$C$4:$GO$76,MATCH(NPS!$B3,【D】NPS!$B$4:$B$76,0), MATCH(NPS!AN$2&NPS!$AG$1,【D】NPS!$C$2:$GO$2&【D】NPS!$C$3:$GO$3,0)) -> - | AO3: =INDEX(【D】NPS!$C$4:$GO$76,MATCH(NPS!$B3,【D】NPS!$B$4:$B$76,0), MATCH(NPS!AO$2&NPS!$AG$1,【D】NPS!$C$2:$GO$2&【D】NPS!$C$3:$GO$3,0)) -> - | AP3: =INDEX(【D】NPS!$C$4:$GO$76,MATCH(NPS!$B3,【D】NPS!$B$4:$B$76,0), MATCH(NPS!AP$2&NPS!$AG$1,【D】NPS!$C$2:$GO$2&【D】NPS!$C$3:$GO$3,0)) -> - | AQ3: =INDEX(【D】NPS!$C$4:$GO$76,MATCH(NPS!$B3,【D】NPS!$B$4:$B$76,0), MATCH(NPS!AQ$2&NPS!$AG$1,【D】NPS!$C$2:$GO$2&【D】NPS!$C$3:$GO$3,0)) -> - | AR3: =INDEX(【D】NPS!$C$4:$GO$76,MATCH(NPS!$B3,【D】NPS!$B$4:$B$76,0), MATCH(NPS!AR$2&NPS!$AG$1,【D】NPS!$C$2:$GO$2&【D】NPS!$C$3:$GO$3,0)) -> - | AS3: =INDEX(【D】NPS!$C$4:$GO$76,MATCH(NPS!$B3,【D】NPS!$B$4:$B$76,0), MATCH(NPS!AS$2&NPS!$AG$1,【D】NPS!$C$2:$GO$2&【D】NPS!$C$3:$GO$3,0)) -> - | AT3: =INDEX(【D】NPS!$C$4:$GO$76,MATCH(NPS!$B3,【D】NPS!$B$4:$B$76,0), MATCH(NPS!AT$2&NPS!$AG$1,【D】NPS!$C$2:$GO$2&【D】NPS!$C$3:$GO$3,0)) -> - | AV3: 1 | AW3: =IFERROR(INDEX($S$6:$AE$75,MATCH(AX3,$B$6:$B$75,0),MATCH(AW$1,$S$2:$AE$2,0)),"-") -> 1 | AX3: =IFERROR( INDEX($B$6:$B$75, MATCH($AV3,OFFSET($AH$6,0,MATCH($AW$1,$AH$2:$AT$2,0)-1,COUNTA($B$6:$B$75),1),0),1),"-") -> きのこの森 エリア | AY3: =INDEX($D$6:$P$75,MATCH($AX3,$B$6:$B$75,0),MATCH($AW$1,$D$2:$P$2,0)) -> 100 | AZ3: =INDEX(【D】NPS!$C$7:$HB$76, MATCH(NPS!$AX3,【D】NPS!$B$7:$B$76,0), MATCH(NPS!$AZ$2&NPS!$AW$1,【D】NPS!$C$1:$HB$1&【D】NPS!$C$2:$HB$2,0)) -> 1 | BC3: =施設コード!$E$2 -> 福井市・永平寺町 | BD3: =D4 -> 27.27272727 | BE3: =E4 -> -0.7142857143 | BF3: =F4 -> -6.962025316 | BG3: =G4 -> None | BH3: =H4 -> None | BI3: =I4 -> None | BJ3: =J4 -> None | BK3: =K4 -> None | BL3: =L4 -> None | BM3: =M4 -> None | BN3: =N4 -> None | BO3: =O4 -> None
A4: 6分類 | B4: =施設コード!$E$2 -> 福井市・永平寺町 | D4: =INDEX(【D】NPS!$C$4:$GO$76,MATCH(NPS!$B4,【D】NPS!$B$4:$B$76,0), MATCH(NPS!D$2&NPS!$C$1,【D】NPS!$C$2:$GO$2&【D】NPS!$C$3:$GO$3,0)) -> 27.27272727 | E4: =INDEX(【D】NPS!$C$4:$GO$76,MATCH(NPS!$B4,【D】NPS!$B$4:$B$76,0), MATCH(NPS!E$2&NPS!$C$1,【D】NPS!$C$2:$GO$2&【D】NPS!$C$3:$GO$3,0)) -> -0.7142857143 | F4: =INDEX(【D】NPS!$C$4:$GO$76,MATCH(NPS!$B4,【D】NPS!$B$4:$B$76,0), MATCH(NPS!F$2&NPS!$C$1,【D】NPS!$C$2:$GO$2&【D】NPS!$C$3:$GO$3,0)) -> -6.962025316 | G4: =INDEX(【D】NPS!$C$4:$GO$76,MATCH(NPS!$B4,【D】NPS!$B$4:$B$76,0), MATCH(NPS!G$2&NPS!$C$1,【D】NPS!$C$2:$GO$2&【D】NPS!$C$3:$GO$3,0)) -> None | H4: =INDEX(【D】NPS!$C$4:$GO$76,MATCH(NPS!$B4,【D】NPS!$B$4:$B$76,0), MATCH(NPS!H$2&NPS!$C$1,【D】NPS!$C$2:$GO$2&【D】NPS!$C$3:$GO$3,0)) -> None | I4: =INDEX(【D】NPS!$C$4:$GO$76,MATCH(NPS!$B4,【D】NPS!$B$4:$B$76,0), MATCH(NPS!I$2&NPS!$C$1,【D】NPS!$C$2:$GO$2&【D】NPS!$C$3:$GO$3,0)) -> None | J4: =INDEX(【D】NPS!$C$4:$GO$76,MATCH(NPS!$B4,【D】NPS!$B$4:$B$76,0), MATCH(NPS!J$2&NPS!$C$1,【D】NPS!$C$2:$GO$2&【D】NPS!$C$3:$GO$3,0)) -> None | K4: =INDEX(【D】NPS!$C$4:$GO$76,MATCH(NPS!$B4,【D】NPS!$B$4:$B$76,0), MATCH(NPS!K$2&NPS!$C$1,【D】NPS!$C$2:$GO$2&【D】NPS!$C$3:$GO$3,0)) -> None | L4: =INDEX(【D】NPS!$C$4:$GO$76,MATCH(NPS!$B4,【D】NPS!$B$4:$B$76,0), MATCH(NPS!L$2&NPS!$C$1,【D】NPS!$C$2:$GO$2&【D】NPS!$C$3:$GO$3,0)) -> None | M4: =INDEX(【D】NPS!$C$4:$GO$76,MATCH(NPS!$B4,【D】NPS!$B$4:$B$76,0), MATCH(NPS!M$2&NPS!$C$1,【D】NPS!$C$2:$GO$2&【D】NPS!$C$3:$GO$3,0)) -> None | N4: =INDEX(【D】NPS!$C$4:$GO$76,MATCH(NPS!$B4,【D】NPS!$B$4:$B$76,0), MATCH(NPS!N$2&NPS!$C$1,【D】NPS!$C$2:$GO$2&【D】NPS!$C$3:$GO$3,0)) -> None | O4: =INDEX(【D】NPS!$C$4:$GO$76,MATCH(NPS!$B4,【D】NPS!$B$4:$B$76,0), MATCH(NPS!O$2&NPS!$C$1,【D】NPS!$C$2:$GO$2&【D】NPS!$C$3:$GO$3,0)) -> None | P4: =INDEX(【D】NPS!$C$4:$GO$76,MATCH(NPS!$B4,【D】NPS!$B$4:$B$76,0), MATCH(NPS!P$2&NPS!$C$1,【D】NPS!$C$2:$GO$2&【D】NPS!$C$3:$GO$3,0)) -> -1.52173913 | S4: =INDEX(【D】NPS!$C$4:$GO$76,MATCH(NPS!$B4,【D】NPS!$B$4:$B$76,0), MATCH(NPS!S$2&NPS!$R$1,【D】NPS!$C$2:$GO$2&【D】NPS!$C$3:$GO$3,0)) -> - | T4: =INDEX(【D】NPS!$C$4:$GO$76,MATCH(NPS!$B4,【D】NPS!$B$4:$B$76,0), MATCH(NPS!T$2&NPS!$R$1,【D】NPS!$C$2:$GO$2&【D】NPS!$C$3:$GO$3,0)) -> - | U4: =INDEX(【D】NPS!$C$4:$GO$76,MATCH(NPS!$B4,【D】NPS!$B$4:$B$76,0), MATCH(NPS!U$2&NPS!$R$1,【D】NPS!$C$2:$GO$2&【D】NPS!$C$3:$GO$3,0)) -> - | V4: =INDEX(【D】NPS!$C$4:$GO$76,MATCH(NPS!$B4,【D】NPS!$B$4:$B$76,0), MATCH(NPS!V$2&NPS!$R$1,【D】NPS!$C$2:$GO$2&【D】NPS!$C$3:$GO$3,0)) -> - | W4: =INDEX(【D】NPS!$C$4:$GO$76,MATCH(NPS!$B4,【D】NPS!$B$4:$B$76,0), MATCH(NPS!W$2&NPS!$R$1,【D】NPS!$C$2:$GO$2&【D】NPS!$C$3:$GO$3,0)) -> - | X4: =INDEX(【D】NPS!$C$4:$GO$76,MATCH(NPS!$B4,【D】NPS!$B$4:$B$76,0), MATCH(NPS!X$2&NPS!$R$1,【D】NPS!$C$2:$GO$2&【D】NPS!$C$3:$GO$3,0)) -> - | Y4: =INDEX(【D】NPS!$C$4:$GO$76,MATCH(NPS!$B4,【D】NPS!$B$4:$B$76,0), MATCH(NPS!Y$2&NPS!$R$1,【D】NPS!$C$2:$GO$2&【D】NPS!$C$3:$GO$3,0)) -> - | Z4: =INDEX(【D】NPS!$C$4:$GO$76,MATCH(NPS!$B4,【D】NPS!$B$4:$B$76,0), MATCH(NPS!Z$2&NPS!$R$1,【D】NPS!$C$2:$GO$2&【D】NPS!$C$3:$GO$3,0)) -> - | AA4: =INDEX(【D】NPS!$C$4:$GO$76,MATCH(NPS!$B4,【D】NPS!$B$4:$B$76,0), MATCH(NPS!AA$2&NPS!$R$1,【D】NPS!$C$2:$GO$2&【D】NPS!$C$3:$GO$3,0)) -> - | AB4: =INDEX(【D】NPS!$C$4:$GO$76,MATCH(NPS!$B4,【D】NPS!$B$4:$B$76,0), MATCH(NPS!AB$2&NPS!$R$1,【D】NPS!$C$2:$GO$2&【D】NPS!$C$3:$GO$3,0)) -> - | AC4: =INDEX(【D】NPS!$C$4:$GO$76,MATCH(NPS!$B4,【D】NPS!$B$4:$B$76,0), MATCH(NPS!AC$2&NPS!$R$1,【D】NPS!$C$2:$GO$2&【D】NPS!$C$3:$GO$3,0)) -> - | AD4: =INDEX(【D】NPS!$C$4:$GO$76,MATCH(NPS!$B4,【D】NPS!$B$4:$B$76,0), MATCH(NPS!AD$2&NPS!$R$1,【D】NPS!$C$2:$GO$2&【D】NPS!$C$3:$GO$3,0)) -> - | AE4: =INDEX(【D】NPS!$C$4:$GO$76,MATCH(NPS!$B4,【D】NPS!$B$4:$B$76,0), MATCH(NPS!AE$2&NPS!$R$1,【D】NPS!$C$2:$GO$2&【D】NPS!$C$3:$GO$3,0)) -> - | AH4: =INDEX(【D】NPS!$C$4:$GO$76,MATCH(NPS!$B4,【D】NPS!$B$4:$B$76,0), MATCH(NPS!AH$2&NPS!$AG$1,【D】NPS!$C$2:$GO$2&【D】NPS!$C$3:$GO$3,0)) -> - | AI4: =INDEX(【D】NPS!$C$4:$GO$76,MATCH(NPS!$B4,【D】NPS!$B$4:$B$76,0), MATCH(NPS!AI$2&NPS!$AG$1,【D】NPS!$C$2:$GO$2&【D】NPS!$C$3:$GO$3,0)) -> - | AJ4: =INDEX(【D】NPS!$C$4:$GO$76,MATCH(NPS!$B4,【D】NPS!$B$4:$B$76,0), MATCH(NPS!AJ$2&NPS!$AG$1,【D】NPS!$C$2:$GO$2&【D】NPS!$C$3:$GO$3,0)) -> - | AK4: =INDEX(【D】NPS!$C$4:$GO$76,MATCH(NPS!$B4,【D】NPS!$B$4:$B$76,0), MATCH(NPS!AK$2&NPS!$AG$1,【D】NPS!$C$2:$GO$2&【D】NPS!$C$3:$GO$3,0)) -> - | AL4: =INDEX(【D】NPS!$C$4:$GO$76,MATCH(NPS!$B4,【D】NPS!$B$4:$B$76,0), MATCH(NPS!AL$2&NPS!$AG$1,【D】NPS!$C$2:$GO$2&【D】NPS!$C$3:$GO$3,0)) -> - | AM4: =INDEX(【D】NPS!$C$4:$GO$76,MATCH(NPS!$B4,【D】NPS!$B$4:$B$76,0), MATCH(NPS!AM$2&NPS!$AG$1,【D】NPS!$C$2:$GO$2&【D】NPS!$C$3:$GO$3,0)) -> - | AN4: =INDEX(【D】NPS!$C$4:$GO$76,MATCH(NPS!$B4,【D】NPS!$B$4:$B$76,0), MATCH(NPS!AN$2&NPS!$AG$1,【D】NPS!$C$2:$GO$2&【D】NPS!$C$3:$GO$3,0)) -> - | AO4: =INDEX(【D】NPS!$C$4:$GO$76,MATCH(NPS!$B4,【D】NPS!$B$4:$B$76,0), MATCH(NPS!AO$2&NPS!$AG$1,【D】NPS!$C$2:$GO$2&【D】NPS!$C$3:$GO$3,0)) -> - | AP4: =INDEX(【D】NPS!$C$4:$GO$76,MATCH(NPS!$B4,【D】NPS!$B$4:$B$76,0), MATCH(NPS!AP$2&NPS!$AG$1,【D】NPS!$C$2:$GO$2&【D】NPS!$C$3:$GO$3,0)) -> - | AQ4: =INDEX(【D】NPS!$C$4:$GO$76,MATCH(NPS!$B4,【D】NPS!$B$4:$B$76,0), MATCH(NPS!AQ$2&NPS!$AG$1,【D】NPS!$C$2:$GO$2&【D】NPS!$C$3:$GO$3,0)) -> - | AR4: =INDEX(【D】NPS!$C$4:$GO$76,MATCH(NPS!$B4,【D】NPS!$B$4:$B$76,0), MATCH(NPS!AR$2&NPS!$AG$1,【D】NPS!$C$2:$GO$2&【D】NPS!$C$3:$GO$3,0)) -> - | AS4: =INDEX(【D】NPS!$C$4:$GO$76,MATCH(NPS!$B4,【D】NPS!$B$4:$B$76,0), MATCH(NPS!AS$2&NPS!$AG$1,【D】NPS!$C$2:$GO$2&【D】NPS!$C$3:$GO$3,0)) -> - | AT4: =INDEX(【D】NPS!$C$4:$GO$76,MATCH(NPS!$B4,【D】NPS!$B$4:$B$76,0), MATCH(NPS!AT$2&NPS!$AG$1,【D】NPS!$C$2:$GO$2&【D】NPS!$C$3:$GO$3,0)) -> - | AV4: 2 | AW4: =IFERROR(INDEX($S$6:$AE$75,MATCH(AX4,$B$6:$B$75,0),MATCH(AW$1,$S$2:$AE$2,0)),"-") -> 1 | AX4: =IFERROR( INDEX($B$6:$B$75, MATCH($AV4,OFFSET($AH$6,0,MATCH($AW$1,$AH$2:$AT$2,0)-1,COUNTA($B$6:$B$75),1),0),1),"-") -> 箸のふるさと館WAKASA エリア | AY4: =INDEX($D$6:$P$75,MATCH($AX4,$B$6:$B$75,0),MATCH($AW$1,$D$2:$P$2,0)) -> 100 | AZ4: =INDEX(【D】NPS!$C$7:$HB$76, MATCH(NPS!$AX4,【D】NPS!$B$7:$B$76,0), MATCH(NPS!$AZ$2&NPS!$AW$1,【D】NPS!$C$1:$HB$1&【D】NPS!$C$2:$HB$2,0)) -> 1 | BC4: =施設コード!$F$2 -> 福井市 | BD4: 21.42857143 | BE4: -6.818181818 | BF4: -8.910891089 | BG4: None | BH4: None | BI4: None | BJ4: None | BK4: None | BL4: None | BM4: None | BN4: None | BO4: None
A5: 市町村 | B5: =施設コード!$F$2 -> 福井市 | D5: =INDEX(【D】NPS!$C$4:$GO$76,MATCH(NPS!$B5,【D】NPS!$B$4:$B$76,0), MATCH(NPS!D$2&NPS!$C$1,【D】NPS!$C$2:$GO$2&【D】NPS!$C$3:$GO$3,0)) -> 21.42857143 | E5: =INDEX(【D】NPS!$C$4:$GO$76,MATCH(NPS!$B5,【D】NPS!$B$4:$B$76,0), MATCH(NPS!E$2&NPS!$C$1,【D】NPS!$C$2:$GO$2&【D】NPS!$C$3:$GO$3,0)) -> -6.818181818 | F5: =INDEX(【D】NPS!$C$4:$GO$76,MATCH(NPS!$B5,【D】NPS!$B$4:$B$76,0), MATCH(NPS!F$2&NPS!$C$1,【D】NPS!$C$2:$GO$2&【D】NPS!$C$3:$GO$3,0)) -> -8.910891089 | G5: =INDEX(【D】NPS!$C$4:$GO$76,MATCH(NPS!$B5,【D】NPS!$B$4:$B$76,0), MATCH(NPS!G$2&NPS!$C$1,【D】NPS!$C$2:$GO$2&【D】NPS!$C$3:$GO$3,0)) -> None | H5: =INDEX(【D】NPS!$C$4:$GO$76,MATCH(NPS!$B5,【D】NPS!$B$4:$B$76,0), MATCH(NPS!H$2&NPS!$C$1,【D】NPS!$C$2:$GO$2&【D】NPS!$C$3:$GO$3,0)) -> None | I5: =INDEX(【D】NPS!$C$4:$GO$76,MATCH(NPS!$B5,【D】NPS!$B$4:$B$76,0), MATCH(NPS!I$2&NPS!$C$1,【D】NPS!$C$2:$GO$2&【D】NPS!$C$3:$GO$3,0)) -> None | J5: =INDEX(【D】NPS!$C$4:$GO$76,MATCH(NPS!$B5,【D】NPS!$B$4:$B$76,0), MATCH(NPS!J$2&NPS!$C$1,【D】NPS!$C$2:$GO$2&【D】NPS!$C$3:$GO$3,0)) -> None | K5: =INDEX(【D】NPS!$C$4:$GO$76,MATCH(NPS!$B5,【D】NPS!$B$4:$B$76,0), MATCH(NPS!K$2&NPS!$C$1,【D】NPS!$C$2:$GO$2&【D】NPS!$C$3:$GO$3,0)) -> None | L5: =INDEX(【D】NPS!$C$4:$GO$76,MATCH(NPS!$B5,【D】NPS!$B$4:$B$76,0), MATCH(NPS!L$2&NPS!$C$1,【D】NPS!$C$2:$GO$2&【D】NPS!$C$3:$GO$3,0)) -> None | M5: =INDEX(【D】NPS!$C$4:$GO$76,MATCH(NPS!$B5,【D】NPS!$B$4:$B$76,0), MATCH(NPS!M$2&NPS!$C$1,【D】NPS!$C$2:$GO$2&【D】NPS!$C$3:$GO$3,0)) -> None | N5: =INDEX(【D】NPS!$C$4:$GO$76,MATCH(NPS!$B5,【D】NPS!$B$4:$B$76,0), MATCH(NPS!N$2&NPS!$C$1,【D】NPS!$C$2:$GO$2&【D】NPS!$C$3:$GO$3,0)) -> None | O5: =INDEX(【D】NPS!$C$4:$GO$76,MATCH(NPS!$B5,【D】NPS!$B$4:$B$76,0), MATCH(NPS!O$2&NPS!$C$1,【D】NPS!$C$2:$GO$2&【D】NPS!$C$3:$GO$3,0)) -> None | P5: =INDEX(【D】NPS!$C$4:$GO$76,MATCH(NPS!$B5,【D】NPS!$B$4:$B$76,0), MATCH(NPS!P$2&NPS!$C$1,【D】NPS!$C$2:$GO$2&【D】NPS!$C$3:$GO$3,0)) -> -6.18556701 | S5: =INDEX(【D】NPS!$C$4:$GO$76,MATCH(NPS!$B5,【D】NPS!$B$4:$B$76,0), MATCH(NPS!S$2&NPS!$R$1,【D】NPS!$C$2:$GO$2&【D】NPS!$C$3:$GO$3,0)) -> - | T5: =INDEX(【D】NPS!$C$4:$GO$76,MATCH(NPS!$B5,【D】NPS!$B$4:$B$76,0), MATCH(NPS!T$2&NPS!$R$1,【D】NPS!$C$2:$GO$2&【D】NPS!$C$3:$GO$3,0)) -> - | U5: =INDEX(【D】NPS!$C$4:$GO$76,MATCH(NPS!$B5,【D】NPS!$B$4:$B$76,0), MATCH(NPS!U$2&NPS!$R$1,【D】NPS!$C$2:$GO$2&【D】NPS!$C$3:$GO$3,0)) -> - | V5: =INDEX(【D】NPS!$C$4:$GO$76,MATCH(NPS!$B5,【D】NPS!$B$4:$B$76,0), MATCH(NPS!V$2&NPS!$R$1,【D】NPS!$C$2:$GO$2&【D】NPS!$C$3:$GO$3,0)) -> - | W5: =INDEX(【D】NPS!$C$4:$GO$76,MATCH(NPS!$B5,【D】NPS!$B$4:$B$76,0), MATCH(NPS!W$2&NPS!$R$1,【D】NPS!$C$2:$GO$2&【D】NPS!$C$3:$GO$3,0)) -> - | X5: =INDEX(【D】NPS!$C$4:$GO$76,MATCH(NPS!$B5,【D】NPS!$B$4:$B$76,0), MATCH(NPS!X$2&NPS!$R$1,【D】NPS!$C$2:$GO$2&【D】NPS!$C$3:$GO$3,0)) -> - | Y5: =INDEX(【D】NPS!$C$4:$GO$76,MATCH(NPS!$B5,【D】NPS!$B$4:$B$76,0), MATCH(NPS!Y$2&NPS!$R$1,【D】NPS!$C$2:$GO$2&【D】NPS!$C$3:$GO$3,0)) -> - | Z5: =INDEX(【D】NPS!$C$4:$GO$76,MATCH(NPS!$B5,【D】NPS!$B$4:$B$76,0), MATCH(NPS!Z$2&NPS!$R$1,【D】NPS!$C$2:$GO$2&【D】NPS!$C$3:$GO$3,0)) -> - | AA5: =INDEX(【D】NPS!$C$4:$GO$76,MATCH(NPS!$B5,【D】NPS!$B$4:$B$76,0), MATCH(NPS!AA$2&NPS!$R$1,【D】NPS!$C$2:$GO$2&【D】NPS!$C$3:$GO$3,0)) -> - | AB5: =INDEX(【D】NPS!$C$4:$GO$76,MATCH(NPS!$B5,【D】NPS!$B$4:$B$76,0), MATCH(NPS!AB$2&NPS!$R$1,【D】NPS!$C$2:$GO$2&【D】NPS!$C$3:$GO$3,0)) -> - | AC5: =INDEX(【D】NPS!$C$4:$GO$76,MATCH(NPS!$B5,【D】NPS!$B$4:$B$76,0), MATCH(NPS!AC$2&NPS!$R$1,【D】NPS!$C$2:$GO$2&【D】NPS!$C$3:$GO$3,0)) -> - | AD5: =INDEX(【D】NPS!$C$4:$GO$76,MATCH(NPS!$B5,【D】NPS!$B$4:$B$76,0), MATCH(NPS!AD$2&NPS!$R$1,【D】NPS!$C$2:$GO$2&【D】NPS!$C$3:$GO$3,0)) -> - | AE5: =INDEX(【D】NPS!$C$4:$GO$76,MATCH(NPS!$B5,【D】NPS!$B$4:$B$76,0), MATCH(NPS!AE$2&NPS!$R$1,【D】NPS!$C$2:$GO$2&【D】NPS!$C$3:$GO$3,0)) -> - | AH5: =INDEX(【D】NPS!$C$4:$GO$76,MATCH(NPS!$B5,【D】NPS!$B$4:$B$76,0), MATCH(NPS!AH$2&NPS!$AG$1,【D】NPS!$C$2:$GO$2&【D】NPS!$C$3:$GO$3,0)) -> - | AI5: =INDEX(【D】NPS!$C$4:$GO$76,MATCH(NPS!$B5,【D】NPS!$B$4:$B$76,0), MATCH(NPS!AI$2&NPS!$AG$1,【D】NPS!$C$2:$GO$2&【D】NPS!$C$3:$GO$3,0)) -> - | AJ5: =INDEX(【D】NPS!$C$4:$GO$76,MATCH(NPS!$B5,【D】NPS!$B$4:$B$76,0), MATCH(NPS!AJ$2&NPS!$AG$1,【D】NPS!$C$2:$GO$2&【D】NPS!$C$3:$GO$3,0)) -> - | AK5: =INDEX(【D】NPS!$C$4:$GO$76,MATCH(NPS!$B5,【D】NPS!$B$4:$B$76,0), MATCH(NPS!AK$2&NPS!$AG$1,【D】NPS!$C$2:$GO$2&【D】NPS!$C$3:$GO$3,0)) -> - | AL5: =INDEX(【D】NPS!$C$4:$GO$76,MATCH(NPS!$B5,【D】NPS!$B$4:$B$76,0), MATCH(NPS!AL$2&NPS!$AG$1,【D】NPS!$C$2:$GO$2&【D】NPS!$C$3:$GO$3,0)) -> - | AM5: =INDEX(【D】NPS!$C$4:$GO$76,MATCH(NPS!$B5,【D】NPS!$B$4:$B$76,0), MATCH(NPS!AM$2&NPS!$AG$1,【D】NPS!$C$2:$GO$2&【D】NPS!$C$3:$GO$3,0)) -> - | AN5: =INDEX(【D】NPS!$C$4:$GO$76,MATCH(NPS!$B5,【D】NPS!$B$4:$B$76,0), MATCH(NPS!AN$2&NPS!$AG$1,【D】NPS!$C$2:$GO$2&【D】NPS!$C$3:$GO$3,0)) -> - | AO5: =INDEX(【D】NPS!$C$4:$GO$76,MATCH(NPS!$B5,【D】NPS!$B$4:$B$76,0), MATCH(NPS!AO$2&NPS!$AG$1,【D】NPS!$C$2:$GO$2&【D】NPS!$C$3:$GO$3,0)) -> - | AP5: =INDEX(【D】NPS!$C$4:$GO$76,MATCH(NPS!$B5,【D】NPS!$B$4:$B$76,0), MATCH(NPS!AP$2&NPS!$AG$1,【D】NPS!$C$2:$GO$2&【D】NPS!$C$3:$GO$3,0)) -> - | AQ5: =INDEX(【D】NPS!$C$4:$GO$76,MATCH(NPS!$B5,【D】NPS!$B$4:$B$76,0), MATCH(NPS!AQ$2&NPS!$AG$1,【D】NPS!$C$2:$GO$2&【D】NPS!$C$3:$GO$3,0)) -> - | AR5: =INDEX(【D】NPS!$C$4:$GO$76,MATCH(NPS!$B5,【D】NPS!$B$4:$B$76,0), MATCH(NPS!AR$2&NPS!$AG$1,【D】NPS!$C$2:$GO$2&【D】NPS!$C$3:$GO$3,0)) -> - | AS5: =INDEX(【D】NPS!$C$4:$GO$76,MATCH(NPS!$B5,【D】NPS!$B$4:$B$76,0), MATCH(NPS!AS$2&NPS!$AG$1,【D】NPS!$C$2:$GO$2&【D】NPS!$C$3:$GO$3,0)) -> - | AT5: =INDEX(【D】NPS!$C$4:$GO$76,MATCH(NPS!$B5,【D】NPS!$B$4:$B$76,0), MATCH(NPS!AT$2&NPS!$AG$1,【D】NPS!$C$2:$GO$2&【D】NPS!$C$3:$GO$3,0)) -> - | AV5: 3 | AW5: 1 | AX5: 越前岬 エリア | AY5: 100 | AZ5: =INDEX(【D】NPS!$C$7:$HB$76, MATCH(NPS!$AX5,【D】NPS!$B$7:$B$76,0), MATCH(NPS!$AZ$2&NPS!$AW$1,【D】NPS!$C$1:$HB$1&【D】NPS!$C$2:$HB$2,0)) -> 2 | BC5: =施設コード!$C$2 -> 一乗谷朝倉氏遺跡 エリア | BD5: =INDEX(D$6:D$75,MATCH($BC$5,$B$6:$B$75,0),1) -> 28.57142857 | BE5: =INDEX(E$6:E$75,MATCH($BC$5,$B$6:$B$75,0),1) -> 1.162790698 | BF5: -10.41666667 | BG5: None | BH5: None | BI5: None | BJ5: None | BK5: None | BL5: None | BM5: None | BN5: None | BO5: None
A6: 回答エリア | B6: 一乗谷朝倉氏遺跡 エリア | D6: =INDEX(【D】NPS!$C$4:$GO$76,MATCH(NPS!$B6,【D】NPS!$B$4:$B$76,0), MATCH(NPS!D$2&NPS!$C$1,【D】NPS!$C$2:$GO$2&【D】NPS!$C$3:$GO$3,0)) -> 28.57142857 | E6: =INDEX(【D】NPS!$C$4:$GO$76,MATCH(NPS!$B6,【D】NPS!$B$4:$B$76,0), MATCH(NPS!E$2&NPS!$C$1,【D】NPS!$C$2:$GO$2&【D】NPS!$C$3:$GO$3,0)) -> 1.162790698 | F6: =INDEX(【D】NPS!$C$4:$GO$76,MATCH(NPS!$B6,【D】NPS!$B$4:$B$76,0), MATCH(NPS!F$2&NPS!$C$1,【D】NPS!$C$2:$GO$2&【D】NPS!$C$3:$GO$3,0)) -> -10.41666667 | G6: =INDEX(【D】NPS!$C$4:$GO$76,MATCH(NPS!$B6,【D】NPS!$B$4:$B$76,0), MATCH(NPS!G$2&NPS!$C$1,【D】NPS!$C$2:$GO$2&【D】NPS!$C$3:$GO$3,0)) -> None | H6: =INDEX(【D】NPS!$C$4:$GO$76,MATCH(NPS!$B6,【D】NPS!$B$4:$B$76,0), MATCH(NPS!H$2&NPS!$C$1,【D】NPS!$C$2:$GO$2&【D】NPS!$C$3:$GO$3,0)) -> None | I6: =INDEX(【D】NPS!$C$4:$GO$76,MATCH(NPS!$B6,【D】NPS!$B$4:$B$76,0), MATCH(NPS!I$2&NPS!$C$1,【D】NPS!$C$2:$GO$2&【D】NPS!$C$3:$GO$3,0)) -> None | J6: =INDEX(【D】NPS!$C$4:$GO$76,MATCH(NPS!$B6,【D】NPS!$B$4:$B$76,0), MATCH(NPS!J$2&NPS!$C$1,【D】NPS!$C$2:$GO$2&【D】NPS!$C$3:$GO$3,0)) -> None | K6: =INDEX(【D】NPS!$C$4:$GO$76,MATCH(NPS!$B6,【D】NPS!$B$4:$B$76,0), MATCH(NPS!K$2&NPS!$C$1,【D】NPS!$C$2:$GO$2&【D】NPS!$C$3:$GO$3,0)) -> None | L6: =INDEX(【D】NPS!$C$4:$GO$76,MATCH(NPS!$B6,【D】NPS!$B$4:$B$76,0), MATCH(NPS!L$2&NPS!$C$1,【D】NPS!$C$2:$GO$2&【D】NPS!$C$3:$GO$3,0)) -> None | M6: =INDEX(【D】NPS!$C$4:$GO$76,MATCH(NPS!$B6,【D】NPS!$B$4:$B$76,0), MATCH(NPS!M$2&NPS!$C$1,【D】NPS!$C$2:$GO$2&【D】NPS!$C$3:$GO$3,0)) -> None | N6: =INDEX(【D】NPS!$C$4:$GO$76,MATCH(NPS!$B6,【D】NPS!$B$4:$B$76,0), MATCH(NPS!N$2&NPS!$C$1,【D】NPS!$C$2:$GO$2&【D】NPS!$C$3:$GO$3,0)) -> None | O6: =INDEX(【D】NPS!$C$4:$GO$76,MATCH(NPS!$B6,【D】NPS!$B$4:$B$76,0), MATCH(NPS!O$2&NPS!$C$1,【D】NPS!$C$2:$GO$2&【D】NPS!$C$3:$GO$3,0)) -> None | P6: =INDEX(【D】NPS!$C$4:$GO$76,MATCH(NPS!$B6,【D】NPS!$B$4:$B$76,0), MATCH(NPS!P$2&NPS!$C$1,【D】NPS!$C$2:$GO$2&【D】NPS!$C$3:$GO$3,0)) -> -1.418439716 | S6: =INDEX(【D】NPS!$C$4:$GO$76,MATCH(NPS!$B6,【D】NPS!$B$4:$B$76,0), MATCH(NPS!S$2&NPS!$R$1,【D】NPS!$C$2:$GO$2&【D】NPS!$C$3:$GO$3,0)) -> 15 | T6: =INDEX(【D】NPS!$C$4:$GO$76,MATCH(NPS!$B6,【D】NPS!$B$4:$B$76,0), MATCH(NPS!T$2&NPS!$R$1,【D】NPS!$C$2:$GO$2&【D】NPS!$C$3:$GO$3,0)) -> 33 | U6: =INDEX(【D】NPS!$C$4:$GO$76,MATCH(NPS!$B6,【D】NPS!$B$4:$B$76,0), MATCH(NPS!U$2&NPS!$R$1,【D】NPS!$C$2:$GO$2&【D】NPS!$C$3:$GO$3,0)) -> 48 | V6: =INDEX(【D】NPS!$C$4:$GO$76,MATCH(NPS!$B6,【D】NPS!$B$4:$B$76,0), MATCH(NPS!V$2&NPS!$R$1,【D】NPS!$C$2:$GO$2&【D】NPS!$C$3:$GO$3,0)) -> - | W6: =INDEX(【D】NPS!$C$4:$GO$76,MATCH(NPS!$B6,【D】NPS!$B$4:$B$76,0), MATCH(NPS!W$2&NPS!$R$1,【D】NPS!$C$2:$GO$2&【D】NPS!$C$3:$GO$3,0)) -> - | X6: =INDEX(【D】NPS!$C$4:$GO$76,MATCH(NPS!$B6,【D】NPS!$B$4:$B$76,0), MATCH(NPS!X$2&NPS!$R$1,【D】NPS!$C$2:$GO$2&【D】NPS!$C$3:$GO$3,0)) -> - | Y6: =INDEX(【D】NPS!$C$4:$GO$76,MATCH(NPS!$B6,【D】NPS!$B$4:$B$76,0), MATCH(NPS!Y$2&NPS!$R$1,【D】NPS!$C$2:$GO$2&【D】NPS!$C$3:$GO$3,0)) -> - | Z6: =INDEX(【D】NPS!$C$4:$GO$76,MATCH(NPS!$B6,【D】NPS!$B$4:$B$76,0), MATCH(NPS!Z$2&NPS!$R$1,【D】NPS!$C$2:$GO$2&【D】NPS!$C$3:$GO$3,0)) -> - | AA6: =INDEX(【D】NPS!$C$4:$GO$76,MATCH(NPS!$B6,【D】NPS!$B$4:$B$76,0), MATCH(NPS!AA$2&NPS!$R$1,【D】NPS!$C$2:$GO$2&【D】NPS!$C$3:$GO$3,0)) -> - | AB6: =INDEX(【D】NPS!$C$4:$GO$76,MATCH(NPS!$B6,【D】NPS!$B$4:$B$76,0), MATCH(NPS!AB$2&NPS!$R$1,【D】NPS!$C$2:$GO$2&【D】NPS!$C$3:$GO$3,0)) -> - | AC6: =INDEX(【D】NPS!$C$4:$GO$76,MATCH(NPS!$B6,【D】NPS!$B$4:$B$76,0), MATCH(NPS!AC$2&NPS!$R$1,【D】NPS!$C$2:$GO$2&【D】NPS!$C$3:$GO$3,0)) -> - | AD6: =INDEX(【D】NPS!$C$4:$GO$76,MATCH(NPS!$B6,【D】NPS!$B$4:$B$76,0), MATCH(NPS!AD$2&NPS!$R$1,【D】NPS!$C$2:$GO$2&【D】NPS!$C$3:$GO$3,0)) -> - | AE6: =INDEX(【D】NPS!$C$4:$GO$76,MATCH(NPS!$B6,【D】NPS!$B$4:$B$76,0), MATCH(NPS!AE$2&NPS!$R$1,【D】NPS!$C$2:$GO$2&【D】NPS!$C$3:$GO$3,0)) -> 45 | AH6: =INDEX(【D】NPS!$C$4:$GO$76,MATCH(NPS!$B6,【D】NPS!$B$4:$B$76,0), MATCH(NPS!AH$2&NPS!$AG$1,【D】NPS!$C$2:$GO$2&【D】NPS!$C$3:$GO$3,0)) -> 16 | AI6: =INDEX(【D】NPS!$C$4:$GO$76,MATCH(NPS!$B6,【D】NPS!$B$4:$B$76,0), MATCH(NPS!AI$2&NPS!$AG$1,【D】NPS!$C$2:$GO$2&【D】NPS!$C$3:$GO$3,0)) -> 33 | AJ6: =INDEX(【D】NPS!$C$4:$GO$76,MATCH(NPS!$B6,【D】NPS!$B$4:$B$76,0), MATCH(NPS!AJ$2&NPS!$AG$1,【D】NPS!$C$2:$GO$2&【D】NPS!$C$3:$GO$3,0)) -> 48 | AK6: =INDEX(【D】NPS!$C$4:$GO$76,MATCH(NPS!$B6,【D】NPS!$B$4:$B$76,0), MATCH(NPS!AK$2&NPS!$AG$1,【D】NPS!$C$2:$GO$2&【D】NPS!$C$3:$GO$3,0)) -> - | AL6: =INDEX(【D】NPS!$C$4:$GO$76,MATCH(NPS!$B6,【D】NPS!$B$4:$B$76,0), MATCH(NPS!AL$2&NPS!$AG$1,【D】NPS!$C$2:$GO$2&【D】NPS!$C$3:$GO$3,0)) -> - | AM6: =INDEX(【D】NPS!$C$4:$GO$76,MATCH(NPS!$B6,【D】NPS!$B$4:$B$76,0), MATCH(NPS!AM$2&NPS!$AG$1,【D】NPS!$C$2:$GO$2&【D】NPS!$C$3:$GO$3,0)) -> - | AN6: =INDEX(【D】NPS!$C$4:$GO$76,MATCH(NPS!$B6,【D】NPS!$B$4:$B$76,0), MATCH(NPS!AN$2&NPS!$AG$1,【D】NPS!$C$2:$GO$2&【D】NPS!$C$3:$GO$3,0)) -> - | AO6: =INDEX(【D】NPS!$C$4:$GO$76,MATCH(NPS!$B6,【D】NPS!$B$4:$B$76,0), MATCH(NPS!AO$2&NPS!$AG$1,【D】NPS!$C$2:$GO$2&【D】NPS!$C$3:$GO$3,0)) -> - | AP6: =INDEX(【D】NPS!$C$4:$GO$76,MATCH(NPS!$B6,【D】NPS!$B$4:$B$76,0), MATCH(NPS!AP$2&NPS!$AG$1,【D】NPS!$C$2:$GO$2&【D】NPS!$C$3:$GO$3,0)) -> - | AQ6: =INDEX(【D】NPS!$C$4:$GO$76,MATCH(NPS!$B6,【D】NPS!$B$4:$B$76,0), MATCH(NPS!AQ$2&NPS!$AG$1,【D】NPS!$C$2:$GO$2&【D】NPS!$C$3:$GO$3,0)) -> - | AR6: =INDEX(【D】NPS!$C$4:$GO$76,MATCH(NPS!$B6,【D】NPS!$B$4:$B$76,0), MATCH(NPS!AR$2&NPS!$AG$1,【D】NPS!$C$2:$GO$2&【D】NPS!$C$3:$GO$3,0)) -> - | AS6: =INDEX(【D】NPS!$C$4:$GO$76,MATCH(NPS!$B6,【D】NPS!$B$4:$B$76,0), MATCH(NPS!AS$2&NPS!$AG$1,【D】NPS!$C$2:$GO$2&【D】NPS!$C$3:$GO$3,0)) -> - | AT6: =INDEX(【D】NPS!$C$4:$GO$76,MATCH(NPS!$B6,【D】NPS!$B$4:$B$76,0), MATCH(NPS!AT$2&NPS!$AG$1,【D】NPS!$C$2:$GO$2&【D】NPS!$C$3:$GO$3,0)) -> 45 | AV6: 4 | AW6: 1 | AX6: 平泉寺白山神社 エリア | AY6: 100 | AZ6: =INDEX(【D】NPS!$C$7:$HB$76, MATCH(NPS!$AX6,【D】NPS!$B$7:$B$76,0), MATCH(NPS!$AZ$2&NPS!$AW$1,【D】NPS!$C$1:$HB$1&【D】NPS!$C$2:$HB$2,0)) -> 3
B7: 越前海岸 エリア | D7: =INDEX(【D】NPS!$C$4:$GO$76,MATCH(NPS!$B7,【D】NPS!$B$4:$B$76,0), MATCH(NPS!D$2&NPS!$C$1,【D】NPS!$C$2:$GO$2&【D】NPS!$C$3:$GO$3,0)) -> None | E7: =INDEX(【D】NPS!$C$4:$GO$76,MATCH(NPS!$B7,【D】NPS!$B$4:$B$76,0), MATCH(NPS!E$2&NPS!$C$1,【D】NPS!$C$2:$GO$2&【D】NPS!$C$3:$GO$3,0)) -> -33.33333333 | F7: =INDEX(【D】NPS!$C$4:$GO$76,MATCH(NPS!$B7,【D】NPS!$B$4:$B$76,0), MATCH(NPS!F$2&NPS!$C$1,【D】NPS!$C$2:$GO$2&【D】NPS!$C$3:$GO$3,0)) -> 50 | G7: =INDEX(【D】NPS!$C$4:$GO$76,MATCH(NPS!$B7,【D】NPS!$B$4:$B$76,0), MATCH(NPS!G$2&NPS!$C$1,【D】NPS!$C$2:$GO$2&【D】NPS!$C$3:$GO$3,0)) -> None | H7: =INDEX(【D】NPS!$C$4:$GO$76,MATCH(NPS!$B7,【D】NPS!$B$4:$B$76,0), MATCH(NPS!H$2&NPS!$C$1,【D】NPS!$C$2:$GO$2&【D】NPS!$C$3:$GO$3,0)) -> None | I7: =INDEX(【D】NPS!$C$4:$GO$76,MATCH(NPS!$B7,【D】NPS!$B$4:$B$76,0), MATCH(NPS!I$2&NPS!$C$1,【D】NPS!$C$2:$GO$2&【D】NPS!$C$3:$GO$3,0)) -> None | J7: =INDEX(【D】NPS!$C$4:$GO$76,MATCH(NPS!$B7,【D】NPS!$B$4:$B$76,0), MATCH(NPS!J$2&NPS!$C$1,【D】NPS!$C$2:$GO$2&【D】NPS!$C$3:$GO$3,0)) -> None | K7: =INDEX(【D】NPS!$C$4:$GO$76,MATCH(NPS!$B7,【D】NPS!$B$4:$B$76,0), MATCH(NPS!K$2&NPS!$C$1,【D】NPS!$C$2:$GO$2&【D】NPS!$C$3:$GO$3,0)) -> None | L7: =INDEX(【D】NPS!$C$4:$GO$76,MATCH(NPS!$B7,【D】NPS!$B$4:$B$76,0), MATCH(NPS!L$2&NPS!$C$1,【D】NPS!$C$2:$GO$2&【D】NPS!$C$3:$GO$3,0)) -> None | M7: =INDEX(【D】NPS!$C$4:$GO$76,MATCH(NPS!$B7,【D】NPS!$B$4:$B$76,0), MATCH(NPS!M$2&NPS!$C$1,【D】NPS!$C$2:$GO$2&【D】NPS!$C$3:$GO$3,0)) -> None | N7: =INDEX(【D】NPS!$C$4:$GO$76,MATCH(NPS!$B7,【D】NPS!$B$4:$B$76,0), MATCH(NPS!N$2&NPS!$C$1,【D】NPS!$C$2:$GO$2&【D】NPS!$C$3:$GO$3,0)) -> None | O7: =INDEX(【D】NPS!$C$4:$GO$76,MATCH(NPS!$B7,【D】NPS!$B$4:$B$76,0), MATCH(NPS!O$2&NPS!$C$1,【D】NPS!$C$2:$GO$2&【D】NPS!$C$3:$GO$3,0)) -> None | P7: =INDEX(【D】NPS!$C$4:$GO$76,MATCH(NPS!$B7,【D】NPS!$B$4:$B$76,0), MATCH(NPS!P$2&NPS!$C$1,【D】NPS!$C$2:$GO$2&【D】NPS!$C$3:$GO$3,0)) -> 0 | S7: =INDEX(【D】NPS!$C$4:$GO$76,MATCH(NPS!$B7,【D】NPS!$B$4:$B$76,0), MATCH(NPS!S$2&NPS!$R$1,【D】NPS!$C$2:$GO$2&【D】NPS!$C$3:$GO$3,0)) -> - | T7: =INDEX(【D】NPS!$C$4:$GO$76,MATCH(NPS!$B7,【D】NPS!$B$4:$B$76,0), MATCH(NPS!T$2&NPS!$R$1,【D】NPS!$C$2:$GO$2&【D】NPS!$C$3:$GO$3,0)) -> 60 | U7: =INDEX(【D】NPS!$C$4:$GO$76,MATCH(NPS!$B7,【D】NPS!$B$4:$B$76,0), MATCH(NPS!U$2&NPS!$R$1,【D】NPS!$C$2:$GO$2&【D】NPS!$C$3:$GO$3,0)) -> 8 | V7: =INDEX(【D】NPS!$C$4:$GO$76,MATCH(NPS!$B7,【D】NPS!$B$4:$B$76,0), MATCH(NPS!V$2&NPS!$R$1,【D】NPS!$C$2:$GO$2&【D】NPS!$C$3:$GO$3,0)) -> - | W7: =INDEX(【D】NPS!$C$4:$GO$76,MATCH(NPS!$B7,【D】NPS!$B$4:$B$76,0), MATCH(NPS!W$2&NPS!$R$1,【D】NPS!$C$2:$GO$2&【D】NPS!$C$3:$GO$3,0)) -> - | X7: =INDEX(【D】NPS!$C$4:$GO$76,MATCH(NPS!$B7,【D】NPS!$B$4:$B$76,0), MATCH(NPS!X$2&NPS!$R$1,【D】NPS!$C$2:$GO$2&【D】NPS!$C$3:$GO$3,0)) -> - | Y7: =INDEX(【D】NPS!$C$4:$GO$76,MATCH(NPS!$B7,【D】NPS!$B$4:$B$76,0), MATCH(NPS!Y$2&NPS!$R$1,【D】NPS!$C$2:$GO$2&【D】NPS!$C$3:$GO$3,0)) -> - | Z7: =INDEX(【D】NPS!$C$4:$GO$76,MATCH(NPS!$B7,【D】NPS!$B$4:$B$76,0), MATCH(NPS!Z$2&NPS!$R$1,【D】NPS!$C$2:$GO$2&【D】NPS!$C$3:$GO$3,0)) -> - | AA7: =INDEX(【D】NPS!$C$4:$GO$76,MATCH(NPS!$B7,【D】NPS!$B$4:$B$76,0), MATCH(NPS!AA$2&NPS!$R$1,【D】NPS!$C$2:$GO$2&【D】NPS!$C$3:$GO$3,0)) -> - | AB7: =INDEX(【D】NPS!$C$4:$GO$76,MATCH(NPS!$B7,【D】NPS!$B$4:$B$76,0), MATCH(NPS!AB$2&NPS!$R$1,【D】NPS!$C$2:$GO$2&【D】NPS!$C$3:$GO$3,0)) -> - | AC7: =INDEX(【D】NPS!$C$4:$GO$76,MATCH(NPS!$B7,【D】NPS!$B$4:$B$76,0), MATCH(NPS!AC$2&NPS!$R$1,【D】NPS!$C$2:$GO$2&【D】NPS!$C$3:$GO$3,0)) -> - | AD7: =INDEX(【D】NPS!$C$4:$GO$76,MATCH(NPS!$B7,【D】NPS!$B$4:$B$76,0), MATCH(NPS!AD$2&NPS!$R$1,【D】NPS!$C$2:$GO$2&【D】NPS!$C$3:$GO$3,0)) -> - | AE7: =INDEX(【D】NPS!$C$4:$GO$76,MATCH(NPS!$B7,【D】NPS!$B$4:$B$76,0), MATCH(NPS!AE$2&NPS!$R$1,【D】NPS!$C$2:$GO$2&【D】NPS!$C$3:$GO$3,0)) -> 40 | AH7: =INDEX(【D】NPS!$C$4:$GO$76,MATCH(NPS!$B7,【D】NPS!$B$4:$B$76,0), MATCH(NPS!AH$2&NPS!$AG$1,【D】NPS!$C$2:$GO$2&【D】NPS!$C$3:$GO$3,0)) -> - | AI7: =INDEX(【D】NPS!$C$4:$GO$76,MATCH(NPS!$B7,【D】NPS!$B$4:$B$76,0), MATCH(NPS!AI$2&NPS!$AG$1,【D】NPS!$C$2:$GO$2&【D】NPS!$C$3:$GO$3,0)) -> 60 | AJ7: =INDEX(【D】NPS!$C$4:$GO$76,MATCH(NPS!$B7,【D】NPS!$B$4:$B$76,0), MATCH(NPS!AJ$2&NPS!$AG$1,【D】NPS!$C$2:$GO$2&【D】NPS!$C$3:$GO$3,0)) -> 11 | AK7: =INDEX(【D】NPS!$C$4:$GO$76,MATCH(NPS!$B7,【D】NPS!$B$4:$B$76,0), MATCH(NPS!AK$2&NPS!$AG$1,【D】NPS!$C$2:$GO$2&【D】NPS!$C$3:$GO$3,0)) -> - | AL7: =INDEX(【D】NPS!$C$4:$GO$76,MATCH(NPS!$B7,【D】NPS!$B$4:$B$76,0), MATCH(NPS!AL$2&NPS!$AG$1,【D】NPS!$C$2:$GO$2&【D】NPS!$C$3:$GO$3,0)) -> - | AM7: =INDEX(【D】NPS!$C$4:$GO$76,MATCH(NPS!$B7,【D】NPS!$B$4:$B$76,0), MATCH(NPS!AM$2&NPS!$AG$1,【D】NPS!$C$2:$GO$2&【D】NPS!$C$3:$GO$3,0)) -> - | AN7: =INDEX(【D】NPS!$C$4:$GO$76,MATCH(NPS!$B7,【D】NPS!$B$4:$B$76,0), MATCH(NPS!AN$2&NPS!$AG$1,【D】NPS!$C$2:$GO$2&【D】NPS!$C$3:$GO$3,0)) -> - | AO7: =INDEX(【D】NPS!$C$4:$GO$76,MATCH(NPS!$B7,【D】NPS!$B$4:$B$76,0), MATCH(NPS!AO$2&NPS!$AG$1,【D】NPS!$C$2:$GO$2&【D】NPS!$C$3:$GO$3,0)) -> - | AP7: =INDEX(【D】NPS!$C$4:$GO$76,MATCH(NPS!$B7,【D】NPS!$B$4:$B$76,0), MATCH(NPS!AP$2&NPS!$AG$1,【D】NPS!$C$2:$GO$2&【D】NPS!$C$3:$GO$3,0)) -> - | AQ7: =INDEX(【D】NPS!$C$4:$GO$76,MATCH(NPS!$B7,【D】NPS!$B$4:$B$76,0), MATCH(NPS!AQ$2&NPS!$AG$1,【D】NPS!$C$2:$GO$2&【D】NPS!$C$3:$GO$3,0)) -> - | AR7: =INDEX(【D】NPS!$C$4:$GO$76,MATCH(NPS!$B7,【D】NPS!$B$4:$B$76,0), MATCH(NPS!AR$2&NPS!$AG$1,【D】NPS!$C$2:$GO$2&【D】NPS!$C$3:$GO$3,0)) -> - | AS7: =INDEX(【D】NPS!$C$4:$GO$76,MATCH(NPS!$B7,【D】NPS!$B$4:$B$76,0), MATCH(NPS!AS$2&NPS!$AG$1,【D】NPS!$C$2:$GO$2&【D】NPS!$C$3:$GO$3,0)) -> - | AT7: =INDEX(【D】NPS!$C$4:$GO$76,MATCH(NPS!$B7,【D】NPS!$B$4:$B$76,0), MATCH(NPS!AT$2&NPS!$AG$1,【D】NPS!$C$2:$GO$2&【D】NPS!$C$3:$GO$3,0)) -> 42 | AV7: 5 | AW7: 1 | AX7: 芝政ワールド エリア | AY7: 100 | AZ7: =INDEX(【D】NPS!$C$7:$HB$76, MATCH(NPS!$AX7,【D】NPS!$B$7:$B$76,0), MATCH(NPS!$AZ$2&NPS!$AW$1,【D】NPS!$C$1:$HB$1&【D】NPS!$C$2:$HB$2,0)) -> 1
B8: ガラガラ山キャンプ場 エリア | D8: =INDEX(【D】NPS!$C$4:$GO$76,MATCH(NPS!$B8,【D】NPS!$B$4:$B$76,0), MATCH(NPS!D$2&NPS!$C$1,【D】NPS!$C$2:$GO$2&【D】NPS!$C$3:$GO$3,0)) -> None | E8: =INDEX(【D】NPS!$C$4:$GO$76,MATCH(NPS!$B8,【D】NPS!$B$4:$B$76,0), MATCH(NPS!E$2&NPS!$C$1,【D】NPS!$C$2:$GO$2&【D】NPS!$C$3:$GO$3,0)) -> 33.33333333 | F8: =INDEX(【D】NPS!$C$4:$GO$76,MATCH(NPS!$B8,【D】NPS!$B$4:$B$76,0), MATCH(NPS!F$2&NPS!$C$1,【D】NPS!$C$2:$GO$2&【D】NPS!$C$3:$GO$3,0)) -> 80 | G8: =INDEX(【D】NPS!$C$4:$GO$76,MATCH(NPS!$B8,【D】NPS!$B$4:$B$76,0), MATCH(NPS!G$2&NPS!$C$1,【D】NPS!$C$2:$GO$2&【D】NPS!$C$3:$GO$3,0)) -> None | H8: =INDEX(【D】NPS!$C$4:$GO$76,MATCH(NPS!$B8,【D】NPS!$B$4:$B$76,0), MATCH(NPS!H$2&NPS!$C$1,【D】NPS!$C$2:$GO$2&【D】NPS!$C$3:$GO$3,0)) -> None | I8: =INDEX(【D】NPS!$C$4:$GO$76,MATCH(NPS!$B8,【D】NPS!$B$4:$B$76,0), MATCH(NPS!I$2&NPS!$C$1,【D】NPS!$C$2:$GO$2&【D】NPS!$C$3:$GO$3,0)) -> None | J8: =INDEX(【D】NPS!$C$4:$GO$76,MATCH(NPS!$B8,【D】NPS!$B$4:$B$76,0), MATCH(NPS!J$2&NPS!$C$1,【D】NPS!$C$2:$GO$2&【D】NPS!$C$3:$GO$3,0)) -> None | K8: =INDEX(【D】NPS!$C$4:$GO$76,MATCH(NPS!$B8,【D】NPS!$B$4:$B$76,0), MATCH(NPS!K$2&NPS!$C$1,【D】NPS!$C$2:$GO$2&【D】NPS!$C$3:$GO$3,0)) -> None | L8: =INDEX(【D】NPS!$C$4:$GO$76,MATCH(NPS!$B8,【D】NPS!$B$4:$B$76,0), MATCH(NPS!L$2&NPS!$C$1,【D】NPS!$C$2:$GO$2&【D】NPS!$C$3:$GO$3,0)) -> None | M8: =INDEX(【D】NPS!$C$4:$GO$76,MATCH(NPS!$B8,【D】NPS!$B$4:$B$76,0), MATCH(NPS!M$2&NPS!$C$1,【D】NPS!$C$2:$GO$2&【D】NPS!$C$3:$GO$3,0)) -> None | N8: =INDEX(【D】NPS!$C$4:$GO$76,MATCH(NPS!$B8,【D】NPS!$B$4:$B$76,0), MATCH(NPS!N$2&NPS!$C$1,【D】NPS!$C$2:$GO$2&【D】NPS!$C$3:$GO$3,0)) -> None | O8: =INDEX(【D】NPS!$C$4:$GO$76,MATCH(NPS!$B8,【D】NPS!$B$4:$B$76,0), MATCH(NPS!O$2&NPS!$C$1,【D】NPS!$C$2:$GO$2&【D】NPS!$C$3:$GO$3,0)) -> None | P8: =INDEX(【D】NPS!$C$4:$GO$76,MATCH(NPS!$B8,【D】NPS!$B$4:$B$76,0), MATCH(NPS!P$2&NPS!$C$1,【D】NPS!$C$2:$GO$2&【D】NPS!$C$3:$GO$3,0)) -> 62.5 | S8: =INDEX(【D】NPS!$C$4:$GO$76,MATCH(NPS!$B8,【D】NPS!$B$4:$B$76,0), MATCH(NPS!S$2&NPS!$R$1,【D】NPS!$C$2:$GO$2&【D】NPS!$C$3:$GO$3,0)) -> - | T8: =INDEX(【D】NPS!$C$4:$GO$76,MATCH(NPS!$B8,【D】NPS!$B$4:$B$76,0), MATCH(NPS!T$2&NPS!$R$1,【D】NPS!$C$2:$GO$2&【D】NPS!$C$3:$GO$3,0)) -> 6 | U8: =INDEX(【D】NPS!$C$4:$GO$76,MATCH(NPS!$B8,【D】NPS!$B$4:$B$76,0), MATCH(NPS!U$2&NPS!$R$1,【D】NPS!$C$2:$GO$2&【D】NPS!$C$3:$GO$3,0)) -> 7 | V8: =INDEX(【D】NPS!$C$4:$GO$76,MATCH(NPS!$B8,【D】NPS!$B$4:$B$76,0), MATCH(NPS!V$2&NPS!$R$1,【D】NPS!$C$2:$GO$2&【D】NPS!$C$3:$GO$3,0)) -> - | W8: =INDEX(【D】NPS!$C$4:$GO$76,MATCH(NPS!$B8,【D】NPS!$B$4:$B$76,0), MATCH(NPS!W$2&NPS!$R$1,【D】NPS!$C$2:$GO$2&【D】NPS!$C$3:$GO$3,0)) -> - | X8: =INDEX(【D】NPS!$C$4:$GO$76,MATCH(NPS!$B8,【D】NPS!$B$4:$B$76,0), MATCH(NPS!X$2&NPS!$R$1,【D】NPS!$C$2:$GO$2&【D】NPS!$C$3:$GO$3,0)) -> - | Y8: =INDEX(【D】NPS!$C$4:$GO$76,MATCH(NPS!$B8,【D】NPS!$B$4:$B$76,0), MATCH(NPS!Y$2&NPS!$R$1,【D】NPS!$C$2:$GO$2&【D】NPS!$C$3:$GO$3,0)) -> - | Z8: =INDEX(【D】NPS!$C$4:$GO$76,MATCH(NPS!$B8,【D】NPS!$B$4:$B$76,0), MATCH(NPS!Z$2&NPS!$R$1,【D】NPS!$C$2:$GO$2&【D】NPS!$C$3:$GO$3,0)) -> - | AA8: =INDEX(【D】NPS!$C$4:$GO$76,MATCH(NPS!$B8,【D】NPS!$B$4:$B$76,0), MATCH(NPS!AA$2&NPS!$R$1,【D】NPS!$C$2:$GO$2&【D】NPS!$C$3:$GO$3,0)) -> - | AB8: =INDEX(【D】NPS!$C$4:$GO$76,MATCH(NPS!$B8,【D】NPS!$B$4:$B$76,0), MATCH(NPS!AB$2&NPS!$R$1,【D】NPS!$C$2:$GO$2&【D】NPS!$C$3:$GO$3,0)) -> - | AC8: =INDEX(【D】NPS!$C$4:$GO$76,MATCH(NPS!$B8,【D】NPS!$B$4:$B$76,0), MATCH(NPS!AC$2&NPS!$R$1,【D】NPS!$C$2:$GO$2&【D】NPS!$C$3:$GO$3,0)) -> - | AD8: =INDEX(【D】NPS!$C$4:$GO$76,MATCH(NPS!$B8,【D】NPS!$B$4:$B$76,0), MATCH(NPS!AD$2&NPS!$R$1,【D】NPS!$C$2:$GO$2&【D】NPS!$C$3:$GO$3,0)) -> - | AE8: =INDEX(【D】NPS!$C$4:$GO$76,MATCH(NPS!$B8,【D】NPS!$B$4:$B$76,0), MATCH(NPS!AE$2&NPS!$R$1,【D】NPS!$C$2:$GO$2&【D】NPS!$C$3:$GO$3,0)) -> 3 | AH8: =INDEX(【D】NPS!$C$4:$GO$76,MATCH(NPS!$B8,【D】NPS!$B$4:$B$76,0), MATCH(NPS!AH$2&NPS!$AG$1,【D】NPS!$C$2:$GO$2&【D】NPS!$C$3:$GO$3,0)) -> - | AI8: =INDEX(【D】NPS!$C$4:$GO$76,MATCH(NPS!$B8,【D】NPS!$B$4:$B$76,0), MATCH(NPS!AI$2&NPS!$AG$1,【D】NPS!$C$2:$GO$2&【D】NPS!$C$3:$GO$3,0)) -> 6 | AJ8: =INDEX(【D】NPS!$C$4:$GO$76,MATCH(NPS!$B8,【D】NPS!$B$4:$B$76,0), MATCH(NPS!AJ$2&NPS!$AG$1,【D】NPS!$C$2:$GO$2&【D】NPS!$C$3:$GO$3,0)) -> 7 | AK8: =INDEX(【D】NPS!$C$4:$GO$76,MATCH(NPS!$B8,【D】NPS!$B$4:$B$76,0), MATCH(NPS!AK$2&NPS!$AG$1,【D】NPS!$C$2:$GO$2&【D】NPS!$C$3:$GO$3,0)) -> - | AL8: =INDEX(【D】NPS!$C$4:$GO$76,MATCH(NPS!$B8,【D】NPS!$B$4:$B$76,0), MATCH(NPS!AL$2&NPS!$AG$1,【D】NPS!$C$2:$GO$2&【D】NPS!$C$3:$GO$3,0)) -> - | AM8: =INDEX(【D】NPS!$C$4:$GO$76,MATCH(NPS!$B8,【D】NPS!$B$4:$B$76,0), MATCH(NPS!AM$2&NPS!$AG$1,【D】NPS!$C$2:$GO$2&【D】NPS!$C$3:$GO$3,0)) -> - | AN8: =INDEX(【D】NPS!$C$4:$GO$76,MATCH(NPS!$B8,【D】NPS!$B$4:$B$76,0), MATCH(NPS!AN$2&NPS!$AG$1,【D】NPS!$C$2:$GO$2&【D】NPS!$C$3:$GO$3,0)) -> - | AO8: =INDEX(【D】NPS!$C$4:$GO$76,MATCH(NPS!$B8,【D】NPS!$B$4:$B$76,0), MATCH(NPS!AO$2&NPS!$AG$1,【D】NPS!$C$2:$GO$2&【D】NPS!$C$3:$GO$3,0)) -> - | AP8: =INDEX(【D】NPS!$C$4:$GO$76,MATCH(NPS!$B8,【D】NPS!$B$4:$B$76,0), MATCH(NPS!AP$2&NPS!$AG$1,【D】NPS!$C$2:$GO$2&【D】NPS!$C$3:$GO$3,0)) -> - | AQ8: =INDEX(【D】NPS!$C$4:$GO$76,MATCH(NPS!$B8,【D】NPS!$B$4:$B$76,0), MATCH(NPS!AQ$2&NPS!$AG$1,【D】NPS!$C$2:$GO$2&【D】NPS!$C$3:$GO$3,0)) -> - | AR8: =INDEX(【D】NPS!$C$4:$GO$76,MATCH(NPS!$B8,【D】NPS!$B$4:$B$76,0), MATCH(NPS!AR$2&NPS!$AG$1,【D】NPS!$C$2:$GO$2&【D】NPS!$C$3:$GO$3,0)) -> - | AS8: =INDEX(【D】NPS!$C$4:$GO$76,MATCH(NPS!$B8,【D】NPS!$B$4:$B$76,0), MATCH(NPS!AS$2&NPS!$AG$1,【D】NPS!$C$2:$GO$2&【D】NPS!$C$3:$GO$3,0)) -> - | AT8: =INDEX(【D】NPS!$C$4:$GO$76,MATCH(NPS!$B8,【D】NPS!$B$4:$B$76,0), MATCH(NPS!AT$2&NPS!$AG$1,【D】NPS!$C$2:$GO$2&【D】NPS!$C$3:$GO$3,0)) -> 3 | AV8: 6 | AW8: 1 | AX8: 名勝 養浩館庭園 エリア | AY8: 100 | AZ8: =INDEX(【D】NPS!$C$7:$HB$76, MATCH(NPS!$AX8,【D】NPS!$B$7:$B$76,0), MATCH(NPS!$AZ$2&NPS!$AW$1,【D】NPS!$C$1:$HB$1&【D】NPS!$C$2:$HB$2,0)) -> 2
B9: 福井駅前 エリア | D9: =INDEX(【D】NPS!$C$4:$GO$76,MATCH(NPS!$B9,【D】NPS!$B$4:$B$76,0), MATCH(NPS!D$2&NPS!$C$1,【D】NPS!$C$2:$GO$2&【D】NPS!$C$3:$GO$3,0)) -> 16.66666667 | E9: =INDEX(【D】NPS!$C$4:$GO$76,MATCH(NPS!$B9,【D】NPS!$B$4:$B$76,0), MATCH(NPS!E$2&NPS!$C$1,【D】NPS!$C$2:$GO$2&【D】NPS!$C$3:$GO$3,0)) -> -17.24137931 | F9: =INDEX(【D】NPS!$C$4:$GO$76,MATCH(NPS!$B9,【D】NPS!$B$4:$B$76,0), MATCH(NPS!F$2&NPS!$C$1,【D】NPS!$C$2:$GO$2&【D】NPS!$C$3:$GO$3,0)) -> -28.57142857 | G9: =INDEX(【D】NPS!$C$4:$GO$76,MATCH(NPS!$B9,【D】NPS!$B$4:$B$76,0), MATCH(NPS!G$2&NPS!$C$1,【D】NPS!$C$2:$GO$2&【D】NPS!$C$3:$GO$3,0)) -> None | H9: =INDEX(【D】NPS!$C$4:$GO$76,MATCH(NPS!$B9,【D】NPS!$B$4:$B$76,0), MATCH(NPS!H$2&NPS!$C$1,【D】NPS!$C$2:$GO$2&【D】NPS!$C$3:$GO$3,0)) -> None | I9: =INDEX(【D】NPS!$C$4:$GO$76,MATCH(NPS!$B9,【D】NPS!$B$4:$B$76,0), MATCH(NPS!I$2&NPS!$C$1,【D】NPS!$C$2:$GO$2&【D】NPS!$C$3:$GO$3,0)) -> None | J9: =INDEX(【D】NPS!$C$4:$GO$76,MATCH(NPS!$B9,【D】NPS!$B$4:$B$76,0), MATCH(NPS!J$2&NPS!$C$1,【D】NPS!$C$2:$GO$2&【D】NPS!$C$3:$GO$3,0)) -> None | K9: =INDEX(【D】NPS!$C$4:$GO$76,MATCH(NPS!$B9,【D】NPS!$B$4:$B$76,0), MATCH(NPS!K$2&NPS!$C$1,【D】NPS!$C$2:$GO$2&【D】NPS!$C$3:$GO$3,0)) -> None | L9: =INDEX(【D】NPS!$C$4:$GO$76,MATCH(NPS!$B9,【D】NPS!$B$4:$B$76,0), MATCH(NPS!L$2&NPS!$C$1,【D】NPS!$C$2:$GO$2&【D】NPS!$C$3:$GO$3,0)) -> None | M9: =INDEX(【D】NPS!$C$4:$GO$76,MATCH(NPS!$B9,【D】NPS!$B$4:$B$76,0), MATCH(NPS!M$2&NPS!$C$1,【D】NPS!$C$2:$GO$2&【D】NPS!$C$3:$GO$3,0)) -> None | N9: =INDEX(【D】NPS!$C$4:$GO$76,MATCH(NPS!$B9,【D】NPS!$B$4:$B$76,0), MATCH(NPS!N$2&NPS!$C$1,【D】NPS!$C$2:$GO$2&【D】NPS!$C$3:$GO$3,0)) -> None | O9: =INDEX(【D】NPS!$C$4:$GO$76,MATCH(NPS!$B9,【D】NPS!$B$4:$B$76,0), MATCH(NPS!O$2&NPS!$C$1,【D】NPS!$C$2:$GO$2&【D】NPS!$C$3:$GO$3,0)) -> None | P9: =INDEX(【D】NPS!$C$4:$GO$76,MATCH(NPS!$B9,【D】NPS!$B$4:$B$76,0), MATCH(NPS!P$2&NPS!$C$1,【D】NPS!$C$2:$GO$2&【D】NPS!$C$3:$GO$3,0)) -> -19.81132075 | S9: =INDEX(【D】NPS!$C$4:$GO$76,MATCH(NPS!$B9,【D】NPS!$B$4:$B$76,0), MATCH(NPS!S$2&NPS!$R$1,【D】NPS!$C$2:$GO$2&【D】NPS!$C$3:$GO$3,0)) -> 20 | T9: =INDEX(【D】NPS!$C$4:$GO$76,MATCH(NPS!$B9,【D】NPS!$B$4:$B$76,0), MATCH(NPS!T$2&NPS!$R$1,【D】NPS!$C$2:$GO$2&【D】NPS!$C$3:$GO$3,0)) -> 54 | U9: =INDEX(【D】NPS!$C$4:$GO$76,MATCH(NPS!$B9,【D】NPS!$B$4:$B$76,0), MATCH(NPS!U$2&NPS!$R$1,【D】NPS!$C$2:$GO$2&【D】NPS!$C$3:$GO$3,0)) -> 60 | V9: =INDEX(【D】NPS!$C$4:$GO$76,MATCH(NPS!$B9,【D】NPS!$B$4:$B$76,0), MATCH(NPS!V$2&NPS!$R$1,【D】NPS!$C$2:$GO$2&【D】NPS!$C$3:$GO$3,0)) -> - | W9: =INDEX(【D】NPS!$C$4:$GO$76,MATCH(NPS!$B9,【D】NPS!$B$4:$B$76,0), MATCH(NPS!W$2&NPS!$R$1,【D】NPS!$C$2:$GO$2&【D】NPS!$C$3:$GO$3,0)) -> - | X9: =INDEX(【D】NPS!$C$4:$GO$76,MATCH(NPS!$B9,【D】NPS!$B$4:$B$76,0), MATCH(NPS!X$2&NPS!$R$1,【D】NPS!$C$2:$GO$2&【D】NPS!$C$3:$GO$3,0)) -> - | Y9: =INDEX(【D】NPS!$C$4:$GO$76,MATCH(NPS!$B9,【D】NPS!$B$4:$B$76,0), MATCH(NPS!Y$2&NPS!$R$1,【D】NPS!$C$2:$GO$2&【D】NPS!$C$3:$GO$3,0)) -> - | Z9: =INDEX(【D】NPS!$C$4:$GO$76,MATCH(NPS!$B9,【D】NPS!$B$4:$B$76,0), MATCH(NPS!Z$2&NPS!$R$1,【D】NPS!$C$2:$GO$2&【D】NPS!$C$3:$GO$3,0)) -> - | AA9: =INDEX(【D】NPS!$C$4:$GO$76,MATCH(NPS!$B9,【D】NPS!$B$4:$B$76,0), MATCH(NPS!AA$2&NPS!$R$1,【D】NPS!$C$2:$GO$2&【D】NPS!$C$3:$GO$3,0)) -> - | AB9: =INDEX(【D】NPS!$C$4:$GO$76,MATCH(NPS!$B9,【D】NPS!$B$4:$B$76,0), MATCH(NPS!AB$2&NPS!$R$1,【D】NPS!$C$2:$GO$2&【D】NPS!$C$3:$GO$3,0)) -> - | AC9: =INDEX(【D】NPS!$C$4:$GO$76,MATCH(NPS!$B9,【D】NPS!$B$4:$B$76,0), MATCH(NPS!AC$2&NPS!$R$1,【D】NPS!$C$2:$GO$2&【D】NPS!$C$3:$GO$3,0)) -> - | AD9: =INDEX(【D】NPS!$C$4:$GO$76,MATCH(NPS!$B9,【D】NPS!$B$4:$B$76,0), MATCH(NPS!AD$2&NPS!$R$1,【D】NPS!$C$2:$GO$2&【D】NPS!$C$3:$GO$3,0)) -> - | AE9: =INDEX(【D】NPS!$C$4:$GO$76,MATCH(NPS!$B9,【D】NPS!$B$4:$B$76,0), MATCH(NPS!AE$2&NPS!$R$1,【D】NPS!$C$2:$GO$2&【D】NPS!$C$3:$GO$3,0)) -> 62 | AH9: =INDEX(【D】NPS!$C$4:$GO$76,MATCH(NPS!$B9,【D】NPS!$B$4:$B$76,0), MATCH(NPS!AH$2&NPS!$AG$1,【D】NPS!$C$2:$GO$2&【D】NPS!$C$3:$GO$3,0)) -> 21 | AI9: =INDEX(【D】NPS!$C$4:$GO$76,MATCH(NPS!$B9,【D】NPS!$B$4:$B$76,0), MATCH(NPS!AI$2&NPS!$AG$1,【D】NPS!$C$2:$GO$2&【D】NPS!$C$3:$GO$3,0)) -> 54 | AJ9: =INDEX(【D】NPS!$C$4:$GO$76,MATCH(NPS!$B9,【D】NPS!$B$4:$B$76,0), MATCH(NPS!AJ$2&NPS!$AG$1,【D】NPS!$C$2:$GO$2&【D】NPS!$C$3:$GO$3,0)) -> 61 | AK9: =INDEX(【D】NPS!$C$4:$GO$76,MATCH(NPS!$B9,【D】NPS!$B$4:$B$76,0), MATCH(NPS!AK$2&NPS!$AG$1,【D】NPS!$C$2:$GO$2&【D】NPS!$C$3:$GO$3,0)) -> - | AL9: =INDEX(【D】NPS!$C$4:$GO$76,MATCH(NPS!$B9,【D】NPS!$B$4:$B$76,0), MATCH(NPS!AL$2&NPS!$AG$1,【D】NPS!$C$2:$GO$2&【D】NPS!$C$3:$GO$3,0)) -> - | AM9: =INDEX(【D】NPS!$C$4:$GO$76,MATCH(NPS!$B9,【D】NPS!$B$4:$B$76,0), MATCH(NPS!AM$2&NPS!$AG$1,【D】NPS!$C$2:$GO$2&【D】NPS!$C$3:$GO$3,0)) -> - | AN9: =INDEX(【D】NPS!$C$4:$GO$76,MATCH(NPS!$B9,【D】NPS!$B$4:$B$76,0), MATCH(NPS!AN$2&NPS!$AG$1,【D】NPS!$C$2:$GO$2&【D】NPS!$C$3:$GO$3,0)) -> - | AO9: =INDEX(【D】NPS!$C$4:$GO$76,MATCH(NPS!$B9,【D】NPS!$B$4:$B$76,0), MATCH(NPS!AO$2&NPS!$AG$1,【D】NPS!$C$2:$GO$2&【D】NPS!$C$3:$GO$3,0)) -> - | AP9: =INDEX(【D】NPS!$C$4:$GO$76,MATCH(NPS!$B9,【D】NPS!$B$4:$B$76,0), MATCH(NPS!AP$2&NPS!$AG$1,【D】NPS!$C$2:$GO$2&【D】NPS!$C$3:$GO$3,0)) -> - | AQ9: =INDEX(【D】NPS!$C$4:$GO$76,MATCH(NPS!$B9,【D】NPS!$B$4:$B$76,0), MATCH(NPS!AQ$2&NPS!$AG$1,【D】NPS!$C$2:$GO$2&【D】NPS!$C$3:$GO$3,0)) -> - | AR9: =INDEX(【D】NPS!$C$4:$GO$76,MATCH(NPS!$B9,【D】NPS!$B$4:$B$76,0), MATCH(NPS!AR$2&NPS!$AG$1,【D】NPS!$C$2:$GO$2&【D】NPS!$C$3:$GO$3,0)) -> - | AS9: =INDEX(【D】NPS!$C$4:$GO$76,MATCH(NPS!$B9,【D】NPS!$B$4:$B$76,0), MATCH(NPS!AS$2&NPS!$AG$1,【D】NPS!$C$2:$GO$2&【D】NPS!$C$3:$GO$3,0)) -> - | AT9: =INDEX(【D】NPS!$C$4:$GO$76,MATCH(NPS!$B9,【D】NPS!$B$4:$B$76,0), MATCH(NPS!AT$2&NPS!$AG$1,【D】NPS!$C$2:$GO$2&【D】NPS!$C$3:$GO$3,0)) -> 62 | AV9: 7 | AW9: 7 | AX9: ガラガラ山キャンプ場 エリア | AY9: 80 | AZ9: =INDEX(【D】NPS!$C$7:$HB$76, MATCH(NPS!$AX9,【D】NPS!$B$7:$B$76,0), MATCH(NPS!$AZ$2&NPS!$AW$1,【D】NPS!$C$1:$HB$1&【D】NPS!$C$2:$HB$2,0)) -> 5
B10: 名勝 養浩館庭園 エリア | D10: =INDEX(【D】NPS!$C$4:$GO$76,MATCH(NPS!$B10,【D】NPS!$B$4:$B$76,0), MATCH(NPS!D$2&NPS!$C$1,【D】NPS!$C$2:$GO$2&【D】NPS!$C$3:$GO$3,0)) -> 0 | E10: =INDEX(【D】NPS!$C$4:$GO$76,MATCH(NPS!$B10,【D】NPS!$B$4:$B$76,0), MATCH(NPS!E$2&NPS!$C$1,【D】NPS!$C$2:$GO$2&【D】NPS!$C$3:$GO$3,0)) -> -8.695652174 | F10: =INDEX(【D】NPS!$C$4:$GO$76,MATCH(NPS!$B10,【D】NPS!$B$4:$B$76,0), MATCH(NPS!F$2&NPS!$C$1,【D】NPS!$C$2:$GO$2&【D】NPS!$C$3:$GO$3,0)) -> 100 | G10: =INDEX(【D】NPS!$C$4:$GO$76,MATCH(NPS!$B10,【D】NPS!$B$4:$B$76,0), MATCH(NPS!G$2&NPS!$C$1,【D】NPS!$C$2:$GO$2&【D】NPS!$C$3:$GO$3,0)) -> None | H10: =INDEX(【D】NPS!$C$4:$GO$76,MATCH(NPS!$B10,【D】NPS!$B$4:$B$76,0), MATCH(NPS!H$2&NPS!$C$1,【D】NPS!$C$2:$GO$2&【D】NPS!$C$3:$GO$3,0)) -> None | I10: =INDEX(【D】NPS!$C$4:$GO$76,MATCH(NPS!$B10,【D】NPS!$B$4:$B$76,0), MATCH(NPS!I$2&NPS!$C$1,【D】NPS!$C$2:$GO$2&【D】NPS!$C$3:$GO$3,0)) -> None | J10: =INDEX(【D】NPS!$C$4:$GO$76,MATCH(NPS!$B10,【D】NPS!$B$4:$B$76,0), MATCH(NPS!J$2&NPS!$C$1,【D】NPS!$C$2:$GO$2&【D】NPS!$C$3:$GO$3,0)) -> None | K10: =INDEX(【D】NPS!$C$4:$GO$76,MATCH(NPS!$B10,【D】NPS!$B$4:$B$76,0), MATCH(NPS!K$2&NPS!$C$1,【D】NPS!$C$2:$GO$2&【D】NPS!$C$3:$GO$3,0)) -> None | L10: =INDEX(【D】NPS!$C$4:$GO$76,MATCH(NPS!$B10,【D】NPS!$B$4:$B$76,0), MATCH(NPS!L$2&NPS!$C$1,【D】NPS!$C$2:$GO$2&【D】NPS!$C$3:$GO$3,0)) -> None | M10: =INDEX(【D】NPS!$C$4:$GO$76,MATCH(NPS!$B10,【D】NPS!$B$4:$B$76,0), MATCH(NPS!M$2&NPS!$C$1,【D】NPS!$C$2:$GO$2&【D】NPS!$C$3:$GO$3,0)) -> None | N10: =INDEX(【D】NPS!$C$4:$GO$76,MATCH(NPS!$B10,【D】NPS!$B$4:$B$76,0), MATCH(NPS!N$2&NPS!$C$1,【D】NPS!$C$2:$GO$2&【D】NPS!$C$3:$GO$3,0)) -> None | O10: =INDEX(【D】NPS!$C$4:$GO$76,MATCH(NPS!$B10,【D】NPS!$B$4:$B$76,0), MATCH(NPS!O$2&NPS!$C$1,【D】NPS!$C$2:$GO$2&【D】NPS!$C$3:$GO$3,0)) -> None | P10: =INDEX(【D】NPS!$C$4:$GO$76,MATCH(NPS!$B10,【D】NPS!$B$4:$B$76,0), MATCH(NPS!P$2&NPS!$C$1,【D】NPS!$C$2:$GO$2&【D】NPS!$C$3:$GO$3,0)) -> 0 | S10: =INDEX(【D】NPS!$C$4:$GO$76,MATCH(NPS!$B10,【D】NPS!$B$4:$B$76,0), MATCH(NPS!S$2&NPS!$R$1,【D】NPS!$C$2:$GO$2&【D】NPS!$C$3:$GO$3,0)) -> 25 | T10: =INDEX(【D】NPS!$C$4:$GO$76,MATCH(NPS!$B10,【D】NPS!$B$4:$B$76,0), MATCH(NPS!T$2&NPS!$R$1,【D】NPS!$C$2:$GO$2&【D】NPS!$C$3:$GO$3,0)) -> 44 | U10: =INDEX(【D】NPS!$C$4:$GO$76,MATCH(NPS!$B10,【D】NPS!$B$4:$B$76,0), MATCH(NPS!U$2&NPS!$R$1,【D】NPS!$C$2:$GO$2&【D】NPS!$C$3:$GO$3,0)) -> 1 | V10: =INDEX(【D】NPS!$C$4:$GO$76,MATCH(NPS!$B10,【D】NPS!$B$4:$B$76,0), MATCH(NPS!V$2&NPS!$R$1,【D】NPS!$C$2:$GO$2&【D】NPS!$C$3:$GO$3,0)) -> - | W10: =INDEX(【D】NPS!$C$4:$GO$76,MATCH(NPS!$B10,【D】NPS!$B$4:$B$76,0), MATCH(NPS!W$2&NPS!$R$1,【D】NPS!$C$2:$GO$2&【D】NPS!$C$3:$GO$3,0)) -> - | X10: =INDEX(【D】NPS!$C$4:$GO$76,MATCH(NPS!$B10,【D】NPS!$B$4:$B$76,0), MATCH(NPS!X$2&NPS!$R$1,【D】NPS!$C$2:$GO$2&【D】NPS!$C$3:$GO$3,0)) -> - | Y10: =INDEX(【D】NPS!$C$4:$GO$76,MATCH(NPS!$B10,【D】NPS!$B$4:$B$76,0), MATCH(NPS!Y$2&NPS!$R$1,【D】NPS!$C$2:$GO$2&【D】NPS!$C$3:$GO$3,0)) -> - | Z10: =INDEX(【D】NPS!$C$4:$GO$76,MATCH(NPS!$B10,【D】NPS!$B$4:$B$76,0), MATCH(NPS!Z$2&NPS!$R$1,【D】NPS!$C$2:$GO$2&【D】NPS!$C$3:$GO$3,0)) -> - | AA10: =INDEX(【D】NPS!$C$4:$GO$76,MATCH(NPS!$B10,【D】NPS!$B$4:$B$76,0), MATCH(NPS!AA$2&NPS!$R$1,【D】NPS!$C$2:$GO$2&【D】NPS!$C$3:$GO$3,0)) -> - | AB10: =INDEX(【D】NPS!$C$4:$GO$76,MATCH(NPS!$B10,【D】NPS!$B$4:$B$76,0), MATCH(NPS!AB$2&NPS!$R$1,【D】NPS!$C$2:$GO$2&【D】NPS!$C$3:$GO$3,0)) -> - | AC10: =INDEX(【D】NPS!$C$4:$GO$76,MATCH(NPS!$B10,【D】NPS!$B$4:$B$76,0), MATCH(NPS!AC$2&NPS!$R$1,【D】NPS!$C$2:$GO$2&【D】NPS!$C$3:$GO$3,0)) -> - | AD10: =INDEX(【D】NPS!$C$4:$GO$76,MATCH(NPS!$B10,【D】NPS!$B$4:$B$76,0), MATCH(NPS!AD$2&NPS!$R$1,【D】NPS!$C$2:$GO$2&【D】NPS!$C$3:$GO$3,0)) -> - | AE10: =INDEX(【D】NPS!$C$4:$GO$76,MATCH(NPS!$B10,【D】NPS!$B$4:$B$76,0), MATCH(NPS!AE$2&NPS!$R$1,【D】NPS!$C$2:$GO$2&【D】NPS!$C$3:$GO$3,0)) -> 40 | AH10: =INDEX(【D】NPS!$C$4:$GO$76,MATCH(NPS!$B10,【D】NPS!$B$4:$B$76,0), MATCH(NPS!AH$2&NPS!$AG$1,【D】NPS!$C$2:$GO$2&【D】NPS!$C$3:$GO$3,0)) -> 33 | AI10: =INDEX(【D】NPS!$C$4:$GO$76,MATCH(NPS!$B10,【D】NPS!$B$4:$B$76,0), MATCH(NPS!AI$2&NPS!$AG$1,【D】NPS!$C$2:$GO$2&【D】NPS!$C$3:$GO$3,0)) -> 44 | AJ10: =INDEX(【D】NPS!$C$4:$GO$76,MATCH(NPS!$B10,【D】NPS!$B$4:$B$76,0), MATCH(NPS!AJ$2&NPS!$AG$1,【D】NPS!$C$2:$GO$2&【D】NPS!$C$3:$GO$3,0)) -> 6 | AK10: =INDEX(【D】NPS!$C$4:$GO$76,MATCH(NPS!$B10,【D】NPS!$B$4:$B$76,0), MATCH(NPS!AK$2&NPS!$AG$1,【D】NPS!$C$2:$GO$2&【D】NPS!$C$3:$GO$3,0)) -> - | AL10: =INDEX(【D】NPS!$C$4:$GO$76,MATCH(NPS!$B10,【D】NPS!$B$4:$B$76,0), MATCH(NPS!AL$2&NPS!$AG$1,【D】NPS!$C$2:$GO$2&【D】NPS!$C$3:$GO$3,0)) -> - | AM10: =INDEX(【D】NPS!$C$4:$GO$76,MATCH(NPS!$B10,【D】NPS!$B$4:$B$76,0), MATCH(NPS!AM$2&NPS!$AG$1,【D】NPS!$C$2:$GO$2&【D】NPS!$C$3:$GO$3,0)) -> - | AN10: =INDEX(【D】NPS!$C$4:$GO$76,MATCH(NPS!$B10,【D】NPS!$B$4:$B$76,0), MATCH(NPS!AN$2&NPS!$AG$1,【D】NPS!$C$2:$GO$2&【D】NPS!$C$3:$GO$3,0)) -> - | AO10: =INDEX(【D】NPS!$C$4:$GO$76,MATCH(NPS!$B10,【D】NPS!$B$4:$B$76,0), MATCH(NPS!AO$2&NPS!$AG$1,【D】NPS!$C$2:$GO$2&【D】NPS!$C$3:$GO$3,0)) -> - | AP10: =INDEX(【D】NPS!$C$4:$GO$76,MATCH(NPS!$B10,【D】NPS!$B$4:$B$76,0), MATCH(NPS!AP$2&NPS!$AG$1,【D】NPS!$C$2:$GO$2&【D】NPS!$C$3:$GO$3,0)) -> - | AQ10: =INDEX(【D】NPS!$C$4:$GO$76,MATCH(NPS!$B10,【D】NPS!$B$4:$B$76,0), MATCH(NPS!AQ$2&NPS!$AG$1,【D】NPS!$C$2:$GO$2&【D】NPS!$C$3:$GO$3,0)) -> - | AR10: =INDEX(【D】NPS!$C$4:$GO$76,MATCH(NPS!$B10,【D】NPS!$B$4:$B$76,0), MATCH(NPS!AR$2&NPS!$AG$1,【D】NPS!$C$2:$GO$2&【D】NPS!$C$3:$GO$3,0)) -> - | AS10: =INDEX(【D】NPS!$C$4:$GO$76,MATCH(NPS!$B10,【D】NPS!$B$4:$B$76,0), MATCH(NPS!AS$2&NPS!$AG$1,【D】NPS!$C$2:$GO$2&【D】NPS!$C$3:$GO$3,0)) -> - | AT10: =INDEX(【D】NPS!$C$4:$GO$76,MATCH(NPS!$B10,【D】NPS!$B$4:$B$76,0), MATCH(NPS!AT$2&NPS!$AG$1,【D】NPS!$C$2:$GO$2&【D】NPS!$C$3:$GO$3,0)) -> 41 | AV10: 8 | AW10: 8 | AX10: 赤礁崎オートキャンプ場 エリア | AY10: 50 | AZ10: =INDEX(【D】NPS!$C$7:$HB$76, MATCH(NPS!$AX10,【D】NPS!$B$7:$B$76,0), MATCH(NPS!$AZ$2&NPS!$AW$1,【D】NPS!$C$1:$HB$1&【D】NPS!$C$2:$HB$2,0)) -> 2
B11: 東尋坊 エリア | D11: =INDEX(【D】NPS!$C$4:$GO$76,MATCH(NPS!$B11,【D】NPS!$B$4:$B$76,0), MATCH(NPS!D$2&NPS!$C$1,【D】NPS!$C$2:$GO$2&【D】NPS!$C$3:$GO$3,0)) -> 29.41176471 | E11: =INDEX(【D】NPS!$C$4:$GO$76,MATCH(NPS!$B11,【D】NPS!$B$4:$B$76,0), MATCH(NPS!E$2&NPS!$C$1,【D】NPS!$C$2:$GO$2&【D】NPS!$C$3:$GO$3,0)) -> 3.278688525 | F11: =INDEX(【D】NPS!$C$4:$GO$76,MATCH(NPS!$B11,【D】NPS!$B$4:$B$76,0), MATCH(NPS!F$2&NPS!$C$1,【D】NPS!$C$2:$GO$2&【D】NPS!$C$3:$GO$3,0)) -> 22.72727273 | G11: =INDEX(【D】NPS!$C$4:$GO$76,MATCH(NPS!$B11,【D】NPS!$B$4:$B$76,0), MATCH(NPS!G$2&NPS!$C$1,【D】NPS!$C$2:$GO$2&【D】NPS!$C$3:$GO$3,0)) -> None | H11: =INDEX(【D】NPS!$C$4:$GO$76,MATCH(NPS!$B11,【D】NPS!$B$4:$B$76,0), MATCH(NPS!H$2&NPS!$C$1,【D】NPS!$C$2:$GO$2&【D】NPS!$C$3:$GO$3,0)) -> None | I11: =INDEX(【D】NPS!$C$4:$GO$76,MATCH(NPS!$B11,【D】NPS!$B$4:$B$76,0), MATCH(NPS!I$2&NPS!$C$1,【D】NPS!$C$2:$GO$2&【D】NPS!$C$3:$GO$3,0)) -> None | J11: =INDEX(【D】NPS!$C$4:$GO$76,MATCH(NPS!$B11,【D】NPS!$B$4:$B$76,0), MATCH(NPS!J$2&NPS!$C$1,【D】NPS!$C$2:$GO$2&【D】NPS!$C$3:$GO$3,0)) -> None | K11: =INDEX(【D】NPS!$C$4:$GO$76,MATCH(NPS!$B11,【D】NPS!$B$4:$B$76,0), MATCH(NPS!K$2&NPS!$C$1,【D】NPS!$C$2:$GO$2&【D】NPS!$C$3:$GO$3,0)) -> None | L11: =INDEX(【D】NPS!$C$4:$GO$76,MATCH(NPS!$B11,【D】NPS!$B$4:$B$76,0), MATCH(NPS!L$2&NPS!$C$1,【D】NPS!$C$2:$GO$2&【D】NPS!$C$3:$GO$3,0)) -> None | M11: =INDEX(【D】NPS!$C$4:$GO$76,MATCH(NPS!$B11,【D】NPS!$B$4:$B$76,0), MATCH(NPS!M$2&NPS!$C$1,【D】NPS!$C$2:$GO$2&【D】NPS!$C$3:$GO$3,0)) -> None | N11: =INDEX(【D】NPS!$C$4:$GO$76,MATCH(NPS!$B11,【D】NPS!$B$4:$B$76,0), MATCH(NPS!N$2&NPS!$C$1,【D】NPS!$C$2:$GO$2&【D】NPS!$C$3:$GO$3,0)) -> None | O11: =INDEX(【D】NPS!$C$4:$GO$76,MATCH(NPS!$B11,【D】NPS!$B$4:$B$76,0), MATCH(NPS!O$2&NPS!$C$1,【D】NPS!$C$2:$GO$2&【D】NPS!$C$3:$GO$3,0)) -> None | P11: =INDEX(【D】NPS!$C$4:$GO$76,MATCH(NPS!$B11,【D】NPS!$B$4:$B$76,0), MATCH(NPS!P$2&NPS!$C$1,【D】NPS!$C$2:$GO$2&【D】NPS!$C$3:$GO$3,0)) -> 12 | S11: =INDEX(【D】NPS!$C$4:$GO$76,MATCH(NPS!$B11,【D】NPS!$B$4:$B$76,0), MATCH(NPS!S$2&NPS!$R$1,【D】NPS!$C$2:$GO$2&【D】NPS!$C$3:$GO$3,0)) -> 14 | T11: =INDEX(【D】NPS!$C$4:$GO$76,MATCH(NPS!$B11,【D】NPS!$B$4:$B$76,0), MATCH(NPS!T$2&NPS!$R$1,【D】NPS!$C$2:$GO$2&【D】NPS!$C$3:$GO$3,0)) -> 30 | U11: =INDEX(【D】NPS!$C$4:$GO$76,MATCH(NPS!$B11,【D】NPS!$B$4:$B$76,0), MATCH(NPS!U$2&NPS!$R$1,【D】NPS!$C$2:$GO$2&【D】NPS!$C$3:$GO$3,0)) -> 21 | V11: =INDEX(【D】NPS!$C$4:$GO$76,MATCH(NPS!$B11,【D】NPS!$B$4:$B$76,0), MATCH(NPS!V$2&NPS!$R$1,【D】NPS!$C$2:$GO$2&【D】NPS!$C$3:$GO$3,0)) -> - | W11: =INDEX(【D】NPS!$C$4:$GO$76,MATCH(NPS!$B11,【D】NPS!$B$4:$B$76,0), MATCH(NPS!W$2&NPS!$R$1,【D】NPS!$C$2:$GO$2&【D】NPS!$C$3:$GO$3,0)) -> - | X11: =INDEX(【D】NPS!$C$4:$GO$76,MATCH(NPS!$B11,【D】NPS!$B$4:$B$76,0), MATCH(NPS!X$2&NPS!$R$1,【D】NPS!$C$2:$GO$2&【D】NPS!$C$3:$GO$3,0)) -> - | Y11: =INDEX(【D】NPS!$C$4:$GO$76,MATCH(NPS!$B11,【D】NPS!$B$4:$B$76,0), MATCH(NPS!Y$2&NPS!$R$1,【D】NPS!$C$2:$GO$2&【D】NPS!$C$3:$GO$3,0)) -> - | Z11: =INDEX(【D】NPS!$C$4:$GO$76,MATCH(NPS!$B11,【D】NPS!$B$4:$B$76,0), MATCH(NPS!Z$2&NPS!$R$1,【D】NPS!$C$2:$GO$2&【D】NPS!$C$3:$GO$3,0)) -> - | AA11: =INDEX(【D】NPS!$C$4:$GO$76,MATCH(NPS!$B11,【D】NPS!$B$4:$B$76,0), MATCH(NPS!AA$2&NPS!$R$1,【D】NPS!$C$2:$GO$2&【D】NPS!$C$3:$GO$3,0)) -> - | AB11: =INDEX(【D】NPS!$C$4:$GO$76,MATCH(NPS!$B11,【D】NPS!$B$4:$B$76,0), MATCH(NPS!AB$2&NPS!$R$1,【D】NPS!$C$2:$GO$2&【D】NPS!$C$3:$GO$3,0)) -> - | AC11: =INDEX(【D】NPS!$C$4:$GO$76,MATCH(NPS!$B11,【D】NPS!$B$4:$B$76,0), MATCH(NPS!AC$2&NPS!$R$1,【D】NPS!$C$2:$GO$2&【D】NPS!$C$3:$GO$3,0)) -> - | AD11: =INDEX(【D】NPS!$C$4:$GO$76,MATCH(NPS!$B11,【D】NPS!$B$4:$B$76,0), MATCH(NPS!AD$2&NPS!$R$1,【D】NPS!$C$2:$GO$2&【D】NPS!$C$3:$GO$3,0)) -> - | AE11: =INDEX(【D】NPS!$C$4:$GO$76,MATCH(NPS!$B11,【D】NPS!$B$4:$B$76,0), MATCH(NPS!AE$2&NPS!$R$1,【D】NPS!$C$2:$GO$2&【D】NPS!$C$3:$GO$3,0)) -> 21 | AH11: =INDEX(【D】NPS!$C$4:$GO$76,MATCH(NPS!$B11,【D】NPS!$B$4:$B$76,0), MATCH(NPS!AH$2&NPS!$AG$1,【D】NPS!$C$2:$GO$2&【D】NPS!$C$3:$GO$3,0)) -> 14 | AI11: =INDEX(【D】NPS!$C$4:$GO$76,MATCH(NPS!$B11,【D】NPS!$B$4:$B$76,0), MATCH(NPS!AI$2&NPS!$AG$1,【D】NPS!$C$2:$GO$2&【D】NPS!$C$3:$GO$3,0)) -> 30 | AJ11: =INDEX(【D】NPS!$C$4:$GO$76,MATCH(NPS!$B11,【D】NPS!$B$4:$B$76,0), MATCH(NPS!AJ$2&NPS!$AG$1,【D】NPS!$C$2:$GO$2&【D】NPS!$C$3:$GO$3,0)) -> 21 | AK11: =INDEX(【D】NPS!$C$4:$GO$76,MATCH(NPS!$B11,【D】NPS!$B$4:$B$76,0), MATCH(NPS!AK$2&NPS!$AG$1,【D】NPS!$C$2:$GO$2&【D】NPS!$C$3:$GO$3,0)) -> - | AL11: =INDEX(【D】NPS!$C$4:$GO$76,MATCH(NPS!$B11,【D】NPS!$B$4:$B$76,0), MATCH(NPS!AL$2&NPS!$AG$1,【D】NPS!$C$2:$GO$2&【D】NPS!$C$3:$GO$3,0)) -> - | AM11: =INDEX(【D】NPS!$C$4:$GO$76,MATCH(NPS!$B11,【D】NPS!$B$4:$B$76,0), MATCH(NPS!AM$2&NPS!$AG$1,【D】NPS!$C$2:$GO$2&【D】NPS!$C$3:$GO$3,0)) -> - | AN11: =INDEX(【D】NPS!$C$4:$GO$76,MATCH(NPS!$B11,【D】NPS!$B$4:$B$76,0), MATCH(NPS!AN$2&NPS!$AG$1,【D】NPS!$C$2:$GO$2&【D】NPS!$C$3:$GO$3,0)) -> - | AO11: =INDEX(【D】NPS!$C$4:$GO$76,MATCH(NPS!$B11,【D】NPS!$B$4:$B$76,0), MATCH(NPS!AO$2&NPS!$AG$1,【D】NPS!$C$2:$GO$2&【D】NPS!$C$3:$GO$3,0)) -> - | AP11: =INDEX(【D】NPS!$C$4:$GO$76,MATCH(NPS!$B11,【D】NPS!$B$4:$B$76,0), MATCH(NPS!AP$2&NPS!$AG$1,【D】NPS!$C$2:$GO$2&【D】NPS!$C$3:$GO$3,0)) -> - | AQ11: =INDEX(【D】NPS!$C$4:$GO$76,MATCH(NPS!$B11,【D】NPS!$B$4:$B$76,0), MATCH(NPS!AQ$2&NPS!$AG$1,【D】NPS!$C$2:$GO$2&【D】NPS!$C$3:$GO$3,0)) -> - | AR11: =INDEX(【D】NPS!$C$4:$GO$76,MATCH(NPS!$B11,【D】NPS!$B$4:$B$76,0), MATCH(NPS!AR$2&NPS!$AG$1,【D】NPS!$C$2:$GO$2&【D】NPS!$C$3:$GO$3,0)) -> - | AS11: =INDEX(【D】NPS!$C$4:$GO$76,MATCH(NPS!$B11,【D】NPS!$B$4:$B$76,0), MATCH(NPS!AS$2&NPS!$AG$1,【D】NPS!$C$2:$GO$2&【D】NPS!$C$3:$GO$3,0)) -> - | AT11: =INDEX(【D】NPS!$C$4:$GO$76,MATCH(NPS!$B11,【D】NPS!$B$4:$B$76,0), MATCH(NPS!AT$2&NPS!$AG$1,【D】NPS!$C$2:$GO$2&【D】NPS!$C$3:$GO$3,0)) -> 21 | AV11: 9 | AW11: 8 | AX11: 氣比神宮 エリア | AY11: 50 | AZ11: =INDEX(【D】NPS!$C$7:$HB$76, MATCH(NPS!$AX11,【D】NPS!$B$7:$B$76,0), MATCH(NPS!$AZ$2&NPS!$AW$1,【D】NPS!$C$1:$HB$1&【D】NPS!$C$2:$HB$2,0)) -> 4
B12: 芝政ワールド エリア | D12: =INDEX(【D】NPS!$C$4:$GO$76,MATCH(NPS!$B12,【D】NPS!$B$4:$B$76,0), MATCH(NPS!D$2&NPS!$C$1,【D】NPS!$C$2:$GO$2&【D】NPS!$C$3:$GO$3,0)) -> 0 | E12: =INDEX(【D】NPS!$C$4:$GO$76,MATCH(NPS!$B12,【D】NPS!$B$4:$B$76,0), MATCH(NPS!E$2&NPS!$C$1,【D】NPS!$C$2:$GO$2&【D】NPS!$C$3:$GO$3,0)) -> -20 | F12: =INDEX(【D】NPS!$C$4:$GO$76,MATCH(NPS!$B12,【D】NPS!$B$4:$B$76,0), MATCH(NPS!F$2&NPS!$C$1,【D】NPS!$C$2:$GO$2&【D】NPS!$C$3:$GO$3,0)) -> 100 | G12: =INDEX(【D】NPS!$C$4:$GO$76,MATCH(NPS!$B12,【D】NPS!$B$4:$B$76,0), MATCH(NPS!G$2&NPS!$C$1,【D】NPS!$C$2:$GO$2&【D】NPS!$C$3:$GO$3,0)) -> None | H12: =INDEX(【D】NPS!$C$4:$GO$76,MATCH(NPS!$B12,【D】NPS!$B$4:$B$76,0), MATCH(NPS!H$2&NPS!$C$1,【D】NPS!$C$2:$GO$2&【D】NPS!$C$3:$GO$3,0)) -> None | I12: =INDEX(【D】NPS!$C$4:$GO$76,MATCH(NPS!$B12,【D】NPS!$B$4:$B$76,0), MATCH(NPS!I$2&NPS!$C$1,【D】NPS!$C$2:$GO$2&【D】NPS!$C$3:$GO$3,0)) -> None | J12: =INDEX(【D】NPS!$C$4:$GO$76,MATCH(NPS!$B12,【D】NPS!$B$4:$B$76,0), MATCH(NPS!J$2&NPS!$C$1,【D】NPS!$C$2:$GO$2&【D】NPS!$C$3:$GO$3,0)) -> None | K12: =INDEX(【D】NPS!$C$4:$GO$76,MATCH(NPS!$B12,【D】NPS!$B$4:$B$76,0), MATCH(NPS!K$2&NPS!$C$1,【D】NPS!$C$2:$GO$2&【D】NPS!$C$3:$GO$3,0)) -> None | L12: =INDEX(【D】NPS!$C$4:$GO$76,MATCH(NPS!$B12,【D】NPS!$B$4:$B$76,0), MATCH(NPS!L$2&NPS!$C$1,【D】NPS!$C$2:$GO$2&【D】NPS!$C$3:$GO$3,0)) -> None | M12: =INDEX(【D】NPS!$C$4:$GO$76,MATCH(NPS!$B12,【D】NPS!$B$4:$B$76,0), MATCH(NPS!M$2&NPS!$C$1,【D】NPS!$C$2:$GO$2&【D】NPS!$C$3:$GO$3,0)) -> None | N12: =INDEX(【D】NPS!$C$4:$GO$76,MATCH(NPS!$B12,【D】NPS!$B$4:$B$76,0), MATCH(NPS!N$2&NPS!$C$1,【D】NPS!$C$2:$GO$2&【D】NPS!$C$3:$GO$3,0)) -> None | O12: =INDEX(【D】NPS!$C$4:$GO$76,MATCH(NPS!$B12,【D】NPS!$B$4:$B$76,0), MATCH(NPS!O$2&NPS!$C$1,【D】NPS!$C$2:$GO$2&【D】NPS!$C$3:$GO$3,0)) -> None | P12: =INDEX(【D】NPS!$C$4:$GO$76,MATCH(NPS!$B12,【D】NPS!$B$4:$B$76,0), MATCH(NPS!P$2&NPS!$C$1,【D】NPS!$C$2:$GO$2&【D】NPS!$C$3:$GO$3,0)) -> 0 | S12: =INDEX(【D】NPS!$C$4:$GO$76,MATCH(NPS!$B12,【D】NPS!$B$4:$B$76,0), MATCH(NPS!S$2&NPS!$R$1,【D】NPS!$C$2:$GO$2&【D】NPS!$C$3:$GO$3,0)) -> 25 | T12: =INDEX(【D】NPS!$C$4:$GO$76,MATCH(NPS!$B12,【D】NPS!$B$4:$B$76,0), MATCH(NPS!T$2&NPS!$R$1,【D】NPS!$C$2:$GO$2&【D】NPS!$C$3:$GO$3,0)) -> 56 | U12: =INDEX(【D】NPS!$C$4:$GO$76,MATCH(NPS!$B12,【D】NPS!$B$4:$B$76,0), MATCH(NPS!U$2&NPS!$R$1,【D】NPS!$C$2:$GO$2&【D】NPS!$C$3:$GO$3,0)) -> 1 | V12: =INDEX(【D】NPS!$C$4:$GO$76,MATCH(NPS!$B12,【D】NPS!$B$4:$B$76,0), MATCH(NPS!V$2&NPS!$R$1,【D】NPS!$C$2:$GO$2&【D】NPS!$C$3:$GO$3,0)) -> - | W12: =INDEX(【D】NPS!$C$4:$GO$76,MATCH(NPS!$B12,【D】NPS!$B$4:$B$76,0), MATCH(NPS!W$2&NPS!$R$1,【D】NPS!$C$2:$GO$2&【D】NPS!$C$3:$GO$3,0)) -> - | X12: =INDEX(【D】NPS!$C$4:$GO$76,MATCH(NPS!$B12,【D】NPS!$B$4:$B$76,0), MATCH(NPS!X$2&NPS!$R$1,【D】NPS!$C$2:$GO$2&【D】NPS!$C$3:$GO$3,0)) -> - | Y12: =INDEX(【D】NPS!$C$4:$GO$76,MATCH(NPS!$B12,【D】NPS!$B$4:$B$76,0), MATCH(NPS!Y$2&NPS!$R$1,【D】NPS!$C$2:$GO$2&【D】NPS!$C$3:$GO$3,0)) -> - | Z12: =INDEX(【D】NPS!$C$4:$GO$76,MATCH(NPS!$B12,【D】NPS!$B$4:$B$76,0), MATCH(NPS!Z$2&NPS!$R$1,【D】NPS!$C$2:$GO$2&【D】NPS!$C$3:$GO$3,0)) -> - | AA12: =INDEX(【D】NPS!$C$4:$GO$76,MATCH(NPS!$B12,【D】NPS!$B$4:$B$76,0), MATCH(NPS!AA$2&NPS!$R$1,【D】NPS!$C$2:$GO$2&【D】NPS!$C$3:$GO$3,0)) -> - | AB12: =INDEX(【D】NPS!$C$4:$GO$76,MATCH(NPS!$B12,【D】NPS!$B$4:$B$76,0), MATCH(NPS!AB$2&NPS!$R$1,【D】NPS!$C$2:$GO$2&【D】NPS!$C$3:$GO$3,0)) -> - | AC12: =INDEX(【D】NPS!$C$4:$GO$76,MATCH(NPS!$B12,【D】NPS!$B$4:$B$76,0), MATCH(NPS!AC$2&NPS!$R$1,【D】NPS!$C$2:$GO$2&【D】NPS!$C$3:$GO$3,0)) -> - | AD12: =INDEX(【D】NPS!$C$4:$GO$76,MATCH(NPS!$B12,【D】NPS!$B$4:$B$76,0), MATCH(NPS!AD$2&NPS!$R$1,【D】NPS!$C$2:$GO$2&【D】NPS!$C$3:$GO$3,0)) -> - | AE12: =INDEX(【D】NPS!$C$4:$GO$76,MATCH(NPS!$B12,【D】NPS!$B$4:$B$76,0), MATCH(NPS!AE$2&NPS!$R$1,【D】NPS!$C$2:$GO$2&【D】NPS!$C$3:$GO$3,0)) -> 40 | AH12: =INDEX(【D】NPS!$C$4:$GO$76,MATCH(NPS!$B12,【D】NPS!$B$4:$B$76,0), MATCH(NPS!AH$2&NPS!$AG$1,【D】NPS!$C$2:$GO$2&【D】NPS!$C$3:$GO$3,0)) -> 32 | AI12: =INDEX(【D】NPS!$C$4:$GO$76,MATCH(NPS!$B12,【D】NPS!$B$4:$B$76,0), MATCH(NPS!AI$2&NPS!$AG$1,【D】NPS!$C$2:$GO$2&【D】NPS!$C$3:$GO$3,0)) -> 56 | AJ12: =INDEX(【D】NPS!$C$4:$GO$76,MATCH(NPS!$B12,【D】NPS!$B$4:$B$76,0), MATCH(NPS!AJ$2&NPS!$AG$1,【D】NPS!$C$2:$GO$2&【D】NPS!$C$3:$GO$3,0)) -> 5 | AK12: =INDEX(【D】NPS!$C$4:$GO$76,MATCH(NPS!$B12,【D】NPS!$B$4:$B$76,0), MATCH(NPS!AK$2&NPS!$AG$1,【D】NPS!$C$2:$GO$2&【D】NPS!$C$3:$GO$3,0)) -> - | AL12: =INDEX(【D】NPS!$C$4:$GO$76,MATCH(NPS!$B12,【D】NPS!$B$4:$B$76,0), MATCH(NPS!AL$2&NPS!$AG$1,【D】NPS!$C$2:$GO$2&【D】NPS!$C$3:$GO$3,0)) -> - | AM12: =INDEX(【D】NPS!$C$4:$GO$76,MATCH(NPS!$B12,【D】NPS!$B$4:$B$76,0), MATCH(NPS!AM$2&NPS!$AG$1,【D】NPS!$C$2:$GO$2&【D】NPS!$C$3:$GO$3,0)) -> - | AN12: =INDEX(【D】NPS!$C$4:$GO$76,MATCH(NPS!$B12,【D】NPS!$B$4:$B$76,0), MATCH(NPS!AN$2&NPS!$AG$1,【D】NPS!$C$2:$GO$2&【D】NPS!$C$3:$GO$3,0)) -> - | AO12: =INDEX(【D】NPS!$C$4:$GO$76,MATCH(NPS!$B12,【D】NPS!$B$4:$B$76,0), MATCH(NPS!AO$2&NPS!$AG$1,【D】NPS!$C$2:$GO$2&【D】NPS!$C$3:$GO$3,0)) -> - | AP12: =INDEX(【D】NPS!$C$4:$GO$76,MATCH(NPS!$B12,【D】NPS!$B$4:$B$76,0), MATCH(NPS!AP$2&NPS!$AG$1,【D】NPS!$C$2:$GO$2&【D】NPS!$C$3:$GO$3,0)) -> - | AQ12: =INDEX(【D】NPS!$C$4:$GO$76,MATCH(NPS!$B12,【D】NPS!$B$4:$B$76,0), MATCH(NPS!AQ$2&NPS!$AG$1,【D】NPS!$C$2:$GO$2&【D】NPS!$C$3:$GO$3,0)) -> - | AR12: =INDEX(【D】NPS!$C$4:$GO$76,MATCH(NPS!$B12,【D】NPS!$B$4:$B$76,0), MATCH(NPS!AR$2&NPS!$AG$1,【D】NPS!$C$2:$GO$2&【D】NPS!$C$3:$GO$3,0)) -> - | AS12: =INDEX(【D】NPS!$C$4:$GO$76,MATCH(NPS!$B12,【D】NPS!$B$4:$B$76,0), MATCH(NPS!AS$2&NPS!$AG$1,【D】NPS!$C$2:$GO$2&【D】NPS!$C$3:$GO$3,0)) -> - | AT12: =INDEX(【D】NPS!$C$4:$GO$76,MATCH(NPS!$B12,【D】NPS!$B$4:$B$76,0), MATCH(NPS!AT$2&NPS!$AG$1,【D】NPS!$C$2:$GO$2&【D】NPS!$C$3:$GO$3,0)) -> 40 | AV12: 10 | AW12: 8 | AX12: ツリーピクニックアドベンチャーいけだ エリア | AY12: 50 | AZ12: =INDEX(【D】NPS!$C$7:$HB$76, MATCH(NPS!$AX12,【D】NPS!$B$7:$B$76,0), MATCH(NPS!$AZ$2&NPS!$AW$1,【D】NPS!$C$1:$HB$1&【D】NPS!$C$2:$HB$2,0)) -> 2
B13: 丸岡城 エリア | D13: =INDEX(【D】NPS!$C$4:$GO$76,MATCH(NPS!$B13,【D】NPS!$B$4:$B$76,0), MATCH(NPS!D$2&NPS!$C$1,【D】NPS!$C$2:$GO$2&【D】NPS!$C$3:$GO$3,0)) -> None | E13: =INDEX(【D】NPS!$C$4:$GO$76,MATCH(NPS!$B13,【D】NPS!$B$4:$B$76,0), MATCH(NPS!E$2&NPS!$C$1,【D】NPS!$C$2:$GO$2&【D】NPS!$C$3:$GO$3,0)) -> 16.66666667 | F13: =INDEX(【D】NPS!$C$4:$GO$76,MATCH(NPS!$B13,【D】NPS!$B$4:$B$76,0), MATCH(NPS!F$2&NPS!$C$1,【D】NPS!$C$2:$GO$2&【D】NPS!$C$3:$GO$3,0)) -> 8.333333333 | G13: =INDEX(【D】NPS!$C$4:$GO$76,MATCH(NPS!$B13,【D】NPS!$B$4:$B$76,0), MATCH(NPS!G$2&NPS!$C$1,【D】NPS!$C$2:$GO$2&【D】NPS!$C$3:$GO$3,0)) -> None | H13: =INDEX(【D】NPS!$C$4:$GO$76,MATCH(NPS!$B13,【D】NPS!$B$4:$B$76,0), MATCH(NPS!H$2&NPS!$C$1,【D】NPS!$C$2:$GO$2&【D】NPS!$C$3:$GO$3,0)) -> None | I13: =INDEX(【D】NPS!$C$4:$GO$76,MATCH(NPS!$B13,【D】NPS!$B$4:$B$76,0), MATCH(NPS!I$2&NPS!$C$1,【D】NPS!$C$2:$GO$2&【D】NPS!$C$3:$GO$3,0)) -> None | J13: =INDEX(【D】NPS!$C$4:$GO$76,MATCH(NPS!$B13,【D】NPS!$B$4:$B$76,0), MATCH(NPS!J$2&NPS!$C$1,【D】NPS!$C$2:$GO$2&【D】NPS!$C$3:$GO$3,0)) -> None | K13: =INDEX(【D】NPS!$C$4:$GO$76,MATCH(NPS!$B13,【D】NPS!$B$4:$B$76,0), MATCH(NPS!K$2&NPS!$C$1,【D】NPS!$C$2:$GO$2&【D】NPS!$C$3:$GO$3,0)) -> None | L13: =INDEX(【D】NPS!$C$4:$GO$76,MATCH(NPS!$B13,【D】NPS!$B$4:$B$76,0), MATCH(NPS!L$2&NPS!$C$1,【D】NPS!$C$2:$GO$2&【D】NPS!$C$3:$GO$3,0)) -> None | M13: =INDEX(【D】NPS!$C$4:$GO$76,MATCH(NPS!$B13,【D】NPS!$B$4:$B$76,0), MATCH(NPS!M$2&NPS!$C$1,【D】NPS!$C$2:$GO$2&【D】NPS!$C$3:$GO$3,0)) -> None | N13: =INDEX(【D】NPS!$C$4:$GO$76,MATCH(NPS!$B13,【D】NPS!$B$4:$B$76,0), MATCH(NPS!N$2&NPS!$C$1,【D】NPS!$C$2:$GO$2&【D】NPS!$C$3:$GO$3,0)) -> None | O13: =INDEX(【D】NPS!$C$4:$GO$76,MATCH(NPS!$B13,【D】NPS!$B$4:$B$76,0), MATCH(NPS!O$2&NPS!$C$1,【D】NPS!$C$2:$GO$2&【D】NPS!$C$3:$GO$3,0)) -> None | P13: =INDEX(【D】NPS!$C$4:$GO$76,MATCH(NPS!$B13,【D】NPS!$B$4:$B$76,0), MATCH(NPS!P$2&NPS!$C$1,【D】NPS!$C$2:$GO$2&【D】NPS!$C$3:$GO$3,0)) -> 12.5 | S13: =INDEX(【D】NPS!$C$4:$GO$76,MATCH(NPS!$B13,【D】NPS!$B$4:$B$76,0), MATCH(NPS!S$2&NPS!$R$1,【D】NPS!$C$2:$GO$2&【D】NPS!$C$3:$GO$3,0)) -> - | T13: =INDEX(【D】NPS!$C$4:$GO$76,MATCH(NPS!$B13,【D】NPS!$B$4:$B$76,0), MATCH(NPS!T$2&NPS!$R$1,【D】NPS!$C$2:$GO$2&【D】NPS!$C$3:$GO$3,0)) -> 17 | U13: =INDEX(【D】NPS!$C$4:$GO$76,MATCH(NPS!$B13,【D】NPS!$B$4:$B$76,0), MATCH(NPS!U$2&NPS!$R$1,【D】NPS!$C$2:$GO$2&【D】NPS!$C$3:$GO$3,0)) -> 31 | V13: =INDEX(【D】NPS!$C$4:$GO$76,MATCH(NPS!$B13,【D】NPS!$B$4:$B$76,0), MATCH(NPS!V$2&NPS!$R$1,【D】NPS!$C$2:$GO$2&【D】NPS!$C$3:$GO$3,0)) -> - | W13: =INDEX(【D】NPS!$C$4:$GO$76,MATCH(NPS!$B13,【D】NPS!$B$4:$B$76,0), MATCH(NPS!W$2&NPS!$R$1,【D】NPS!$C$2:$GO$2&【D】NPS!$C$3:$GO$3,0)) -> - | X13: =INDEX(【D】NPS!$C$4:$GO$76,MATCH(NPS!$B13,【D】NPS!$B$4:$B$76,0), MATCH(NPS!X$2&NPS!$R$1,【D】NPS!$C$2:$GO$2&【D】NPS!$C$3:$GO$3,0)) -> - | Y13: =INDEX(【D】NPS!$C$4:$GO$76,MATCH(NPS!$B13,【D】NPS!$B$4:$B$76,0), MATCH(NPS!Y$2&NPS!$R$1,【D】NPS!$C$2:$GO$2&【D】NPS!$C$3:$GO$3,0)) -> - | Z13: =INDEX(【D】NPS!$C$4:$GO$76,MATCH(NPS!$B13,【D】NPS!$B$4:$B$76,0), MATCH(NPS!Z$2&NPS!$R$1,【D】NPS!$C$2:$GO$2&【D】NPS!$C$3:$GO$3,0)) -> - | AA13: =INDEX(【D】NPS!$C$4:$GO$76,MATCH(NPS!$B13,【D】NPS!$B$4:$B$76,0), MATCH(NPS!AA$2&NPS!$R$1,【D】NPS!$C$2:$GO$2&【D】NPS!$C$3:$GO$3,0)) -> - | AB13: =INDEX(【D】NPS!$C$4:$GO$76,MATCH(NPS!$B13,【D】NPS!$B$4:$B$76,0), MATCH(NPS!AB$2&NPS!$R$1,【D】NPS!$C$2:$GO$2&【D】NPS!$C$3:$GO$3,0)) -> - | AC13: =INDEX(【D】NPS!$C$4:$GO$76,MATCH(NPS!$B13,【D】NPS!$B$4:$B$76,0), MATCH(NPS!AC$2&NPS!$R$1,【D】NPS!$C$2:$GO$2&【D】NPS!$C$3:$GO$3,0)) -> - | AD13: =INDEX(【D】NPS!$C$4:$GO$76,MATCH(NPS!$B13,【D】NPS!$B$4:$B$76,0), MATCH(NPS!AD$2&NPS!$R$1,【D】NPS!$C$2:$GO$2&【D】NPS!$C$3:$GO$3,0)) -> - | AE13: =INDEX(【D】NPS!$C$4:$GO$76,MATCH(NPS!$B13,【D】NPS!$B$4:$B$76,0), MATCH(NPS!AE$2&NPS!$R$1,【D】NPS!$C$2:$GO$2&【D】NPS!$C$3:$GO$3,0)) -> 20 | AH13: =INDEX(【D】NPS!$C$4:$GO$76,MATCH(NPS!$B13,【D】NPS!$B$4:$B$76,0), MATCH(NPS!AH$2&NPS!$AG$1,【D】NPS!$C$2:$GO$2&【D】NPS!$C$3:$GO$3,0)) -> - | AI13: =INDEX(【D】NPS!$C$4:$GO$76,MATCH(NPS!$B13,【D】NPS!$B$4:$B$76,0), MATCH(NPS!AI$2&NPS!$AG$1,【D】NPS!$C$2:$GO$2&【D】NPS!$C$3:$GO$3,0)) -> 17 | AJ13: =INDEX(【D】NPS!$C$4:$GO$76,MATCH(NPS!$B13,【D】NPS!$B$4:$B$76,0), MATCH(NPS!AJ$2&NPS!$AG$1,【D】NPS!$C$2:$GO$2&【D】NPS!$C$3:$GO$3,0)) -> 32 | AK13: =INDEX(【D】NPS!$C$4:$GO$76,MATCH(NPS!$B13,【D】NPS!$B$4:$B$76,0), MATCH(NPS!AK$2&NPS!$AG$1,【D】NPS!$C$2:$GO$2&【D】NPS!$C$3:$GO$3,0)) -> - | AL13: =INDEX(【D】NPS!$C$4:$GO$76,MATCH(NPS!$B13,【D】NPS!$B$4:$B$76,0), MATCH(NPS!AL$2&NPS!$AG$1,【D】NPS!$C$2:$GO$2&【D】NPS!$C$3:$GO$3,0)) -> - | AM13: =INDEX(【D】NPS!$C$4:$GO$76,MATCH(NPS!$B13,【D】NPS!$B$4:$B$76,0), MATCH(NPS!AM$2&NPS!$AG$1,【D】NPS!$C$2:$GO$2&【D】NPS!$C$3:$GO$3,0)) -> - | AN13: =INDEX(【D】NPS!$C$4:$GO$76,MATCH(NPS!$B13,【D】NPS!$B$4:$B$76,0), MATCH(NPS!AN$2&NPS!$AG$1,【D】NPS!$C$2:$GO$2&【D】NPS!$C$3:$GO$3,0)) -> - | AO13: =INDEX(【D】NPS!$C$4:$GO$76,MATCH(NPS!$B13,【D】NPS!$B$4:$B$76,0), MATCH(NPS!AO$2&NPS!$AG$1,【D】NPS!$C$2:$GO$2&【D】NPS!$C$3:$GO$3,0)) -> - | AP13: =INDEX(【D】NPS!$C$4:$GO$76,MATCH(NPS!$B13,【D】NPS!$B$4:$B$76,0), MATCH(NPS!AP$2&NPS!$AG$1,【D】NPS!$C$2:$GO$2&【D】NPS!$C$3:$GO$3,0)) -> - | AQ13: =INDEX(【D】NPS!$C$4:$GO$76,MATCH(NPS!$B13,【D】NPS!$B$4:$B$76,0), MATCH(NPS!AQ$2&NPS!$AG$1,【D】NPS!$C$2:$GO$2&【D】NPS!$C$3:$GO$3,0)) -> - | AR13: =INDEX(【D】NPS!$C$4:$GO$76,MATCH(NPS!$B13,【D】NPS!$B$4:$B$76,0), MATCH(NPS!AR$2&NPS!$AG$1,【D】NPS!$C$2:$GO$2&【D】NPS!$C$3:$GO$3,0)) -> - | AS13: =INDEX(【D】NPS!$C$4:$GO$76,MATCH(NPS!$B13,【D】NPS!$B$4:$B$76,0), MATCH(NPS!AS$2&NPS!$AG$1,【D】NPS!$C$2:$GO$2&【D】NPS!$C$3:$GO$3,0)) -> - | AT13: =INDEX(【D】NPS!$C$4:$GO$76,MATCH(NPS!$B13,【D】NPS!$B$4:$B$76,0), MATCH(NPS!AT$2&NPS!$AG$1,【D】NPS!$C$2:$GO$2&【D】NPS!$C$3:$GO$3,0)) -> 20 | AV13: 11 | AW13: 8 | AX13: 越前海岸 エリア | AY13: 50 | AZ13: =INDEX(【D】NPS!$C$7:$HB$76, MATCH(NPS!$AX13,【D】NPS!$B$7:$B$76,0), MATCH(NPS!$AZ$2&NPS!$AW$1,【D】NPS!$C$1:$HB$1&【D】NPS!$C$2:$HB$2,0)) -> 4
B14: 花の駅 ゆりの里公園 エリア | D14: =INDEX(【D】NPS!$C$4:$GO$76,MATCH(NPS!$B14,【D】NPS!$B$4:$B$76,0), MATCH(NPS!D$2&NPS!$C$1,【D】NPS!$C$2:$GO$2&【D】NPS!$C$3:$GO$3,0)) -> -66.66666667 | E14: =INDEX(【D】NPS!$C$4:$GO$76,MATCH(NPS!$B14,【D】NPS!$B$4:$B$76,0), MATCH(NPS!E$2&NPS!$C$1,【D】NPS!$C$2:$GO$2&【D】NPS!$C$3:$GO$3,0)) -> 1.923076923 | F14: =INDEX(【D】NPS!$C$4:$GO$76,MATCH(NPS!$B14,【D】NPS!$B$4:$B$76,0), MATCH(NPS!F$2&NPS!$C$1,【D】NPS!$C$2:$GO$2&【D】NPS!$C$3:$GO$3,0)) -> 10 | G14: =INDEX(【D】NPS!$C$4:$GO$76,MATCH(NPS!$B14,【D】NPS!$B$4:$B$76,0), MATCH(NPS!G$2&NPS!$C$1,【D】NPS!$C$2:$GO$2&【D】NPS!$C$3:$GO$3,0)) -> None | H14: =INDEX(【D】NPS!$C$4:$GO$76,MATCH(NPS!$B14,【D】NPS!$B$4:$B$76,0), MATCH(NPS!H$2&NPS!$C$1,【D】NPS!$C$2:$GO$2&【D】NPS!$C$3:$GO$3,0)) -> None | I14: =INDEX(【D】NPS!$C$4:$GO$76,MATCH(NPS!$B14,【D】NPS!$B$4:$B$76,0), MATCH(NPS!I$2&NPS!$C$1,【D】NPS!$C$2:$GO$2&【D】NPS!$C$3:$GO$3,0)) -> None | J14: =INDEX(【D】NPS!$C$4:$GO$76,MATCH(NPS!$B14,【D】NPS!$B$4:$B$76,0), MATCH(NPS!J$2&NPS!$C$1,【D】NPS!$C$2:$GO$2&【D】NPS!$C$3:$GO$3,0)) -> None | K14: =INDEX(【D】NPS!$C$4:$GO$76,MATCH(NPS!$B14,【D】NPS!$B$4:$B$76,0), MATCH(NPS!K$2&NPS!$C$1,【D】NPS!$C$2:$GO$2&【D】NPS!$C$3:$GO$3,0)) -> None | L14: =INDEX(【D】NPS!$C$4:$GO$76,MATCH(NPS!$B14,【D】NPS!$B$4:$B$76,0), MATCH(NPS!L$2&NPS!$C$1,【D】NPS!$C$2:$GO$2&【D】NPS!$C$3:$GO$3,0)) -> None | M14: =INDEX(【D】NPS!$C$4:$GO$76,MATCH(NPS!$B14,【D】NPS!$B$4:$B$76,0), MATCH(NPS!M$2&NPS!$C$1,【D】NPS!$C$2:$GO$2&【D】NPS!$C$3:$GO$3,0)) -> None | N14: =INDEX(【D】NPS!$C$4:$GO$76,MATCH(NPS!$B14,【D】NPS!$B$4:$B$76,0), MATCH(NPS!N$2&NPS!$C$1,【D】NPS!$C$2:$GO$2&【D】NPS!$C$3:$GO$3,0)) -> None | O14: =INDEX(【D】NPS!$C$4:$GO$76,MATCH(NPS!$B14,【D】NPS!$B$4:$B$76,0), MATCH(NPS!O$2&NPS!$C$1,【D】NPS!$C$2:$GO$2&【D】NPS!$C$3:$GO$3,0)) -> None | P14: =INDEX(【D】NPS!$C$4:$GO$76,MATCH(NPS!$B14,【D】NPS!$B$4:$B$76,0), MATCH(NPS!P$2&NPS!$C$1,【D】NPS!$C$2:$GO$2&【D】NPS!$C$3:$GO$3,0)) -> 4.347826087 | S14: =INDEX(【D】NPS!$C$4:$GO$76,MATCH(NPS!$B14,【D】NPS!$B$4:$B$76,0), MATCH(NPS!S$2&NPS!$R$1,【D】NPS!$C$2:$GO$2&【D】NPS!$C$3:$GO$3,0)) -> 42 | T14: =INDEX(【D】NPS!$C$4:$GO$76,MATCH(NPS!$B14,【D】NPS!$B$4:$B$76,0), MATCH(NPS!T$2&NPS!$R$1,【D】NPS!$C$2:$GO$2&【D】NPS!$C$3:$GO$3,0)) -> 32 | U14: =INDEX(【D】NPS!$C$4:$GO$76,MATCH(NPS!$B14,【D】NPS!$B$4:$B$76,0), MATCH(NPS!U$2&NPS!$R$1,【D】NPS!$C$2:$GO$2&【D】NPS!$C$3:$GO$3,0)) -> 27 | V14: =INDEX(【D】NPS!$C$4:$GO$76,MATCH(NPS!$B14,【D】NPS!$B$4:$B$76,0), MATCH(NPS!V$2&NPS!$R$1,【D】NPS!$C$2:$GO$2&【D】NPS!$C$3:$GO$3,0)) -> - | W14: =INDEX(【D】NPS!$C$4:$GO$76,MATCH(NPS!$B14,【D】NPS!$B$4:$B$76,0), MATCH(NPS!W$2&NPS!$R$1,【D】NPS!$C$2:$GO$2&【D】NPS!$C$3:$GO$3,0)) -> - | X14: =INDEX(【D】NPS!$C$4:$GO$76,MATCH(NPS!$B14,【D】NPS!$B$4:$B$76,0), MATCH(NPS!X$2&NPS!$R$1,【D】NPS!$C$2:$GO$2&【D】NPS!$C$3:$GO$3,0)) -> - | Y14: =INDEX(【D】NPS!$C$4:$GO$76,MATCH(NPS!$B14,【D】NPS!$B$4:$B$76,0), MATCH(NPS!Y$2&NPS!$R$1,【D】NPS!$C$2:$GO$2&【D】NPS!$C$3:$GO$3,0)) -> - | Z14: =INDEX(【D】NPS!$C$4:$GO$76,MATCH(NPS!$B14,【D】NPS!$B$4:$B$76,0), MATCH(NPS!Z$2&NPS!$R$1,【D】NPS!$C$2:$GO$2&【D】NPS!$C$3:$GO$3,0)) -> - | AA14: =INDEX(【D】NPS!$C$4:$GO$76,MATCH(NPS!$B14,【D】NPS!$B$4:$B$76,0), MATCH(NPS!AA$2&NPS!$R$1,【D】NPS!$C$2:$GO$2&【D】NPS!$C$3:$GO$3,0)) -> - | AB14: =INDEX(【D】NPS!$C$4:$GO$76,MATCH(NPS!$B14,【D】NPS!$B$4:$B$76,0), MATCH(NPS!AB$2&NPS!$R$1,【D】NPS!$C$2:$GO$2&【D】NPS!$C$3:$GO$3,0)) -> - | AC14: =INDEX(【D】NPS!$C$4:$GO$76,MATCH(NPS!$B14,【D】NPS!$B$4:$B$76,0), MATCH(NPS!AC$2&NPS!$R$1,【D】NPS!$C$2:$GO$2&【D】NPS!$C$3:$GO$3,0)) -> - | AD14: =INDEX(【D】NPS!$C$4:$GO$76,MATCH(NPS!$B14,【D】NPS!$B$4:$B$76,0), MATCH(NPS!AD$2&NPS!$R$1,【D】NPS!$C$2:$GO$2&【D】NPS!$C$3:$GO$3,0)) -> - | AE14: =INDEX(【D】NPS!$C$4:$GO$76,MATCH(NPS!$B14,【D】NPS!$B$4:$B$76,0), MATCH(NPS!AE$2&NPS!$R$1,【D】NPS!$C$2:$GO$2&【D】NPS!$C$3:$GO$3,0)) -> 34 | AH14: =INDEX(【D】NPS!$C$4:$GO$76,MATCH(NPS!$B14,【D】NPS!$B$4:$B$76,0), MATCH(NPS!AH$2&NPS!$AG$1,【D】NPS!$C$2:$GO$2&【D】NPS!$C$3:$GO$3,0)) -> 42 | AI14: =INDEX(【D】NPS!$C$4:$GO$76,MATCH(NPS!$B14,【D】NPS!$B$4:$B$76,0), MATCH(NPS!AI$2&NPS!$AG$1,【D】NPS!$C$2:$GO$2&【D】NPS!$C$3:$GO$3,0)) -> 32 | AJ14: =INDEX(【D】NPS!$C$4:$GO$76,MATCH(NPS!$B14,【D】NPS!$B$4:$B$76,0), MATCH(NPS!AJ$2&NPS!$AG$1,【D】NPS!$C$2:$GO$2&【D】NPS!$C$3:$GO$3,0)) -> 28 | AK14: =INDEX(【D】NPS!$C$4:$GO$76,MATCH(NPS!$B14,【D】NPS!$B$4:$B$76,0), MATCH(NPS!AK$2&NPS!$AG$1,【D】NPS!$C$2:$GO$2&【D】NPS!$C$3:$GO$3,0)) -> - | AL14: =INDEX(【D】NPS!$C$4:$GO$76,MATCH(NPS!$B14,【D】NPS!$B$4:$B$76,0), MATCH(NPS!AL$2&NPS!$AG$1,【D】NPS!$C$2:$GO$2&【D】NPS!$C$3:$GO$3,0)) -> - | AM14: =INDEX(【D】NPS!$C$4:$GO$76,MATCH(NPS!$B14,【D】NPS!$B$4:$B$76,0), MATCH(NPS!AM$2&NPS!$AG$1,【D】NPS!$C$2:$GO$2&【D】NPS!$C$3:$GO$3,0)) -> - | AN14: =INDEX(【D】NPS!$C$4:$GO$76,MATCH(NPS!$B14,【D】NPS!$B$4:$B$76,0), MATCH(NPS!AN$2&NPS!$AG$1,【D】NPS!$C$2:$GO$2&【D】NPS!$C$3:$GO$3,0)) -> - | AO14: =INDEX(【D】NPS!$C$4:$GO$76,MATCH(NPS!$B14,【D】NPS!$B$4:$B$76,0), MATCH(NPS!AO$2&NPS!$AG$1,【D】NPS!$C$2:$GO$2&【D】NPS!$C$3:$GO$3,0)) -> - | AP14: =INDEX(【D】NPS!$C$4:$GO$76,MATCH(NPS!$B14,【D】NPS!$B$4:$B$76,0), MATCH(NPS!AP$2&NPS!$AG$1,【D】NPS!$C$2:$GO$2&【D】NPS!$C$3:$GO$3,0)) -> - | AQ14: =INDEX(【D】NPS!$C$4:$GO$76,MATCH(NPS!$B14,【D】NPS!$B$4:$B$76,0), MATCH(NPS!AQ$2&NPS!$AG$1,【D】NPS!$C$2:$GO$2&【D】NPS!$C$3:$GO$3,0)) -> - | AR14: =INDEX(【D】NPS!$C$4:$GO$76,MATCH(NPS!$B14,【D】NPS!$B$4:$B$76,0), MATCH(NPS!AR$2&NPS!$AG$1,【D】NPS!$C$2:$GO$2&【D】NPS!$C$3:$GO$3,0)) -> - | AS14: =INDEX(【D】NPS!$C$4:$GO$76,MATCH(NPS!$B14,【D】NPS!$B$4:$B$76,0), MATCH(NPS!AS$2&NPS!$AG$1,【D】NPS!$C$2:$GO$2&【D】NPS!$C$3:$GO$3,0)) -> - | AT14: =INDEX(【D】NPS!$C$4:$GO$76,MATCH(NPS!$B14,【D】NPS!$B$4:$B$76,0), MATCH(NPS!AT$2&NPS!$AG$1,【D】NPS!$C$2:$GO$2&【D】NPS!$C$3:$GO$3,0)) -> 34 | AV14: 12 | AW14: 12 | AX14: レインボーライン エリア | AY14: 37.25490196 | AZ14: =INDEX(【D】NPS!$C$7:$HB$76, MATCH(NPS!$AX14,【D】NPS!$B$7:$B$76,0), MATCH(NPS!$AZ$2&NPS!$AW$1,【D】NPS!$C$1:$HB$1&【D】NPS!$C$2:$HB$2,0)) -> 51
B15: 道の駅みくに ふれあいパーク三里浜 エリア | D15: =INDEX(【D】NPS!$C$4:$GO$76,MATCH(NPS!$B15,【D】NPS!$B$4:$B$76,0), MATCH(NPS!D$2&NPS!$C$1,【D】NPS!$C$2:$GO$2&【D】NPS!$C$3:$GO$3,0)) -> 16.66666667 | E15: =INDEX(【D】NPS!$C$4:$GO$76,MATCH(NPS!$B15,【D】NPS!$B$4:$B$76,0), MATCH(NPS!E$2&NPS!$C$1,【D】NPS!$C$2:$GO$2&【D】NPS!$C$3:$GO$3,0)) -> -18.51851852 | F15: =INDEX(【D】NPS!$C$4:$GO$76,MATCH(NPS!$B15,【D】NPS!$B$4:$B$76,0), MATCH(NPS!F$2&NPS!$C$1,【D】NPS!$C$2:$GO$2&【D】NPS!$C$3:$GO$3,0)) -> -3.448275862 | G15: =INDEX(【D】NPS!$C$4:$GO$76,MATCH(NPS!$B15,【D】NPS!$B$4:$B$76,0), MATCH(NPS!G$2&NPS!$C$1,【D】NPS!$C$2:$GO$2&【D】NPS!$C$3:$GO$3,0)) -> None | H15: =INDEX(【D】NPS!$C$4:$GO$76,MATCH(NPS!$B15,【D】NPS!$B$4:$B$76,0), MATCH(NPS!H$2&NPS!$C$1,【D】NPS!$C$2:$GO$2&【D】NPS!$C$3:$GO$3,0)) -> None | I15: =INDEX(【D】NPS!$C$4:$GO$76,MATCH(NPS!$B15,【D】NPS!$B$4:$B$76,0), MATCH(NPS!I$2&NPS!$C$1,【D】NPS!$C$2:$GO$2&【D】NPS!$C$3:$GO$3,0)) -> None | J15: =INDEX(【D】NPS!$C$4:$GO$76,MATCH(NPS!$B15,【D】NPS!$B$4:$B$76,0), MATCH(NPS!J$2&NPS!$C$1,【D】NPS!$C$2:$GO$2&【D】NPS!$C$3:$GO$3,0)) -> None | K15: =INDEX(【D】NPS!$C$4:$GO$76,MATCH(NPS!$B15,【D】NPS!$B$4:$B$76,0), MATCH(NPS!K$2&NPS!$C$1,【D】NPS!$C$2:$GO$2&【D】NPS!$C$3:$GO$3,0)) -> None | L15: =INDEX(【D】NPS!$C$4:$GO$76,MATCH(NPS!$B15,【D】NPS!$B$4:$B$76,0), MATCH(NPS!L$2&NPS!$C$1,【D】NPS!$C$2:$GO$2&【D】NPS!$C$3:$GO$3,0)) -> None | M15: =INDEX(【D】NPS!$C$4:$GO$76,MATCH(NPS!$B15,【D】NPS!$B$4:$B$76,0), MATCH(NPS!M$2&NPS!$C$1,【D】NPS!$C$2:$GO$2&【D】NPS!$C$3:$GO$3,0)) -> None | N15: =INDEX(【D】NPS!$C$4:$GO$76,MATCH(NPS!$B15,【D】NPS!$B$4:$B$76,0), MATCH(NPS!N$2&NPS!$C$1,【D】NPS!$C$2:$GO$2&【D】NPS!$C$3:$GO$3,0)) -> None | O15: =INDEX(【D】NPS!$C$4:$GO$76,MATCH(NPS!$B15,【D】NPS!$B$4:$B$76,0), MATCH(NPS!O$2&NPS!$C$1,【D】NPS!$C$2:$GO$2&【D】NPS!$C$3:$GO$3,0)) -> None | P15: =INDEX(【D】NPS!$C$4:$GO$76,MATCH(NPS!$B15,【D】NPS!$B$4:$B$76,0), MATCH(NPS!P$2&NPS!$C$1,【D】NPS!$C$2:$GO$2&【D】NPS!$C$3:$GO$3,0)) -> -8.064516129 | S15: =INDEX(【D】NPS!$C$4:$GO$76,MATCH(NPS!$B15,【D】NPS!$B$4:$B$76,0), MATCH(NPS!S$2&NPS!$R$1,【D】NPS!$C$2:$GO$2&【D】NPS!$C$3:$GO$3,0)) -> 20 | T15: =INDEX(【D】NPS!$C$4:$GO$76,MATCH(NPS!$B15,【D】NPS!$B$4:$B$76,0), MATCH(NPS!T$2&NPS!$R$1,【D】NPS!$C$2:$GO$2&【D】NPS!$C$3:$GO$3,0)) -> 55 | U15: =INDEX(【D】NPS!$C$4:$GO$76,MATCH(NPS!$B15,【D】NPS!$B$4:$B$76,0), MATCH(NPS!U$2&NPS!$R$1,【D】NPS!$C$2:$GO$2&【D】NPS!$C$3:$GO$3,0)) -> 44 | V15: =INDEX(【D】NPS!$C$4:$GO$76,MATCH(NPS!$B15,【D】NPS!$B$4:$B$76,0), MATCH(NPS!V$2&NPS!$R$1,【D】NPS!$C$2:$GO$2&【D】NPS!$C$3:$GO$3,0)) -> - | W15: =INDEX(【D】NPS!$C$4:$GO$76,MATCH(NPS!$B15,【D】NPS!$B$4:$B$76,0), MATCH(NPS!W$2&NPS!$R$1,【D】NPS!$C$2:$GO$2&【D】NPS!$C$3:$GO$3,0)) -> - | X15: =INDEX(【D】NPS!$C$4:$GO$76,MATCH(NPS!$B15,【D】NPS!$B$4:$B$76,0), MATCH(NPS!X$2&NPS!$R$1,【D】NPS!$C$2:$GO$2&【D】NPS!$C$3:$GO$3,0)) -> - | Y15: =INDEX(【D】NPS!$C$4:$GO$76,MATCH(NPS!$B15,【D】NPS!$B$4:$B$76,0), MATCH(NPS!Y$2&NPS!$R$1,【D】NPS!$C$2:$GO$2&【D】NPS!$C$3:$GO$3,0)) -> - | Z15: =INDEX(【D】NPS!$C$4:$GO$76,MATCH(NPS!$B15,【D】NPS!$B$4:$B$76,0), MATCH(NPS!Z$2&NPS!$R$1,【D】NPS!$C$2:$GO$2&【D】NPS!$C$3:$GO$3,0)) -> - | AA15: =INDEX(【D】NPS!$C$4:$GO$76,MATCH(NPS!$B15,【D】NPS!$B$4:$B$76,0), MATCH(NPS!AA$2&NPS!$R$1,【D】NPS!$C$2:$GO$2&【D】NPS!$C$3:$GO$3,0)) -> - | AB15: =INDEX(【D】NPS!$C$4:$GO$76,MATCH(NPS!$B15,【D】NPS!$B$4:$B$76,0), MATCH(NPS!AB$2&NPS!$R$1,【D】NPS!$C$2:$GO$2&【D】NPS!$C$3:$GO$3,0)) -> - | AC15: =INDEX(【D】NPS!$C$4:$GO$76,MATCH(NPS!$B15,【D】NPS!$B$4:$B$76,0), MATCH(NPS!AC$2&NPS!$R$1,【D】NPS!$C$2:$GO$2&【D】NPS!$C$3:$GO$3,0)) -> - | AD15: =INDEX(【D】NPS!$C$4:$GO$76,MATCH(NPS!$B15,【D】NPS!$B$4:$B$76,0), MATCH(NPS!AD$2&NPS!$R$1,【D】NPS!$C$2:$GO$2&【D】NPS!$C$3:$GO$3,0)) -> - | AE15: =INDEX(【D】NPS!$C$4:$GO$76,MATCH(NPS!$B15,【D】NPS!$B$4:$B$76,0), MATCH(NPS!AE$2&NPS!$R$1,【D】NPS!$C$2:$GO$2&【D】NPS!$C$3:$GO$3,0)) -> 51 | AH15: =INDEX(【D】NPS!$C$4:$GO$76,MATCH(NPS!$B15,【D】NPS!$B$4:$B$76,0), MATCH(NPS!AH$2&NPS!$AG$1,【D】NPS!$C$2:$GO$2&【D】NPS!$C$3:$GO$3,0)) -> 20 | AI15: =INDEX(【D】NPS!$C$4:$GO$76,MATCH(NPS!$B15,【D】NPS!$B$4:$B$76,0), MATCH(NPS!AI$2&NPS!$AG$1,【D】NPS!$C$2:$GO$2&【D】NPS!$C$3:$GO$3,0)) -> 55 | AJ15: =INDEX(【D】NPS!$C$4:$GO$76,MATCH(NPS!$B15,【D】NPS!$B$4:$B$76,0), MATCH(NPS!AJ$2&NPS!$AG$1,【D】NPS!$C$2:$GO$2&【D】NPS!$C$3:$GO$3,0)) -> 44 | AK15: =INDEX(【D】NPS!$C$4:$GO$76,MATCH(NPS!$B15,【D】NPS!$B$4:$B$76,0), MATCH(NPS!AK$2&NPS!$AG$1,【D】NPS!$C$2:$GO$2&【D】NPS!$C$3:$GO$3,0)) -> - | AL15: =INDEX(【D】NPS!$C$4:$GO$76,MATCH(NPS!$B15,【D】NPS!$B$4:$B$76,0), MATCH(NPS!AL$2&NPS!$AG$1,【D】NPS!$C$2:$GO$2&【D】NPS!$C$3:$GO$3,0)) -> - | AM15: =INDEX(【D】NPS!$C$4:$GO$76,MATCH(NPS!$B15,【D】NPS!$B$4:$B$76,0), MATCH(NPS!AM$2&NPS!$AG$1,【D】NPS!$C$2:$GO$2&【D】NPS!$C$3:$GO$3,0)) -> - | AN15: =INDEX(【D】NPS!$C$4:$GO$76,MATCH(NPS!$B15,【D】NPS!$B$4:$B$76,0), MATCH(NPS!AN$2&NPS!$AG$1,【D】NPS!$C$2:$GO$2&【D】NPS!$C$3:$GO$3,0)) -> - | AO15: =INDEX(【D】NPS!$C$4:$GO$76,MATCH(NPS!$B15,【D】NPS!$B$4:$B$76,0), MATCH(NPS!AO$2&NPS!$AG$1,【D】NPS!$C$2:$GO$2&【D】NPS!$C$3:$GO$3,0)) -> - | AP15: =INDEX(【D】NPS!$C$4:$GO$76,MATCH(NPS!$B15,【D】NPS!$B$4:$B$76,0), MATCH(NPS!AP$2&NPS!$AG$1,【D】NPS!$C$2:$GO$2&【D】NPS!$C$3:$GO$3,0)) -> - | AQ15: =INDEX(【D】NPS!$C$4:$GO$76,MATCH(NPS!$B15,【D】NPS!$B$4:$B$76,0), MATCH(NPS!AQ$2&NPS!$AG$1,【D】NPS!$C$2:$GO$2&【D】NPS!$C$3:$GO$3,0)) -> - | AR15: =INDEX(【D】NPS!$C$4:$GO$76,MATCH(NPS!$B15,【D】NPS!$B$4:$B$76,0), MATCH(NPS!AR$2&NPS!$AG$1,【D】NPS!$C$2:$GO$2&【D】NPS!$C$3:$GO$3,0)) -> - | AS15: =INDEX(【D】NPS!$C$4:$GO$76,MATCH(NPS!$B15,【D】NPS!$B$4:$B$76,0), MATCH(NPS!AS$2&NPS!$AG$1,【D】NPS!$C$2:$GO$2&【D】NPS!$C$3:$GO$3,0)) -> - | AT15: =INDEX(【D】NPS!$C$4:$GO$76,MATCH(NPS!$B15,【D】NPS!$B$4:$B$76,0), MATCH(NPS!AT$2&NPS!$AG$1,【D】NPS!$C$2:$GO$2&【D】NPS!$C$3:$GO$3,0)) -> 51 | AV15: 13 | AW15: 13 | AX15: 三方五湖 エリア | AY15: 36.11111111 | AZ15: =INDEX(【D】NPS!$C$7:$HB$76, MATCH(NPS!$AX15,【D】NPS!$B$7:$B$76,0), MATCH(NPS!$AZ$2&NPS!$AW$1,【D】NPS!$C$1:$HB$1&【D】NPS!$C$2:$HB$2,0)) -> 36
B16: あわら温泉 エリア | D16: =INDEX(【D】NPS!$C$4:$GO$76,MATCH(NPS!$B16,【D】NPS!$B$4:$B$76,0), MATCH(NPS!D$2&NPS!$C$1,【D】NPS!$C$2:$GO$2&【D】NPS!$C$3:$GO$3,0)) -> 16.66666667 | E16: =INDEX(【D】NPS!$C$4:$GO$76,MATCH(NPS!$B16,【D】NPS!$B$4:$B$76,0), MATCH(NPS!E$2&NPS!$C$1,【D】NPS!$C$2:$GO$2&【D】NPS!$C$3:$GO$3,0)) -> 0.9803921569 | F16: =INDEX(【D】NPS!$C$4:$GO$76,MATCH(NPS!$B16,【D】NPS!$B$4:$B$76,0), MATCH(NPS!F$2&NPS!$C$1,【D】NPS!$C$2:$GO$2&【D】NPS!$C$3:$GO$3,0)) -> -7.01754386 | G16: =INDEX(【D】NPS!$C$4:$GO$76,MATCH(NPS!$B16,【D】NPS!$B$4:$B$76,0), MATCH(NPS!G$2&NPS!$C$1,【D】NPS!$C$2:$GO$2&【D】NPS!$C$3:$GO$3,0)) -> None | H16: =INDEX(【D】NPS!$C$4:$GO$76,MATCH(NPS!$B16,【D】NPS!$B$4:$B$76,0), MATCH(NPS!H$2&NPS!$C$1,【D】NPS!$C$2:$GO$2&【D】NPS!$C$3:$GO$3,0)) -> None | I16: =INDEX(【D】NPS!$C$4:$GO$76,MATCH(NPS!$B16,【D】NPS!$B$4:$B$76,0), MATCH(NPS!I$2&NPS!$C$1,【D】NPS!$C$2:$GO$2&【D】NPS!$C$3:$GO$3,0)) -> None | J16: =INDEX(【D】NPS!$C$4:$GO$76,MATCH(NPS!$B16,【D】NPS!$B$4:$B$76,0), MATCH(NPS!J$2&NPS!$C$1,【D】NPS!$C$2:$GO$2&【D】NPS!$C$3:$GO$3,0)) -> None | K16: =INDEX(【D】NPS!$C$4:$GO$76,MATCH(NPS!$B16,【D】NPS!$B$4:$B$76,0), MATCH(NPS!K$2&NPS!$C$1,【D】NPS!$C$2:$GO$2&【D】NPS!$C$3:$GO$3,0)) -> None | L16: =INDEX(【D】NPS!$C$4:$GO$76,MATCH(NPS!$B16,【D】NPS!$B$4:$B$76,0), MATCH(NPS!L$2&NPS!$C$1,【D】NPS!$C$2:$GO$2&【D】NPS!$C$3:$GO$3,0)) -> None | M16: =INDEX(【D】NPS!$C$4:$GO$76,MATCH(NPS!$B16,【D】NPS!$B$4:$B$76,0), MATCH(NPS!M$2&NPS!$C$1,【D】NPS!$C$2:$GO$2&【D】NPS!$C$3:$GO$3,0)) -> None | N16: =INDEX(【D】NPS!$C$4:$GO$76,MATCH(NPS!$B16,【D】NPS!$B$4:$B$76,0), MATCH(NPS!N$2&NPS!$C$1,【D】NPS!$C$2:$GO$2&【D】NPS!$C$3:$GO$3,0)) -> None | O16: =INDEX(【D】NPS!$C$4:$GO$76,MATCH(NPS!$B16,【D】NPS!$B$4:$B$76,0), MATCH(NPS!O$2&NPS!$C$1,【D】NPS!$C$2:$GO$2&【D】NPS!$C$3:$GO$3,0)) -> None | P16: =INDEX(【D】NPS!$C$4:$GO$76,MATCH(NPS!$B16,【D】NPS!$B$4:$B$76,0), MATCH(NPS!P$2&NPS!$C$1,【D】NPS!$C$2:$GO$2&【D】NPS!$C$3:$GO$3,0)) -> -0.5847953216 | S16: =INDEX(【D】NPS!$C$4:$GO$76,MATCH(NPS!$B16,【D】NPS!$B$4:$B$76,0), MATCH(NPS!S$2&NPS!$R$1,【D】NPS!$C$2:$GO$2&【D】NPS!$C$3:$GO$3,0)) -> 19 | T16: =INDEX(【D】NPS!$C$4:$GO$76,MATCH(NPS!$B16,【D】NPS!$B$4:$B$76,0), MATCH(NPS!T$2&NPS!$R$1,【D】NPS!$C$2:$GO$2&【D】NPS!$C$3:$GO$3,0)) -> 34 | U16: =INDEX(【D】NPS!$C$4:$GO$76,MATCH(NPS!$B16,【D】NPS!$B$4:$B$76,0), MATCH(NPS!U$2&NPS!$R$1,【D】NPS!$C$2:$GO$2&【D】NPS!$C$3:$GO$3,0)) -> 46 | V16: =INDEX(【D】NPS!$C$4:$GO$76,MATCH(NPS!$B16,【D】NPS!$B$4:$B$76,0), MATCH(NPS!V$2&NPS!$R$1,【D】NPS!$C$2:$GO$2&【D】NPS!$C$3:$GO$3,0)) -> - | W16: =INDEX(【D】NPS!$C$4:$GO$76,MATCH(NPS!$B16,【D】NPS!$B$4:$B$76,0), MATCH(NPS!W$2&NPS!$R$1,【D】NPS!$C$2:$GO$2&【D】NPS!$C$3:$GO$3,0)) -> - | X16: =INDEX(【D】NPS!$C$4:$GO$76,MATCH(NPS!$B16,【D】NPS!$B$4:$B$76,0), MATCH(NPS!X$2&NPS!$R$1,【D】NPS!$C$2:$GO$2&【D】NPS!$C$3:$GO$3,0)) -> - | Y16: =INDEX(【D】NPS!$C$4:$GO$76,MATCH(NPS!$B16,【D】NPS!$B$4:$B$76,0), MATCH(NPS!Y$2&NPS!$R$1,【D】NPS!$C$2:$GO$2&【D】NPS!$C$3:$GO$3,0)) -> - | Z16: =INDEX(【D】NPS!$C$4:$GO$76,MATCH(NPS!$B16,【D】NPS!$B$4:$B$76,0), MATCH(NPS!Z$2&NPS!$R$1,【D】NPS!$C$2:$GO$2&【D】NPS!$C$3:$GO$3,0)) -> - | AA16: =INDEX(【D】NPS!$C$4:$GO$76,MATCH(NPS!$B16,【D】NPS!$B$4:$B$76,0), MATCH(NPS!AA$2&NPS!$R$1,【D】NPS!$C$2:$GO$2&【D】NPS!$C$3:$GO$3,0)) -> - | AB16: =INDEX(【D】NPS!$C$4:$GO$76,MATCH(NPS!$B16,【D】NPS!$B$4:$B$76,0), MATCH(NPS!AB$2&NPS!$R$1,【D】NPS!$C$2:$GO$2&【D】NPS!$C$3:$GO$3,0)) -> - | AC16: =INDEX(【D】NPS!$C$4:$GO$76,MATCH(NPS!$B16,【D】NPS!$B$4:$B$76,0), MATCH(NPS!AC$2&NPS!$R$1,【D】NPS!$C$2:$GO$2&【D】NPS!$C$3:$GO$3,0)) -> - | AD16: =INDEX(【D】NPS!$C$4:$GO$76,MATCH(NPS!$B16,【D】NPS!$B$4:$B$76,0), MATCH(NPS!AD$2&NPS!$R$1,【D】NPS!$C$2:$GO$2&【D】NPS!$C$3:$GO$3,0)) -> - | AE16: =INDEX(【D】NPS!$C$4:$GO$76,MATCH(NPS!$B16,【D】NPS!$B$4:$B$76,0), MATCH(NPS!AE$2&NPS!$R$1,【D】NPS!$C$2:$GO$2&【D】NPS!$C$3:$GO$3,0)) -> 43 | AH16: =INDEX(【D】NPS!$C$4:$GO$76,MATCH(NPS!$B16,【D】NPS!$B$4:$B$76,0), MATCH(NPS!AH$2&NPS!$AG$1,【D】NPS!$C$2:$GO$2&【D】NPS!$C$3:$GO$3,0)) -> 19 | AI16: =INDEX(【D】NPS!$C$4:$GO$76,MATCH(NPS!$B16,【D】NPS!$B$4:$B$76,0), MATCH(NPS!AI$2&NPS!$AG$1,【D】NPS!$C$2:$GO$2&【D】NPS!$C$3:$GO$3,0)) -> 34 | AJ16: =INDEX(【D】NPS!$C$4:$GO$76,MATCH(NPS!$B16,【D】NPS!$B$4:$B$76,0), MATCH(NPS!AJ$2&NPS!$AG$1,【D】NPS!$C$2:$GO$2&【D】NPS!$C$3:$GO$3,0)) -> 46 | AK16: =INDEX(【D】NPS!$C$4:$GO$76,MATCH(NPS!$B16,【D】NPS!$B$4:$B$76,0), MATCH(NPS!AK$2&NPS!$AG$1,【D】NPS!$C$2:$GO$2&【D】NPS!$C$3:$GO$3,0)) -> - | AL16: =INDEX(【D】NPS!$C$4:$GO$76,MATCH(NPS!$B16,【D】NPS!$B$4:$B$76,0), MATCH(NPS!AL$2&NPS!$AG$1,【D】NPS!$C$2:$GO$2&【D】NPS!$C$3:$GO$3,0)) -> - | AM16: =INDEX(【D】NPS!$C$4:$GO$76,MATCH(NPS!$B16,【D】NPS!$B$4:$B$76,0), MATCH(NPS!AM$2&NPS!$AG$1,【D】NPS!$C$2:$GO$2&【D】NPS!$C$3:$GO$3,0)) -> - | AN16: =INDEX(【D】NPS!$C$4:$GO$76,MATCH(NPS!$B16,【D】NPS!$B$4:$B$76,0), MATCH(NPS!AN$2&NPS!$AG$1,【D】NPS!$C$2:$GO$2&【D】NPS!$C$3:$GO$3,0)) -> - | AO16: =INDEX(【D】NPS!$C$4:$GO$76,MATCH(NPS!$B16,【D】NPS!$B$4:$B$76,0), MATCH(NPS!AO$2&NPS!$AG$1,【D】NPS!$C$2:$GO$2&【D】NPS!$C$3:$GO$3,0)) -> - | AP16: =INDEX(【D】NPS!$C$4:$GO$76,MATCH(NPS!$B16,【D】NPS!$B$4:$B$76,0), MATCH(NPS!AP$2&NPS!$AG$1,【D】NPS!$C$2:$GO$2&【D】NPS!$C$3:$GO$3,0)) -> - | AQ16: =INDEX(【D】NPS!$C$4:$GO$76,MATCH(NPS!$B16,【D】NPS!$B$4:$B$76,0), MATCH(NPS!AQ$2&NPS!$AG$1,【D】NPS!$C$2:$GO$2&【D】NPS!$C$3:$GO$3,0)) -> - | AR16: =INDEX(【D】NPS!$C$4:$GO$76,MATCH(NPS!$B16,【D】NPS!$B$4:$B$76,0), MATCH(NPS!AR$2&NPS!$AG$1,【D】NPS!$C$2:$GO$2&【D】NPS!$C$3:$GO$3,0)) -> - | AS16: =INDEX(【D】NPS!$C$4:$GO$76,MATCH(NPS!$B16,【D】NPS!$B$4:$B$76,0), MATCH(NPS!AS$2&NPS!$AG$1,【D】NPS!$C$2:$GO$2&【D】NPS!$C$3:$GO$3,0)) -> - | AT16: =INDEX(【D】NPS!$C$4:$GO$76,MATCH(NPS!$B16,【D】NPS!$B$4:$B$76,0), MATCH(NPS!AT$2&NPS!$AG$1,【D】NPS!$C$2:$GO$2&【D】NPS!$C$3:$GO$3,0)) -> 43 | AV16: 14 | AW16: 14 | AX16: 金ヶ崎 エリア | AY16: 35.71428571 | AZ16: =INDEX(【D】NPS!$C$7:$HB$76, MATCH(NPS!$AX16,【D】NPS!$B$7:$B$76,0), MATCH(NPS!$AZ$2&NPS!$AW$1,【D】NPS!$C$1:$HB$1&【D】NPS!$C$2:$HB$2,0)) -> 14
B17: 金津創作の森 エリア | D17: =INDEX(【D】NPS!$C$4:$GO$76,MATCH(NPS!$B17,【D】NPS!$B$4:$B$76,0), MATCH(NPS!D$2&NPS!$C$1,【D】NPS!$C$2:$GO$2&【D】NPS!$C$3:$GO$3,0)) -> None | E17: =INDEX(【D】NPS!$C$4:$GO$76,MATCH(NPS!$B17,【D】NPS!$B$4:$B$76,0), MATCH(NPS!E$2&NPS!$C$1,【D】NPS!$C$2:$GO$2&【D】NPS!$C$3:$GO$3,0)) -> None | F17: =INDEX(【D】NPS!$C$4:$GO$76,MATCH(NPS!$B17,【D】NPS!$B$4:$B$76,0), MATCH(NPS!F$2&NPS!$C$1,【D】NPS!$C$2:$GO$2&【D】NPS!$C$3:$GO$3,0)) -> None | G17: =INDEX(【D】NPS!$C$4:$GO$76,MATCH(NPS!$B17,【D】NPS!$B$4:$B$76,0), MATCH(NPS!G$2&NPS!$C$1,【D】NPS!$C$2:$GO$2&【D】NPS!$C$3:$GO$3,0)) -> None | H17: =INDEX(【D】NPS!$C$4:$GO$76,MATCH(NPS!$B17,【D】NPS!$B$4:$B$76,0), MATCH(NPS!H$2&NPS!$C$1,【D】NPS!$C$2:$GO$2&【D】NPS!$C$3:$GO$3,0)) -> None | I17: =INDEX(【D】NPS!$C$4:$GO$76,MATCH(NPS!$B17,【D】NPS!$B$4:$B$76,0), MATCH(NPS!I$2&NPS!$C$1,【D】NPS!$C$2:$GO$2&【D】NPS!$C$3:$GO$3,0)) -> None | J17: =INDEX(【D】NPS!$C$4:$GO$76,MATCH(NPS!$B17,【D】NPS!$B$4:$B$76,0), MATCH(NPS!J$2&NPS!$C$1,【D】NPS!$C$2:$GO$2&【D】NPS!$C$3:$GO$3,0)) -> None | K17: =INDEX(【D】NPS!$C$4:$GO$76,MATCH(NPS!$B17,【D】NPS!$B$4:$B$76,0), MATCH(NPS!K$2&NPS!$C$1,【D】NPS!$C$2:$GO$2&【D】NPS!$C$3:$GO$3,0)) -> None | L17: =INDEX(【D】NPS!$C$4:$GO$76,MATCH(NPS!$B17,【D】NPS!$B$4:$B$76,0), MATCH(NPS!L$2&NPS!$C$1,【D】NPS!$C$2:$GO$2&【D】NPS!$C$3:$GO$3,0)) -> None | M17: =INDEX(【D】NPS!$C$4:$GO$76,MATCH(NPS!$B17,【D】NPS!$B$4:$B$76,0), MATCH(NPS!M$2&NPS!$C$1,【D】NPS!$C$2:$GO$2&【D】NPS!$C$3:$GO$3,0)) -> None | N17: =INDEX(【D】NPS!$C$4:$GO$76,MATCH(NPS!$B17,【D】NPS!$B$4:$B$76,0), MATCH(NPS!N$2&NPS!$C$1,【D】NPS!$C$2:$GO$2&【D】NPS!$C$3:$GO$3,0)) -> None | O17: =INDEX(【D】NPS!$C$4:$GO$76,MATCH(NPS!$B17,【D】NPS!$B$4:$B$76,0), MATCH(NPS!O$2&NPS!$C$1,【D】NPS!$C$2:$GO$2&【D】NPS!$C$3:$GO$3,0)) -> None | P17: =INDEX(【D】NPS!$C$4:$GO$76,MATCH(NPS!$B17,【D】NPS!$B$4:$B$76,0), MATCH(NPS!P$2&NPS!$C$1,【D】NPS!$C$2:$GO$2&【D】NPS!$C$3:$GO$3,0)) -> None | S17: =INDEX(【D】NPS!$C$4:$GO$76,MATCH(NPS!$B17,【D】NPS!$B$4:$B$76,0), MATCH(NPS!S$2&NPS!$R$1,【D】NPS!$C$2:$GO$2&【D】NPS!$C$3:$GO$3,0)) -> - | T17: =INDEX(【D】NPS!$C$4:$GO$76,MATCH(NPS!$B17,【D】NPS!$B$4:$B$76,0), MATCH(NPS!T$2&NPS!$R$1,【D】NPS!$C$2:$GO$2&【D】NPS!$C$3:$GO$3,0)) -> - | U17: =INDEX(【D】NPS!$C$4:$GO$76,MATCH(NPS!$B17,【D】NPS!$B$4:$B$76,0), MATCH(NPS!U$2&NPS!$R$1,【D】NPS!$C$2:$GO$2&【D】NPS!$C$3:$GO$3,0)) -> - | V17: =INDEX(【D】NPS!$C$4:$GO$76,MATCH(NPS!$B17,【D】NPS!$B$4:$B$76,0), MATCH(NPS!V$2&NPS!$R$1,【D】NPS!$C$2:$GO$2&【D】NPS!$C$3:$GO$3,0)) -> - | W17: =INDEX(【D】NPS!$C$4:$GO$76,MATCH(NPS!$B17,【D】NPS!$B$4:$B$76,0), MATCH(NPS!W$2&NPS!$R$1,【D】NPS!$C$2:$GO$2&【D】NPS!$C$3:$GO$3,0)) -> - | X17: =INDEX(【D】NPS!$C$4:$GO$76,MATCH(NPS!$B17,【D】NPS!$B$4:$B$76,0), MATCH(NPS!X$2&NPS!$R$1,【D】NPS!$C$2:$GO$2&【D】NPS!$C$3:$GO$3,0)) -> - | Y17: =INDEX(【D】NPS!$C$4:$GO$76,MATCH(NPS!$B17,【D】NPS!$B$4:$B$76,0), MATCH(NPS!Y$2&NPS!$R$1,【D】NPS!$C$2:$GO$2&【D】NPS!$C$3:$GO$3,0)) -> - | Z17: =INDEX(【D】NPS!$C$4:$GO$76,MATCH(NPS!$B17,【D】NPS!$B$4:$B$76,0), MATCH(NPS!Z$2&NPS!$R$1,【D】NPS!$C$2:$GO$2&【D】NPS!$C$3:$GO$3,0)) -> - | AA17: =INDEX(【D】NPS!$C$4:$GO$76,MATCH(NPS!$B17,【D】NPS!$B$4:$B$76,0), MATCH(NPS!AA$2&NPS!$R$1,【D】NPS!$C$2:$GO$2&【D】NPS!$C$3:$GO$3,0)) -> - | AB17: =INDEX(【D】NPS!$C$4:$GO$76,MATCH(NPS!$B17,【D】NPS!$B$4:$B$76,0), MATCH(NPS!AB$2&NPS!$R$1,【D】NPS!$C$2:$GO$2&【D】NPS!$C$3:$GO$3,0)) -> - | AC17: =INDEX(【D】NPS!$C$4:$GO$76,MATCH(NPS!$B17,【D】NPS!$B$4:$B$76,0), MATCH(NPS!AC$2&NPS!$R$1,【D】NPS!$C$2:$GO$2&【D】NPS!$C$3:$GO$3,0)) -> - | AD17: =INDEX(【D】NPS!$C$4:$GO$76,MATCH(NPS!$B17,【D】NPS!$B$4:$B$76,0), MATCH(NPS!AD$2&NPS!$R$1,【D】NPS!$C$2:$GO$2&【D】NPS!$C$3:$GO$3,0)) -> - | AE17: =INDEX(【D】NPS!$C$4:$GO$76,MATCH(NPS!$B17,【D】NPS!$B$4:$B$76,0), MATCH(NPS!AE$2&NPS!$R$1,【D】NPS!$C$2:$GO$2&【D】NPS!$C$3:$GO$3,0)) -> - | AH17: =INDEX(【D】NPS!$C$4:$GO$76,MATCH(NPS!$B17,【D】NPS!$B$4:$B$76,0), MATCH(NPS!AH$2&NPS!$AG$1,【D】NPS!$C$2:$GO$2&【D】NPS!$C$3:$GO$3,0)) -> - | AI17: =INDEX(【D】NPS!$C$4:$GO$76,MATCH(NPS!$B17,【D】NPS!$B$4:$B$76,0), MATCH(NPS!AI$2&NPS!$AG$1,【D】NPS!$C$2:$GO$2&【D】NPS!$C$3:$GO$3,0)) -> - | AJ17: =INDEX(【D】NPS!$C$4:$GO$76,MATCH(NPS!$B17,【D】NPS!$B$4:$B$76,0), MATCH(NPS!AJ$2&NPS!$AG$1,【D】NPS!$C$2:$GO$2&【D】NPS!$C$3:$GO$3,0)) -> - | AK17: =INDEX(【D】NPS!$C$4:$GO$76,MATCH(NPS!$B17,【D】NPS!$B$4:$B$76,0), MATCH(NPS!AK$2&NPS!$AG$1,【D】NPS!$C$2:$GO$2&【D】NPS!$C$3:$GO$3,0)) -> - | AL17: =INDEX(【D】NPS!$C$4:$GO$76,MATCH(NPS!$B17,【D】NPS!$B$4:$B$76,0), MATCH(NPS!AL$2&NPS!$AG$1,【D】NPS!$C$2:$GO$2&【D】NPS!$C$3:$GO$3,0)) -> - | AM17: =INDEX(【D】NPS!$C$4:$GO$76,MATCH(NPS!$B17,【D】NPS!$B$4:$B$76,0), MATCH(NPS!AM$2&NPS!$AG$1,【D】NPS!$C$2:$GO$2&【D】NPS!$C$3:$GO$3,0)) -> - | AN17: =INDEX(【D】NPS!$C$4:$GO$76,MATCH(NPS!$B17,【D】NPS!$B$4:$B$76,0), MATCH(NPS!AN$2&NPS!$AG$1,【D】NPS!$C$2:$GO$2&【D】NPS!$C$3:$GO$3,0)) -> - | AO17: =INDEX(【D】NPS!$C$4:$GO$76,MATCH(NPS!$B17,【D】NPS!$B$4:$B$76,0), MATCH(NPS!AO$2&NPS!$AG$1,【D】NPS!$C$2:$GO$2&【D】NPS!$C$3:$GO$3,0)) -> - | AP17: =INDEX(【D】NPS!$C$4:$GO$76,MATCH(NPS!$B17,【D】NPS!$B$4:$B$76,0), MATCH(NPS!AP$2&NPS!$AG$1,【D】NPS!$C$2:$GO$2&【D】NPS!$C$3:$GO$3,0)) -> - | AQ17: =INDEX(【D】NPS!$C$4:$GO$76,MATCH(NPS!$B17,【D】NPS!$B$4:$B$76,0), MATCH(NPS!AQ$2&NPS!$AG$1,【D】NPS!$C$2:$GO$2&【D】NPS!$C$3:$GO$3,0)) -> - | AR17: =INDEX(【D】NPS!$C$4:$GO$76,MATCH(NPS!$B17,【D】NPS!$B$4:$B$76,0), MATCH(NPS!AR$2&NPS!$AG$1,【D】NPS!$C$2:$GO$2&【D】NPS!$C$3:$GO$3,0)) -> - | AS17: =INDEX(【D】NPS!$C$4:$GO$76,MATCH(NPS!$B17,【D】NPS!$B$4:$B$76,0), MATCH(NPS!AS$2&NPS!$AG$1,【D】NPS!$C$2:$GO$2&【D】NPS!$C$3:$GO$3,0)) -> - | AT17: =INDEX(【D】NPS!$C$4:$GO$76,MATCH(NPS!$B17,【D】NPS!$B$4:$B$76,0), MATCH(NPS!AT$2&NPS!$AG$1,【D】NPS!$C$2:$GO$2&【D】NPS!$C$3:$GO$3,0)) -> - | AV17: 15 | AW17: 15 | AX17: 道の駅「南えちぜん山海里」 エリア | AY17: 34.88372093 | AZ17: =INDEX(【D】NPS!$C$7:$HB$76, MATCH(NPS!$AX17,【D】NPS!$B$7:$B$76,0), MATCH(NPS!$AZ$2&NPS!$AW$1,【D】NPS!$C$1:$HB$1&【D】NPS!$C$2:$HB$2,0)) -> 43
B18: JA福井県ファーマーズマーケットきららの丘 エリア | D18: =INDEX(【D】NPS!$C$4:$GO$76,MATCH(NPS!$B18,【D】NPS!$B$4:$B$76,0), MATCH(NPS!D$2&NPS!$C$1,【D】NPS!$C$2:$GO$2&【D】NPS!$C$3:$GO$3,0)) -> None | E18: =INDEX(【D】NPS!$C$4:$GO$76,MATCH(NPS!$B18,【D】NPS!$B$4:$B$76,0), MATCH(NPS!E$2&NPS!$C$1,【D】NPS!$C$2:$GO$2&【D】NPS!$C$3:$GO$3,0)) -> 3.846153846 | F18: =INDEX(【D】NPS!$C$4:$GO$76,MATCH(NPS!$B18,【D】NPS!$B$4:$B$76,0), MATCH(NPS!F$2&NPS!$C$1,【D】NPS!$C$2:$GO$2&【D】NPS!$C$3:$GO$3,0)) -> 0 | G18: =INDEX(【D】NPS!$C$4:$GO$76,MATCH(NPS!$B18,【D】NPS!$B$4:$B$76,0), MATCH(NPS!G$2&NPS!$C$1,【D】NPS!$C$2:$GO$2&【D】NPS!$C$3:$GO$3,0)) -> None | H18: =INDEX(【D】NPS!$C$4:$GO$76,MATCH(NPS!$B18,【D】NPS!$B$4:$B$76,0), MATCH(NPS!H$2&NPS!$C$1,【D】NPS!$C$2:$GO$2&【D】NPS!$C$3:$GO$3,0)) -> None | I18: =INDEX(【D】NPS!$C$4:$GO$76,MATCH(NPS!$B18,【D】NPS!$B$4:$B$76,0), MATCH(NPS!I$2&NPS!$C$1,【D】NPS!$C$2:$GO$2&【D】NPS!$C$3:$GO$3,0)) -> None | J18: =INDEX(【D】NPS!$C$4:$GO$76,MATCH(NPS!$B18,【D】NPS!$B$4:$B$76,0), MATCH(NPS!J$2&NPS!$C$1,【D】NPS!$C$2:$GO$2&【D】NPS!$C$3:$GO$3,0)) -> None | K18: =INDEX(【D】NPS!$C$4:$GO$76,MATCH(NPS!$B18,【D】NPS!$B$4:$B$76,0), MATCH(NPS!K$2&NPS!$C$1,【D】NPS!$C$2:$GO$2&【D】NPS!$C$3:$GO$3,0)) -> None | L18: =INDEX(【D】NPS!$C$4:$GO$76,MATCH(NPS!$B18,【D】NPS!$B$4:$B$76,0), MATCH(NPS!L$2&NPS!$C$1,【D】NPS!$C$2:$GO$2&【D】NPS!$C$3:$GO$3,0)) -> None | M18: =INDEX(【D】NPS!$C$4:$GO$76,MATCH(NPS!$B18,【D】NPS!$B$4:$B$76,0), MATCH(NPS!M$2&NPS!$C$1,【D】NPS!$C$2:$GO$2&【D】NPS!$C$3:$GO$3,0)) -> None | N18: =INDEX(【D】NPS!$C$4:$GO$76,MATCH(NPS!$B18,【D】NPS!$B$4:$B$76,0), MATCH(NPS!N$2&NPS!$C$1,【D】NPS!$C$2:$GO$2&【D】NPS!$C$3:$GO$3,0)) -> None | O18: =INDEX(【D】NPS!$C$4:$GO$76,MATCH(NPS!$B18,【D】NPS!$B$4:$B$76,0), MATCH(NPS!O$2&NPS!$C$1,【D】NPS!$C$2:$GO$2&【D】NPS!$C$3:$GO$3,0)) -> None | P18: =INDEX(【D】NPS!$C$4:$GO$76,MATCH(NPS!$B18,【D】NPS!$B$4:$B$76,0), MATCH(NPS!P$2&NPS!$C$1,【D】NPS!$C$2:$GO$2&【D】NPS!$C$3:$GO$3,0)) -> 1.818181818 | S18: =INDEX(【D】NPS!$C$4:$GO$76,MATCH(NPS!$B18,【D】NPS!$B$4:$B$76,0), MATCH(NPS!S$2&NPS!$R$1,【D】NPS!$C$2:$GO$2&【D】NPS!$C$3:$GO$3,0)) -> - | T18: =INDEX(【D】NPS!$C$4:$GO$76,MATCH(NPS!$B18,【D】NPS!$B$4:$B$76,0), MATCH(NPS!T$2&NPS!$R$1,【D】NPS!$C$2:$GO$2&【D】NPS!$C$3:$GO$3,0)) -> 28 | U18: =INDEX(【D】NPS!$C$4:$GO$76,MATCH(NPS!$B18,【D】NPS!$B$4:$B$76,0), MATCH(NPS!U$2&NPS!$R$1,【D】NPS!$C$2:$GO$2&【D】NPS!$C$3:$GO$3,0)) -> 35 | V18: =INDEX(【D】NPS!$C$4:$GO$76,MATCH(NPS!$B18,【D】NPS!$B$4:$B$76,0), MATCH(NPS!V$2&NPS!$R$1,【D】NPS!$C$2:$GO$2&【D】NPS!$C$3:$GO$3,0)) -> - | W18: =INDEX(【D】NPS!$C$4:$GO$76,MATCH(NPS!$B18,【D】NPS!$B$4:$B$76,0), MATCH(NPS!W$2&NPS!$R$1,【D】NPS!$C$2:$GO$2&【D】NPS!$C$3:$GO$3,0)) -> - | X18: =INDEX(【D】NPS!$C$4:$GO$76,MATCH(NPS!$B18,【D】NPS!$B$4:$B$76,0), MATCH(NPS!X$2&NPS!$R$1,【D】NPS!$C$2:$GO$2&【D】NPS!$C$3:$GO$3,0)) -> - | Y18: =INDEX(【D】NPS!$C$4:$GO$76,MATCH(NPS!$B18,【D】NPS!$B$4:$B$76,0), MATCH(NPS!Y$2&NPS!$R$1,【D】NPS!$C$2:$GO$2&【D】NPS!$C$3:$GO$3,0)) -> - | Z18: =INDEX(【D】NPS!$C$4:$GO$76,MATCH(NPS!$B18,【D】NPS!$B$4:$B$76,0), MATCH(NPS!Z$2&NPS!$R$1,【D】NPS!$C$2:$GO$2&【D】NPS!$C$3:$GO$3,0)) -> - | AA18: =INDEX(【D】NPS!$C$4:$GO$76,MATCH(NPS!$B18,【D】NPS!$B$4:$B$76,0), MATCH(NPS!AA$2&NPS!$R$1,【D】NPS!$C$2:$GO$2&【D】NPS!$C$3:$GO$3,0)) -> - | AB18: =INDEX(【D】NPS!$C$4:$GO$76,MATCH(NPS!$B18,【D】NPS!$B$4:$B$76,0), MATCH(NPS!AB$2&NPS!$R$1,【D】NPS!$C$2:$GO$2&【D】NPS!$C$3:$GO$3,0)) -> - | AC18: =INDEX(【D】NPS!$C$4:$GO$76,MATCH(NPS!$B18,【D】NPS!$B$4:$B$76,0), MATCH(NPS!AC$2&NPS!$R$1,【D】NPS!$C$2:$GO$2&【D】NPS!$C$3:$GO$3,0)) -> - | AD18: =INDEX(【D】NPS!$C$4:$GO$76,MATCH(NPS!$B18,【D】NPS!$B$4:$B$76,0), MATCH(NPS!AD$2&NPS!$R$1,【D】NPS!$C$2:$GO$2&【D】NPS!$C$3:$GO$3,0)) -> - | AE18: =INDEX(【D】NPS!$C$4:$GO$76,MATCH(NPS!$B18,【D】NPS!$B$4:$B$76,0), MATCH(NPS!AE$2&NPS!$R$1,【D】NPS!$C$2:$GO$2&【D】NPS!$C$3:$GO$3,0)) -> 39 | AH18: =INDEX(【D】NPS!$C$4:$GO$76,MATCH(NPS!$B18,【D】NPS!$B$4:$B$76,0), MATCH(NPS!AH$2&NPS!$AG$1,【D】NPS!$C$2:$GO$2&【D】NPS!$C$3:$GO$3,0)) -> - | AI18: =INDEX(【D】NPS!$C$4:$GO$76,MATCH(NPS!$B18,【D】NPS!$B$4:$B$76,0), MATCH(NPS!AI$2&NPS!$AG$1,【D】NPS!$C$2:$GO$2&【D】NPS!$C$3:$GO$3,0)) -> 28 | AJ18: =INDEX(【D】NPS!$C$4:$GO$76,MATCH(NPS!$B18,【D】NPS!$B$4:$B$76,0), MATCH(NPS!AJ$2&NPS!$AG$1,【D】NPS!$C$2:$GO$2&【D】NPS!$C$3:$GO$3,0)) -> 43 | AK18: =INDEX(【D】NPS!$C$4:$GO$76,MATCH(NPS!$B18,【D】NPS!$B$4:$B$76,0), MATCH(NPS!AK$2&NPS!$AG$1,【D】NPS!$C$2:$GO$2&【D】NPS!$C$3:$GO$3,0)) -> - | AL18: =INDEX(【D】NPS!$C$4:$GO$76,MATCH(NPS!$B18,【D】NPS!$B$4:$B$76,0), MATCH(NPS!AL$2&NPS!$AG$1,【D】NPS!$C$2:$GO$2&【D】NPS!$C$3:$GO$3,0)) -> - | AM18: =INDEX(【D】NPS!$C$4:$GO$76,MATCH(NPS!$B18,【D】NPS!$B$4:$B$76,0), MATCH(NPS!AM$2&NPS!$AG$1,【D】NPS!$C$2:$GO$2&【D】NPS!$C$3:$GO$3,0)) -> - | AN18: =INDEX(【D】NPS!$C$4:$GO$76,MATCH(NPS!$B18,【D】NPS!$B$4:$B$76,0), MATCH(NPS!AN$2&NPS!$AG$1,【D】NPS!$C$2:$GO$2&【D】NPS!$C$3:$GO$3,0)) -> - | AO18: =INDEX(【D】NPS!$C$4:$GO$76,MATCH(NPS!$B18,【D】NPS!$B$4:$B$76,0), MATCH(NPS!AO$2&NPS!$AG$1,【D】NPS!$C$2:$GO$2&【D】NPS!$C$3:$GO$3,0)) -> - | AP18: =INDEX(【D】NPS!$C$4:$GO$76,MATCH(NPS!$B18,【D】NPS!$B$4:$B$76,0), MATCH(NPS!AP$2&NPS!$AG$1,【D】NPS!$C$2:$GO$2&【D】NPS!$C$3:$GO$3,0)) -> - | AQ18: =INDEX(【D】NPS!$C$4:$GO$76,MATCH(NPS!$B18,【D】NPS!$B$4:$B$76,0), MATCH(NPS!AQ$2&NPS!$AG$1,【D】NPS!$C$2:$GO$2&【D】NPS!$C$3:$GO$3,0)) -> - | AR18: =INDEX(【D】NPS!$C$4:$GO$76,MATCH(NPS!$B18,【D】NPS!$B$4:$B$76,0), MATCH(NPS!AR$2&NPS!$AG$1,【D】NPS!$C$2:$GO$2&【D】NPS!$C$3:$GO$3,0)) -> - | AS18: =INDEX(【D】NPS!$C$4:$GO$76,MATCH(NPS!$B18,【D】NPS!$B$4:$B$76,0), MATCH(NPS!AS$2&NPS!$AG$1,【D】NPS!$C$2:$GO$2&【D】NPS!$C$3:$GO$3,0)) -> - | AT18: =INDEX(【D】NPS!$C$4:$GO$76,MATCH(NPS!$B18,【D】NPS!$B$4:$B$76,0), MATCH(NPS!AT$2&NPS!$AG$1,【D】NPS!$C$2:$GO$2&【D】NPS!$C$3:$GO$3,0)) -> 39 | AV18: 16 | AW18: 16 | AX18: 北前船主の館 右近家 エリア | AY18: 30 | AZ18: =INDEX(【D】NPS!$C$7:$HB$76, MATCH(NPS!$AX18,【D】NPS!$B$7:$B$76,0), MATCH(NPS!$AZ$2&NPS!$AW$1,【D】NPS!$C$1:$HB$1&【D】NPS!$C$2:$HB$2,0)) -> 10
B19: 北潟湖 エリア | D19: =INDEX(【D】NPS!$C$4:$GO$76,MATCH(NPS!$B19,【D】NPS!$B$4:$B$76,0), MATCH(NPS!D$2&NPS!$C$1,【D】NPS!$C$2:$GO$2&【D】NPS!$C$3:$GO$3,0)) -> -100 | E19: =INDEX(【D】NPS!$C$4:$GO$76,MATCH(NPS!$B19,【D】NPS!$B$4:$B$76,0), MATCH(NPS!E$2&NPS!$C$1,【D】NPS!$C$2:$GO$2&【D】NPS!$C$3:$GO$3,0)) -> 0 | F19: =INDEX(【D】NPS!$C$4:$GO$76,MATCH(NPS!$B19,【D】NPS!$B$4:$B$76,0), MATCH(NPS!F$2&NPS!$C$1,【D】NPS!$C$2:$GO$2&【D】NPS!$C$3:$GO$3,0)) -> 16.66666667 | G19: =INDEX(【D】NPS!$C$4:$GO$76,MATCH(NPS!$B19,【D】NPS!$B$4:$B$76,0), MATCH(NPS!G$2&NPS!$C$1,【D】NPS!$C$2:$GO$2&【D】NPS!$C$3:$GO$3,0)) -> None | H19: =INDEX(【D】NPS!$C$4:$GO$76,MATCH(NPS!$B19,【D】NPS!$B$4:$B$76,0), MATCH(NPS!H$2&NPS!$C$1,【D】NPS!$C$2:$GO$2&【D】NPS!$C$3:$GO$3,0)) -> None | I19: =INDEX(【D】NPS!$C$4:$GO$76,MATCH(NPS!$B19,【D】NPS!$B$4:$B$76,0), MATCH(NPS!I$2&NPS!$C$1,【D】NPS!$C$2:$GO$2&【D】NPS!$C$3:$GO$3,0)) -> None | J19: =INDEX(【D】NPS!$C$4:$GO$76,MATCH(NPS!$B19,【D】NPS!$B$4:$B$76,0), MATCH(NPS!J$2&NPS!$C$1,【D】NPS!$C$2:$GO$2&【D】NPS!$C$3:$GO$3,0)) -> None | K19: =INDEX(【D】NPS!$C$4:$GO$76,MATCH(NPS!$B19,【D】NPS!$B$4:$B$76,0), MATCH(NPS!K$2&NPS!$C$1,【D】NPS!$C$2:$GO$2&【D】NPS!$C$3:$GO$3,0)) -> None | L19: =INDEX(【D】NPS!$C$4:$GO$76,MATCH(NPS!$B19,【D】NPS!$B$4:$B$76,0), MATCH(NPS!L$2&NPS!$C$1,【D】NPS!$C$2:$GO$2&【D】NPS!$C$3:$GO$3,0)) -> None | M19: =INDEX(【D】NPS!$C$4:$GO$76,MATCH(NPS!$B19,【D】NPS!$B$4:$B$76,0), MATCH(NPS!M$2&NPS!$C$1,【D】NPS!$C$2:$GO$2&【D】NPS!$C$3:$GO$3,0)) -> None | N19: =INDEX(【D】NPS!$C$4:$GO$76,MATCH(NPS!$B19,【D】NPS!$B$4:$B$76,0), MATCH(NPS!N$2&NPS!$C$1,【D】NPS!$C$2:$GO$2&【D】NPS!$C$3:$GO$3,0)) -> None | O19: =INDEX(【D】NPS!$C$4:$GO$76,MATCH(NPS!$B19,【D】NPS!$B$4:$B$76,0), MATCH(NPS!O$2&NPS!$C$1,【D】NPS!$C$2:$GO$2&【D】NPS!$C$3:$GO$3,0)) -> None | P19: =INDEX(【D】NPS!$C$4:$GO$76,MATCH(NPS!$B19,【D】NPS!$B$4:$B$76,0), MATCH(NPS!P$2&NPS!$C$1,【D】NPS!$C$2:$GO$2&【D】NPS!$C$3:$GO$3,0)) -> 4.761904762 | S19: =INDEX(【D】NPS!$C$4:$GO$76,MATCH(NPS!$B19,【D】NPS!$B$4:$B$76,0), MATCH(NPS!S$2&NPS!$R$1,【D】NPS!$C$2:$GO$2&【D】NPS!$C$3:$GO$3,0)) -> 44 | T19: =INDEX(【D】NPS!$C$4:$GO$76,MATCH(NPS!$B19,【D】NPS!$B$4:$B$76,0), MATCH(NPS!T$2&NPS!$R$1,【D】NPS!$C$2:$GO$2&【D】NPS!$C$3:$GO$3,0)) -> 35 | U19: =INDEX(【D】NPS!$C$4:$GO$76,MATCH(NPS!$B19,【D】NPS!$B$4:$B$76,0), MATCH(NPS!U$2&NPS!$R$1,【D】NPS!$C$2:$GO$2&【D】NPS!$C$3:$GO$3,0)) -> 22 | V19: =INDEX(【D】NPS!$C$4:$GO$76,MATCH(NPS!$B19,【D】NPS!$B$4:$B$76,0), MATCH(NPS!V$2&NPS!$R$1,【D】NPS!$C$2:$GO$2&【D】NPS!$C$3:$GO$3,0)) -> - | W19: =INDEX(【D】NPS!$C$4:$GO$76,MATCH(NPS!$B19,【D】NPS!$B$4:$B$76,0), MATCH(NPS!W$2&NPS!$R$1,【D】NPS!$C$2:$GO$2&【D】NPS!$C$3:$GO$3,0)) -> - | X19: =INDEX(【D】NPS!$C$4:$GO$76,MATCH(NPS!$B19,【D】NPS!$B$4:$B$76,0), MATCH(NPS!X$2&NPS!$R$1,【D】NPS!$C$2:$GO$2&【D】NPS!$C$3:$GO$3,0)) -> - | Y19: =INDEX(【D】NPS!$C$4:$GO$76,MATCH(NPS!$B19,【D】NPS!$B$4:$B$76,0), MATCH(NPS!Y$2&NPS!$R$1,【D】NPS!$C$2:$GO$2&【D】NPS!$C$3:$GO$3,0)) -> - | Z19: =INDEX(【D】NPS!$C$4:$GO$76,MATCH(NPS!$B19,【D】NPS!$B$4:$B$76,0), MATCH(NPS!Z$2&NPS!$R$1,【D】NPS!$C$2:$GO$2&【D】NPS!$C$3:$GO$3,0)) -> - | AA19: =INDEX(【D】NPS!$C$4:$GO$76,MATCH(NPS!$B19,【D】NPS!$B$4:$B$76,0), MATCH(NPS!AA$2&NPS!$R$1,【D】NPS!$C$2:$GO$2&【D】NPS!$C$3:$GO$3,0)) -> - | AB19: =INDEX(【D】NPS!$C$4:$GO$76,MATCH(NPS!$B19,【D】NPS!$B$4:$B$76,0), MATCH(NPS!AB$2&NPS!$R$1,【D】NPS!$C$2:$GO$2&【D】NPS!$C$3:$GO$3,0)) -> - | AC19: =INDEX(【D】NPS!$C$4:$GO$76,MATCH(NPS!$B19,【D】NPS!$B$4:$B$76,0), MATCH(NPS!AC$2&NPS!$R$1,【D】NPS!$C$2:$GO$2&【D】NPS!$C$3:$GO$3,0)) -> - | AD19: =INDEX(【D】NPS!$C$4:$GO$76,MATCH(NPS!$B19,【D】NPS!$B$4:$B$76,0), MATCH(NPS!AD$2&NPS!$R$1,【D】NPS!$C$2:$GO$2&【D】NPS!$C$3:$GO$3,0)) -> - | AE19: =INDEX(【D】NPS!$C$4:$GO$76,MATCH(NPS!$B19,【D】NPS!$B$4:$B$76,0), MATCH(NPS!AE$2&NPS!$R$1,【D】NPS!$C$2:$GO$2&【D】NPS!$C$3:$GO$3,0)) -> 32 | AH19: =INDEX(【D】NPS!$C$4:$GO$76,MATCH(NPS!$B19,【D】NPS!$B$4:$B$76,0), MATCH(NPS!AH$2&NPS!$AG$1,【D】NPS!$C$2:$GO$2&【D】NPS!$C$3:$GO$3,0)) -> 48 | AI19: =INDEX(【D】NPS!$C$4:$GO$76,MATCH(NPS!$B19,【D】NPS!$B$4:$B$76,0), MATCH(NPS!AI$2&NPS!$AG$1,【D】NPS!$C$2:$GO$2&【D】NPS!$C$3:$GO$3,0)) -> 37 | AJ19: =INDEX(【D】NPS!$C$4:$GO$76,MATCH(NPS!$B19,【D】NPS!$B$4:$B$76,0), MATCH(NPS!AJ$2&NPS!$AG$1,【D】NPS!$C$2:$GO$2&【D】NPS!$C$3:$GO$3,0)) -> 22 | AK19: =INDEX(【D】NPS!$C$4:$GO$76,MATCH(NPS!$B19,【D】NPS!$B$4:$B$76,0), MATCH(NPS!AK$2&NPS!$AG$1,【D】NPS!$C$2:$GO$2&【D】NPS!$C$3:$GO$3,0)) -> - | AL19: =INDEX(【D】NPS!$C$4:$GO$76,MATCH(NPS!$B19,【D】NPS!$B$4:$B$76,0), MATCH(NPS!AL$2&NPS!$AG$1,【D】NPS!$C$2:$GO$2&【D】NPS!$C$3:$GO$3,0)) -> - | AM19: =INDEX(【D】NPS!$C$4:$GO$76,MATCH(NPS!$B19,【D】NPS!$B$4:$B$76,0), MATCH(NPS!AM$2&NPS!$AG$1,【D】NPS!$C$2:$GO$2&【D】NPS!$C$3:$GO$3,0)) -> - | AN19: =INDEX(【D】NPS!$C$4:$GO$76,MATCH(NPS!$B19,【D】NPS!$B$4:$B$76,0), MATCH(NPS!AN$2&NPS!$AG$1,【D】NPS!$C$2:$GO$2&【D】NPS!$C$3:$GO$3,0)) -> - | AO19: =INDEX(【D】NPS!$C$4:$GO$76,MATCH(NPS!$B19,【D】NPS!$B$4:$B$76,0), MATCH(NPS!AO$2&NPS!$AG$1,【D】NPS!$C$2:$GO$2&【D】NPS!$C$3:$GO$3,0)) -> - | AP19: =INDEX(【D】NPS!$C$4:$GO$76,MATCH(NPS!$B19,【D】NPS!$B$4:$B$76,0), MATCH(NPS!AP$2&NPS!$AG$1,【D】NPS!$C$2:$GO$2&【D】NPS!$C$3:$GO$3,0)) -> - | AQ19: =INDEX(【D】NPS!$C$4:$GO$76,MATCH(NPS!$B19,【D】NPS!$B$4:$B$76,0), MATCH(NPS!AQ$2&NPS!$AG$1,【D】NPS!$C$2:$GO$2&【D】NPS!$C$3:$GO$3,0)) -> - | AR19: =INDEX(【D】NPS!$C$4:$GO$76,MATCH(NPS!$B19,【D】NPS!$B$4:$B$76,0), MATCH(NPS!AR$2&NPS!$AG$1,【D】NPS!$C$2:$GO$2&【D】NPS!$C$3:$GO$3,0)) -> - | AS19: =INDEX(【D】NPS!$C$4:$GO$76,MATCH(NPS!$B19,【D】NPS!$B$4:$B$76,0), MATCH(NPS!AS$2&NPS!$AG$1,【D】NPS!$C$2:$GO$2&【D】NPS!$C$3:$GO$3,0)) -> - | AT19: =INDEX(【D】NPS!$C$4:$GO$76,MATCH(NPS!$B19,【D】NPS!$B$4:$B$76,0), MATCH(NPS!AT$2&NPS!$AG$1,【D】NPS!$C$2:$GO$2&【D】NPS!$C$3:$GO$3,0)) -> 32 | AV19: 17 | AW19: 17 | AX19: 五湖の駅 エリア | AY19: 25 | AZ19: =INDEX(【D】NPS!$C$7:$HB$76, MATCH(NPS!$AX19,【D】NPS!$B$7:$B$76,0), MATCH(NPS!$AZ$2&NPS!$AW$1,【D】NPS!$C$1:$HB$1&【D】NPS!$C$2:$HB$2,0)) -> 12
B20: 越前大野城・城下町 エリア | D20: =INDEX(【D】NPS!$C$4:$GO$76,MATCH(NPS!$B20,【D】NPS!$B$4:$B$76,0), MATCH(NPS!D$2&NPS!$C$1,【D】NPS!$C$2:$GO$2&【D】NPS!$C$3:$GO$3,0)) -> -28.57142857 | E20: =INDEX(【D】NPS!$C$4:$GO$76,MATCH(NPS!$B20,【D】NPS!$B$4:$B$76,0), MATCH(NPS!E$2&NPS!$C$1,【D】NPS!$C$2:$GO$2&【D】NPS!$C$3:$GO$3,0)) -> 9.615384615 | F20: =INDEX(【D】NPS!$C$4:$GO$76,MATCH(NPS!$B20,【D】NPS!$B$4:$B$76,0), MATCH(NPS!F$2&NPS!$C$1,【D】NPS!$C$2:$GO$2&【D】NPS!$C$3:$GO$3,0)) -> 13.33333333 | G20: =INDEX(【D】NPS!$C$4:$GO$76,MATCH(NPS!$B20,【D】NPS!$B$4:$B$76,0), MATCH(NPS!G$2&NPS!$C$1,【D】NPS!$C$2:$GO$2&【D】NPS!$C$3:$GO$3,0)) -> None | H20: =INDEX(【D】NPS!$C$4:$GO$76,MATCH(NPS!$B20,【D】NPS!$B$4:$B$76,0), MATCH(NPS!H$2&NPS!$C$1,【D】NPS!$C$2:$GO$2&【D】NPS!$C$3:$GO$3,0)) -> None | I20: =INDEX(【D】NPS!$C$4:$GO$76,MATCH(NPS!$B20,【D】NPS!$B$4:$B$76,0), MATCH(NPS!I$2&NPS!$C$1,【D】NPS!$C$2:$GO$2&【D】NPS!$C$3:$GO$3,0)) -> None | J20: =INDEX(【D】NPS!$C$4:$GO$76,MATCH(NPS!$B20,【D】NPS!$B$4:$B$76,0), MATCH(NPS!J$2&NPS!$C$1,【D】NPS!$C$2:$GO$2&【D】NPS!$C$3:$GO$3,0)) -> None | K20: =INDEX(【D】NPS!$C$4:$GO$76,MATCH(NPS!$B20,【D】NPS!$B$4:$B$76,0), MATCH(NPS!K$2&NPS!$C$1,【D】NPS!$C$2:$GO$2&【D】NPS!$C$3:$GO$3,0)) -> None | L20: =INDEX(【D】NPS!$C$4:$GO$76,MATCH(NPS!$B20,【D】NPS!$B$4:$B$76,0), MATCH(NPS!L$2&NPS!$C$1,【D】NPS!$C$2:$GO$2&【D】NPS!$C$3:$GO$3,0)) -> None | M20: =INDEX(【D】NPS!$C$4:$GO$76,MATCH(NPS!$B20,【D】NPS!$B$4:$B$76,0), MATCH(NPS!M$2&NPS!$C$1,【D】NPS!$C$2:$GO$2&【D】NPS!$C$3:$GO$3,0)) -> None | N20: =INDEX(【D】NPS!$C$4:$GO$76,MATCH(NPS!$B20,【D】NPS!$B$4:$B$76,0), MATCH(NPS!N$2&NPS!$C$1,【D】NPS!$C$2:$GO$2&【D】NPS!$C$3:$GO$3,0)) -> None | O20: =INDEX(【D】NPS!$C$4:$GO$76,MATCH(NPS!$B20,【D】NPS!$B$4:$B$76,0), MATCH(NPS!O$2&NPS!$C$1,【D】NPS!$C$2:$GO$2&【D】NPS!$C$3:$GO$3,0)) -> None | P20: =INDEX(【D】NPS!$C$4:$GO$76,MATCH(NPS!$B20,【D】NPS!$B$4:$B$76,0), MATCH(NPS!P$2&NPS!$C$1,【D】NPS!$C$2:$GO$2&【D】NPS!$C$3:$GO$3,0)) -> 7.865168539 | S20: =INDEX(【D】NPS!$C$4:$GO$76,MATCH(NPS!$B20,【D】NPS!$B$4:$B$76,0), MATCH(NPS!S$2&NPS!$R$1,【D】NPS!$C$2:$GO$2&【D】NPS!$C$3:$GO$3,0)) -> 37 | T20: =INDEX(【D】NPS!$C$4:$GO$76,MATCH(NPS!$B20,【D】NPS!$B$4:$B$76,0), MATCH(NPS!T$2&NPS!$R$1,【D】NPS!$C$2:$GO$2&【D】NPS!$C$3:$GO$3,0)) -> 21 | U20: =INDEX(【D】NPS!$C$4:$GO$76,MATCH(NPS!$B20,【D】NPS!$B$4:$B$76,0), MATCH(NPS!U$2&NPS!$R$1,【D】NPS!$C$2:$GO$2&【D】NPS!$C$3:$GO$3,0)) -> 25 | V20: =INDEX(【D】NPS!$C$4:$GO$76,MATCH(NPS!$B20,【D】NPS!$B$4:$B$76,0), MATCH(NPS!V$2&NPS!$R$1,【D】NPS!$C$2:$GO$2&【D】NPS!$C$3:$GO$3,0)) -> - | W20: =INDEX(【D】NPS!$C$4:$GO$76,MATCH(NPS!$B20,【D】NPS!$B$4:$B$76,0), MATCH(NPS!W$2&NPS!$R$1,【D】NPS!$C$2:$GO$2&【D】NPS!$C$3:$GO$3,0)) -> - | X20: =INDEX(【D】NPS!$C$4:$GO$76,MATCH(NPS!$B20,【D】NPS!$B$4:$B$76,0), MATCH(NPS!X$2&NPS!$R$1,【D】NPS!$C$2:$GO$2&【D】NPS!$C$3:$GO$3,0)) -> - | Y20: =INDEX(【D】NPS!$C$4:$GO$76,MATCH(NPS!$B20,【D】NPS!$B$4:$B$76,0), MATCH(NPS!Y$2&NPS!$R$1,【D】NPS!$C$2:$GO$2&【D】NPS!$C$3:$GO$3,0)) -> - | Z20: =INDEX(【D】NPS!$C$4:$GO$76,MATCH(NPS!$B20,【D】NPS!$B$4:$B$76,0), MATCH(NPS!Z$2&NPS!$R$1,【D】NPS!$C$2:$GO$2&【D】NPS!$C$3:$GO$3,0)) -> - | AA20: =INDEX(【D】NPS!$C$4:$GO$76,MATCH(NPS!$B20,【D】NPS!$B$4:$B$76,0), MATCH(NPS!AA$2&NPS!$R$1,【D】NPS!$C$2:$GO$2&【D】NPS!$C$3:$GO$3,0)) -> - | AB20: =INDEX(【D】NPS!$C$4:$GO$76,MATCH(NPS!$B20,【D】NPS!$B$4:$B$76,0), MATCH(NPS!AB$2&NPS!$R$1,【D】NPS!$C$2:$GO$2&【D】NPS!$C$3:$GO$3,0)) -> - | AC20: =INDEX(【D】NPS!$C$4:$GO$76,MATCH(NPS!$B20,【D】NPS!$B$4:$B$76,0), MATCH(NPS!AC$2&NPS!$R$1,【D】NPS!$C$2:$GO$2&【D】NPS!$C$3:$GO$3,0)) -> - | AD20: =INDEX(【D】NPS!$C$4:$GO$76,MATCH(NPS!$B20,【D】NPS!$B$4:$B$76,0), MATCH(NPS!AD$2&NPS!$R$1,【D】NPS!$C$2:$GO$2&【D】NPS!$C$3:$GO$3,0)) -> - | AE20: =INDEX(【D】NPS!$C$4:$GO$76,MATCH(NPS!$B20,【D】NPS!$B$4:$B$76,0), MATCH(NPS!AE$2&NPS!$R$1,【D】NPS!$C$2:$GO$2&【D】NPS!$C$3:$GO$3,0)) -> 27 | AH20: =INDEX(【D】NPS!$C$4:$GO$76,MATCH(NPS!$B20,【D】NPS!$B$4:$B$76,0), MATCH(NPS!AH$2&NPS!$AG$1,【D】NPS!$C$2:$GO$2&【D】NPS!$C$3:$GO$3,0)) -> 37 | AI20: =INDEX(【D】NPS!$C$4:$GO$76,MATCH(NPS!$B20,【D】NPS!$B$4:$B$76,0), MATCH(NPS!AI$2&NPS!$AG$1,【D】NPS!$C$2:$GO$2&【D】NPS!$C$3:$GO$3,0)) -> 21 | AJ20: =INDEX(【D】NPS!$C$4:$GO$76,MATCH(NPS!$B20,【D】NPS!$B$4:$B$76,0), MATCH(NPS!AJ$2&NPS!$AG$1,【D】NPS!$C$2:$GO$2&【D】NPS!$C$3:$GO$3,0)) -> 25 | AK20: =INDEX(【D】NPS!$C$4:$GO$76,MATCH(NPS!$B20,【D】NPS!$B$4:$B$76,0), MATCH(NPS!AK$2&NPS!$AG$1,【D】NPS!$C$2:$GO$2&【D】NPS!$C$3:$GO$3,0)) -> - | AL20: =INDEX(【D】NPS!$C$4:$GO$76,MATCH(NPS!$B20,【D】NPS!$B$4:$B$76,0), MATCH(NPS!AL$2&NPS!$AG$1,【D】NPS!$C$2:$GO$2&【D】NPS!$C$3:$GO$3,0)) -> - | AM20: =INDEX(【D】NPS!$C$4:$GO$76,MATCH(NPS!$B20,【D】NPS!$B$4:$B$76,0), MATCH(NPS!AM$2&NPS!$AG$1,【D】NPS!$C$2:$GO$2&【D】NPS!$C$3:$GO$3,0)) -> - | AN20: =INDEX(【D】NPS!$C$4:$GO$76,MATCH(NPS!$B20,【D】NPS!$B$4:$B$76,0), MATCH(NPS!AN$2&NPS!$AG$1,【D】NPS!$C$2:$GO$2&【D】NPS!$C$3:$GO$3,0)) -> - | AO20: =INDEX(【D】NPS!$C$4:$GO$76,MATCH(NPS!$B20,【D】NPS!$B$4:$B$76,0), MATCH(NPS!AO$2&NPS!$AG$1,【D】NPS!$C$2:$GO$2&【D】NPS!$C$3:$GO$3,0)) -> - | AP20: =INDEX(【D】NPS!$C$4:$GO$76,MATCH(NPS!$B20,【D】NPS!$B$4:$B$76,0), MATCH(NPS!AP$2&NPS!$AG$1,【D】NPS!$C$2:$GO$2&【D】NPS!$C$3:$GO$3,0)) -> - | AQ20: =INDEX(【D】NPS!$C$4:$GO$76,MATCH(NPS!$B20,【D】NPS!$B$4:$B$76,0), MATCH(NPS!AQ$2&NPS!$AG$1,【D】NPS!$C$2:$GO$2&【D】NPS!$C$3:$GO$3,0)) -> - | AR20: =INDEX(【D】NPS!$C$4:$GO$76,MATCH(NPS!$B20,【D】NPS!$B$4:$B$76,0), MATCH(NPS!AR$2&NPS!$AG$1,【D】NPS!$C$2:$GO$2&【D】NPS!$C$3:$GO$3,0)) -> - | AS20: =INDEX(【D】NPS!$C$4:$GO$76,MATCH(NPS!$B20,【D】NPS!$B$4:$B$76,0), MATCH(NPS!AS$2&NPS!$AG$1,【D】NPS!$C$2:$GO$2&【D】NPS!$C$3:$GO$3,0)) -> - | AT20: =INDEX(【D】NPS!$C$4:$GO$76,MATCH(NPS!$B20,【D】NPS!$B$4:$B$76,0), MATCH(NPS!AT$2&NPS!$AG$1,【D】NPS!$C$2:$GO$2&【D】NPS!$C$3:$GO$3,0)) -> 27 | AV20: 18 | AW20: 17 | AX20: 若狭海遊バザール 千鳥苑 エリア | AY20: 25 | AZ20: =INDEX(【D】NPS!$C$7:$HB$76, MATCH(NPS!$AX20,【D】NPS!$B$7:$B$76,0), MATCH(NPS!$AZ$2&NPS!$AW$1,【D】NPS!$C$1:$HB$1&【D】NPS!$C$2:$HB$2,0)) -> 4
B21: 道の駅「越前おおの荒島の郷」 エリア | D21: =INDEX(【D】NPS!$C$4:$GO$76,MATCH(NPS!$B21,【D】NPS!$B$4:$B$76,0), MATCH(NPS!D$2&NPS!$C$1,【D】NPS!$C$2:$GO$2&【D】NPS!$C$3:$GO$3,0)) -> -42.85714286 | E21: =INDEX(【D】NPS!$C$4:$GO$76,MATCH(NPS!$B21,【D】NPS!$B$4:$B$76,0), MATCH(NPS!E$2&NPS!$C$1,【D】NPS!$C$2:$GO$2&【D】NPS!$C$3:$GO$3,0)) -> 9.090909091 | F21: =INDEX(【D】NPS!$C$4:$GO$76,MATCH(NPS!$B21,【D】NPS!$B$4:$B$76,0), MATCH(NPS!F$2&NPS!$C$1,【D】NPS!$C$2:$GO$2&【D】NPS!$C$3:$GO$3,0)) -> 9.230769231 | G21: =INDEX(【D】NPS!$C$4:$GO$76,MATCH(NPS!$B21,【D】NPS!$B$4:$B$76,0), MATCH(NPS!G$2&NPS!$C$1,【D】NPS!$C$2:$GO$2&【D】NPS!$C$3:$GO$3,0)) -> None | H21: =INDEX(【D】NPS!$C$4:$GO$76,MATCH(NPS!$B21,【D】NPS!$B$4:$B$76,0), MATCH(NPS!H$2&NPS!$C$1,【D】NPS!$C$2:$GO$2&【D】NPS!$C$3:$GO$3,0)) -> None | I21: =INDEX(【D】NPS!$C$4:$GO$76,MATCH(NPS!$B21,【D】NPS!$B$4:$B$76,0), MATCH(NPS!I$2&NPS!$C$1,【D】NPS!$C$2:$GO$2&【D】NPS!$C$3:$GO$3,0)) -> None | J21: =INDEX(【D】NPS!$C$4:$GO$76,MATCH(NPS!$B21,【D】NPS!$B$4:$B$76,0), MATCH(NPS!J$2&NPS!$C$1,【D】NPS!$C$2:$GO$2&【D】NPS!$C$3:$GO$3,0)) -> None | K21: =INDEX(【D】NPS!$C$4:$GO$76,MATCH(NPS!$B21,【D】NPS!$B$4:$B$76,0), MATCH(NPS!K$2&NPS!$C$1,【D】NPS!$C$2:$GO$2&【D】NPS!$C$3:$GO$3,0)) -> None | L21: =INDEX(【D】NPS!$C$4:$GO$76,MATCH(NPS!$B21,【D】NPS!$B$4:$B$76,0), MATCH(NPS!L$2&NPS!$C$1,【D】NPS!$C$2:$GO$2&【D】NPS!$C$3:$GO$3,0)) -> None | M21: =INDEX(【D】NPS!$C$4:$GO$76,MATCH(NPS!$B21,【D】NPS!$B$4:$B$76,0), MATCH(NPS!M$2&NPS!$C$1,【D】NPS!$C$2:$GO$2&【D】NPS!$C$3:$GO$3,0)) -> None | N21: =INDEX(【D】NPS!$C$4:$GO$76,MATCH(NPS!$B21,【D】NPS!$B$4:$B$76,0), MATCH(NPS!N$2&NPS!$C$1,【D】NPS!$C$2:$GO$2&【D】NPS!$C$3:$GO$3,0)) -> None | O21: =INDEX(【D】NPS!$C$4:$GO$76,MATCH(NPS!$B21,【D】NPS!$B$4:$B$76,0), MATCH(NPS!O$2&NPS!$C$1,【D】NPS!$C$2:$GO$2&【D】NPS!$C$3:$GO$3,0)) -> None | P21: =INDEX(【D】NPS!$C$4:$GO$76,MATCH(NPS!$B21,【D】NPS!$B$4:$B$76,0), MATCH(NPS!P$2&NPS!$C$1,【D】NPS!$C$2:$GO$2&【D】NPS!$C$3:$GO$3,0)) -> 7.25388601 | S21: =INDEX(【D】NPS!$C$4:$GO$76,MATCH(NPS!$B21,【D】NPS!$B$4:$B$76,0), MATCH(NPS!S$2&NPS!$R$1,【D】NPS!$C$2:$GO$2&【D】NPS!$C$3:$GO$3,0)) -> 41 | T21: =INDEX(【D】NPS!$C$4:$GO$76,MATCH(NPS!$B21,【D】NPS!$B$4:$B$76,0), MATCH(NPS!T$2&NPS!$R$1,【D】NPS!$C$2:$GO$2&【D】NPS!$C$3:$GO$3,0)) -> 23 | U21: =INDEX(【D】NPS!$C$4:$GO$76,MATCH(NPS!$B21,【D】NPS!$B$4:$B$76,0), MATCH(NPS!U$2&NPS!$R$1,【D】NPS!$C$2:$GO$2&【D】NPS!$C$3:$GO$3,0)) -> 30 | V21: =INDEX(【D】NPS!$C$4:$GO$76,MATCH(NPS!$B21,【D】NPS!$B$4:$B$76,0), MATCH(NPS!V$2&NPS!$R$1,【D】NPS!$C$2:$GO$2&【D】NPS!$C$3:$GO$3,0)) -> - | W21: =INDEX(【D】NPS!$C$4:$GO$76,MATCH(NPS!$B21,【D】NPS!$B$4:$B$76,0), MATCH(NPS!W$2&NPS!$R$1,【D】NPS!$C$2:$GO$2&【D】NPS!$C$3:$GO$3,0)) -> - | X21: =INDEX(【D】NPS!$C$4:$GO$76,MATCH(NPS!$B21,【D】NPS!$B$4:$B$76,0), MATCH(NPS!X$2&NPS!$R$1,【D】NPS!$C$2:$GO$2&【D】NPS!$C$3:$GO$3,0)) -> - | Y21: =INDEX(【D】NPS!$C$4:$GO$76,MATCH(NPS!$B21,【D】NPS!$B$4:$B$76,0), MATCH(NPS!Y$2&NPS!$R$1,【D】NPS!$C$2:$GO$2&【D】NPS!$C$3:$GO$3,0)) -> - | Z21: =INDEX(【D】NPS!$C$4:$GO$76,MATCH(NPS!$B21,【D】NPS!$B$4:$B$76,0), MATCH(NPS!Z$2&NPS!$R$1,【D】NPS!$C$2:$GO$2&【D】NPS!$C$3:$GO$3,0)) -> - | AA21: =INDEX(【D】NPS!$C$4:$GO$76,MATCH(NPS!$B21,【D】NPS!$B$4:$B$76,0), MATCH(NPS!AA$2&NPS!$R$1,【D】NPS!$C$2:$GO$2&【D】NPS!$C$3:$GO$3,0)) -> - | AB21: =INDEX(【D】NPS!$C$4:$GO$76,MATCH(NPS!$B21,【D】NPS!$B$4:$B$76,0), MATCH(NPS!AB$2&NPS!$R$1,【D】NPS!$C$2:$GO$2&【D】NPS!$C$3:$GO$3,0)) -> - | AC21: =INDEX(【D】NPS!$C$4:$GO$76,MATCH(NPS!$B21,【D】NPS!$B$4:$B$76,0), MATCH(NPS!AC$2&NPS!$R$1,【D】NPS!$C$2:$GO$2&【D】NPS!$C$3:$GO$3,0)) -> - | AD21: =INDEX(【D】NPS!$C$4:$GO$76,MATCH(NPS!$B21,【D】NPS!$B$4:$B$76,0), MATCH(NPS!AD$2&NPS!$R$1,【D】NPS!$C$2:$GO$2&【D】NPS!$C$3:$GO$3,0)) -> - | AE21: =INDEX(【D】NPS!$C$4:$GO$76,MATCH(NPS!$B21,【D】NPS!$B$4:$B$76,0), MATCH(NPS!AE$2&NPS!$R$1,【D】NPS!$C$2:$GO$2&【D】NPS!$C$3:$GO$3,0)) -> 28 | AH21: =INDEX(【D】NPS!$C$4:$GO$76,MATCH(NPS!$B21,【D】NPS!$B$4:$B$76,0), MATCH(NPS!AH$2&NPS!$AG$1,【D】NPS!$C$2:$GO$2&【D】NPS!$C$3:$GO$3,0)) -> 41 | AI21: =INDEX(【D】NPS!$C$4:$GO$76,MATCH(NPS!$B21,【D】NPS!$B$4:$B$76,0), MATCH(NPS!AI$2&NPS!$AG$1,【D】NPS!$C$2:$GO$2&【D】NPS!$C$3:$GO$3,0)) -> 23 | AJ21: =INDEX(【D】NPS!$C$4:$GO$76,MATCH(NPS!$B21,【D】NPS!$B$4:$B$76,0), MATCH(NPS!AJ$2&NPS!$AG$1,【D】NPS!$C$2:$GO$2&【D】NPS!$C$3:$GO$3,0)) -> 30 | AK21: =INDEX(【D】NPS!$C$4:$GO$76,MATCH(NPS!$B21,【D】NPS!$B$4:$B$76,0), MATCH(NPS!AK$2&NPS!$AG$1,【D】NPS!$C$2:$GO$2&【D】NPS!$C$3:$GO$3,0)) -> - | AL21: =INDEX(【D】NPS!$C$4:$GO$76,MATCH(NPS!$B21,【D】NPS!$B$4:$B$76,0), MATCH(NPS!AL$2&NPS!$AG$1,【D】NPS!$C$2:$GO$2&【D】NPS!$C$3:$GO$3,0)) -> - | AM21: =INDEX(【D】NPS!$C$4:$GO$76,MATCH(NPS!$B21,【D】NPS!$B$4:$B$76,0), MATCH(NPS!AM$2&NPS!$AG$1,【D】NPS!$C$2:$GO$2&【D】NPS!$C$3:$GO$3,0)) -> - | AN21: =INDEX(【D】NPS!$C$4:$GO$76,MATCH(NPS!$B21,【D】NPS!$B$4:$B$76,0), MATCH(NPS!AN$2&NPS!$AG$1,【D】NPS!$C$2:$GO$2&【D】NPS!$C$3:$GO$3,0)) -> - | AO21: =INDEX(【D】NPS!$C$4:$GO$76,MATCH(NPS!$B21,【D】NPS!$B$4:$B$76,0), MATCH(NPS!AO$2&NPS!$AG$1,【D】NPS!$C$2:$GO$2&【D】NPS!$C$3:$GO$3,0)) -> - | AP21: =INDEX(【D】NPS!$C$4:$GO$76,MATCH(NPS!$B21,【D】NPS!$B$4:$B$76,0), MATCH(NPS!AP$2&NPS!$AG$1,【D】NPS!$C$2:$GO$2&【D】NPS!$C$3:$GO$3,0)) -> - | AQ21: =INDEX(【D】NPS!$C$4:$GO$76,MATCH(NPS!$B21,【D】NPS!$B$4:$B$76,0), MATCH(NPS!AQ$2&NPS!$AG$1,【D】NPS!$C$2:$GO$2&【D】NPS!$C$3:$GO$3,0)) -> - | AR21: =INDEX(【D】NPS!$C$4:$GO$76,MATCH(NPS!$B21,【D】NPS!$B$4:$B$76,0), MATCH(NPS!AR$2&NPS!$AG$1,【D】NPS!$C$2:$GO$2&【D】NPS!$C$3:$GO$3,0)) -> - | AS21: =INDEX(【D】NPS!$C$4:$GO$76,MATCH(NPS!$B21,【D】NPS!$B$4:$B$76,0), MATCH(NPS!AS$2&NPS!$AG$1,【D】NPS!$C$2:$GO$2&【D】NPS!$C$3:$GO$3,0)) -> - | AT21: =INDEX(【D】NPS!$C$4:$GO$76,MATCH(NPS!$B21,【D】NPS!$B$4:$B$76,0), MATCH(NPS!AT$2&NPS!$AG$1,【D】NPS!$C$2:$GO$2&【D】NPS!$C$3:$GO$3,0)) -> 28 | AV21: 19 | AW21: 19 | AX21: うみんぴあ大飯 エリア | AY21: 24.24242424 | AZ21: =INDEX(【D】NPS!$C$7:$HB$76, MATCH(NPS!$AX21,【D】NPS!$B$7:$B$76,0), MATCH(NPS!$AZ$2&NPS!$AW$1,【D】NPS!$C$1:$HB$1&【D】NPS!$C$2:$HB$2,0)) -> 33
B22: 道の駅「九頭竜」 エリア | D22: =INDEX(【D】NPS!$C$4:$GO$76,MATCH(NPS!$B22,【D】NPS!$B$4:$B$76,0), MATCH(NPS!D$2&NPS!$C$1,【D】NPS!$C$2:$GO$2&【D】NPS!$C$3:$GO$3,0)) -> -100 | E22: =INDEX(【D】NPS!$C$4:$GO$76,MATCH(NPS!$B22,【D】NPS!$B$4:$B$76,0), MATCH(NPS!E$2&NPS!$C$1,【D】NPS!$C$2:$GO$2&【D】NPS!$C$3:$GO$3,0)) -> -16.66666667 | F22: =INDEX(【D】NPS!$C$4:$GO$76,MATCH(NPS!$B22,【D】NPS!$B$4:$B$76,0), MATCH(NPS!F$2&NPS!$C$1,【D】NPS!$C$2:$GO$2&【D】NPS!$C$3:$GO$3,0)) -> -33.33333333 | G22: =INDEX(【D】NPS!$C$4:$GO$76,MATCH(NPS!$B22,【D】NPS!$B$4:$B$76,0), MATCH(NPS!G$2&NPS!$C$1,【D】NPS!$C$2:$GO$2&【D】NPS!$C$3:$GO$3,0)) -> None | H22: =INDEX(【D】NPS!$C$4:$GO$76,MATCH(NPS!$B22,【D】NPS!$B$4:$B$76,0), MATCH(NPS!H$2&NPS!$C$1,【D】NPS!$C$2:$GO$2&【D】NPS!$C$3:$GO$3,0)) -> None | I22: =INDEX(【D】NPS!$C$4:$GO$76,MATCH(NPS!$B22,【D】NPS!$B$4:$B$76,0), MATCH(NPS!I$2&NPS!$C$1,【D】NPS!$C$2:$GO$2&【D】NPS!$C$3:$GO$3,0)) -> None | J22: =INDEX(【D】NPS!$C$4:$GO$76,MATCH(NPS!$B22,【D】NPS!$B$4:$B$76,0), MATCH(NPS!J$2&NPS!$C$1,【D】NPS!$C$2:$GO$2&【D】NPS!$C$3:$GO$3,0)) -> None | K22: =INDEX(【D】NPS!$C$4:$GO$76,MATCH(NPS!$B22,【D】NPS!$B$4:$B$76,0), MATCH(NPS!K$2&NPS!$C$1,【D】NPS!$C$2:$GO$2&【D】NPS!$C$3:$GO$3,0)) -> None | L22: =INDEX(【D】NPS!$C$4:$GO$76,MATCH(NPS!$B22,【D】NPS!$B$4:$B$76,0), MATCH(NPS!L$2&NPS!$C$1,【D】NPS!$C$2:$GO$2&【D】NPS!$C$3:$GO$3,0)) -> None | M22: =INDEX(【D】NPS!$C$4:$GO$76,MATCH(NPS!$B22,【D】NPS!$B$4:$B$76,0), MATCH(NPS!M$2&NPS!$C$1,【D】NPS!$C$2:$GO$2&【D】NPS!$C$3:$GO$3,0)) -> None | N22: =INDEX(【D】NPS!$C$4:$GO$76,MATCH(NPS!$B22,【D】NPS!$B$4:$B$76,0), MATCH(NPS!N$2&NPS!$C$1,【D】NPS!$C$2:$GO$2&【D】NPS!$C$3:$GO$3,0)) -> None | O22: =INDEX(【D】NPS!$C$4:$GO$76,MATCH(NPS!$B22,【D】NPS!$B$4:$B$76,0), MATCH(NPS!O$2&NPS!$C$1,【D】NPS!$C$2:$GO$2&【D】NPS!$C$3:$GO$3,0)) -> None | P22: =INDEX(【D】NPS!$C$4:$GO$76,MATCH(NPS!$B22,【D】NPS!$B$4:$B$76,0), MATCH(NPS!P$2&NPS!$C$1,【D】NPS!$C$2:$GO$2&【D】NPS!$C$3:$GO$3,0)) -> -23.25581395 | S22: =INDEX(【D】NPS!$C$4:$GO$76,MATCH(NPS!$B22,【D】NPS!$B$4:$B$76,0), MATCH(NPS!S$2&NPS!$R$1,【D】NPS!$C$2:$GO$2&【D】NPS!$C$3:$GO$3,0)) -> 44 | T22: =INDEX(【D】NPS!$C$4:$GO$76,MATCH(NPS!$B22,【D】NPS!$B$4:$B$76,0), MATCH(NPS!T$2&NPS!$R$1,【D】NPS!$C$2:$GO$2&【D】NPS!$C$3:$GO$3,0)) -> 53 | U22: =INDEX(【D】NPS!$C$4:$GO$76,MATCH(NPS!$B22,【D】NPS!$B$4:$B$76,0), MATCH(NPS!U$2&NPS!$R$1,【D】NPS!$C$2:$GO$2&【D】NPS!$C$3:$GO$3,0)) -> 62 | V22: =INDEX(【D】NPS!$C$4:$GO$76,MATCH(NPS!$B22,【D】NPS!$B$4:$B$76,0), MATCH(NPS!V$2&NPS!$R$1,【D】NPS!$C$2:$GO$2&【D】NPS!$C$3:$GO$3,0)) -> - | W22: =INDEX(【D】NPS!$C$4:$GO$76,MATCH(NPS!$B22,【D】NPS!$B$4:$B$76,0), MATCH(NPS!W$2&NPS!$R$1,【D】NPS!$C$2:$GO$2&【D】NPS!$C$3:$GO$3,0)) -> - | X22: =INDEX(【D】NPS!$C$4:$GO$76,MATCH(NPS!$B22,【D】NPS!$B$4:$B$76,0), MATCH(NPS!X$2&NPS!$R$1,【D】NPS!$C$2:$GO$2&【D】NPS!$C$3:$GO$3,0)) -> - | Y22: =INDEX(【D】NPS!$C$4:$GO$76,MATCH(NPS!$B22,【D】NPS!$B$4:$B$76,0), MATCH(NPS!Y$2&NPS!$R$1,【D】NPS!$C$2:$GO$2&【D】NPS!$C$3:$GO$3,0)) -> - | Z22: =INDEX(【D】NPS!$C$4:$GO$76,MATCH(NPS!$B22,【D】NPS!$B$4:$B$76,0), MATCH(NPS!Z$2&NPS!$R$1,【D】NPS!$C$2:$GO$2&【D】NPS!$C$3:$GO$3,0)) -> - | AA22: =INDEX(【D】NPS!$C$4:$GO$76,MATCH(NPS!$B22,【D】NPS!$B$4:$B$76,0), MATCH(NPS!AA$2&NPS!$R$1,【D】NPS!$C$2:$GO$2&【D】NPS!$C$3:$GO$3,0)) -> - | AB22: =INDEX(【D】NPS!$C$4:$GO$76,MATCH(NPS!$B22,【D】NPS!$B$4:$B$76,0), MATCH(NPS!AB$2&NPS!$R$1,【D】NPS!$C$2:$GO$2&【D】NPS!$C$3:$GO$3,0)) -> - | AC22: =INDEX(【D】NPS!$C$4:$GO$76,MATCH(NPS!$B22,【D】NPS!$B$4:$B$76,0), MATCH(NPS!AC$2&NPS!$R$1,【D】NPS!$C$2:$GO$2&【D】NPS!$C$3:$GO$3,0)) -> - | AD22: =INDEX(【D】NPS!$C$4:$GO$76,MATCH(NPS!$B22,【D】NPS!$B$4:$B$76,0), MATCH(NPS!AD$2&NPS!$R$1,【D】NPS!$C$2:$GO$2&【D】NPS!$C$3:$GO$3,0)) -> - | AE22: =INDEX(【D】NPS!$C$4:$GO$76,MATCH(NPS!$B22,【D】NPS!$B$4:$B$76,0), MATCH(NPS!AE$2&NPS!$R$1,【D】NPS!$C$2:$GO$2&【D】NPS!$C$3:$GO$3,0)) -> 64 | AH22: =INDEX(【D】NPS!$C$4:$GO$76,MATCH(NPS!$B22,【D】NPS!$B$4:$B$76,0), MATCH(NPS!AH$2&NPS!$AG$1,【D】NPS!$C$2:$GO$2&【D】NPS!$C$3:$GO$3,0)) -> 47 | AI22: =INDEX(【D】NPS!$C$4:$GO$76,MATCH(NPS!$B22,【D】NPS!$B$4:$B$76,0), MATCH(NPS!AI$2&NPS!$AG$1,【D】NPS!$C$2:$GO$2&【D】NPS!$C$3:$GO$3,0)) -> 53 | AJ22: =INDEX(【D】NPS!$C$4:$GO$76,MATCH(NPS!$B22,【D】NPS!$B$4:$B$76,0), MATCH(NPS!AJ$2&NPS!$AG$1,【D】NPS!$C$2:$GO$2&【D】NPS!$C$3:$GO$3,0)) -> 62 | AK22: =INDEX(【D】NPS!$C$4:$GO$76,MATCH(NPS!$B22,【D】NPS!$B$4:$B$76,0), MATCH(NPS!AK$2&NPS!$AG$1,【D】NPS!$C$2:$GO$2&【D】NPS!$C$3:$GO$3,0)) -> - | AL22: =INDEX(【D】NPS!$C$4:$GO$76,MATCH(NPS!$B22,【D】NPS!$B$4:$B$76,0), MATCH(NPS!AL$2&NPS!$AG$1,【D】NPS!$C$2:$GO$2&【D】NPS!$C$3:$GO$3,0)) -> - | AM22: =INDEX(【D】NPS!$C$4:$GO$76,MATCH(NPS!$B22,【D】NPS!$B$4:$B$76,0), MATCH(NPS!AM$2&NPS!$AG$1,【D】NPS!$C$2:$GO$2&【D】NPS!$C$3:$GO$3,0)) -> - | AN22: =INDEX(【D】NPS!$C$4:$GO$76,MATCH(NPS!$B22,【D】NPS!$B$4:$B$76,0), MATCH(NPS!AN$2&NPS!$AG$1,【D】NPS!$C$2:$GO$2&【D】NPS!$C$3:$GO$3,0)) -> - | AO22: =INDEX(【D】NPS!$C$4:$GO$76,MATCH(NPS!$B22,【D】NPS!$B$4:$B$76,0), MATCH(NPS!AO$2&NPS!$AG$1,【D】NPS!$C$2:$GO$2&【D】NPS!$C$3:$GO$3,0)) -> - | AP22: =INDEX(【D】NPS!$C$4:$GO$76,MATCH(NPS!$B22,【D】NPS!$B$4:$B$76,0), MATCH(NPS!AP$2&NPS!$AG$1,【D】NPS!$C$2:$GO$2&【D】NPS!$C$3:$GO$3,0)) -> - | AQ22: =INDEX(【D】NPS!$C$4:$GO$76,MATCH(NPS!$B22,【D】NPS!$B$4:$B$76,0), MATCH(NPS!AQ$2&NPS!$AG$1,【D】NPS!$C$2:$GO$2&【D】NPS!$C$3:$GO$3,0)) -> - | AR22: =INDEX(【D】NPS!$C$4:$GO$76,MATCH(NPS!$B22,【D】NPS!$B$4:$B$76,0), MATCH(NPS!AR$2&NPS!$AG$1,【D】NPS!$C$2:$GO$2&【D】NPS!$C$3:$GO$3,0)) -> - | AS22: =INDEX(【D】NPS!$C$4:$GO$76,MATCH(NPS!$B22,【D】NPS!$B$4:$B$76,0), MATCH(NPS!AS$2&NPS!$AG$1,【D】NPS!$C$2:$GO$2&【D】NPS!$C$3:$GO$3,0)) -> - | AT22: =INDEX(【D】NPS!$C$4:$GO$76,MATCH(NPS!$B22,【D】NPS!$B$4:$B$76,0), MATCH(NPS!AT$2&NPS!$AG$1,【D】NPS!$C$2:$GO$2&【D】NPS!$C$3:$GO$3,0)) -> 64 | AV22: 20 | AW22: 20 | AX22: 御食国若狭おばま食文化館 エリア | AY22: 23.07692308 | AZ22: =INDEX(【D】NPS!$C$7:$HB$76, MATCH(NPS!$AX22,【D】NPS!$B$7:$B$76,0), MATCH(NPS!$AZ$2&NPS!$AW$1,【D】NPS!$C$1:$HB$1&【D】NPS!$C$2:$HB$2,0)) -> 13
B23: 六呂師高原 エリア | D23: =INDEX(【D】NPS!$C$4:$GO$76,MATCH(NPS!$B23,【D】NPS!$B$4:$B$76,0), MATCH(NPS!D$2&NPS!$C$1,【D】NPS!$C$2:$GO$2&【D】NPS!$C$3:$GO$3,0)) -> 0 | E23: =INDEX(【D】NPS!$C$4:$GO$76,MATCH(NPS!$B23,【D】NPS!$B$4:$B$76,0), MATCH(NPS!E$2&NPS!$C$1,【D】NPS!$C$2:$GO$2&【D】NPS!$C$3:$GO$3,0)) -> 17.64705882 | F23: =INDEX(【D】NPS!$C$4:$GO$76,MATCH(NPS!$B23,【D】NPS!$B$4:$B$76,0), MATCH(NPS!F$2&NPS!$C$1,【D】NPS!$C$2:$GO$2&【D】NPS!$C$3:$GO$3,0)) -> -25 | G23: =INDEX(【D】NPS!$C$4:$GO$76,MATCH(NPS!$B23,【D】NPS!$B$4:$B$76,0), MATCH(NPS!G$2&NPS!$C$1,【D】NPS!$C$2:$GO$2&【D】NPS!$C$3:$GO$3,0)) -> None | H23: =INDEX(【D】NPS!$C$4:$GO$76,MATCH(NPS!$B23,【D】NPS!$B$4:$B$76,0), MATCH(NPS!H$2&NPS!$C$1,【D】NPS!$C$2:$GO$2&【D】NPS!$C$3:$GO$3,0)) -> None | I23: =INDEX(【D】NPS!$C$4:$GO$76,MATCH(NPS!$B23,【D】NPS!$B$4:$B$76,0), MATCH(NPS!I$2&NPS!$C$1,【D】NPS!$C$2:$GO$2&【D】NPS!$C$3:$GO$3,0)) -> None | J23: =INDEX(【D】NPS!$C$4:$GO$76,MATCH(NPS!$B23,【D】NPS!$B$4:$B$76,0), MATCH(NPS!J$2&NPS!$C$1,【D】NPS!$C$2:$GO$2&【D】NPS!$C$3:$GO$3,0)) -> None | K23: =INDEX(【D】NPS!$C$4:$GO$76,MATCH(NPS!$B23,【D】NPS!$B$4:$B$76,0), MATCH(NPS!K$2&NPS!$C$1,【D】NPS!$C$2:$GO$2&【D】NPS!$C$3:$GO$3,0)) -> None | L23: =INDEX(【D】NPS!$C$4:$GO$76,MATCH(NPS!$B23,【D】NPS!$B$4:$B$76,0), MATCH(NPS!L$2&NPS!$C$1,【D】NPS!$C$2:$GO$2&【D】NPS!$C$3:$GO$3,0)) -> None | M23: =INDEX(【D】NPS!$C$4:$GO$76,MATCH(NPS!$B23,【D】NPS!$B$4:$B$76,0), MATCH(NPS!M$2&NPS!$C$1,【D】NPS!$C$2:$GO$2&【D】NPS!$C$3:$GO$3,0)) -> None | N23: =INDEX(【D】NPS!$C$4:$GO$76,MATCH(NPS!$B23,【D】NPS!$B$4:$B$76,0), MATCH(NPS!N$2&NPS!$C$1,【D】NPS!$C$2:$GO$2&【D】NPS!$C$3:$GO$3,0)) -> None | O23: =INDEX(【D】NPS!$C$4:$GO$76,MATCH(NPS!$B23,【D】NPS!$B$4:$B$76,0), MATCH(NPS!O$2&NPS!$C$1,【D】NPS!$C$2:$GO$2&【D】NPS!$C$3:$GO$3,0)) -> None | P23: =INDEX(【D】NPS!$C$4:$GO$76,MATCH(NPS!$B23,【D】NPS!$B$4:$B$76,0), MATCH(NPS!P$2&NPS!$C$1,【D】NPS!$C$2:$GO$2&【D】NPS!$C$3:$GO$3,0)) -> 3.846153846 | S23: =INDEX(【D】NPS!$C$4:$GO$76,MATCH(NPS!$B23,【D】NPS!$B$4:$B$76,0), MATCH(NPS!S$2&NPS!$R$1,【D】NPS!$C$2:$GO$2&【D】NPS!$C$3:$GO$3,0)) -> 25 | T23: =INDEX(【D】NPS!$C$4:$GO$76,MATCH(NPS!$B23,【D】NPS!$B$4:$B$76,0), MATCH(NPS!T$2&NPS!$R$1,【D】NPS!$C$2:$GO$2&【D】NPS!$C$3:$GO$3,0)) -> 16 | U23: =INDEX(【D】NPS!$C$4:$GO$76,MATCH(NPS!$B23,【D】NPS!$B$4:$B$76,0), MATCH(NPS!U$2&NPS!$R$1,【D】NPS!$C$2:$GO$2&【D】NPS!$C$3:$GO$3,0)) -> 56 | V23: =INDEX(【D】NPS!$C$4:$GO$76,MATCH(NPS!$B23,【D】NPS!$B$4:$B$76,0), MATCH(NPS!V$2&NPS!$R$1,【D】NPS!$C$2:$GO$2&【D】NPS!$C$3:$GO$3,0)) -> - | W23: =INDEX(【D】NPS!$C$4:$GO$76,MATCH(NPS!$B23,【D】NPS!$B$4:$B$76,0), MATCH(NPS!W$2&NPS!$R$1,【D】NPS!$C$2:$GO$2&【D】NPS!$C$3:$GO$3,0)) -> - | X23: =INDEX(【D】NPS!$C$4:$GO$76,MATCH(NPS!$B23,【D】NPS!$B$4:$B$76,0), MATCH(NPS!X$2&NPS!$R$1,【D】NPS!$C$2:$GO$2&【D】NPS!$C$3:$GO$3,0)) -> - | Y23: =INDEX(【D】NPS!$C$4:$GO$76,MATCH(NPS!$B23,【D】NPS!$B$4:$B$76,0), MATCH(NPS!Y$2&NPS!$R$1,【D】NPS!$C$2:$GO$2&【D】NPS!$C$3:$GO$3,0)) -> - | Z23: =INDEX(【D】NPS!$C$4:$GO$76,MATCH(NPS!$B23,【D】NPS!$B$4:$B$76,0), MATCH(NPS!Z$2&NPS!$R$1,【D】NPS!$C$2:$GO$2&【D】NPS!$C$3:$GO$3,0)) -> - | AA23: =INDEX(【D】NPS!$C$4:$GO$76,MATCH(NPS!$B23,【D】NPS!$B$4:$B$76,0), MATCH(NPS!AA$2&NPS!$R$1,【D】NPS!$C$2:$GO$2&【D】NPS!$C$3:$GO$3,0)) -> - | AB23: =INDEX(【D】NPS!$C$4:$GO$76,MATCH(NPS!$B23,【D】NPS!$B$4:$B$76,0), MATCH(NPS!AB$2&NPS!$R$1,【D】NPS!$C$2:$GO$2&【D】NPS!$C$3:$GO$3,0)) -> - | AC23: =INDEX(【D】NPS!$C$4:$GO$76,MATCH(NPS!$B23,【D】NPS!$B$4:$B$76,0), MATCH(NPS!AC$2&NPS!$R$1,【D】NPS!$C$2:$GO$2&【D】NPS!$C$3:$GO$3,0)) -> - | AD23: =INDEX(【D】NPS!$C$4:$GO$76,MATCH(NPS!$B23,【D】NPS!$B$4:$B$76,0), MATCH(NPS!AD$2&NPS!$R$1,【D】NPS!$C$2:$GO$2&【D】NPS!$C$3:$GO$3,0)) -> - | AE23: =INDEX(【D】NPS!$C$4:$GO$76,MATCH(NPS!$B23,【D】NPS!$B$4:$B$76,0), MATCH(NPS!AE$2&NPS!$R$1,【D】NPS!$C$2:$GO$2&【D】NPS!$C$3:$GO$3,0)) -> 35 | AH23: =INDEX(【D】NPS!$C$4:$GO$76,MATCH(NPS!$B23,【D】NPS!$B$4:$B$76,0), MATCH(NPS!AH$2&NPS!$AG$1,【D】NPS!$C$2:$GO$2&【D】NPS!$C$3:$GO$3,0)) -> 31 | AI23: =INDEX(【D】NPS!$C$4:$GO$76,MATCH(NPS!$B23,【D】NPS!$B$4:$B$76,0), MATCH(NPS!AI$2&NPS!$AG$1,【D】NPS!$C$2:$GO$2&【D】NPS!$C$3:$GO$3,0)) -> 16 | AJ23: =INDEX(【D】NPS!$C$4:$GO$76,MATCH(NPS!$B23,【D】NPS!$B$4:$B$76,0), MATCH(NPS!AJ$2&NPS!$AG$1,【D】NPS!$C$2:$GO$2&【D】NPS!$C$3:$GO$3,0)) -> 57 | AK23: =INDEX(【D】NPS!$C$4:$GO$76,MATCH(NPS!$B23,【D】NPS!$B$4:$B$76,0), MATCH(NPS!AK$2&NPS!$AG$1,【D】NPS!$C$2:$GO$2&【D】NPS!$C$3:$GO$3,0)) -> - | AL23: =INDEX(【D】NPS!$C$4:$GO$76,MATCH(NPS!$B23,【D】NPS!$B$4:$B$76,0), MATCH(NPS!AL$2&NPS!$AG$1,【D】NPS!$C$2:$GO$2&【D】NPS!$C$3:$GO$3,0)) -> - | AM23: =INDEX(【D】NPS!$C$4:$GO$76,MATCH(NPS!$B23,【D】NPS!$B$4:$B$76,0), MATCH(NPS!AM$2&NPS!$AG$1,【D】NPS!$C$2:$GO$2&【D】NPS!$C$3:$GO$3,0)) -> - | AN23: =INDEX(【D】NPS!$C$4:$GO$76,MATCH(NPS!$B23,【D】NPS!$B$4:$B$76,0), MATCH(NPS!AN$2&NPS!$AG$1,【D】NPS!$C$2:$GO$2&【D】NPS!$C$3:$GO$3,0)) -> - | AO23: =INDEX(【D】NPS!$C$4:$GO$76,MATCH(NPS!$B23,【D】NPS!$B$4:$B$76,0), MATCH(NPS!AO$2&NPS!$AG$1,【D】NPS!$C$2:$GO$2&【D】NPS!$C$3:$GO$3,0)) -> - | AP23: =INDEX(【D】NPS!$C$4:$GO$76,MATCH(NPS!$B23,【D】NPS!$B$4:$B$76,0), MATCH(NPS!AP$2&NPS!$AG$1,【D】NPS!$C$2:$GO$2&【D】NPS!$C$3:$GO$3,0)) -> - | AQ23: =INDEX(【D】NPS!$C$4:$GO$76,MATCH(NPS!$B23,【D】NPS!$B$4:$B$76,0), MATCH(NPS!AQ$2&NPS!$AG$1,【D】NPS!$C$2:$GO$2&【D】NPS!$C$3:$GO$3,0)) -> - | AR23: =INDEX(【D】NPS!$C$4:$GO$76,MATCH(NPS!$B23,【D】NPS!$B$4:$B$76,0), MATCH(NPS!AR$2&NPS!$AG$1,【D】NPS!$C$2:$GO$2&【D】NPS!$C$3:$GO$3,0)) -> - | AS23: =INDEX(【D】NPS!$C$4:$GO$76,MATCH(NPS!$B23,【D】NPS!$B$4:$B$76,0), MATCH(NPS!AS$2&NPS!$AG$1,【D】NPS!$C$2:$GO$2&【D】NPS!$C$3:$GO$3,0)) -> - | AT23: =INDEX(【D】NPS!$C$4:$GO$76,MATCH(NPS!$B23,【D】NPS!$B$4:$B$76,0), MATCH(NPS!AT$2&NPS!$AG$1,【D】NPS!$C$2:$GO$2&【D】NPS!$C$3:$GO$3,0)) -> 35 | AV23: 21 | AW23: =IFERROR(INDEX($S$6:$AE$75,MATCH(AX23,$B$6:$B$75,0),MATCH(AW$1,$S$2:$AE$2,0)),"-") -> 21 | AX23: 東尋坊 エリア | AY23: 22.72727273 | AZ23: =INDEX(【D】NPS!$C$7:$HB$76, MATCH(NPS!$AX23,【D】NPS!$B$7:$B$76,0), MATCH(NPS!$AZ$2&NPS!$AW$1,【D】NPS!$C$1:$HB$1&【D】NPS!$C$2:$HB$2,0)) -> 22
B24: スーベニアショップ ラプトル エリア | D24: =INDEX(【D】NPS!$C$4:$GO$76,MATCH(NPS!$B24,【D】NPS!$B$4:$B$76,0), MATCH(NPS!D$2&NPS!$C$1,【D】NPS!$C$2:$GO$2&【D】NPS!$C$3:$GO$3,0)) -> 38.88888889 | E24: =INDEX(【D】NPS!$C$4:$GO$76,MATCH(NPS!$B24,【D】NPS!$B$4:$B$76,0), MATCH(NPS!E$2&NPS!$C$1,【D】NPS!$C$2:$GO$2&【D】NPS!$C$3:$GO$3,0)) -> -4 | F24: =INDEX(【D】NPS!$C$4:$GO$76,MATCH(NPS!$B24,【D】NPS!$B$4:$B$76,0), MATCH(NPS!F$2&NPS!$C$1,【D】NPS!$C$2:$GO$2&【D】NPS!$C$3:$GO$3,0)) -> -25 | G24: =INDEX(【D】NPS!$C$4:$GO$76,MATCH(NPS!$B24,【D】NPS!$B$4:$B$76,0), MATCH(NPS!G$2&NPS!$C$1,【D】NPS!$C$2:$GO$2&【D】NPS!$C$3:$GO$3,0)) -> None | H24: =INDEX(【D】NPS!$C$4:$GO$76,MATCH(NPS!$B24,【D】NPS!$B$4:$B$76,0), MATCH(NPS!H$2&NPS!$C$1,【D】NPS!$C$2:$GO$2&【D】NPS!$C$3:$GO$3,0)) -> None | I24: =INDEX(【D】NPS!$C$4:$GO$76,MATCH(NPS!$B24,【D】NPS!$B$4:$B$76,0), MATCH(NPS!I$2&NPS!$C$1,【D】NPS!$C$2:$GO$2&【D】NPS!$C$3:$GO$3,0)) -> None | J24: =INDEX(【D】NPS!$C$4:$GO$76,MATCH(NPS!$B24,【D】NPS!$B$4:$B$76,0), MATCH(NPS!J$2&NPS!$C$1,【D】NPS!$C$2:$GO$2&【D】NPS!$C$3:$GO$3,0)) -> None | K24: =INDEX(【D】NPS!$C$4:$GO$76,MATCH(NPS!$B24,【D】NPS!$B$4:$B$76,0), MATCH(NPS!K$2&NPS!$C$1,【D】NPS!$C$2:$GO$2&【D】NPS!$C$3:$GO$3,0)) -> None | L24: =INDEX(【D】NPS!$C$4:$GO$76,MATCH(NPS!$B24,【D】NPS!$B$4:$B$76,0), MATCH(NPS!L$2&NPS!$C$1,【D】NPS!$C$2:$GO$2&【D】NPS!$C$3:$GO$3,0)) -> None | M24: =INDEX(【D】NPS!$C$4:$GO$76,MATCH(NPS!$B24,【D】NPS!$B$4:$B$76,0), MATCH(NPS!M$2&NPS!$C$1,【D】NPS!$C$2:$GO$2&【D】NPS!$C$3:$GO$3,0)) -> None | N24: =INDEX(【D】NPS!$C$4:$GO$76,MATCH(NPS!$B24,【D】NPS!$B$4:$B$76,0), MATCH(NPS!N$2&NPS!$C$1,【D】NPS!$C$2:$GO$2&【D】NPS!$C$3:$GO$3,0)) -> None | O24: =INDEX(【D】NPS!$C$4:$GO$76,MATCH(NPS!$B24,【D】NPS!$B$4:$B$76,0), MATCH(NPS!O$2&NPS!$C$1,【D】NPS!$C$2:$GO$2&【D】NPS!$C$3:$GO$3,0)) -> None | P24: =INDEX(【D】NPS!$C$4:$GO$76,MATCH(NPS!$B24,【D】NPS!$B$4:$B$76,0), MATCH(NPS!P$2&NPS!$C$1,【D】NPS!$C$2:$GO$2&【D】NPS!$C$3:$GO$3,0)) -> -2.083333333 | S24: =INDEX(【D】NPS!$C$4:$GO$76,MATCH(NPS!$B24,【D】NPS!$B$4:$B$76,0), MATCH(NPS!S$2&NPS!$R$1,【D】NPS!$C$2:$GO$2&【D】NPS!$C$3:$GO$3,0)) -> 13 | T24: =INDEX(【D】NPS!$C$4:$GO$76,MATCH(NPS!$B24,【D】NPS!$B$4:$B$76,0), MATCH(NPS!T$2&NPS!$R$1,【D】NPS!$C$2:$GO$2&【D】NPS!$C$3:$GO$3,0)) -> 38 | U24: =INDEX(【D】NPS!$C$4:$GO$76,MATCH(NPS!$B24,【D】NPS!$B$4:$B$76,0), MATCH(NPS!U$2&NPS!$R$1,【D】NPS!$C$2:$GO$2&【D】NPS!$C$3:$GO$3,0)) -> 56 | V24: =INDEX(【D】NPS!$C$4:$GO$76,MATCH(NPS!$B24,【D】NPS!$B$4:$B$76,0), MATCH(NPS!V$2&NPS!$R$1,【D】NPS!$C$2:$GO$2&【D】NPS!$C$3:$GO$3,0)) -> - | W24: =INDEX(【D】NPS!$C$4:$GO$76,MATCH(NPS!$B24,【D】NPS!$B$4:$B$76,0), MATCH(NPS!W$2&NPS!$R$1,【D】NPS!$C$2:$GO$2&【D】NPS!$C$3:$GO$3,0)) -> - | X24: =INDEX(【D】NPS!$C$4:$GO$76,MATCH(NPS!$B24,【D】NPS!$B$4:$B$76,0), MATCH(NPS!X$2&NPS!$R$1,【D】NPS!$C$2:$GO$2&【D】NPS!$C$3:$GO$3,0)) -> - | Y24: =INDEX(【D】NPS!$C$4:$GO$76,MATCH(NPS!$B24,【D】NPS!$B$4:$B$76,0), MATCH(NPS!Y$2&NPS!$R$1,【D】NPS!$C$2:$GO$2&【D】NPS!$C$3:$GO$3,0)) -> - | Z24: =INDEX(【D】NPS!$C$4:$GO$76,MATCH(NPS!$B24,【D】NPS!$B$4:$B$76,0), MATCH(NPS!Z$2&NPS!$R$1,【D】NPS!$C$2:$GO$2&【D】NPS!$C$3:$GO$3,0)) -> - | AA24: =INDEX(【D】NPS!$C$4:$GO$76,MATCH(NPS!$B24,【D】NPS!$B$4:$B$76,0), MATCH(NPS!AA$2&NPS!$R$1,【D】NPS!$C$2:$GO$2&【D】NPS!$C$3:$GO$3,0)) -> - | AB24: =INDEX(【D】NPS!$C$4:$GO$76,MATCH(NPS!$B24,【D】NPS!$B$4:$B$76,0), MATCH(NPS!AB$2&NPS!$R$1,【D】NPS!$C$2:$GO$2&【D】NPS!$C$3:$GO$3,0)) -> - | AC24: =INDEX(【D】NPS!$C$4:$GO$76,MATCH(NPS!$B24,【D】NPS!$B$4:$B$76,0), MATCH(NPS!AC$2&NPS!$R$1,【D】NPS!$C$2:$GO$2&【D】NPS!$C$3:$GO$3,0)) -> - | AD24: =INDEX(【D】NPS!$C$4:$GO$76,MATCH(NPS!$B24,【D】NPS!$B$4:$B$76,0), MATCH(NPS!AD$2&NPS!$R$1,【D】NPS!$C$2:$GO$2&【D】NPS!$C$3:$GO$3,0)) -> - | AE24: =INDEX(【D】NPS!$C$4:$GO$76,MATCH(NPS!$B24,【D】NPS!$B$4:$B$76,0), MATCH(NPS!AE$2&NPS!$R$1,【D】NPS!$C$2:$GO$2&【D】NPS!$C$3:$GO$3,0)) -> 46 | AH24: =INDEX(【D】NPS!$C$4:$GO$76,MATCH(NPS!$B24,【D】NPS!$B$4:$B$76,0), MATCH(NPS!AH$2&NPS!$AG$1,【D】NPS!$C$2:$GO$2&【D】NPS!$C$3:$GO$3,0)) -> 13 | AI24: =INDEX(【D】NPS!$C$4:$GO$76,MATCH(NPS!$B24,【D】NPS!$B$4:$B$76,0), MATCH(NPS!AI$2&NPS!$AG$1,【D】NPS!$C$2:$GO$2&【D】NPS!$C$3:$GO$3,0)) -> 38 | AJ24: =INDEX(【D】NPS!$C$4:$GO$76,MATCH(NPS!$B24,【D】NPS!$B$4:$B$76,0), MATCH(NPS!AJ$2&NPS!$AG$1,【D】NPS!$C$2:$GO$2&【D】NPS!$C$3:$GO$3,0)) -> 56 | AK24: =INDEX(【D】NPS!$C$4:$GO$76,MATCH(NPS!$B24,【D】NPS!$B$4:$B$76,0), MATCH(NPS!AK$2&NPS!$AG$1,【D】NPS!$C$2:$GO$2&【D】NPS!$C$3:$GO$3,0)) -> - | AL24: =INDEX(【D】NPS!$C$4:$GO$76,MATCH(NPS!$B24,【D】NPS!$B$4:$B$76,0), MATCH(NPS!AL$2&NPS!$AG$1,【D】NPS!$C$2:$GO$2&【D】NPS!$C$3:$GO$3,0)) -> - | AM24: =INDEX(【D】NPS!$C$4:$GO$76,MATCH(NPS!$B24,【D】NPS!$B$4:$B$76,0), MATCH(NPS!AM$2&NPS!$AG$1,【D】NPS!$C$2:$GO$2&【D】NPS!$C$3:$GO$3,0)) -> - | AN24: =INDEX(【D】NPS!$C$4:$GO$76,MATCH(NPS!$B24,【D】NPS!$B$4:$B$76,0), MATCH(NPS!AN$2&NPS!$AG$1,【D】NPS!$C$2:$GO$2&【D】NPS!$C$3:$GO$3,0)) -> - | AO24: =INDEX(【D】NPS!$C$4:$GO$76,MATCH(NPS!$B24,【D】NPS!$B$4:$B$76,0), MATCH(NPS!AO$2&NPS!$AG$1,【D】NPS!$C$2:$GO$2&【D】NPS!$C$3:$GO$3,0)) -> - | AP24: =INDEX(【D】NPS!$C$4:$GO$76,MATCH(NPS!$B24,【D】NPS!$B$4:$B$76,0), MATCH(NPS!AP$2&NPS!$AG$1,【D】NPS!$C$2:$GO$2&【D】NPS!$C$3:$GO$3,0)) -> - | AQ24: =INDEX(【D】NPS!$C$4:$GO$76,MATCH(NPS!$B24,【D】NPS!$B$4:$B$76,0), MATCH(NPS!AQ$2&NPS!$AG$1,【D】NPS!$C$2:$GO$2&【D】NPS!$C$3:$GO$3,0)) -> - | AR24: =INDEX(【D】NPS!$C$4:$GO$76,MATCH(NPS!$B24,【D】NPS!$B$4:$B$76,0), MATCH(NPS!AR$2&NPS!$AG$1,【D】NPS!$C$2:$GO$2&【D】NPS!$C$3:$GO$3,0)) -> - | AS24: =INDEX(【D】NPS!$C$4:$GO$76,MATCH(NPS!$B24,【D】NPS!$B$4:$B$76,0), MATCH(NPS!AS$2&NPS!$AG$1,【D】NPS!$C$2:$GO$2&【D】NPS!$C$3:$GO$3,0)) -> - | AT24: =INDEX(【D】NPS!$C$4:$GO$76,MATCH(NPS!$B24,【D】NPS!$B$4:$B$76,0), MATCH(NPS!AT$2&NPS!$AG$1,【D】NPS!$C$2:$GO$2&【D】NPS!$C$3:$GO$3,0)) -> 46 | AV24: 22 | AW24: 22 | AX24: 北潟湖 エリア | AY24: 16.66666667 | AZ24: =INDEX(【D】NPS!$C$7:$HB$76, MATCH(NPS!$AX24,【D】NPS!$B$7:$B$76,0), MATCH(NPS!$AZ$2&NPS!$AW$1,【D】NPS!$C$1:$HB$1&【D】NPS!$C$2:$HB$2,0)) -> 12
B25: 道の駅「恐竜渓谷かつやま」 エリア | D25: =INDEX(【D】NPS!$C$4:$GO$76,MATCH(NPS!$B25,【D】NPS!$B$4:$B$76,0), MATCH(NPS!D$2&NPS!$C$1,【D】NPS!$C$2:$GO$2&【D】NPS!$C$3:$GO$3,0)) -> 7.692307692 | E25: =INDEX(【D】NPS!$C$4:$GO$76,MATCH(NPS!$B25,【D】NPS!$B$4:$B$76,0), MATCH(NPS!E$2&NPS!$C$1,【D】NPS!$C$2:$GO$2&【D】NPS!$C$3:$GO$3,0)) -> 3.614457831 | F25: =INDEX(【D】NPS!$C$4:$GO$76,MATCH(NPS!$B25,【D】NPS!$B$4:$B$76,0), MATCH(NPS!F$2&NPS!$C$1,【D】NPS!$C$2:$GO$2&【D】NPS!$C$3:$GO$3,0)) -> -19.23076923 | G25: =INDEX(【D】NPS!$C$4:$GO$76,MATCH(NPS!$B25,【D】NPS!$B$4:$B$76,0), MATCH(NPS!G$2&NPS!$C$1,【D】NPS!$C$2:$GO$2&【D】NPS!$C$3:$GO$3,0)) -> None | H25: =INDEX(【D】NPS!$C$4:$GO$76,MATCH(NPS!$B25,【D】NPS!$B$4:$B$76,0), MATCH(NPS!H$2&NPS!$C$1,【D】NPS!$C$2:$GO$2&【D】NPS!$C$3:$GO$3,0)) -> None | I25: =INDEX(【D】NPS!$C$4:$GO$76,MATCH(NPS!$B25,【D】NPS!$B$4:$B$76,0), MATCH(NPS!I$2&NPS!$C$1,【D】NPS!$C$2:$GO$2&【D】NPS!$C$3:$GO$3,0)) -> None | J25: =INDEX(【D】NPS!$C$4:$GO$76,MATCH(NPS!$B25,【D】NPS!$B$4:$B$76,0), MATCH(NPS!J$2&NPS!$C$1,【D】NPS!$C$2:$GO$2&【D】NPS!$C$3:$GO$3,0)) -> None | K25: =INDEX(【D】NPS!$C$4:$GO$76,MATCH(NPS!$B25,【D】NPS!$B$4:$B$76,0), MATCH(NPS!K$2&NPS!$C$1,【D】NPS!$C$2:$GO$2&【D】NPS!$C$3:$GO$3,0)) -> None | L25: =INDEX(【D】NPS!$C$4:$GO$76,MATCH(NPS!$B25,【D】NPS!$B$4:$B$76,0), MATCH(NPS!L$2&NPS!$C$1,【D】NPS!$C$2:$GO$2&【D】NPS!$C$3:$GO$3,0)) -> None | M25: =INDEX(【D】NPS!$C$4:$GO$76,MATCH(NPS!$B25,【D】NPS!$B$4:$B$76,0), MATCH(NPS!M$2&NPS!$C$1,【D】NPS!$C$2:$GO$2&【D】NPS!$C$3:$GO$3,0)) -> None | N25: =INDEX(【D】NPS!$C$4:$GO$76,MATCH(NPS!$B25,【D】NPS!$B$4:$B$76,0), MATCH(NPS!N$2&NPS!$C$1,【D】NPS!$C$2:$GO$2&【D】NPS!$C$3:$GO$3,0)) -> None | O25: =INDEX(【D】NPS!$C$4:$GO$76,MATCH(NPS!$B25,【D】NPS!$B$4:$B$76,0), MATCH(NPS!O$2&NPS!$C$1,【D】NPS!$C$2:$GO$2&【D】NPS!$C$3:$GO$3,0)) -> None | P25: =INDEX(【D】NPS!$C$4:$GO$76,MATCH(NPS!$B25,【D】NPS!$B$4:$B$76,0), MATCH(NPS!P$2&NPS!$C$1,【D】NPS!$C$2:$GO$2&【D】NPS!$C$3:$GO$3,0)) -> -0.8196721311 | S25: =INDEX(【D】NPS!$C$4:$GO$76,MATCH(NPS!$B25,【D】NPS!$B$4:$B$76,0), MATCH(NPS!S$2&NPS!$R$1,【D】NPS!$C$2:$GO$2&【D】NPS!$C$3:$GO$3,0)) -> 24 | T25: =INDEX(【D】NPS!$C$4:$GO$76,MATCH(NPS!$B25,【D】NPS!$B$4:$B$76,0), MATCH(NPS!T$2&NPS!$R$1,【D】NPS!$C$2:$GO$2&【D】NPS!$C$3:$GO$3,0)) -> 29 | U25: =INDEX(【D】NPS!$C$4:$GO$76,MATCH(NPS!$B25,【D】NPS!$B$4:$B$76,0), MATCH(NPS!U$2&NPS!$R$1,【D】NPS!$C$2:$GO$2&【D】NPS!$C$3:$GO$3,0)) -> 53 | V25: =INDEX(【D】NPS!$C$4:$GO$76,MATCH(NPS!$B25,【D】NPS!$B$4:$B$76,0), MATCH(NPS!V$2&NPS!$R$1,【D】NPS!$C$2:$GO$2&【D】NPS!$C$3:$GO$3,0)) -> - | W25: =INDEX(【D】NPS!$C$4:$GO$76,MATCH(NPS!$B25,【D】NPS!$B$4:$B$76,0), MATCH(NPS!W$2&NPS!$R$1,【D】NPS!$C$2:$GO$2&【D】NPS!$C$3:$GO$3,0)) -> - | X25: =INDEX(【D】NPS!$C$4:$GO$76,MATCH(NPS!$B25,【D】NPS!$B$4:$B$76,0), MATCH(NPS!X$2&NPS!$R$1,【D】NPS!$C$2:$GO$2&【D】NPS!$C$3:$GO$3,0)) -> - | Y25: =INDEX(【D】NPS!$C$4:$GO$76,MATCH(NPS!$B25,【D】NPS!$B$4:$B$76,0), MATCH(NPS!Y$2&NPS!$R$1,【D】NPS!$C$2:$GO$2&【D】NPS!$C$3:$GO$3,0)) -> - | Z25: =INDEX(【D】NPS!$C$4:$GO$76,MATCH(NPS!$B25,【D】NPS!$B$4:$B$76,0), MATCH(NPS!Z$2&NPS!$R$1,【D】NPS!$C$2:$GO$2&【D】NPS!$C$3:$GO$3,0)) -> - | AA25: =INDEX(【D】NPS!$C$4:$GO$76,MATCH(NPS!$B25,【D】NPS!$B$4:$B$76,0), MATCH(NPS!AA$2&NPS!$R$1,【D】NPS!$C$2:$GO$2&【D】NPS!$C$3:$GO$3,0)) -> - | AB25: =INDEX(【D】NPS!$C$4:$GO$76,MATCH(NPS!$B25,【D】NPS!$B$4:$B$76,0), MATCH(NPS!AB$2&NPS!$R$1,【D】NPS!$C$2:$GO$2&【D】NPS!$C$3:$GO$3,0)) -> - | AC25: =INDEX(【D】NPS!$C$4:$GO$76,MATCH(NPS!$B25,【D】NPS!$B$4:$B$76,0), MATCH(NPS!AC$2&NPS!$R$1,【D】NPS!$C$2:$GO$2&【D】NPS!$C$3:$GO$3,0)) -> - | AD25: =INDEX(【D】NPS!$C$4:$GO$76,MATCH(NPS!$B25,【D】NPS!$B$4:$B$76,0), MATCH(NPS!AD$2&NPS!$R$1,【D】NPS!$C$2:$GO$2&【D】NPS!$C$3:$GO$3,0)) -> - | AE25: =INDEX(【D】NPS!$C$4:$GO$76,MATCH(NPS!$B25,【D】NPS!$B$4:$B$76,0), MATCH(NPS!AE$2&NPS!$R$1,【D】NPS!$C$2:$GO$2&【D】NPS!$C$3:$GO$3,0)) -> 44 | AH25: =INDEX(【D】NPS!$C$4:$GO$76,MATCH(NPS!$B25,【D】NPS!$B$4:$B$76,0), MATCH(NPS!AH$2&NPS!$AG$1,【D】NPS!$C$2:$GO$2&【D】NPS!$C$3:$GO$3,0)) -> 24 | AI25: =INDEX(【D】NPS!$C$4:$GO$76,MATCH(NPS!$B25,【D】NPS!$B$4:$B$76,0), MATCH(NPS!AI$2&NPS!$AG$1,【D】NPS!$C$2:$GO$2&【D】NPS!$C$3:$GO$3,0)) -> 29 | AJ25: =INDEX(【D】NPS!$C$4:$GO$76,MATCH(NPS!$B25,【D】NPS!$B$4:$B$76,0), MATCH(NPS!AJ$2&NPS!$AG$1,【D】NPS!$C$2:$GO$2&【D】NPS!$C$3:$GO$3,0)) -> 53 | AK25: =INDEX(【D】NPS!$C$4:$GO$76,MATCH(NPS!$B25,【D】NPS!$B$4:$B$76,0), MATCH(NPS!AK$2&NPS!$AG$1,【D】NPS!$C$2:$GO$2&【D】NPS!$C$3:$GO$3,0)) -> - | AL25: =INDEX(【D】NPS!$C$4:$GO$76,MATCH(NPS!$B25,【D】NPS!$B$4:$B$76,0), MATCH(NPS!AL$2&NPS!$AG$1,【D】NPS!$C$2:$GO$2&【D】NPS!$C$3:$GO$3,0)) -> - | AM25: =INDEX(【D】NPS!$C$4:$GO$76,MATCH(NPS!$B25,【D】NPS!$B$4:$B$76,0), MATCH(NPS!AM$2&NPS!$AG$1,【D】NPS!$C$2:$GO$2&【D】NPS!$C$3:$GO$3,0)) -> - | AN25: =INDEX(【D】NPS!$C$4:$GO$76,MATCH(NPS!$B25,【D】NPS!$B$4:$B$76,0), MATCH(NPS!AN$2&NPS!$AG$1,【D】NPS!$C$2:$GO$2&【D】NPS!$C$3:$GO$3,0)) -> - | AO25: =INDEX(【D】NPS!$C$4:$GO$76,MATCH(NPS!$B25,【D】NPS!$B$4:$B$76,0), MATCH(NPS!AO$2&NPS!$AG$1,【D】NPS!$C$2:$GO$2&【D】NPS!$C$3:$GO$3,0)) -> - | AP25: =INDEX(【D】NPS!$C$4:$GO$76,MATCH(NPS!$B25,【D】NPS!$B$4:$B$76,0), MATCH(NPS!AP$2&NPS!$AG$1,【D】NPS!$C$2:$GO$2&【D】NPS!$C$3:$GO$3,0)) -> - | AQ25: =INDEX(【D】NPS!$C$4:$GO$76,MATCH(NPS!$B25,【D】NPS!$B$4:$B$76,0), MATCH(NPS!AQ$2&NPS!$AG$1,【D】NPS!$C$2:$GO$2&【D】NPS!$C$3:$GO$3,0)) -> - | AR25: =INDEX(【D】NPS!$C$4:$GO$76,MATCH(NPS!$B25,【D】NPS!$B$4:$B$76,0), MATCH(NPS!AR$2&NPS!$AG$1,【D】NPS!$C$2:$GO$2&【D】NPS!$C$3:$GO$3,0)) -> - | AS25: =INDEX(【D】NPS!$C$4:$GO$76,MATCH(NPS!$B25,【D】NPS!$B$4:$B$76,0), MATCH(NPS!AS$2&NPS!$AG$1,【D】NPS!$C$2:$GO$2&【D】NPS!$C$3:$GO$3,0)) -> - | AT25: =INDEX(【D】NPS!$C$4:$GO$76,MATCH(NPS!$B25,【D】NPS!$B$4:$B$76,0), MATCH(NPS!AT$2&NPS!$AG$1,【D】NPS!$C$2:$GO$2&【D】NPS!$C$3:$GO$3,0)) -> 44 | AV25: 23 | AW25: 23 | AX25: 越前陶芸村 エリア | AY25: 14.28571429 | AZ25: =INDEX(【D】NPS!$C$7:$HB$76, MATCH(NPS!$AX25,【D】NPS!$B$7:$B$76,0), MATCH(NPS!$AZ$2&NPS!$AW$1,【D】NPS!$C$1:$HB$1&【D】NPS!$C$2:$HB$2,0)) -> 21
